Workbook

Sheet Title

Sheet StartHere
A1: This version is for the North Hemisphere!
A2: Fill the cells in green, according to the instructions on the sheet entitled "Title". More advanced users may wish to read the article De Melo-Abreu et al., 2004, found in the last page of this book.
A3: The author thanks information on the performance of the model, especially when it fails!
A4: Crop | B4: Picual | C4: Example | E4: Longitude of the standard meredian | F4: 0 | G4: º
A6: Latitude | B6: 39.53333 | E6: Temp(D/H?): | F6: H
E7: TTStepOpt(D/H?): | F7: H
A8: Longitude | B8: -7.033333 | C8: º | E8: Clear Temp? | F8: N
E9: Format of daily temperature data? | F9: 2
A10: No. Years | B10: 10
A11: DOY(beginning of the simulations) | B11: 274
A12: Do you want to input all years with 365 days? | B12: N
A13: Sc Temp. added to Tmax/all hourly temps: | B13: 0 | C13: ºC
A14: Sc Temp. added to Tmin (if hourly temps must be = above): | C14: ºC
A15: Last day that flowering may occur: | B15: 250 | C15: DOY
A20: Model parameters
A22: Base temperature (Tb) | B22: 8.8 | D22: TCU (accumulated chilling units) | E22: 469 | F22: CU
A24: Ti | B24: 0 | D24: TT (thermal time) | E24: 14680 | F24: ºC d or ºC h
A26: To | B26: 7.3
A28: Tx | B28: 20.7
A30: a | B30: -0.56
A37: Note:
A38: This program, when interrupted, may result in changes in the options of Excel. --------------->
A39: For example, the formula calculation may become manual. ---------------->
A40: These are measures to increase the speed of Excel. ---------------->
A41: In order to cancel these accidental changes, mostly as a result of errors,
A42: click the button "Reset Excel!" ---------------->
A43: In some rare occasions and computer configurations you get an interruption. In this case, restart the computer!

Sheet DlyTemp
A11: Ano | B11: DOY | C11: Tmin | D11: Tmax
A12: 2001 | B12: 274 | C12: 12.3 | D12: 21.7
A13: 2001 | B13: 275 | C13: 13.2 | D13: 22.5
A14: 2001 | B14: 276 | C14: 16.1 | D14: 27.1
A15: 2001 | B15: 277 | C15: 11.4 | D15: 30.7
A16: 2001 | B16: 278 | C16: 13.4 | D16: 31.9
A17: 2001 | B17: 279 | C17: 14 | D17: 30
A18: 2001 | B18: 280 | C18: 12.6 | D18: 28.9
A19: 2001 | B19: 281 | C19: 14.8 | D19: 27.9
A20: 2001 | B20: 282 | C20: 12.3 | D20: 28.6
A21: 2001 | B21: 283 | C21: 11.5 | D21: 28.5
A22: 2001 | B22: 284 | C22: 15.4 | D22: 22.5
A23: 2001 | B23: 285 | C23: 14.6 | D23: 21.6
A24: 2001 | B24: 286 | C24: 11.1 | D24: 16.7
A25: 2001 | B25: 287 | C25: 7.9 | D25: 18.2
A26: 2001 | B26: 288 | C26: 5.4 | D26: 18.4
A27: 2001 | B27: 289 | C27: 8.4 | D27: 16.4
A28: 2001 | B28: 290 | C28: 11.9 | D28: 20.6
A29: 2001 | B29: 291 | C29: 9.1 | D29: 23.1
A30: 2001 | B30: 292 | C30: 9.7 | D30: 23.4
A31: 2001 | B31: 293 | C31: 11.4 | D31: 24.7
A32: 2001 | B32: 294 | C32: 11.3 | D32: 19.6
A33: 2001 | B33: 295 | C33: 12 | D33: 16.5
A34: 2001 | B34: 296 | C34: 12 | D34: 20.2
A35: 2001 | B35: 297 | C35: 12.9 | D35: 16.5
A36: 2001 | B36: 298 | C36: 11.4 | D36: 20.3
A37: 2001 | B37: 299 | C37: 10.3 | D37: 21.1
A38: 2001 | B38: 300 | C38: 10 | D38: 21.1
A39: 2001 | B39: 301 | C39: 11 | D39: 24.3
A40: 2001 | B40: 302 | C40: 11.4 | D40: 24.2
A41: 2001 | B41: 303 | C41: 10.7 | D41: 22.3
A42: 2001 | B42: 304 | C42: 9.2 | D42: 19.7
A43: 2001 | B43: 305 | C43: 8.1 | D43: 16.6
A44: 2001 | B44: 306 | C44: 5.1 | D44: 16.4
A45: 2001 | B45: 307 | C45: 5.2 | D45: 16.9
A46: 2001 | B46: 308 | C46: 7.8 | D46: 15
A47: 2001 | B47: 309 | C47: 3.3 | D47: 14.3
A48: 2001 | B48: 310 | C48: 6.9 | D48: 15.5
A49: 2001 | B49: 311 | C49: 8.9 | D49: 16.2
A50: 2001 | B50: 312 | C50: 7.9 | D50: 13.1
A51: 2001 | B51: 313 | C51: 4.6 | D51: 13.1
A52: 2001 | B52: 314 | C52: 2.9 | D52: 14.5
A53: 2001 | B53: 315 | C53: 2.8 | D53: 17.4
A54: 2001 | B54: 316 | C54: 6.1 | D54: 20.2
A55: 2001 | B55: 317 | C55: 7.3 | D55: 20.4
A56: 2001 | B56: 318 | C56: 8.9 | D56: 15.3
A57: 2001 | B57: 319 | C57: 7.4 | D57: 13.3
A58: 2001 | B58: 320 | C58: 5 | D58: 15.7
A59: 2001 | B59: 321 | C59: 3.4 | D59: 13.1
A60: 2001 | B60: 322 | C60: 5.8 | D60: 14.2
A61: 2001 | B61: 323 | C61: 1.4 | D61: 14.8
A62: 2001 | B62: 324 | C62: 1.1 | D62: 13.9
A63: 2001 | B63: 325 | C63: 7.9 | D63: 12.4
A64: 2001 | B64: 326 | C64: 8.6 | D64: 13.9
A65: 2001 | B65: 327 | C65: 8.1 | D65: 15.8
A66: 2001 | B66: 328 | C66: 8.9 | D66: 16.4
A67: 2001 | B67: 329 | C67: 5.6 | D67: 9.9
A68: 2001 | B68: 330 | C68: 8.6 | D68: 16.4
A69: 2001 | B69: 331 | C69: 12.4 | D69: 17.8
A70: 2001 | B70: 332 | C70: 10.1 | D70: 20.6
A71: 2001 | B71: 333 | C71: 8.8 | D71: 18.8
A72: 2001 | B72: 334 | C72: 10.4 | D72: 18
A73: 2001 | B73: 335 | C73: 6.6 | D73: 15.9
A74: 2001 | B74: 336 | C74: 6.3 | D74: 13
A75: 2001 | B75: 337 | C75: 7.1 | D75: 14.8
A76: 2001 | B76: 338 | C76: 4.9 | D76: 14.3
A77: 2001 | B77: 339 | C77: 6 | D77: 14.4
A78: 2001 | B78: 340 | C78: 4.4 | D78: 13.7
A79: 2001 | B79: 341 | C79: 8.5 | D79: 15.6
A80: 2001 | B80: 342 | C80: 12.9 | D80: 22.3
A81: 2001 | B81: 343 | C81: 8.7 | D81: 15.8
A82: 2001 | B82: 344 | C82: 6.1 | D82: 14.8
A83: 2001 | B83: 345 | C83: 3.7 | D83: 15.6
A84: 2001 | B84: 346 | C84: 5.4 | D84: 18.4
A85: 2001 | B85: 347 | C85: 4.8 | D85: 19
A86: 2001 | B86: 348 | C86: 3.4 | D86: 17.8
A87: 2001 | B87: 349 | C87: 3.1 | D87: 15.1
A88: 2001 | B88: 350 | C88: 4.8 | D88: 14.2
A89: 2001 | B89: 351 | C89: 0.4 | D89: 13.6
A90: 2001 | B90: 352 | C90: 0.6 | D90: 11.5
A91: 2001 | B91: 353 | C91: 1.2 | D91: 14.5
A92: 2001 | B92: 354 | C92: 2.4 | D92: 15.7
A93: 2001 | B93: 355 | C93: 3.1 | D93: 10.1
A94: 2001 | B94: 356 | C94: 2.2 | D94: 13.4
A95: 2001 | B95: 357 | C95: 8.2 | D95: 12.9
A96: 2001 | B96: 358 | C96: 6 | D96: 13.4
A97: 2001 | B97: 359 | C97: 8.2 | D97: 12.6
A98: 2001 | B98: 360 | C98: 8.3 | D98: 14.9
A99: 2001 | B99: 361 | C99: 8.3 | D99: 14.9
A100: 2001 | B100: 362 | C100: 7.5 | D100: 11.3
A101: 2001 | B101: 363 | C101: 4.9 | D101: 13.2
A102: 2001 | B102: 364 | C102: 10.7 | D102: 13.5
A103: 2001 | B103: 365 | C103: 7.4 | D103: 13.2
A104: 2001 | B104: 366 | C104: 5.5 | D104: 12.7
A105: 2001 | B105: 1 | C105: 2.8 | D105: 12.8
A106: 2001 | B106: 2 | C106: 7.7 | D106: 14.4
A107: 2001 | B107: 3 | C107: 5.6 | D107: 14
A108: 2001 | B108: 4 | C108: 9.7 | D108: 15.4
A109: 2001 | B109: 5 | C109: 10.1 | D109: 16.4
A110: 2001 | B110: 6 | C110: 7.3 | D110: 16.8
A111: 2001 | B111: 7 | C111: 3.4 | D111: 7.5
A112: 2001 | B112: 8 | C112: 0.3 | D112: 11
A113: 2001 | B113: 9 | C113: -0.5 | D113: 10.9
A114: 2001 | B114: 10 | C114: 7.3 | D114: 14.6
A115: 2001 | B115: 11 | C115: 7.4 | D115: 15.6
A116: 2001 | B116: 12 | C116: 6.7 | D116: 10.7
A117: 2001 | B117: 13 | C117: 6.3 | D117: 13.6
A118: 2001 | B118: 14 | C118: 6.6 | D118: 9.5
A119: 2001 | B119: 15 | C119: 5 | D119: 9.2
A120: 2001 | B120: 16 | C120: 4.2 | D120: 10.8
A121: 2001 | B121: 17 | C121: 4.5 | D121: 11.3
A122: 2001 | B122: 18 | C122: 3.9 | D122: 9.7
A123: 2001 | B123: 19 | C123: 6.9 | D123: 12.2
A124: 2001 | B124: 20 | C124: 4.6 | D124: 13.7
A125: 2001 | B125: 21 | C125: 2.2 | D125: 15.7
A126: 2001 | B126: 22 | C126: 1.5 | D126: 13.9
A127: 2001 | B127: 23 | C127: 9.4 | D127: 15.2
A128: 2001 | B128: 24 | C128: 10.6 | D128: 16.6
A129: 2001 | B129: 25 | C129: 6.6 | D129: 11.5
A130: 2001 | B130: 26 | C130: 4.7 | D130: 11.8
A131: 2001 | B131: 27 | C131: 11.3 | D131: 14
A132: 2001 | B132: 28 | C132: 6.8 | D132: 12.4
A133: 2001 | B133: 29 | C133: 4.6 | D133: 12.5
A134: 2001 | B134: 30 | C134: 1.6 | D134: 13
A135: 2001 | B135: 31 | C135: 0.7 | D135: 14.3
A136: 2001 | B136: 32 | C136: 5.7 | D136: 12.5
A137: 2001 | B137: 33 | C137: 1 | D137: 16.3
A138: 2001 | B138: 34 | C138: 4.3 | D138: 16.1
A139: 2001 | B139: 35 | C139: 6.7 | D139: 12.8
A140: 2001 | B140: 36 | C140: 8.7 | D140: 14.4
A141: 2001 | B141: 37 | C141: 6.3 | D141: 15.7
A142: 2001 | B142: 38 | C142: 9.8 | D142: 19.3
A143: 2001 | B143: 39 | C143: 7.3 | D143: 11.3
A144: 2001 | B144: 40 | C144: 4.3 | D144: 13.6
A145: 2001 | B145: 41 | C145: 8.1 | D145: 16.6
A146: 2001 | B146: 42 | C146: 6.7 | D146: 22.3
A147: 2001 | B147: 43 | C147: 8.1 | D147: 21.2
A148: 2001 | B148: 44 | C148: 6.2 | D148: 19.3
A149: 2001 | B149: 45 | C149: 5.8 | D149: 11.5
A150: 2001 | B150: 46 | C150: 2.6 | D150: 14.1
A151: 2001 | B151: 47 | C151: 5.4 | D151: 15.7
A152: 2001 | B152: 48 | C152: 3.3 | D152: 16.9
A153: 2001 | B153: 49 | C153: 2.8 | D153: 14.9
A154: 2001 | B154: 50 | C154: 4 | D154: 13.1
A155: 2001 | B155: 51 | C155: 2.4 | D155: 18
A156: 2001 | B156: 52 | C156: 4.4 | D156: 21.2
A157: 2001 | B157: 53 | C157: 4.8 | D157: 22
A158: 2001 | B158: 54 | C158: 5.8 | D158: 16.6
A159: 2001 | B159: 55 | C159: 7.3 | D159: 13.2
A160: 2001 | B160: 56 | C160: 6.7 | D160: 14.3
A161: 2001 | B161: 57 | C161: 2 | D161: 14.1
A162: 2001 | B162: 58 | C162: 5.3 | D162: 9.9
A163: 2001 | B163: 59 | C163: 4 | D163: 9.5
A164: 2001 | B164: 60 | C164: 5.4 | D164: 15.8
A165: 2001 | B165: 61 | C165: 11.5 | D165: 18.4
A166: 2001 | B166: 62 | C166: 10.1 | D166: 15.6
A167: 2001 | B167: 63 | C167: 11.5 | D167: 19
A168: 2001 | B168: 64 | C168: 11.1 | D168: 19.2
A169: 2001 | B169: 65 | C169: 13.2 | D169: 25.3
A170: 2001 | B170: 66 | C170: 10.4 | D170: 15.7
A171: 2001 | B171: 67 | C171: 10.3 | D171: 14.2
A172: 2001 | B172: 68 | C172: 11 | D172: 16.8
A173: 2001 | B173: 69 | C173: 13.4 | D173: 18.4
A174: 2001 | B174: 70 | C174: 12.1 | D174: 23.7
A175: 2001 | B175: 71 | C175: 9.8 | D175: 17.2
A176: 2001 | B176: 72 | C176: 6.2 | D176: 18
A177: 2001 | B177: 73 | C177: 5 | D177: 21.1
A178: 2001 | B178: 74 | C178: 7.2 | D178: 23.8
A179: 2001 | B179: 75 | C179: 9 | D179: 17.1
A180: 2001 | B180: 76 | C180: 9.1 | D180: 16.1
A181: 2001 | B181: 77 | C181: 8.9 | D181: 17.2
A182: 2001 | B182: 78 | C182: 10.9 | D182: 19.9
A183: 2001 | B183: 79 | C183: 7.5 | D183: 21.6
A184: 2001 | B184: 80 | C184: 9.1 | D184: 22.2
A185: 2001 | B185: 81 | C185: 8.3 | D185: 25.8
A186: 2001 | B186: 82 | C186: 13.1 | D186: 31.6
A187: 2001 | B187: 83 | C187: 12.2 | D187: 25.3
A188: 2001 | B188: 84 | C188: 9.7 | D188: 15.4
A189: 2001 | B189: 85 | C189: 7.7 | D189: 15
A190: 2001 | B190: 86 | C190: 7.6 | D190: 16.8
A191: 2001 | B191: 87 | C191: 7.1 | D191: 17.8
A192: 2001 | B192: 88 | C192: 9.2 | D192: 16.5
A193: 2001 | B193: 89 | C193: 9.3 | D193: 16.9
A194: 2001 | B194: 90 | C194: 9.7 | D194: 23.3
A195: 2001 | B195: 91 | C195: 10.5 | D195: 25.2
A196: 2001 | B196: 92 | C196: 9.3 | D196: 22.7
A197: 2001 | B197: 93 | C197: 10.3 | D197: 20
A198: 2001 | B198: 94 | C198: 8.9 | D198: 20.2
A199: 2001 | B199: 95 | C199: 11.5 | D199: 22.1
A200: 2001 | B200: 96 | C200: 10 | D200: 23.4
A201: 2001 | B201: 97 | C201: 11.3 | D201: 19.5
A202: 2001 | B202: 98 | C202: 7.7 | D202: 20.7
A203: 2001 | B203: 99 | C203: 7.7 | D203: 25.1
A204: 2001 | B204: 100 | C204: 9 | D204: 26.1
A205: 2001 | B205: 101 | C205: 10.5 | D205: 23.3
A206: 2001 | B206: 102 | C206: 8 | D206: 21.1
A207: 2001 | B207: 103 | C207: 7.8 | D207: 22.9
A208: 2001 | B208: 104 | C208: 7.4 | D208: 23.3
A209: 2001 | B209: 105 | C209: 9.5 | D209: 23.9
A210: 2001 | B210: 106 | C210: 10.6 | D210: 25.1
... 3454 more rows

Sheet HlyTemp
A1: Ano | B1: DOY | C1: Hora | D1: Temp.
A2: 2001 | B2: 274 | C2: 1 | D2: 15.34721227
A3: 2001 | B3: 274 | C3: 2 | D3: 14.63706642
A4: 2001 | B4: 274 | C4: 3 | D4: 14.04804293
A5: 2001 | B5: 274 | C5: 4 | D5: 13.602347
A6: 2001 | B6: 274 | C6: 5 | D6: 13.31678067
A7: 2001 | B7: 274 | C7: 6 | D7: 13.2021093
A8: 2001 | B8: 274 | C8: 7 | D8: 13.46375483
A9: 2001 | B9: 274 | C9: 8 | D9: 14.41260559
A10: 2001 | B10: 274 | C10: 9 | D10: 15.90535722
A11: 2001 | B11: 274 | C11: 10 | D11: 17.70581079
A12: 2001 | B12: 274 | C12: 11 | D12: 19.52907951
A13: 2001 | B13: 274 | C13: 12 | D13: 21.08666651
A14: 2001 | B14: 274 | C14: 13 | D14: 22.13211392
A15: 2001 | B15: 274 | C15: 14 | D15: 22.5
A16: 2001 | B16: 274 | C16: 15 | D16: 22.43968261
A17: 2001 | B17: 274 | C17: 16 | D17: 22.26100431
A18: 2001 | B18: 274 | C18: 17 | D18: 21.97070098
A19: 2001 | B19: 274 | C19: 18 | D19: 21.57971659
A20: 2001 | B20: 274 | C20: 19 | D20: 21.1027906
A21: 2001 | B21: 274 | C21: 20 | D21: 20.55790234
A22: 2001 | B22: 274 | C22: 21 | D22: 19.96559322
A23: 2001 | B23: 274 | C23: 22 | D23: 19.34819232
A24: 2001 | B24: 274 | C24: 23 | D24: 18.72897465
A25: 2001 | B25: 274 | C25: 24 | D25: 18.13128371
A26: 2001 | B26: 275 | C26: 1 | D26: 17.5853107
A27: 2001 | B27: 275 | C27: 2 | D27: 17.09611991
A28: 2001 | B28: 275 | C28: 3 | D28: 16.68979225
A29: 2001 | B29: 275 | C29: 4 | D29: 16.3816051
A30: 2001 | B30: 275 | C30: 5 | D30: 16.18314593
A31: 2001 | B31: 275 | C31: 6 | D31: 16.10187655
A32: 2001 | B32: 275 | C32: 7 | D32: 16.39808351
A33: 2001 | B33: 275 | C33: 8 | D33: 17.50994529
A34: 2001 | B34: 275 | C34: 9 | D34: 19.27248554
A35: 2001 | B35: 275 | C35: 10 | D35: 21.40530531
A36: 2001 | B36: 275 | C36: 11 | D36: 23.56909866
A37: 2001 | B37: 275 | C37: 12 | D37: 25.41963213
A38: 2001 | B38: 275 | C38: 13 | D38: 26.66250811
A39: 2001 | B39: 275 | C39: 14 | D39: 27.1
A40: 2001 | B40: 275 | C40: 15 | D40: 26.95242494
A41: 2001 | B41: 275 | C41: 16 | D41: 26.51524841
A42: 2001 | B42: 275 | C42: 17 | D42: 25.80490769
A43: 2001 | B43: 275 | C43: 18 | D43: 24.84811069
A44: 2001 | B44: 275 | C44: 19 | D44: 23.68083178
A45: 2001 | B45: 275 | C45: 20 | D45: 22.34695918
A46: 2001 | B46: 275 | C46: 21 | D46: 20.89664481
A47: 2001 | B47: 275 | C47: 22 | D47: 19.38441867
A48: 2001 | B48: 275 | C48: 23 | D48: 17.86713856
A49: 2001 | B49: 275 | C49: 24 | D49: 16.4018523
A50: 2001 | B50: 276 | C50: 1 | D50: 15.06241713
A51: 2001 | B51: 276 | C51: 2 | D51: 13.8611948
A52: 2001 | B52: 276 | C52: 3 | D52: 12.86205026
A53: 2001 | B53: 276 | C53: 4 | D53: 12.10245097
A54: 2001 | B54: 276 | C54: 5 | D54: 11.61088158
A55: 2001 | B55: 276 | C55: 6 | D55: 11.40577572
A56: 2001 | B56: 276 | C56: 7 | D56: 11.89906083
A57: 2001 | B57: 276 | C57: 8 | D57: 13.83124283
A58: 2001 | B58: 276 | C58: 9 | D58: 16.91807877
A59: 2001 | B59: 276 | C59: 10 | D59: 20.66582337
A60: 2001 | B60: 276 | C60: 11 | D60: 24.47501776
A61: 2001 | B61: 276 | C61: 12 | D61: 27.73637404
A62: 2001 | B62: 276 | C62: 13 | D62: 29.92823207
A63: 2001 | B63: 276 | C63: 14 | D63: 30.7
A64: 2001 | B64: 276 | C64: 15 | D64: 30.53781443
A65: 2001 | B65: 276 | C65: 16 | D65: 30.05733962
A66: 2001 | B66: 276 | C66: 17 | D66: 29.27659315
A67: 2001 | B67: 276 | C67: 18 | D67: 28.22485266
A68: 2001 | B68: 276 | C68: 19 | D68: 26.94155796
A69: 2001 | B69: 276 | C69: 20 | D69: 25.47483203
A70: 2001 | B70: 276 | C70: 21 | D70: 23.87967642
A71: 2001 | B71: 276 | C71: 22 | D71: 22.21590876
A72: 2001 | B72: 276 | C72: 23 | D72: 20.5459196
A73: 2001 | B73: 276 | C73: 24 | D73: 18.93233279
A74: 2001 | B74: 277 | C74: 1 | D74: 17.45630345
A75: 2001 | B75: 277 | C75: 2 | D75: 16.13139123
A76: 2001 | B76: 277 | C76: 3 | D76: 15.0278398
A77: 2001 | B77: 277 | C77: 4 | D77: 14.18692289
A78: 2001 | B78: 277 | C78: 5 | D78: 13.64009149
A79: 2001 | B79: 277 | C79: 6 | D79: 13.40779753
A80: 2001 | B80: 277 | C80: 7 | D80: 13.85584133
A81: 2001 | B81: 277 | C81: 8 | D81: 15.68976562
A82: 2001 | B82: 277 | C82: 9 | D82: 18.64305112
A83: 2001 | B83: 277 | C83: 10 | D83: 22.24074353
A84: 2001 | B84: 277 | C84: 11 | D84: 25.90425353
A85: 2001 | B85: 277 | C85: 12 | D85: 29.04440684
A86: 2001 | B86: 277 | C86: 13 | D86: 31.15619666
A87: 2001 | B87: 277 | C87: 14 | D87: 31.9
A88: 2001 | B88: 277 | C88: 15 | D88: 31.73263135
A89: 2001 | B89: 277 | C89: 16 | D89: 31.23678512
A90: 2001 | B90: 277 | C90: 17 | D90: 30.43100636
A91: 2001 | B91: 277 | C91: 18 | D91: 29.34543185
A92: 2001 | B92: 277 | C92: 19 | D92: 28.02066298
A93: 2001 | B93: 277 | C93: 20 | D93: 26.50624718
A94: 2001 | B94: 277 | C94: 21 | D94: 24.85882482
A95: 2001 | B95: 277 | C95: 22 | D95: 23.14001086
A96: 2001 | B96: 277 | C96: 23 | D96: 21.41409034
A97: 2001 | B97: 277 | C97: 24 | D97: 19.7456141
A98: 2001 | B98: 278 | C98: 1 | D98: 18.21831242
A99: 2001 | B99: 278 | C99: 2 | D99: 16.84615751
A100: 2001 | B100: 278 | C100: 3 | D100: 15.70169143
A101: 2001 | B101: 278 | C101: 4 | D101: 14.82760568
A102: 2001 | B102: 278 | C102: 5 | D102: 14.25650588
A103: 2001 | B103: 278 | C103: 6 | D103: 14.00969549
A104: 2001 | B104: 278 | C104: 7 | D104: 14.37512176
A105: 2001 | B105: 278 | C105: 8 | D105: 15.94523783
A106: 2001 | B106: 278 | C106: 9 | D106: 18.49440425
A107: 2001 | B107: 278 | C107: 10 | D107: 21.61042279
A108: 2001 | B108: 278 | C108: 11 | D108: 24.78943566
A109: 2001 | B109: 278 | C109: 12 | D109: 27.51739895
A110: 2001 | B110: 278 | C110: 13 | D110: 29.3532031
A111: 2001 | B111: 278 | C111: 14 | D111: 30
A112: 2001 | B112: 278 | C112: 15 | D112: 29.83773395
A113: 2001 | B113: 278 | C113: 16 | D113: 29.35698873
A114: 2001 | B114: 278 | C114: 17 | D114: 28.57569736
A115: 2001 | B115: 278 | C115: 18 | D115: 27.52300399
A116: 2001 | B116: 278 | C116: 19 | D116: 26.23817677
A117: 2001 | B117: 278 | C117: 20 | D117: 24.769143
A118: 2001 | B118: 278 | C118: 21 | D118: 23.17070139
A119: 2001 | B119: 278 | C119: 22 | D119: 21.50247786
A120: 2001 | B120: 278 | C120: 23 | D120: 19.8267014
A121: 2001 | B121: 278 | C121: 24 | D121: 18.20588271
A122: 2001 | B122: 279 | C122: 1 | D122: 16.72117797
A123: 2001 | B123: 279 | C123: 2 | D123: 15.38611927
A124: 2001 | B124: 279 | C124: 3 | D124: 14.27108495
A125: 2001 | B125: 279 | C125: 4 | D125: 13.41755958
A126: 2001 | B126: 279 | C126: 5 | D126: 12.85729833
A127: 2001 | B127: 279 | C127: 6 | D127: 12.61114558
A128: 2001 | B128: 279 | C128: 7 | D128: 12.96306297
A129: 2001 | B129: 279 | C129: 8 | D129: 14.54606445
A130: 2001 | B130: 279 | C130: 9 | D130: 17.13771718
A131: 2001 | B131: 279 | C131: 10 | D131: 20.31666381
A132: 2001 | B132: 279 | C132: 11 | D132: 23.56606332
A133: 2001 | B133: 279 | C133: 12 | D133: 26.35762027
A134: 2001 | B134: 279 | C134: 13 | D134: 28.23747638
A135: 2001 | B135: 279 | C135: 14 | D135: 28.9
A136: 2001 | B136: 279 | C136: 15 | D136: 28.7688533
A137: 2001 | B137: 279 | C137: 16 | D137: 28.38029248
A138: 2001 | B138: 279 | C138: 17 | D138: 27.74877384
A139: 2001 | B139: 279 | C139: 18 | D139: 26.89779287
A140: 2001 | B140: 279 | C140: 19 | D140: 25.85901008
A141: 2001 | B141: 279 | C141: 20 | D141: 24.67107313
A142: 2001 | B142: 279 | C142: 21 | D142: 23.3781789
A143: 2001 | B143: 279 | C143: 22 | D143: 22.02842917
A144: 2001 | B144: 279 | C144: 23 | D144: 20.67204102
A145: 2001 | B145: 279 | C145: 24 | D145: 19.35947854
A146: 2001 | B146: 280 | C146: 1 | D146: 18.15631344
A147: 2001 | B147: 280 | C147: 2 | D147: 17.07347625
A148: 2001 | B148: 280 | C148: 3 | D148: 16.16788354
A149: 2001 | B149: 280 | C149: 4 | D149: 15.47313949
A150: 2001 | B150: 280 | C150: 5 | D150: 15.01502427
A151: 2001 | B151: 280 | C151: 6 | D151: 14.81053736
A152: 2001 | B152: 280 | C152: 7 | D152: 15.07676051
A153: 2001 | B153: 280 | C153: 8 | D153: 16.33546384
A154: 2001 | B154: 280 | C154: 9 | D154: 18.41390365
A155: 2001 | B155: 280 | C155: 10 | D155: 20.97231312
A156: 2001 | B156: 280 | C156: 11 | D156: 23.59246384
A157: 2001 | B157: 280 | C157: 12 | D157: 25.84603442
A158: 2001 | B158: 280 | C158: 13 | D158: 27.36462906
A159: 2001 | B159: 280 | C159: 14 | D159: 27.9
A160: 2001 | B160: 280 | C160: 15 | D160: 27.75528107
A161: 2001 | B161: 280 | C161: 16 | D161: 27.32649442
A162: 2001 | B162: 280 | C162: 17 | D162: 26.62955122
A163: 2001 | B163: 280 | C163: 18 | D163: 25.69031324
A164: 2001 | B164: 280 | C164: 19 | D164: 24.54363316
A165: 2001 | B165: 280 | C165: 20 | D165: 23.23206133
A166: 2001 | B166: 280 | C166: 21 | D166: 21.80426679
A167: 2001 | B167: 280 | C167: 22 | D167: 20.31323131
A168: 2001 | B168: 280 | C168: 23 | D168: 18.81428336
A169: 2001 | B169: 280 | C169: 24 | D169: 17.36304504
A170: 2001 | B170: 281 | C170: 1 | D170: 16.03184823
A171: 2001 | B171: 281 | C171: 2 | D171: 14.83275331
A172: 2001 | B172: 281 | C172: 3 | D172: 13.82860232
A173: 2001 | B173: 281 | C173: 4 | D173: 13.05655948
A174: 2001 | B174: 281 | C174: 5 | D174: 12.54519855
A175: 2001 | B175: 281 | C175: 6 | D175: 12.31344532
A176: 2001 | B176: 281 | C176: 7 | D176: 12.62607465
A177: 2001 | B177: 281 | C177: 8 | D177: 14.17514437
A178: 2001 | B178: 281 | C178: 9 | D178: 16.75559848
A179: 2001 | B179: 281 | C179: 10 | D179: 19.94329333
A180: 2001 | B180: 281 | C180: 11 | D180: 23.21427446
A181: 2001 | B181: 281 | C181: 12 | D181: 26.03089781
A182: 2001 | B182: 281 | C182: 13 | D182: 27.9302011
A183: 2001 | B183: 281 | C183: 14 | D183: 28.6
A184: 2001 | B184: 281 | C184: 15 | D184: 28.44177971
A185: 2001 | B185: 281 | C185: 16 | D185: 27.97297467
A186: 2001 | B186: 281 | C186: 17 | D186: 27.21093564
A187: 2001 | B187: 281 | C187: 18 | D187: 26.18386612
A188: 2001 | B188: 281 | C188: 19 | D188: 24.92977858
A189: 2001 | B189: 281 | C189: 20 | D189: 23.49508753
A190: 2001 | B190: 281 | C190: 21 | D190: 21.93289175
A191: 2001 | B191: 281 | C191: 22 | D191: 20.30100903
A192: 2001 | B192: 281 | C192: 23 | D192: 18.65983632
A193: 2001 | B193: 281 | C193: 24 | D193: 17.07011438
A194: 2001 | B194: 282 | C194: 1 | D194: 15.61089122
A195: 2001 | B195: 282 | C195: 2 | D195: 14.29535739
A196: 2001 | B196: 282 | C196: 3 | D196: 13.19225203
A197: 2001 | B197: 282 | C197: 4 | D197: 12.34229546
A198: 2001 | B198: 282 | C198: 5 | D198: 11.77686323
A199: 2001 | B199: 282 | C199: 6 | D199: 11.51682785
A200: 2001 | B200: 282 | C200: 7 | D200: 11.82143383
... 4300 more rows

Sheet Results
A1: Scenario (ºC added to all hourly temperatures)
A2: Scenario (ºC added): | B2: 0
E3: Completion time: | F3: 2 | G3: seconds
A4: Year | B4: Day of flowering (DOY) | C4: Day of dormancy release (DOY) | D4: Max Chilling Accumulated (only in years of deficient flowering) (U)
A5: 2001 | B5: 129 | C5: 342
A6: 2002 | B6: 132 | C6: 348
A7: 2003 | B7: 131 | C7: 346
A8: 2004 | B8: 141 | C8: 342
A9: 2005 | B9: 127 | C9: 348
A10: 2006 | B10: 131 | C10: 346
A11: 2007 | B11: 137 | C11: 359
A12: 2008 | B12: 125 | C12: 347
A13: 2009 | B13: 126 | C13: 339
A14: 2010 | B14: 128 | C14: 360

Sheet Details (facultative)
B2: This is an example for Pear!

Sheet MirrorDlyTempColumns (hidden)
A11: Ano | B11: DOY | C11: Tmín(ºC) | D11: Tmáx(ºC) | E11: Ano | F11: DOY | G11: Tmín(ºC) | H11: Tmáx(ºC) | I11: Ano | J11: DOY | K11: Tmín(ºC) | L11: Tmáx(ºC) | M11: Ano | N11: DOY | O11: Tmín(ºC) | P11: Tmáx(ºC) | Q11: Ano | R11: DOY | S11: Tmín(ºC) | T11: Tmáx(ºC) | U11: Ano | V11: DOY | W11: Tmín(ºC) | X11: Tmáx(ºC) | Y11: Ano | Z11: DOY | AA11: Tmín(ºC) | AB11: Tmáx(ºC) | AC11: Ano | AD11: DOY | AE11: Tmín(ºC) | AF11: Tmáx(ºC) | AG11: Ano | AH11: DOY | AI11: Tmín(ºC) | AJ11: Tmáx(ºC) | AK11: Ano | AL11: DOY | AM11: Tmín(ºC) | AN11: Tmáx(ºC) | AO11: Ano | AP11: DOY | AQ11: Tmín(ºC) | AR11: Tmáx(ºC) | AS11: Ano | AT11: DOY | AU11: Tmín(ºC) | AV11: Tmáx(ºC) | AW11: Ano | AX11: DOY | AY11: Tmín(ºC) | AZ11: Tmáx(ºC) | BA11: Ano | BB11: DOY | BC11: Tmín(ºC) | BD11: Tmáx(ºC) | BE11: Ano | BF11: DOY | BG11: Tmín(ºC) | BH11: Tmáx(ºC) | BI11: Ano | BJ11: DOY | BK11: Tmín(ºC) | BL11: Tmáx(ºC) | BM11: Ano | BN11: DOY | BO11: Tmín(ºC) | BP11: Tmáx(ºC) | BQ11: Ano | BR11: DOY | BS11: Tmín(ºC) | BT11: Tmáx(ºC) | BU11: Ano | BV11: DOY | BW11: Tmín(ºC) | BX11: Tmáx(ºC) | BY11: Ano | BZ11: DOY | CA11: Tmín(ºC) | CB11: Tmáx(ºC) | CC11: Ano | CD11: DOY | CE11: Tmín(ºC) | CF11: Tmáx(ºC) | CG11: Ano | CH11: DOY | CI11: Tmín(ºC) | CJ11: Tmáx(ºC) | CK11: Ano | CL11: DOY | CM11: Tmín(ºC) | CN11: Tmáx(ºC) | CO11: Ano | CP11: DOY | CQ11: Tmín(ºC) | CR11: Tmáx(ºC) | CS11: Ano | CT11: DOY | CU11: Tmín(ºC) | CV11: Tmáx(ºC) | CW11: Ano | CX11: DOY | CY11: Tmín(ºC) | CZ11: Tmáx(ºC) | DA11: Ano | DB11: DOY | DC11: Tmín(ºC) | DD11: Tmáx(ºC) | DE11: Ano | DF11: DOY | DG11: Tmín(ºC) | DH11: Tmáx(ºC) | DI11: Ano | DJ11: DOY | DK11: Tmín(ºC) | DL11: Tmáx(ºC) | DM11: Ano | DN11: DOY | DO11: Tmín(ºC) | DP11: Tmáx(ºC) | DQ11: Ano | DR11: DOY | DS11: Tmín(ºC) | DT11: Tmáx(ºC) | DU11: Ano | DV11: DOY | DW11: Tmín(ºC) | DX11: Tmáx(ºC) | DY11: Ano | DZ11: DOY | EA11: Tmín(ºC) | EB11: Tmáx(ºC) | EC11: Ano | ED11: DOY | EE11: Tmín(ºC) | EF11: Tmáx(ºC) | EG11: Ano | EH11: DOY | EI11: Tmín(ºC) | EJ11: Tmáx(ºC) | EK11: Ano | EL11: DOY | EM11: Tmín(ºC) | EN11: Tmáx(ºC) | EO11: Ano | EP11: DOY | EQ11: Tmín(ºC) | ER11: Tmáx(ºC) | ES11: Ano | ET11: DOY | EU11: Tmín(ºC) | EV11: Tmáx(ºC) | EW11: Ano | EX11: DOY | EY11: Tmín(ºC) | EZ11: Tmáx(ºC) | FA11: Ano | FB11: DOY | FC11: Tmín(ºC) | FD11: Tmáx(ºC) | FE11: Ano | FF11: DOY | FG11: Tmín(ºC) | FH11: Tmáx(ºC) | FI11: Ano | FJ11: DOY | FK11: Tmín(ºC) | FL11: Tmáx(ºC) | FM11: Ano | FN11: DOY | FO11: Tmín(ºC) | FP11: Tmáx(ºC) | FQ11: Ano | FR11: DOY | FS11: Tmín(ºC) | FT11: Tmáx(ºC) | FU11: Ano | FV11: DOY | FW11: Tmín(ºC) | FX11: Tmáx(ºC) | FY11: Ano | FZ11: DOY | GA11: Tmín(ºC) | GB11: Tmáx(ºC) | GC11: Ano | GD11: DOY | GE11: Tmín(ºC) | GF11: Tmáx(ºC) | GG11: Ano | GH11: DOY | GI11: Tmín(ºC) | GJ11: Tmáx(ºC) | GK11: Ano | GL11: DOY | GM11: Tmín(ºC) | GN11: Tmáx(ºC) | GO11: Ano | GP11: DOY | GQ11: Tmín(ºC) | GR11: Tmáx(ºC) | GS11: Ano | GT11: DOY | GU11: Tmín(ºC) | GV11: Tmáx(ºC) | GW11: Ano | GX11: DOY | GY11: Tmín(ºC) | GZ11: Tmáx(ºC) | HA11: Ano | HB11: DOY | HC11: Tmín(ºC) | HD11: Tmáx(ºC) | HE11: Ano | HF11: DOY | HG11: Tmín(ºC) | HH11: Tmáx(ºC) | HI11: Ano | HJ11: DOY | HK11: Tmín(ºC) | HL11: Tmáx(ºC) | HM11: Ano | HN11: DOY | HO11: Tmín(ºC) | HP11: Tmáx(ºC) | HQ11: Ano | HR11: DOY | HS11: Tmín(ºC) | HT11: Tmáx(ºC) | HU11: Ano | HV11: DOY | HW11: Tmín(ºC) | HX11: Tmáx(ºC) | HY11: Ano | HZ11: DOY | IA11: Tmín(ºC) | IB11: Tmáx(ºC) | IC11: Ano | ID11: DOY | IE11: Tmín(ºC) | IF11: Tmáx(ºC) | IG11: Ano | IH11: DOY | II11: Tmín(ºC) | IJ11: Tmáx(ºC) | IK11: Ano | IL11: DOY | IM11: Tmín(ºC) | IN11: Tmáx(ºC) | IO11: Ano | IP11: DOY | IQ11: Tmín(ºC) | IR11: Tmáx(ºC) | IS11: Ano | IT11: DOY | IU11: Tmín(ºC) | IV11: Tmáx(ºC) | IW11: Ano | IX11: DOY | IY11: Tmín(ºC) | IZ11: Tmáx(ºC) | JA11: Ano | JB11: DOY | JC11: Tmín(ºC) | JD11: Tmáx(ºC) | JE11: Ano | JF11: DOY | JG11: Tmín(ºC) | JH11: Tmáx(ºC) | JI11: Ano | JJ11: DOY | JK11: Tmín(ºC) | JL11: Tmáx(ºC) | JM11: Ano | JN11: DOY | JO11: Tmín(ºC) | JP11: Tmáx(ºC) | JQ11: Ano | JR11: DOY | JS11: Tmín(ºC) | JT11: Tmáx(ºC) | JU11: Ano | JV11: DOY | JW11: Tmín(ºC) | JX11: Tmáx(ºC) | JY11: Ano | JZ11: DOY | KA11: Tmín(ºC) | KB11: Tmáx(ºC) | KC11: Ano | KD11: DOY | KE11: Tmín(ºC) | KF11: Tmáx(ºC) | KG11: Ano | KH11: DOY | KI11: Tmín(ºC) | KJ11: Tmáx(ºC) | KK11: Ano | KL11: DOY | KM11: Tmín(ºC) | KN11: Tmáx(ºC) | KO11: Ano | KP11: DOY | KQ11: Tmín(ºC) | KR11: Tmáx(ºC) | KS11: Ano | KT11: DOY | KU11: Tmín(ºC) | KV11: Tmáx(ºC) | KW11: Ano | KX11: DOY | KY11: Tmín(ºC) | KZ11: Tmáx(ºC) | LA11: Ano | LB11: DOY | LC11: Tmín(ºC) | LD11: Tmáx(ºC) | LE11: Ano | LF11: DOY | LG11: Tmín(ºC) | LH11: Tmáx(ºC) | LI11: Ano | LJ11: DOY | LK11: Tmín(ºC) | LL11: Tmáx(ºC) | LM11: Ano | LN11: DOY | LO11: Tmín(ºC) | LP11: Tmáx(ºC) | LQ11: Ano | LR11: DOY | LS11: Tmín(ºC) | LT11: Tmáx(ºC) | LU11: Ano | LV11: DOY | LW11: Tmín(ºC) | LX11: Tmáx(ºC) | LY11: Ano | LZ11: DOY | MA11: Tmín(ºC) | MB11: Tmáx(ºC) | MC11: Ano | MD11: DOY | ME11: Tmín(ºC) | MF11: Tmáx(ºC) | MG11: Ano | MH11: DOY | MI11: Tmín(ºC) | MJ11: Tmáx(ºC) | MK11: Ano | ML11: DOY | MM11: Tmín(ºC) | MN11: Tmáx(ºC) | MO11: Ano | MP11: DOY | MQ11: Tmín(ºC) | MR11: Tmáx(ºC) | MS11: Ano | MT11: DOY | MU11: Tmín(ºC) | MV11: Tmáx(ºC) | MW11: Ano | MX11: DOY | MY11: Tmín(ºC) | MZ11: Tmáx(ºC) | NA11: Ano | NB11: DOY | NC11: Tmín(ºC) | ND11: Tmáx(ºC) | NE11: Ano | NF11: DOY | NG11: Tmín(ºC) | NH11: Tmáx(ºC) | NI11: Ano | NJ11: DOY | NK11: Tmín(ºC) | NL11: Tmáx(ºC) | NM11: Ano | NN11: DOY | NO11: Tmín(ºC) | NP11: Tmáx(ºC) | NQ11: Ano | NR11: DOY | NS11: Tmín(ºC) | NT11: Tmáx(ºC) | NU11: Ano | NV11: DOY | NW11: Tmín(ºC) | NX11: Tmáx(ºC) | NY11: Ano | NZ11: DOY | OA11: Tmín(ºC) | OB11: Tmáx(ºC) | OC11: Ano | OD11: DOY | OE11: Tmín(ºC) | OF11: Tmáx(ºC) | OG11: Ano | OH11: DOY | OI11: Tmín(ºC) | OJ11: Tmáx(ºC) | OK11: Ano | OL11: DOY | OM11: Tmín(ºC) | ON11: Tmáx(ºC) | OO11: Ano | OP11: DOY | OQ11: Tmín(ºC) | OR11: Tmáx(ºC) | OS11: Ano | OT11: DOY | OU11: Tmín(ºC) | OV11: Tmáx(ºC) | OW11: Ano | OX11: DOY | OY11: Tmín(ºC) | OZ11: Tmáx(ºC) | PA11: Ano | PB11: DOY | PC11: Tmín(ºC) | PD11: Tmáx(ºC) | PE11: Ano | PF11: DOY | PG11: Tmín(ºC) | PH11: Tmáx(ºC) | PI11: Ano | PJ11: DOY | PK11: Tmín(ºC) | PL11: Tmáx(ºC) | PM11: Ano | PN11: DOY | PO11: Tmín(ºC) | PP11: Tmáx(ºC) | PQ11: Ano | PR11: DOY | PS11: Tmín(ºC) | PT11: Tmáx(ºC) | PU11: Ano | PV11: DOY | PW11: Tmín(ºC) | PX11: Tmáx(ºC) | PY11: Ano | PZ11: DOY | QA11: Tmín(ºC) | QB11: Tmáx(ºC) | QC11: Ano | QD11: DOY | QE11: Tmín(ºC) | QF11: Tmáx(ºC) | QG11: Ano | QH11: DOY | QI11: Tmín(ºC) | QJ11: Tmáx(ºC) | QK11: Ano | QL11: DOY | QM11: Tmín(ºC) | QN11: Tmáx(ºC) | QO11: Ano | QP11: DOY | QQ11: Tmín(ºC) | QR11: Tmáx(ºC) | QS11: Ano | QT11: DOY | QU11: Tmín(ºC) | QV11: Tmáx(ºC) | QW11: Ano | QX11: DOY | QY11: Tmín(ºC) | QZ11: Tmáx(ºC) | RA11: Ano | RB11: DOY | RC11: Tmín(ºC) | RD11: Tmáx(ºC) | RE11: Ano | RF11: DOY | RG11: Tmín(ºC) | RH11: Tmáx(ºC) | RI11: Ano | RJ11: DOY | RK11: Tmín(ºC) | RL11: Tmáx(ºC) | RM11: Ano | RN11: DOY | RO11: Tmín(ºC) | RP11: Tmáx(ºC) | RQ11: Ano | RR11: DOY | RS11: Tmín(ºC) | RT11: Tmáx(ºC) | RU11: Ano | RV11: DOY | RW11: Tmín(ºC) | RX11: Tmáx(ºC) | RY11: Ano | RZ11: DOY | SA11: Tmín(ºC) | SB11: Tmáx(ºC) | SC11: Ano | SD11: DOY | SE11: Tmín(ºC) | SF11: Tmáx(ºC) | SG11: Ano | SH11: DOY | SI11: Tmín(ºC) | SJ11: Tmáx(ºC) | SK11: Ano | SL11: DOY | SM11: Tmín(ºC) | SN11: Tmáx(ºC) | SO11: Ano | SP11: DOY | SQ11: Tmín(ºC) | SR11: Tmáx(ºC) | SS11: Ano | ST11: DOY | SU11: Tmín(ºC) | SV11: Tmáx(ºC) | SW11: Ano | SX11: DOY | SY11: Tmín(ºC) | SZ11: Tmáx(ºC) | TA11: Ano | TB11: DOY | TC11: Tmín(ºC) | TD11: Tmáx(ºC) | TE11: Ano | TF11: DOY | TG11: Tmín(ºC) | TH11: Tmáx(ºC) | TI11: Ano | TJ11: DOY | TK11: Tmín(ºC) | TL11: Tmáx(ºC) | TM11: Ano | TN11: DOY | TO11: Tmín(ºC) | TP11: Tmáx(ºC) | TQ11: Ano | TR11: DOY | TS11: Tmín(ºC) | TT11: Tmáx(ºC) | TU11: Ano | TV11: DOY | TW11: Tmín(ºC) | TX11: Tmáx(ºC) | TY11: Ano | TZ11: DOY | UA11: Tmín(ºC) | UB11: Tmáx(ºC) | UC11: Ano | UD11: DOY | UE11: Tmín(ºC) | UF11: Tmáx(ºC) | UG11: Ano | UH11: DOY | UI11: Tmín(ºC) | UJ11: Tmáx(ºC) | UK11: Ano | UL11: DOY | UM11: Tmín(ºC) | UN11: Tmáx(ºC) | UO11: Ano | UP11: DOY | UQ11: Tmín(ºC) | UR11: Tmáx(ºC) | US11: Ano | UT11: DOY | UU11: Tmín(ºC) | UV11: Tmáx(ºC) | UW11: Ano | UX11: DOY | UY11: Tmín(ºC) | UZ11: Tmáx(ºC) | VA11: Ano | VB11: DOY | VC11: Tmín(ºC) | VD11: Tmáx(ºC) | VE11: Ano | VF11: DOY | VG11: Tmín(ºC) | VH11: Tmáx(ºC) | VI11: Ano | VJ11: DOY | VK11: Tmín(ºC) | VL11: Tmáx(ºC) | VM11: Ano | VN11: DOY | VO11: Tmín(ºC) | VP11: Tmáx(ºC) | VQ11: Ano | VR11: DOY | VS11: Tmín(ºC) | VT11: Tmáx(ºC) | VU11: Ano | VV11: DOY | VW11: Tmín(ºC) | VX11: Tmáx(ºC) | VY11: Ano | VZ11: DOY | WA11: Tmín(ºC) | WB11: Tmáx(ºC) | WC11: Ano | WD11: DOY | WE11: Tmín(ºC) | WF11: Tmáx(ºC) | WG11: Ano | WH11: DOY | WI11: Tmín(ºC) | WJ11: Tmáx(ºC) | WK11: Ano | WL11: DOY | WM11: Tmín(ºC) | WN11: Tmáx(ºC) | WO11: Ano | WP11: DOY | WQ11: Tmín(ºC) | WR11: Tmáx(ºC) | WS11: Ano | WT11: DOY | WU11: Tmín(ºC) | WV11: Tmáx(ºC) | WW11: Ano | WX11: DOY | WY11: Tmín(ºC) | WZ11: Tmáx(ºC) | XA11: Ano | XB11: DOY | XC11: Tmín(ºC) | XD11: Tmáx(ºC) | XE11: Ano | XF11: DOY | XG11: Tmín(ºC) | XH11: Tmáx(ºC) | XI11: Ano | XJ11: DOY | XK11: Tmín(ºC) | XL11: Tmáx(ºC) | XM11: Ano | XN11: DOY | XO11: Tmín(ºC) | XP11: Tmáx(ºC) | XQ11: Ano | XR11: DOY | XS11: Tmín(ºC) | XT11: Tmáx(ºC) | XU11: Ano | XV11: DOY | XW11: Tmín(ºC) | XX11: Tmáx(ºC) | XY11: Ano | XZ11: DOY | YA11: Tmín(ºC) | YB11: Tmáx(ºC) | YC11: Ano | YD11: DOY | YE11: Tmín(ºC) | YF11: Tmáx(ºC) | YG11: Ano | YH11: DOY | YI11: Tmín(ºC) | YJ11: Tmáx(ºC) | YK11: Ano | YL11: DOY | YM11: Tmín(ºC) | YN11: Tmáx(ºC) | YO11: Ano | YP11: DOY | YQ11: Tmín(ºC) | YR11: Tmáx(ºC) | YS11: Ano | YT11: DOY | YU11: Tmín(ºC) | YV11: Tmáx(ºC) | YW11: Ano | YX11: DOY | YY11: Tmín(ºC) | YZ11: Tmáx(ºC) | ZA11: Ano | ZB11: DOY | ZC11: Tmín(ºC) | ZD11: Tmáx(ºC) | ZE11: Ano | ZF11: DOY | ZG11: Tmín(ºC) | ZH11: Tmáx(ºC) | ZI11: Ano | ZJ11: DOY | ZK11: Tmín(ºC) | ZL11: Tmáx(ºC) | ZM11: Ano | ZN11: DOY | ZO11: Tmín(ºC) | ZP11: Tmáx(ºC) | ZQ11: Ano | ZR11: DOY | ZS11: Tmín(ºC) | ZT11: Tmáx(ºC) | ZU11: Ano | ZV11: DOY | ZW11: Tmín(ºC) | ZX11: Tmáx(ºC) | ZY11: Ano | ZZ11: DOY | AAA11: Tmín(ºC) | AAB11: Tmáx(ºC) | AAC11: Ano | AAD11: DOY | AAE11: Tmín(ºC) | AAF11: Tmáx(ºC) | AAG11: Ano | AAH11: DOY | AAI11: Tmín(ºC) | AAJ11: Tmáx(ºC) | AAK11: Ano | AAL11: DOY | AAM11: Tmín(ºC) | AAN11: Tmáx(ºC) | AAO11: Ano | AAP11: DOY | AAQ11: Tmín(ºC) | AAR11: Tmáx(ºC) | AAS11: Ano | AAT11: DOY | AAU11: Tmín(ºC) | AAV11: Tmáx(ºC) | AAW11: Ano | AAX11: DOY | AAY11: Tmín(ºC) | AAZ11: Tmáx(ºC) | ABA11: Ano | ABB11: DOY | ABC11: Tmín(ºC) | ABD11: Tmáx(ºC) | ABE11: Ano | ABF11: DOY | ABG11: Tmín(ºC) | ABH11: Tmáx(ºC) | ABI11: Ano | ABJ11: DOY | ABK11: Tmín(ºC) | ABL11: Tmáx(ºC) | ABM11: Ano | ABN11: DOY | ABO11: Tmín(ºC) | ABP11: Tmáx(ºC) | ABQ11: Ano | ABR11: DOY | ABS11: Tmín(ºC) | ABT11: Tmáx(ºC) | ABU11: Ano | ABV11: DOY | ABW11: Tmín(ºC) | ABX11: Tmáx(ºC) | ABY11: Ano | ABZ11: DOY | ACA11: Tmín(ºC) | ACB11: Tmáx(ºC) | ACC11: Ano | ACD11: DOY | ACE11: Tmín(ºC) | ACF11: Tmáx(ºC) | ACG11: Ano | ACH11: DOY | ACI11: Tmín(ºC) | ACJ11: Tmáx(ºC) | ACK11: Ano | ACL11: DOY | ACM11: Tmín(ºC) | ACN11: Tmáx(ºC) | ACO11: Ano | ACP11: DOY | ACQ11: Tmín(ºC) | ACR11: Tmáx(ºC) | ACS11: Ano | ACT11: DOY | ACU11: Tmín(ºC) | ACV11: Tmáx(ºC) | ACW11: Ano | ACX11: DOY | ACY11: Tmín(ºC) | ACZ11: Tmáx(ºC) | ADA11: Ano | ADB11: DOY | ADC11: Tmín(ºC) | ADD11: Tmáx(ºC) | ADE11: Ano | ADF11: DOY | ADG11: Tmín(ºC) | ADH11: Tmáx(ºC) | ADI11: Ano | ADJ11: DOY | ADK11: Tmín(ºC) | ADL11: Tmáx(ºC) | ADM11: Ano | ADN11: DOY | ADO11: Tmín(ºC) | ADP11: Tmáx(ºC) | ADQ11: Ano | ADR11: DOY | ADS11: Tmín(ºC) | ADT11: Tmáx(ºC) | ADU11: Ano | ADV11: DOY | ADW11: Tmín(ºC) | ADX11: Tmáx(ºC) | ADY11: Ano | ADZ11: DOY | AEA11: Tmín(ºC) | AEB11: Tmáx(ºC) | AEC11: Ano | AED11: DOY | AEE11: Tmín(ºC) | AEF11: Tmáx(ºC) | AEG11: Ano | AEH11: DOY | AEI11: Tmín(ºC) | AEJ11: Tmáx(ºC) | AEK11: Ano | AEL11: DOY | AEM11: Tmín(ºC) | AEN11: Tmáx(ºC) | AEO11: Ano | AEP11: DOY | AEQ11: Tmín(ºC) | AER11: Tmáx(ºC) | AES11: Ano | AET11: DOY | AEU11: Tmín(ºC) | AEV11: Tmáx(ºC) | AEW11: Ano | AEX11: DOY | AEY11: Tmín(ºC) | AEZ11: Tmáx(ºC) | AFA11: Ano | AFB11: DOY | AFC11: Tmín(ºC) | AFD11: Tmáx(ºC) | AFE11: Ano | AFF11: DOY | AFG11: Tmín(ºC) | AFH11: Tmáx(ºC) | AFI11: Ano | AFJ11: DOY | AFK11: Tmín(ºC) | AFL11: Tmáx(ºC) | AFM11: Ano | AFN11: DOY | AFO11: Tmín(ºC) | AFP11: Tmáx(ºC) | AFQ11: Ano | AFR11: DOY | AFS11: Tmín(ºC) | AFT11: Tmáx(ºC) | AFU11: Ano | AFV11: DOY | AFW11: Tmín(ºC) | AFX11: Tmáx(ºC) | AFY11: Ano | AFZ11: DOY | AGA11: Tmín(ºC) | AGB11: Tmáx(ºC) | AGC11: Ano | AGD11: DOY | AGE11: Tmín(ºC) | AGF11: Tmáx(ºC) | AGG11: Ano | AGH11: DOY | AGI11: Tmín(ºC) | AGJ11: Tmáx(ºC) | AGK11: Ano | AGL11: DOY | AGM11: Tmín(ºC) | AGN11: Tmáx(ºC) | AGO11: Ano | AGP11: DOY | AGQ11: Tmín(ºC) | AGR11: Tmáx(ºC) | AGS11: Ano | AGT11: DOY | AGU11: Tmín(ºC) | AGV11: Tmáx(ºC) | AGW11: Ano | AGX11: DOY | AGY11: Tmín(ºC) | AGZ11: Tmáx(ºC) | AHA11: Ano | AHB11: DOY | AHC11: Tmín(ºC) | AHD11: Tmáx(ºC) | AHE11: Ano | AHF11: DOY | AHG11: Tmín(ºC) | AHH11: Tmáx(ºC) | AHI11: Ano | AHJ11: DOY | AHK11: Tmín(ºC) | AHL11: Tmáx(ºC) | AHM11: Ano | AHN11: DOY | AHO11: Tmín(ºC) | AHP11: Tmáx(ºC) | AHQ11: Ano | AHR11: DOY | AHS11: Tmín(ºC) | AHT11: Tmáx(ºC) | AHU11: Ano | AHV11: DOY | AHW11: Tmín(ºC) | AHX11: Tmáx(ºC) | AHY11: Ano | AHZ11: DOY | AIA11: Tmín(ºC) | AIB11: Tmáx(ºC) | AIC11: Ano | AID11: DOY | AIE11: Tmín(ºC) | AIF11: Tmáx(ºC) | AIG11: Ano | AIH11: DOY | AII11: Tmín(ºC) | AIJ11: Tmáx(ºC) | AIK11: Ano | AIL11: DOY | AIM11: Tmín(ºC) | AIN11: Tmáx(ºC) | AIO11: Ano | AIP11: DOY | AIQ11: Tmín(ºC) | AIR11: Tmáx(ºC) | AIS11: Ano | AIT11: DOY | AIU11: Tmín(ºC) | AIV11: Tmáx(ºC) | AIW11: Ano | AIX11: DOY | AIY11: Tmín(ºC) | AIZ11: Tmáx(ºC) | AJA11: Ano | AJB11: DOY | AJC11: Tmín(ºC) | AJD11: Tmáx(ºC) | AJE11: Ano | AJF11: DOY | AJG11: Tmín(ºC) | AJH11: Tmáx(ºC) | AJI11: Ano | AJJ11: DOY | AJK11: Tmín(ºC) | AJL11: Tmáx(ºC) | AJM11: Ano | AJN11: DOY | AJO11: Tmín(ºC) | AJP11: Tmáx(ºC) | AJQ11: Ano | AJR11: DOY | AJS11: Tmín(ºC) | AJT11: Tmáx(ºC) | AJU11: Ano | AJV11: DOY | AJW11: Tmín(ºC) | AJX11: Tmáx(ºC) | AJY11: Ano | AJZ11: DOY | AKA11: Tmín(ºC) | AKB11: Tmáx(ºC) | AKC11: Ano | AKD11: DOY | AKE11: Tmín(ºC) | AKF11: Tmáx(ºC) | AKG11: Ano | AKH11: DOY | AKI11: Tmín(ºC) | AKJ11: Tmáx(ºC) | AKK11: Ano | AKL11: DOY | AKM11: Tmín(ºC) | AKN11: Tmáx(ºC) | AKO11: Ano | AKP11: DOY | AKQ11: Tmín(ºC) | AKR11: Tmáx(ºC) | AKS11: Ano | AKT11: DOY | AKU11: Tmín(ºC) | AKV11: Tmáx(ºC) | AKW11: Ano | AKX11: DOY | AKY11: Tmín(ºC) | AKZ11: Tmáx(ºC) | ALA11: Ano | ALB11: DOY | ALC11: Tmín(ºC) | ALD11: Tmáx(ºC) | ALE11: Ano | ALF11: DOY | ALG11: Tmín(ºC) | ALH11: Tmáx(ºC) | ALI11: Ano | ALJ11: DOY | ALK11: Tmín(ºC) | ALL11: Tmáx(ºC) | ALM11: Ano | ALN11: DOY | ALO11: Tmín(ºC) | ALP11: Tmáx(ºC) | ALQ11: Ano | ALR11: DOY | ALS11: Tmín(ºC) | ALT11: Tmáx(ºC) | ALU11: Ano | ALV11: DOY | ALW11: Tmín(ºC) | ALX11: Tmáx(ºC) | ALY11: Ano | ALZ11: DOY | AMA11: Tmín(ºC) | AMB11: Tmáx(ºC) | AMC11: Ano | AMD11: DOY | AME11: Tmín(ºC) | AMF11: Tmáx(ºC) | AMG11: Ano | AMH11: DOY | AMI11: Tmín(ºC) | AMJ11: Tmáx(ºC) | AMK11: Ano | AML11: DOY | AMM11: Tmín(ºC) | AMN11: Tmáx(ºC) | AMO11: Ano | AMP11: DOY | AMQ11: Tmín(ºC) | AMR11: Tmáx(ºC) | AMS11: Ano | AMT11: DOY | AMU11: Tmín(ºC) | AMV11: Tmáx(ºC) | AMW11: Ano | AMX11: DOY | AMY11: Tmín(ºC) | AMZ11: Tmáx(ºC) | ANA11: Ano | ANB11: DOY | ANC11: Tmín(ºC) | AND11: Tmáx(ºC) | ANE11: Ano | ANF11: DOY | ANG11: Tmín(ºC) | ANH11: Tmáx(ºC) | ANI11: Ano | ANJ11: DOY | ANK11: Tmín(ºC) | ANL11: Tmáx(ºC) | ANM11: Ano | ANN11: DOY | ANO11: Tmín(ºC) | ANP11: Tmáx(ºC) | ANQ11: Ano | ANR11: DOY | ANS11: Tmín(ºC) | ANT11: Tmáx(ºC) | ANU11: Ano | ANV11: DOY | ANW11: Tmín(ºC) | ANX11: Tmáx(ºC) | ANY11: Ano | ANZ11: DOY | AOA11: Tmín(ºC) | AOB11: Tmáx(ºC) | AOC11: Ano | AOD11: DOY | AOE11: Tmín(ºC) | AOF11: Tmáx(ºC) | AOG11: Ano | AOH11: DOY | AOI11: Tmín(ºC) | AOJ11: Tmáx(ºC) | AOK11: Ano | AOL11: DOY | AOM11: Tmín(ºC) | AON11: Tmáx(ºC) | AOO11: Ano | AOP11: DOY | AOQ11: Tmín(ºC) | AOR11: Tmáx(ºC) | AOS11: Ano | AOT11: DOY | AOU11: Tmín(ºC) | AOV11: Tmáx(ºC) | AOW11: Ano | AOX11: DOY | AOY11: Tmín(ºC) | AOZ11: Tmáx(ºC) | APA11: Ano | APB11: DOY | APC11: Tmín(ºC) | APD11: Tmáx(ºC) | APE11: Ano | APF11: DOY | APG11: Tmín(ºC) | APH11: Tmáx(ºC) | API11: Ano | APJ11: DOY | APK11: Tmín(ºC) | APL11: Tmáx(ºC) | APM11: Ano | APN11: DOY | APO11: Tmín(ºC) | APP11: Tmáx(ºC) | APQ11: Ano | APR11: DOY | APS11: Tmín(ºC) | APT11: Tmáx(ºC) | APU11: Ano | APV11: DOY | APW11: Tmín(ºC) | APX11: Tmáx(ºC) | APY11: Ano | APZ11: DOY | AQA11: Tmín(ºC) | AQB11: Tmáx(ºC) | AQC11: Ano | AQD11: DOY | AQE11: Tmín(ºC) | AQF11: Tmáx(ºC) | AQG11: Ano | AQH11: DOY | AQI11: Tmín(ºC) | AQJ11: Tmáx(ºC) | AQK11: Ano | AQL11: DOY | AQM11: Tmín(ºC) | AQN11: Tmáx(ºC) | AQO11: Ano | AQP11: DOY | AQQ11: Tmín(ºC) | AQR11: Tmáx(ºC) | AQS11: Ano | AQT11: DOY | AQU11: Tmín(ºC) | AQV11: Tmáx(ºC) | AQW11: Ano | AQX11: DOY | AQY11: Tmín(ºC) | AQZ11: Tmáx(ºC) | ARA11: Ano | ARB11: DOY | ARC11: Tmín(ºC) | ARD11: Tmáx(ºC) | ARE11: Ano | ARF11: DOY | ARG11: Tmín(ºC) | ARH11: Tmáx(ºC) | ARI11: Ano | ARJ11: DOY | ARK11: Tmín(ºC) | ARL11: Tmáx(ºC) | ARM11: Ano | ARN11: DOY | ARO11: Tmín(ºC) | ARP11: Tmáx(ºC) | ARQ11: Ano | ARR11: DOY | ARS11: Tmín(ºC) | ART11: Tmáx(ºC) | ARU11: Ano | ARV11: DOY | ARW11: Tmín(ºC) | ARX11: Tmáx(ºC) | ARY11: Ano | ARZ11: DOY | ASA11: Tmín(ºC) | ASB11: Tmáx(ºC) | ASC11: Ano | ASD11: DOY | ASE11: Tmín(ºC) | ASF11: Tmáx(ºC) | ASG11: Ano | ASH11: DOY | ASI11: Tmín(ºC) | ASJ11: Tmáx(ºC) | ASK11: Ano | ASL11: DOY | ASM11: Tmín(ºC) | ASN11: Tmáx(ºC) | ASO11: Ano | ASP11: DOY | ASQ11: Tmín(ºC) | ASR11: Tmáx(ºC) | ASS11: Ano | AST11: DOY | ASU11: Tmín(ºC) | ASV11: Tmáx(ºC) | ASW11: Ano | ASX11: DOY | ASY11: Tmín(ºC) | ASZ11: Tmáx(ºC) | ATA11: Ano | ATB11: DOY | ATC11: Tmín(ºC) | ATD11: Tmáx(ºC) | ATE11: Ano | ATF11: DOY | ATG11: Tmín(ºC) | ATH11: Tmáx(ºC) | ATI11: Ano | ATJ11: DOY | ATK11: Tmín(ºC) | ATL11: Tmáx(ºC) | ATM11: Ano | ATN11: DOY | ATO11: Tmín(ºC) | ATP11: Tmáx(ºC) | ATQ11: Ano | ATR11: DOY | ATS11: Tmín(ºC) | ATT11: Tmáx(ºC) | ATU11: Ano | ATV11: DOY | ATW11: Tmín(ºC) | ATX11: Tmáx(ºC) | ATY11: Ano | ATZ11: DOY | AUA11: Tmín(ºC) | AUB11: Tmáx(ºC) | AUC11: Ano | AUD11: DOY | AUE11: Tmín(ºC) | AUF11: Tmáx(ºC) | AUG11: Ano | AUH11: DOY | AUI11: Tmín(ºC) | AUJ11: Tmáx(ºC) | AUK11: Ano | AUL11: DOY | AUM11: Tmín(ºC) | AUN11: Tmáx(ºC) | AUO11: Ano | AUP11: DOY | AUQ11: Tmín(ºC) | AUR11: Tmáx(ºC) | AUS11: Ano | AUT11: DOY | AUU11: Tmín(ºC) | AUV11: Tmáx(ºC) | AUW11: Ano | AUX11: DOY | AUY11: Tmín(ºC) | AUZ11: Tmáx(ºC) | AVA11: Ano | AVB11: DOY | AVC11: Tmín(ºC) | AVD11: Tmáx(ºC) | AVE11: Ano | AVF11: DOY | AVG11: Tmín(ºC) | AVH11: Tmáx(ºC) | AVI11: Ano | AVJ11: DOY | AVK11: Tmín(ºC) | AVL11: Tmáx(ºC) | AVM11: Ano | AVN11: DOY | AVO11: Tmín(ºC) | AVP11: Tmáx(ºC) | AVQ11: Ano | AVR11: DOY | AVS11: Tmín(ºC) | AVT11: Tmáx(ºC) | AVU11: Ano | AVV11: DOY | AVW11: Tmín(ºC) | AVX11: Tmáx(ºC) | AVY11: Ano | AVZ11: DOY | AWA11: Tmín(ºC) | AWB11: Tmáx(ºC) | AWC11: Ano | AWD11: DOY | AWE11: Tmín(ºC) | AWF11: Tmáx(ºC) | AWG11: Ano | AWH11: DOY | AWI11: Tmín(ºC) | AWJ11: Tmáx(ºC) | AWK11: Ano | AWL11: DOY | AWM11: Tmín(ºC) | AWN11: Tmáx(ºC) | AWO11: Ano | AWP11: DOY | AWQ11: Tmín(ºC) | AWR11: Tmáx(ºC) | AWS11: Ano | AWT11: DOY | AWU11: Tmín(ºC) | AWV11: Tmáx(ºC) | AWW11: Ano | AWX11: DOY | AWY11: Tmín(ºC) | AWZ11: Tmáx(ºC) | AXA11: Ano | AXB11: DOY | AXC11: Tmín(ºC) | AXD11: Tmáx(ºC) | AXE11: Ano | AXF11: DOY | AXG11: Tmín(ºC) | AXH11: Tmáx(ºC) | AXI11: Ano | AXJ11: DOY | AXK11: Tmín(ºC) | AXL11: Tmáx(ºC) | AXM11: Ano | AXN11: DOY | AXO11: Tmín(ºC) | AXP11: Tmáx(ºC) | AXQ11: Ano | AXR11: DOY | AXS11: Tmín(ºC) | AXT11: Tmáx(ºC) | AXU11: Ano | AXV11: DOY | AXW11: Tmín(ºC) | AXX11: Tmáx(ºC) | AXY11: Ano | AXZ11: DOY | AYA11: Tmín(ºC) | AYB11: Tmáx(ºC) | AYC11: Ano | AYD11: DOY | AYE11: Tmín(ºC) | AYF11: Tmáx(ºC) | AYG11: Ano | AYH11: DOY | AYI11: Tmín(ºC) | AYJ11: Tmáx(ºC) | AYK11: Ano | AYL11: DOY | AYM11: Tmín(ºC) | AYN11: Tmáx(ºC) | AYO11: Ano | AYP11: DOY | AYQ11: Tmín(ºC) | AYR11: Tmáx(ºC) | AYS11: Ano | AYT11: DOY | AYU11: Tmín(ºC) | AYV11: Tmáx(ºC) | AYW11: Ano | AYX11: DOY | AYY11: Tmín(ºC) | AYZ11: Tmáx(ºC) | AZA11: Ano | AZB11: DOY | AZC11: Tmín(ºC) | AZD11: Tmáx(ºC) | AZE11: Ano | AZF11: DOY | AZG11: Tmín(ºC) | AZH11: Tmáx(ºC) | AZI11: Ano | AZJ11: DOY | AZK11: Tmín(ºC) | AZL11: Tmáx(ºC) | AZM11: Ano | AZN11: DOY | AZO11: Tmín(ºC) | AZP11: Tmáx(ºC) | AZQ11: Ano | AZR11: DOY | AZS11: Tmín(ºC) | AZT11: Tmáx(ºC) | AZU11: Ano | AZV11: DOY | AZW11: Tmín(ºC) | AZX11: Tmáx(ºC) | AZY11: Ano | AZZ11: DOY | BAA11: Tmín(ºC) | BAB11: Tmáx(ºC) | BAC11: Ano | BAD11: DOY | BAE11: Tmín(ºC) | BAF11: Tmáx(ºC) | BAG11: Ano | BAH11: DOY | BAI11: Tmín(ºC) | BAJ11: Tmáx(ºC) | BAK11: Ano | BAL11: DOY | BAM11: Tmín(ºC) | BAN11: Tmáx(ºC) | BAO11: Ano | BAP11: DOY | BAQ11: Tmín(ºC) | BAR11: Tmáx(ºC) | BAS11: Ano | BAT11: DOY | BAU11: Tmín(ºC) | BAV11: Tmáx(ºC) | BAW11: Ano | BAX11: DOY | BAY11: Tmín(ºC) | BAZ11: Tmáx(ºC) | BBA11: Ano | BBB11: DOY | BBC11: Tmín(ºC) | BBD11: Tmáx(ºC) | BBE11: Ano | BBF11: DOY | BBG11: Tmín(ºC) | BBH11: Tmáx(ºC) | BBI11: Ano | BBJ11: DOY | BBK11: Tmín(ºC) | BBL11: Tmáx(ºC) | BBM11: Ano | BBN11: DOY | BBO11: Tmín(ºC) | BBP11: Tmáx(ºC) | BBQ11: Ano | BBR11: DOY | BBS11: Tmín(ºC) | BBT11: Tmáx(ºC) | BBU11: Ano | BBV11: DOY | BBW11: Tmín(ºC) | BBX11: Tmáx(ºC) | BBY11: Ano | BBZ11: DOY | BCA11: Tmín(ºC) | BCB11: Tmáx(ºC) | BCC11: Ano | BCD11: DOY | BCE11: Tmín(ºC) | BCF11: Tmáx(ºC) | BCG11: Ano | BCH11: DOY | BCI11: Tmín(ºC) | BCJ11: Tmáx(ºC) | BCK11: Ano | BCL11: DOY | BCM11: Tmín(ºC) | BCN11: Tmáx(ºC) | BCO11: Ano | BCP11: DOY | BCQ11: Tmín(ºC) | BCR11: Tmáx(ºC) | BCS11: Ano | BCT11: DOY | BCU11: Tmín(ºC) | BCV11: Tmáx(ºC) | BCW11: Ano | BCX11: DOY | BCY11: Tmín(ºC) | BCZ11: Tmáx(ºC) | BDA11: Ano | BDB11: DOY | BDC11: Tmín(ºC) | BDD11: Tmáx(ºC) | BDE11: Ano | BDF11: DOY | BDG11: Tmín(ºC) | BDH11: Tmáx(ºC) | BDI11: Ano | BDJ11: DOY | BDK11: Tmín(ºC) | BDL11: Tmáx(ºC) | BDM11: Ano | BDN11: DOY | BDO11: Tmín(ºC) | BDP11: Tmáx(ºC) | BDQ11: Ano | BDR11: DOY | BDS11: Tmín(ºC) | BDT11: Tmáx(ºC) | BDU11: Ano | BDV11: DOY | BDW11: Tmín(ºC) | BDX11: Tmáx(ºC) | BDY11: Ano | BDZ11: DOY | BEA11: Tmín(ºC) | BEB11: Tmáx(ºC) | BEC11: Ano | BED11: DOY | BEE11: Tmín(ºC) | BEF11: Tmáx(ºC) | BEG11: Ano | BEH11: DOY | BEI11: Tmín(ºC) | BEJ11: Tmáx(ºC) | BEK11: Ano | BEL11: DOY | BEM11: Tmín(ºC) | BEN11: Tmáx(ºC) | BEO11: Ano | BEP11: DOY | BEQ11: Tmín(ºC) | BER11: Tmáx(ºC) | BES11: Ano | BET11: DOY | BEU11: Tmín(ºC) | BEV11: Tmáx(ºC) | BEW11: Ano | BEX11: DOY | BEY11: Tmín(ºC) | BEZ11: Tmáx(ºC) | BFA11: Ano | BFB11: DOY | BFC11: Tmín(ºC) | BFD11: Tmáx(ºC) | BFE11: Ano | BFF11: DOY | BFG11: Tmín(ºC) | BFH11: Tmáx(ºC) | BFI11: Ano | BFJ11: DOY | BFK11: Tmín(ºC) | BFL11: Tmáx(ºC) | BFM11: Ano | BFN11: DOY | BFO11: Tmín(ºC) | BFP11: Tmáx(ºC) | BFQ11: Ano | BFR11: DOY | BFS11: Tmín(ºC) | BFT11: Tmáx(ºC) | BFU11: Ano | BFV11: DOY | BFW11: Tmín(ºC) | BFX11: Tmáx(ºC) | BFY11: Ano | BFZ11: DOY | BGA11: Tmín(ºC) | BGB11: Tmáx(ºC) | BGC11: Ano | BGD11: DOY | BGE11: Tmín(ºC) | BGF11: Tmáx(ºC) | BGG11: Ano | BGH11: DOY | BGI11: Tmín(ºC) | BGJ11: Tmáx(ºC) | BGK11: Ano | BGL11: DOY | BGM11: Tmín(ºC) | BGN11: Tmáx(ºC) | BGO11: Ano | BGP11: DOY | BGQ11: Tmín(ºC) | BGR11: Tmáx(ºC) | BGS11: Ano | BGT11: DOY | BGU11: Tmín(ºC) | BGV11: Tmáx(ºC) | BGW11: Ano | BGX11: DOY | BGY11: Tmín(ºC) | BGZ11: Tmáx(ºC) | BHA11: Ano | BHB11: DOY | BHC11: Tmín(ºC) | BHD11: Tmáx(ºC) | BHE11: Ano | BHF11: DOY | BHG11: Tmín(ºC) | BHH11: Tmáx(ºC) | BHI11: Ano | BHJ11: DOY | BHK11: Tmín(ºC) | BHL11: Tmáx(ºC) | BHM11: Ano | BHN11: DOY | BHO11: Tmín(ºC) | BHP11: Tmáx(ºC) | BHQ11: Ano | BHR11: DOY | BHS11: Tmín(ºC) | BHT11: Tmáx(ºC) | BHU11: Ano | BHV11: DOY | BHW11: Tmín(ºC) | BHX11: Tmáx(ºC) | BHY11: Ano | BHZ11: DOY | BIA11: Tmín(ºC) | BIB11: Tmáx(ºC) | BIC11: Ano | BID11: DOY | BIE11: Tmín(ºC) | BIF11: Tmáx(ºC) | BIG11: Ano | BIH11: DOY | BII11: Tmín(ºC) | BIJ11: Tmáx(ºC) | BIK11: Ano | BIL11: DOY | BIM11: Tmín(ºC) | BIN11: Tmáx(ºC)
A12: 2000 | B12: 274 | E12: =A12+1 -> 2001 | F12: 274 | I12: =E12+1 -> 2002 | J12: 274 | M12: =I12+1 -> 2003 | N12: 274 | Q12: =M12+1 -> 2004 | R12: 274 | U12: =Q12+1 -> 2005 | V12: 274 | Y12: =U12+1 -> 2006 | Z12: 274 | AC12: =Y12+1 -> 2007 | AD12: 274 | AG12: =AC12+1 -> 2008 | AH12: 274 | AK12: =AG12+1 -> 2009 | AL12: 274 | AO12: =AK12+1 -> 2010 | AP12: 274 | AS12: =AO12+1 -> 2011 | AT12: 274 | AW12: =AS12+1 -> 2012 | AX12: 274 | BA12: =AW12+1 -> 2013 | BB12: 274 | BE12: =BA12+1 -> 2014 | BF12: 274 | BI12: =BE12+1 -> 2015 | BJ12: 274 | BM12: =BI12+1 -> 2016 | BN12: 274 | BQ12: =BM12+1 -> 2017 | BR12: 274 | BU12: =BQ12+1 -> 2018 | BV12: 274 | BY12: =BU12+1 -> 2019 | BZ12: 274 | CC12: =BY12+1 -> 2020 | CD12: 274 | CG12: =CC12+1 -> 2021 | CH12: 274 | CK12: =CG12+1 -> 2022 | CL12: 274 | CO12: =CK12+1 -> 2023 | CP12: 274 | CS12: =CO12+1 -> 2024 | CT12: 274 | CW12: =CS12+1 -> 2025 | CX12: 274 | DA12: =CW12+1 -> 2026 | DB12: 274 | DE12: =DA12+1 -> 2027 | DF12: 274 | DI12: =DE12+1 -> 2028 | DJ12: 274 | DM12: =DI12+1 -> 2029 | DN12: 274 | DQ12: =DM12+1 -> 2030 | DR12: 274 | DU12: =DQ12+1 -> 2031 | DV12: 274 | DY12: =DU12+1 -> 2032 | DZ12: 274 | EC12: =DY12+1 -> 2033 | ED12: 274 | EG12: =EC12+1 -> 2034 | EH12: 274 | EK12: =EG12+1 -> 2035 | EL12: 274 | EO12: =EK12+1 -> 2036 | EP12: 274 | ES12: =EO12+1 -> 2037 | ET12: 274 | EW12: =ES12+1 -> 2038 | EX12: 274 | FA12: =EW12+1 -> 2039 | FB12: 274 | FE12: =FA12+1 -> 2040 | FF12: 274 | FI12: =FE12+1 -> 2041 | FJ12: 274 | FM12: =FI12+1 -> 2042 | FN12: 274 | FQ12: =FM12+1 -> 2043 | FR12: 274 | FU12: =FQ12+1 -> 2044 | FV12: 274 | FY12: =FU12+1 -> 2045 | FZ12: 274 | GC12: =FY12+1 -> 2046 | GD12: 274 | GG12: =GC12+1 -> 2047 | GH12: 274 | GK12: =GG12+1 -> 2048 | GL12: 274 | GO12: =GK12+1 -> 2049 | GP12: 274 | GS12: =GO12+1 -> 2050 | GT12: 274 | GW12: =GS12+1 -> 2051 | GX12: 274 | HA12: =GW12+1 -> 2052 | HB12: 274 | HE12: =HA12+1 -> 2053 | HF12: 274 | HI12: =HE12+1 -> 2054 | HJ12: 274 | HM12: =HI12+1 -> 2055 | HN12: 274 | HQ12: =HM12+1 -> 2056 | HR12: 274 | HU12: =HQ12+1 -> 2057 | HV12: 274 | HY12: =HU12+1 -> 2058 | HZ12: 274 | IC12: =HY12+1 -> 2059 | ID12: 274 | IG12: =IC12+1 -> 2060 | IH12: 274 | IK12: =IG12+1 -> 2061 | IL12: 274 | IO12: =IK12+1 -> 2062 | IP12: 274 | IS12: =IO12+1 -> 2063 | IT12: 274 | IW12: =IS12+1 -> 2064 | IX12: 274 | JA12: =IW12+1 -> 2065 | JB12: 274 | JE12: =JA12+1 -> 2066 | JF12: 274 | JI12: =JE12+1 -> 2067 | JJ12: 274 | JM12: =JI12+1 -> 2068 | JN12: 274 | JQ12: =JM12+1 -> 2069 | JR12: 274 | JU12: =JQ12+1 -> 2070 | JV12: 274 | JY12: =JU12+1 -> 2071 | JZ12: 274 | KC12: =JY12+1 -> 2072 | KD12: 274 | KG12: =KC12+1 -> 2073 | KH12: 274 | KK12: =KG12+1 -> 2074 | KL12: 274 | KO12: =KK12+1 -> 2075 | KP12: 274 | KS12: =KO12+1 -> 2076 | KT12: 274 | KW12: =KS12+1 -> 2077 | KX12: 274 | LA12: =KW12+1 -> 2078 | LB12: 274 | LE12: =LA12+1 -> 2079 | LF12: 274 | LI12: =LE12+1 -> 2080 | LJ12: 274 | LM12: =LI12+1 -> 2081 | LN12: 274 | LQ12: =LM12+1 -> 2082 | LR12: 274 | LU12: =LQ12+1 -> 2083 | LV12: 274 | LY12: =LU12+1 -> 2084 | LZ12: 274 | MC12: =LY12+1 -> 2085 | MD12: 274 | MG12: =MC12+1 -> 2086 | MH12: 274 | MK12: =MG12+1 -> 2087 | ML12: 274 | MO12: =MK12+1 -> 2088 | MP12: 274 | MS12: =MO12+1 -> 2089 | MT12: 274 | MW12: =MS12+1 -> 2090 | MX12: 274 | NA12: =MW12+1 -> 2091 | NB12: 274 | NE12: =NA12+1 -> 2092 | NF12: 274 | NI12: =NE12+1 -> 2093 | NJ12: 274 | NM12: =NI12+1 -> 2094 | NN12: 274 | NQ12: =NM12+1 -> 2095 | NR12: 274 | NU12: =NQ12+1 -> 2096 | NV12: 274 | NY12: =NU12+1 -> 2097 | NZ12: 274 | OC12: =NY12+1 -> 2098 | OD12: 274 | OG12: =OC12+1 -> 2099 | OH12: 274 | OK12: =OG12+1 -> 2100 | OL12: 274 | OO12: =OK12+1 -> 2101 | OP12: 274 | OS12: =OO12+1 -> 2102 | OT12: 274 | OW12: =OS12+1 -> 2103 | OX12: 274 | PA12: =OW12+1 -> 2104 | PB12: 274 | PE12: =PA12+1 -> 2105 | PF12: 274 | PI12: =PE12+1 -> 2106 | PJ12: 274 | PM12: =PI12+1 -> 2107 | PN12: 274 | PQ12: =PM12+1 -> 2108 | PR12: 274 | PU12: =PQ12+1 -> 2109 | PV12: 274 | PY12: =PU12+1 -> 2110 | PZ12: 274 | QC12: =PY12+1 -> 2111 | QD12: 274 | QG12: =QC12+1 -> 2112 | QH12: 274 | QK12: =QG12+1 -> 2113 | QL12: 274 | QO12: =QK12+1 -> 2114 | QP12: 274 | QS12: =QO12+1 -> 2115 | QT12: 274 | QW12: =QS12+1 -> 2116 | QX12: 274 | RA12: =QW12+1 -> 2117 | RB12: 274 | RE12: =RA12+1 -> 2118 | RF12: 274 | RI12: =RE12+1 -> 2119 | RJ12: 274 | RM12: =RI12+1 -> 2120 | RN12: 274 | RQ12: =RM12+1 -> 2121 | RR12: 274 | RU12: =RQ12+1 -> 2122 | RV12: 274 | RY12: =RU12+1 -> 2123 | RZ12: 274 | SC12: =RY12+1 -> 2124 | SD12: 274 | SG12: =SC12+1 -> 2125 | SH12: 274 | SK12: =SG12+1 -> 2126 | SL12: 274 | SO12: =SK12+1 -> 2127 | SP12: 274 | SS12: =SO12+1 -> 2128 | ST12: 274 | SW12: =SS12+1 -> 2129 | SX12: 274 | TA12: =SW12+1 -> 2130 | TB12: 274 | TE12: =TA12+1 -> 2131 | TF12: 274 | TI12: =TE12+1 -> 2132 | TJ12: 274 | TM12: =TI12+1 -> 2133 | TN12: 274 | TQ12: =TM12+1 -> 2134 | TR12: 274 | TU12: =TQ12+1 -> 2135 | TV12: 274 | TY12: =TU12+1 -> 2136 | TZ12: 274 | UC12: =TY12+1 -> 2137 | UD12: 274 | UG12: =UC12+1 -> 2138 | UH12: 274 | UK12: =UG12+1 -> 2139 | UL12: 274 | UO12: =UK12+1 -> 2140 | UP12: 274 | US12: =UO12+1 -> 2141 | UT12: 274 | UW12: =US12+1 -> 2142 | UX12: 274 | VA12: =UW12+1 -> 2143 | VB12: 274 | VE12: =VA12+1 -> 2144 | VF12: 274 | VI12: =VE12+1 -> 2145 | VJ12: 274 | VM12: =VI12+1 -> 2146 | VN12: 274 | VQ12: =VM12+1 -> 2147 | VR12: 274 | VU12: =VQ12+1 -> 2148 | VV12: 274 | VY12: =VU12+1 -> 2149 | VZ12: 274 | WC12: =VY12+1 -> 2150 | WD12: 274 | WG12: =WC12+1 -> 2151 | WH12: 274 | WK12: =WG12+1 -> 2152 | WL12: 274 | WO12: =WK12+1 -> 2153 | WP12: 274 | WS12: =WO12+1 -> 2154 | WT12: 274 | WW12: =WS12+1 -> 2155 | WX12: 274 | XA12: =WW12+1 -> 2156 | XB12: 274 | XE12: =XA12+1 -> 2157 | XF12: 274 | XI12: =XE12+1 -> 2158 | XJ12: 274 | XM12: =XI12+1 -> 2159 | XN12: 274 | XQ12: =XM12+1 -> 2160 | XR12: 274 | XU12: =XQ12+1 -> 2161 | XV12: 274 | XY12: =XU12+1 -> 2162 | XZ12: 274 | YC12: =XY12+1 -> 2163 | YD12: 274 | YG12: =YC12+1 -> 2164 | YH12: 274 | YK12: =YG12+1 -> 2165 | YL12: 274 | YO12: =YK12+1 -> 2166 | YP12: 274 | YS12: =YO12+1 -> 2167 | YT12: 274 | YW12: =YS12+1 -> 2168 | YX12: 274 | ZA12: =YW12+1 -> 2169 | ZB12: 274 | ZE12: =ZA12+1 -> 2170 | ZF12: 274 | ZI12: =ZE12+1 -> 2171 | ZJ12: 274 | ZM12: =ZI12+1 -> 2172 | ZN12: 274 | ZQ12: =ZM12+1 -> 2173 | ZR12: 274 | ZU12: =ZQ12+1 -> 2174 | ZV12: 274 | ZY12: =ZU12+1 -> 2175 | ZZ12: 274 | AAC12: =ZY12+1 -> 2176 | AAD12: 274 | AAG12: =AAC12+1 -> 2177 | AAH12: 274 | AAK12: =AAG12+1 -> 2178 | AAL12: 274 | AAO12: =AAK12+1 -> 2179 | AAP12: 274 | AAS12: =AAO12+1 -> 2180 | AAT12: 274 | AAW12: =AAS12+1 -> 2181 | AAX12: 274 | ABA12: =AAW12+1 -> 2182 | ABB12: 274 | ABE12: =ABA12+1 -> 2183 | ABF12: 274 | ABI12: =ABE12+1 -> 2184 | ABJ12: 274 | ABM12: =ABI12+1 -> 2185 | ABN12: 274 | ABQ12: =ABM12+1 -> 2186 | ABR12: 274 | ABU12: =ABQ12+1 -> 2187 | ABV12: 274 | ABY12: =ABU12+1 -> 2188 | ABZ12: 274 | ACC12: =ABY12+1 -> 2189 | ACD12: 274 | ACG12: =ACC12+1 -> 2190 | ACH12: 274 | ACK12: =ACG12+1 -> 2191 | ACL12: 274 | ACO12: =ACK12+1 -> 2192 | ACP12: 274 | ACS12: =ACO12+1 -> 2193 | ACT12: 274 | ACW12: =ACS12+1 -> 2194 | ACX12: 274 | ADA12: =ACW12+1 -> 2195 | ADB12: 274 | ADE12: =ADA12+1 -> 2196 | ADF12: 274 | ADI12: =ADE12+1 -> 2197 | ADJ12: 274 | ADM12: =ADI12+1 -> 2198 | ADN12: 274 | ADQ12: =ADM12+1 -> 2199 | ADR12: 274 | ADU12: =ADQ12+1 -> 2200 | ADV12: 274 | ADY12: =ADU12+1 -> 2201 | ADZ12: 274 | AEC12: =ADY12+1 -> 2202 | AED12: 274 | AEG12: =AEC12+1 -> 2203 | AEH12: 274 | AEK12: =AEG12+1 -> 2204 | AEL12: 274 | AEO12: =AEK12+1 -> 2205 | AEP12: 274 | AES12: =AEO12+1 -> 2206 | AET12: 274 | AEW12: =AES12+1 -> 2207 | AEX12: 274 | AFA12: =AEW12+1 -> 2208 | AFB12: 274 | AFE12: =AFA12+1 -> 2209 | AFF12: 274 | AFI12: =AFE12+1 -> 2210 | AFJ12: 274 | AFM12: =AFI12+1 -> 2211 | AFN12: 274 | AFQ12: =AFM12+1 -> 2212 | AFR12: 274 | AFU12: =AFQ12+1 -> 2213 | AFV12: 274 | AFY12: =AFU12+1 -> 2214 | AFZ12: 274 | AGC12: =AFY12+1 -> 2215 | AGD12: 274 | AGG12: =AGC12+1 -> 2216 | AGH12: 274 | AGK12: =AGG12+1 -> 2217 | AGL12: 274 | AGO12: =AGK12+1 -> 2218 | AGP12: 274 | AGS12: =AGO12+1 -> 2219 | AGT12: 274 | AGW12: =AGS12+1 -> 2220 | AGX12: 274 | AHA12: =AGW12+1 -> 2221 | AHB12: 274 | AHE12: =AHA12+1 -> 2222 | AHF12: 274 | AHI12: =AHE12+1 -> 2223 | AHJ12: 274 | AHM12: =AHI12+1 -> 2224 | AHN12: 274 | AHQ12: =AHM12+1 -> 2225 | AHR12: 274 | AHU12: =AHQ12+1 -> 2226 | AHV12: 274 | AHY12: =AHU12+1 -> 2227 | AHZ12: 274 | AIC12: =AHY12+1 -> 2228 | AID12: 274 | AIG12: =AIC12+1 -> 2229 | AIH12: 274 | AIK12: =AIG12+1 -> 2230 | AIL12: 274 | AIO12: =AIK12+1 -> 2231 | AIP12: 274 | AIS12: =AIO12+1 -> 2232 | AIT12: 274 | AIW12: =AIS12+1 -> 2233 | AIX12: 274 | AJA12: =AIW12+1 -> 2234 | AJB12: 274 | AJE12: =AJA12+1 -> 2235 | AJF12: 274 | AJI12: =AJE12+1 -> 2236 | AJJ12: 274 | AJM12: =AJI12+1 -> 2237 | AJN12: 274 | AJQ12: =AJM12+1 -> 2238 | AJR12: 274 | AJU12: =AJQ12+1 -> 2239 | AJV12: 274 | AJY12: =AJU12+1 -> 2240 | AJZ12: 274 | AKC12: =AJY12+1 -> 2241 | AKD12: 274 | AKG12: =AKC12+1 -> 2242 | AKH12: 274 | AKK12: =AKG12+1 -> 2243 | AKL12: 274 | AKO12: =AKK12+1 -> 2244 | AKP12: 274 | AKS12: =AKO12+1 -> 2245 | AKT12: 274 | AKW12: =AKS12+1 -> 2246 | AKX12: 274 | ALA12: =AKW12+1 -> 2247 | ALB12: 274 | ALE12: =ALA12+1 -> 2248 | ALF12: 274 | ALI12: =ALE12+1 -> 2249 | ALJ12: 274 | ALM12: =ALI12+1 -> 2250 | ALN12: 274 | ALQ12: =ALM12+1 -> 2251 | ALR12: 274 | ALU12: =ALQ12+1 -> 2252 | ALV12: 274 | ALY12: =ALU12+1 -> 2253 | ALZ12: 274 | AMC12: =ALY12+1 -> 2254 | AMD12: 274 | AMG12: =AMC12+1 -> 2255 | AMH12: 274 | AMK12: =AMG12+1 -> 2256 | AML12: 274 | AMO12: =AMK12+1 -> 2257 | AMP12: 274 | AMS12: =AMO12+1 -> 2258 | AMT12: 274 | AMW12: =AMS12+1 -> 2259 | AMX12: 274 | ANA12: =AMW12+1 -> 2260 | ANB12: 274 | ANE12: =ANA12+1 -> 2261 | ANF12: 274 | ANI12: =ANE12+1 -> 2262 | ANJ12: 274 | ANM12: =ANI12+1 -> 2263 | ANN12: 274 | ANQ12: =ANM12+1 -> 2264 | ANR12: 274 | ANU12: =ANQ12+1 -> 2265 | ANV12: 274 | ANY12: =ANU12+1 -> 2266 | ANZ12: 274 | AOC12: =ANY12+1 -> 2267 | AOD12: 274 | AOG12: =AOC12+1 -> 2268 | AOH12: 274 | AOK12: =AOG12+1 -> 2269 | AOL12: 274 | AOO12: =AOK12+1 -> 2270 | AOP12: 274 | AOS12: =AOO12+1 -> 2271 | AOT12: 274 | AOW12: =AOS12+1 -> 2272 | AOX12: 274 | APA12: =AOW12+1 -> 2273 | APB12: 274 | APE12: =APA12+1 -> 2274 | APF12: 274 | API12: =APE12+1 -> 2275 | APJ12: 274 | APM12: =API12+1 -> 2276 | APN12: 274 | APQ12: =APM12+1 -> 2277 | APR12: 274 | APU12: =APQ12+1 -> 2278 | APV12: 274 | APY12: =APU12+1 -> 2279 | APZ12: 274 | AQC12: =APY12+1 -> 2280 | AQD12: 274 | AQG12: =AQC12+1 -> 2281 | AQH12: 274 | AQK12: =AQG12+1 -> 2282 | AQL12: 274 | AQO12: =AQK12+1 -> 2283 | AQP12: 274 | AQS12: =AQO12+1 -> 2284 | AQT12: 274 | AQW12: =AQS12+1 -> 2285 | AQX12: 274 | ARA12: =AQW12+1 -> 2286 | ARB12: 274 | ARE12: =ARA12+1 -> 2287 | ARF12: 274 | ARI12: =ARE12+1 -> 2288 | ARJ12: 274 | ARM12: =ARI12+1 -> 2289 | ARN12: 274 | ARQ12: =ARM12+1 -> 2290 | ARR12: 274 | ARU12: =ARQ12+1 -> 2291 | ARV12: 274 | ARY12: =ARU12+1 -> 2292 | ARZ12: 274 | ASC12: =ARY12+1 -> 2293 | ASD12: 274 | ASG12: =ASC12+1 -> 2294 | ASH12: 274 | ASK12: =ASG12+1 -> 2295 | ASL12: 274 | ASO12: =ASK12+1 -> 2296 | ASP12: 274 | ASS12: =ASO12+1 -> 2297 | AST12: 274 | ASW12: =ASS12+1 -> 2298 | ASX12: 274 | ATA12: =ASW12+1 -> 2299 | ATB12: 274 | ATE12: =ATA12+1 -> 2300 | ATF12: 274 | ATI12: =ATE12+1 -> 2301 | ATJ12: 274 | ATM12: =ATI12+1 -> 2302 | ATN12: 274 | ATQ12: =ATM12+1 -> 2303 | ATR12: 274 | ATU12: =ATQ12+1 -> 2304 | ATV12: 274 | ATY12: =ATU12+1 -> 2305 | ATZ12: 274 | AUC12: =ATY12+1 -> 2306 | AUD12: 274 | AUG12: =AUC12+1 -> 2307 | AUH12: 274 | AUK12: =AUG12+1 -> 2308 | AUL12: 274 | AUO12: =AUK12+1 -> 2309 | AUP12: 274 | AUS12: =AUO12+1 -> 2310 | AUT12: 274 | AUW12: =AUS12+1 -> 2311 | AUX12: 274 | AVA12: =AUW12+1 -> 2312 | AVB12: 274 | AVE12: =AVA12+1 -> 2313 | AVF12: 274 | AVI12: =AVE12+1 -> 2314 | AVJ12: 274 | AVM12: =AVI12+1 -> 2315 | AVN12: 274 | AVQ12: =AVM12+1 -> 2316 | AVR12: 274 | AVU12: =AVQ12+1 -> 2317 | AVV12: 274 | AVY12: =AVU12+1 -> 2318 | AVZ12: 274 | AWC12: =AVY12+1 -> 2319 | AWD12: 274 | AWG12: =AWC12+1 -> 2320 | AWH12: 274 | AWK12: =AWG12+1 -> 2321 | AWL12: 274 | AWO12: =AWK12+1 -> 2322 | AWP12: 274 | AWS12: =AWO12+1 -> 2323 | AWT12: 274 | AWW12: =AWS12+1 -> 2324 | AWX12: 274 | AXA12: =AWW12+1 -> 2325 | AXB12: 274 | AXE12: =AXA12+1 -> 2326 | AXF12: 274 | AXI12: =AXE12+1 -> 2327 | AXJ12: 274 | AXM12: =AXI12+1 -> 2328 | AXN12: 274 | AXQ12: =AXM12+1 -> 2329 | AXR12: 274 | AXU12: =AXQ12+1 -> 2330 | AXV12: 274 | AXY12: =AXU12+1 -> 2331 | AXZ12: 274 | AYC12: =AXY12+1 -> 2332 | AYD12: 274 | AYG12: =AYC12+1 -> 2333 | AYH12: 274 | AYK12: =AYG12+1 -> 2334 | AYL12: 274 | AYO12: =AYK12+1 -> 2335 | AYP12: 274 | AYS12: =AYO12+1 -> 2336 | AYT12: 274 | AYW12: =AYS12+1 -> 2337 | AYX12: 274 | AZA12: =AYW12+1 -> 2338 | AZB12: 274 | AZE12: =AZA12+1 -> 2339 | AZF12: 274 | AZI12: =AZE12+1 -> 2340 | AZJ12: 274 | AZM12: =AZI12+1 -> 2341 | AZN12: 274 | AZQ12: =AZM12+1 -> 2342 | AZR12: 274 | AZU12: =AZQ12+1 -> 2343 | AZV12: 274 | AZY12: =AZU12+1 -> 2344 | AZZ12: 274 | BAC12: =AZY12+1 -> 2345 | BAD12: 274 | BAG12: =BAC12+1 -> 2346 | BAH12: 274 | BAK12: =BAG12+1 -> 2347 | BAL12: 274 | BAO12: =BAK12+1 -> 2348 | BAP12: 274 | BAS12: =BAO12+1 -> 2349 | BAT12: 274 | BAW12: =BAS12+1 -> 2350 | BAX12: 274 | BBA12: =BAW12+1 -> 2351 | BBB12: 274 | BBE12: =BBA12+1 -> 2352 | BBF12: 274 | BBI12: =BBE12+1 -> 2353 | BBJ12: 274 | BBM12: =BBI12+1 -> 2354 | BBN12: 274 | BBQ12: =BBM12+1 -> 2355 | BBR12: 274 | BBU12: =BBQ12+1 -> 2356 | BBV12: 274 | BBY12: =BBU12+1 -> 2357 | BBZ12: 274 | BCC12: =BBY12+1 -> 2358 | BCD12: 274 | BCG12: =BCC12+1 -> 2359 | BCH12: 274 | BCK12: =BCG12+1 -> 2360 | BCL12: 274 | BCO12: =BCK12+1 -> 2361 | BCP12: 274 | BCS12: =BCO12+1 -> 2362 | BCT12: 274 | BCW12: =BCS12+1 -> 2363 | BCX12: 274 | BDA12: =BCW12+1 -> 2364 | BDB12: 274 | BDE12: =BDA12+1 -> 2365 | BDF12: 274 | BDI12: =BDE12+1 -> 2366 | BDJ12: 274 | BDM12: =BDI12+1 -> 2367 | BDN12: 274 | BDQ12: =BDM12+1 -> 2368 | BDR12: 274 | BDU12: =BDQ12+1 -> 2369 | BDV12: 274 | BDY12: =BDU12+1 -> 2370 | BDZ12: 274 | BEC12: =BDY12+1 -> 2371 | BED12: 274 | BEG12: =BEC12+1 -> 2372 | BEH12: 274 | BEK12: =BEG12+1 -> 2373 | BEL12: 274 | BEO12: =BEK12+1 -> 2374 | BEP12: 274 | BES12: =BEO12+1 -> 2375 | BET12: 274 | BEW12: =BES12+1 -> 2376 | BEX12: 274 | BFA12: =BEW12+1 -> 2377 | BFB12: 274 | BFE12: =BFA12+1 -> 2378 | BFF12: 274 | BFI12: =BFE12+1 -> 2379 | BFJ12: 274 | BFM12: =BFI12+1 -> 2380 | BFN12: 274 | BFQ12: =BFM12+1 -> 2381 | BFR12: 274 | BFU12: =BFQ12+1 -> 2382 | BFV12: 274 | BFY12: =BFU12+1 -> 2383 | BFZ12: 274 | BGC12: =BFY12+1 -> 2384 | BGD12: 274 | BGG12: =BGC12+1 -> 2385 | BGH12: 274 | BGK12: =BGG12+1 -> 2386 | BGL12: 274 | BGO12: =BGK12+1 -> 2387 | BGP12: 274 | BGS12: =BGO12+1 -> 2388 | BGT12: 274 | BGW12: =BGS12+1 -> 2389 | BGX12: 274 | BHA12: =BGW12+1 -> 2390 | BHB12: 274 | BHE12: =BHA12+1 -> 2391 | BHF12: 274 | BHI12: =BHE12+1 -> 2392 | BHJ12: 274 | BHM12: =BHI12+1 -> 2393 | BHN12: 274 | BHQ12: =BHM12+1 -> 2394 | BHR12: 274 | BHU12: =BHQ12+1 -> 2395 | BHV12: 274 | BHY12: =BHU12+1 -> 2396 | BHZ12: 274 | BIC12: =BHY12+1 -> 2397 | BID12: 274 | BIG12: =BIC12+1 -> 2398 | BIH12: 274 | BIK12: =BIG12+1 -> 2399 | BIL12: 274
A13: =A$12 -> 2000 | B13: =B12+1 -> 275 | E13: =E$12 -> 2001 | F13: =F12+1 -> 275 | I13: =I$12 -> 2002 | J13: =J12+1 -> 275 | M13: =M$12 -> 2003 | N13: =N12+1 -> 275 | Q13: =Q$12 -> 2004 | R13: =R12+1 -> 275 | U13: =U$12 -> 2005 | V13: =V12+1 -> 275 | Y13: =Y$12 -> 2006 | Z13: =Z12+1 -> 275 | AC13: =AC$12 -> 2007 | AD13: =AD12+1 -> 275 | AG13: =AG$12 -> 2008 | AH13: =AH12+1 -> 275 | AK13: =AK$12 -> 2009 | AL13: =AL12+1 -> 275 | AO13: =AO$12 -> 2010 | AP13: =AP12+1 -> 275 | AS13: =AS$12 -> 2011 | AT13: =AT12+1 -> 275 | AW13: =AW$12 -> 2012 | AX13: =AX12+1 -> 275 | BA13: =BA$12 -> 2013 | BB13: =BB12+1 -> 275 | BE13: =BE$12 -> 2014 | BF13: =BF12+1 -> 275 | BI13: =BI$12 -> 2015 | BJ13: =BJ12+1 -> 275 | BM13: =BM$12 -> 2016 | BN13: =BN12+1 -> 275 | BQ13: =BQ$12 -> 2017 | BR13: =BR12+1 -> 275 | BU13: =BU$12 -> 2018 | BV13: =BV12+1 -> 275 | BY13: =BY$12 -> 2019 | BZ13: =BZ12+1 -> 275 | CC13: =CC$12 -> 2020 | CD13: =CD12+1 -> 275 | CG13: =CG$12 -> 2021 | CH13: =CH12+1 -> 275 | CK13: =CK$12 -> 2022 | CL13: =CL12+1 -> 275 | CO13: =CO$12 -> 2023 | CP13: =CP12+1 -> 275 | CS13: =CS$12 -> 2024 | CT13: =CT12+1 -> 275 | CW13: =CW$12 -> 2025 | CX13: =CX12+1 -> 275 | DA13: =DA$12 -> 2026 | DB13: =DB12+1 -> 275 | DE13: =DE$12 -> 2027 | DF13: =DF12+1 -> 275 | DI13: =DI$12 -> 2028 | DJ13: =DJ12+1 -> 275 | DM13: =DM$12 -> 2029 | DN13: =DN12+1 -> 275 | DQ13: =DQ$12 -> 2030 | DR13: =DR12+1 -> 275 | DU13: =DU$12 -> 2031 | DV13: =DV12+1 -> 275 | DY13: =DY$12 -> 2032 | DZ13: =DZ12+1 -> 275 | EC13: =EC$12 -> 2033 | ED13: =ED12+1 -> 275 | EG13: =EG$12 -> 2034 | EH13: =EH12+1 -> 275 | EK13: =EK$12 -> 2035 | EL13: =EL12+1 -> 275 | EO13: =EO$12 -> 2036 | EP13: =EP12+1 -> 275 | ES13: =ES$12 -> 2037 | ET13: =ET12+1 -> 275 | EW13: =EW$12 -> 2038 | EX13: =EX12+1 -> 275 | FA13: =FA$12 -> 2039 | FB13: =FB12+1 -> 275 | FE13: =FE$12 -> 2040 | FF13: =FF12+1 -> 275 | FI13: =FI$12 -> 2041 | FJ13: =FJ12+1 -> 275 | FM13: =FM$12 -> 2042 | FN13: =FN12+1 -> 275 | FQ13: =FQ$12 -> 2043 | FR13: =FR12+1 -> 275 | FU13: =FU$12 -> 2044 | FV13: =FV12+1 -> 275 | FY13: =FY$12 -> 2045 | FZ13: =FZ12+1 -> 275 | GC13: =GC$12 -> 2046 | GD13: =GD12+1 -> 275 | GG13: =GG$12 -> 2047 | GH13: =GH12+1 -> 275 | GK13: =GK$12 -> 2048 | GL13: =GL12+1 -> 275 | GO13: =GO$12 -> 2049 | GP13: =GP12+1 -> 275 | GS13: =GS$12 -> 2050 | GT13: =GT12+1 -> 275 | GW13: =GW$12 -> 2051 | GX13: =GX12+1 -> 275 | HA13: =HA$12 -> 2052 | HB13: =HB12+1 -> 275 | HE13: =HE$12 -> 2053 | HF13: =HF12+1 -> 275 | HI13: =HI$12 -> 2054 | HJ13: =HJ12+1 -> 275 | HM13: =HM$12 -> 2055 | HN13: =HN12+1 -> 275 | HQ13: =HQ$12 -> 2056 | HR13: =HR12+1 -> 275 | HU13: =HU$12 -> 2057 | HV13: =HV12+1 -> 275 | HY13: =HY$12 -> 2058 | HZ13: =HZ12+1 -> 275 | IC13: =IC$12 -> 2059 | ID13: =ID12+1 -> 275 | IG13: =IG$12 -> 2060 | IH13: =IH12+1 -> 275 | IK13: =IK$12 -> 2061 | IL13: =IL12+1 -> 275 | IO13: =IO$12 -> 2062 | IP13: =IP12+1 -> 275 | IS13: =IS$12 -> 2063 | IT13: =IT12+1 -> 275 | IW13: =IW$12 -> 2064 | IX13: =IX12+1 -> 275 | JA13: =JA$12 -> 2065 | JB13: =JB12+1 -> 275 | JE13: =JE$12 -> 2066 | JF13: =JF12+1 -> 275 | JI13: =JI$12 -> 2067 | JJ13: =JJ12+1 -> 275 | JM13: =JM$12 -> 2068 | JN13: =JN12+1 -> 275 | JQ13: =JQ$12 -> 2069 | JR13: =JR12+1 -> 275 | JU13: =JU$12 -> 2070 | JV13: =JV12+1 -> 275 | JY13: =JY$12 -> 2071 | JZ13: =JZ12+1 -> 275 | KC13: =KC$12 -> 2072 | KD13: =KD12+1 -> 275 | KG13: =KG$12 -> 2073 | KH13: =KH12+1 -> 275 | KK13: =KK$12 -> 2074 | KL13: =KL12+1 -> 275 | KO13: =KO$12 -> 2075 | KP13: =KP12+1 -> 275 | KS13: =KS$12 -> 2076 | KT13: =KT12+1 -> 275 | KW13: =KW$12 -> 2077 | KX13: =KX12+1 -> 275 | LA13: =LA$12 -> 2078 | LB13: =LB12+1 -> 275 | LE13: =LE$12 -> 2079 | LF13: =LF12+1 -> 275 | LI13: =LI$12 -> 2080 | LJ13: =LJ12+1 -> 275 | LM13: =LM$12 -> 2081 | LN13: =LN12+1 -> 275 | LQ13: =LQ$12 -> 2082 | LR13: =LR12+1 -> 275 | LU13: =LU$12 -> 2083 | LV13: =LV12+1 -> 275 | LY13: =LY$12 -> 2084 | LZ13: =LZ12+1 -> 275 | MC13: =MC$12 -> 2085 | MD13: =MD12+1 -> 275 | MG13: =MG$12 -> 2086 | MH13: =MH12+1 -> 275 | MK13: =MK$12 -> 2087 | ML13: =ML12+1 -> 275 | MO13: =MO$12 -> 2088 | MP13: =MP12+1 -> 275 | MS13: =MS$12 -> 2089 | MT13: =MT12+1 -> 275 | MW13: =MW$12 -> 2090 | MX13: =MX12+1 -> 275 | NA13: =NA$12 -> 2091 | NB13: =NB12+1 -> 275 | NE13: =NE$12 -> 2092 | NF13: =NF12+1 -> 275 | NI13: =NI$12 -> 2093 | NJ13: =NJ12+1 -> 275 | NM13: =NM$12 -> 2094 | NN13: =NN12+1 -> 275 | NQ13: =NQ$12 -> 2095 | NR13: =NR12+1 -> 275 | NU13: =NU$12 -> 2096 | NV13: =NV12+1 -> 275 | NY13: =NY$12 -> 2097 | NZ13: =NZ12+1 -> 275 | OC13: =OC$12 -> 2098 | OD13: =OD12+1 -> 275 | OG13: =OG$12 -> 2099 | OH13: =OH12+1 -> 275 | OK13: =OK$12 -> 2100 | OL13: =OL12+1 -> 275 | OO13: =OO$12 -> 2101 | OP13: =OP12+1 -> 275 | OS13: =OS$12 -> 2102 | OT13: =OT12+1 -> 275 | OW13: =OW$12 -> 2103 | OX13: =OX12+1 -> 275 | PA13: =PA$12 -> 2104 | PB13: =PB12+1 -> 275 | PE13: =PE$12 -> 2105 | PF13: =PF12+1 -> 275 | PI13: =PI$12 -> 2106 | PJ13: =PJ12+1 -> 275 | PM13: =PM$12 -> 2107 | PN13: =PN12+1 -> 275 | PQ13: =PQ$12 -> 2108 | PR13: =PR12+1 -> 275 | PU13: =PU$12 -> 2109 | PV13: =PV12+1 -> 275 | PY13: =PY$12 -> 2110 | PZ13: =PZ12+1 -> 275 | QC13: =QC$12 -> 2111 | QD13: =QD12+1 -> 275 | QG13: =QG$12 -> 2112 | QH13: =QH12+1 -> 275 | QK13: =QK$12 -> 2113 | QL13: =QL12+1 -> 275 | QO13: =QO$12 -> 2114 | QP13: =QP12+1 -> 275 | QS13: =QS$12 -> 2115 | QT13: =QT12+1 -> 275 | QW13: =QW$12 -> 2116 | QX13: =QX12+1 -> 275 | RA13: =RA$12 -> 2117 | RB13: =RB12+1 -> 275 | RE13: =RE$12 -> 2118 | RF13: =RF12+1 -> 275 | RI13: =RI$12 -> 2119 | RJ13: =RJ12+1 -> 275 | RM13: =RM$12 -> 2120 | RN13: =RN12+1 -> 275 | RQ13: =RQ$12 -> 2121 | RR13: =RR12+1 -> 275 | RU13: =RU$12 -> 2122 | RV13: =RV12+1 -> 275 | RY13: =RY$12 -> 2123 | RZ13: =RZ12+1 -> 275 | SC13: =SC$12 -> 2124 | SD13: =SD12+1 -> 275 | SG13: =SG$12 -> 2125 | SH13: =SH12+1 -> 275 | SK13: =SK$12 -> 2126 | SL13: =SL12+1 -> 275 | SO13: =SO$12 -> 2127 | SP13: =SP12+1 -> 275 | SS13: =SS$12 -> 2128 | ST13: =ST12+1 -> 275 | SW13: =SW$12 -> 2129 | SX13: =SX12+1 -> 275 | TA13: =TA$12 -> 2130 | TB13: =TB12+1 -> 275 | TE13: =TE$12 -> 2131 | TF13: =TF12+1 -> 275 | TI13: =TI$12 -> 2132 | TJ13: =TJ12+1 -> 275 | TM13: =TM$12 -> 2133 | TN13: =TN12+1 -> 275 | TQ13: =TQ$12 -> 2134 | TR13: =TR12+1 -> 275 | TU13: =TU$12 -> 2135 | TV13: =TV12+1 -> 275 | TY13: =TY$12 -> 2136 | TZ13: =TZ12+1 -> 275 | UC13: =UC$12 -> 2137 | UD13: =UD12+1 -> 275 | UG13: =UG$12 -> 2138 | UH13: =UH12+1 -> 275 | UK13: =UK$12 -> 2139 | UL13: =UL12+1 -> 275 | UO13: =UO$12 -> 2140 | UP13: =UP12+1 -> 275 | US13: =US$12 -> 2141 | UT13: =UT12+1 -> 275 | UW13: =UW$12 -> 2142 | UX13: =UX12+1 -> 275 | VA13: =VA$12 -> 2143 | VB13: =VB12+1 -> 275 | VE13: =VE$12 -> 2144 | VF13: =VF12+1 -> 275 | VI13: =VI$12 -> 2145 | VJ13: =VJ12+1 -> 275 | VM13: =VM$12 -> 2146 | VN13: =VN12+1 -> 275 | VQ13: =VQ$12 -> 2147 | VR13: =VR12+1 -> 275 | VU13: =VU$12 -> 2148 | VV13: =VV12+1 -> 275 | VY13: =VY$12 -> 2149 | VZ13: =VZ12+1 -> 275 | WC13: =WC$12 -> 2150 | WD13: =WD12+1 -> 275 | WG13: =WG$12 -> 2151 | WH13: =WH12+1 -> 275 | WK13: =WK$12 -> 2152 | WL13: =WL12+1 -> 275 | WO13: =WO$12 -> 2153 | WP13: =WP12+1 -> 275 | WS13: =WS$12 -> 2154 | WT13: =WT12+1 -> 275 | WW13: =WW$12 -> 2155 | WX13: =WX12+1 -> 275 | XA13: =XA$12 -> 2156 | XB13: =XB12+1 -> 275 | XE13: =XE$12 -> 2157 | XF13: =XF12+1 -> 275 | XI13: =XI$12 -> 2158 | XJ13: =XJ12+1 -> 275 | XM13: =XM$12 -> 2159 | XN13: =XN12+1 -> 275 | XQ13: =XQ$12 -> 2160 | XR13: =XR12+1 -> 275 | XU13: =XU$12 -> 2161 | XV13: =XV12+1 -> 275 | XY13: =XY$12 -> 2162 | XZ13: =XZ12+1 -> 275 | YC13: =YC$12 -> 2163 | YD13: =YD12+1 -> 275 | YG13: =YG$12 -> 2164 | YH13: =YH12+1 -> 275 | YK13: =YK$12 -> 2165 | YL13: =YL12+1 -> 275 | YO13: =YO$12 -> 2166 | YP13: =YP12+1 -> 275 | YS13: =YS$12 -> 2167 | YT13: =YT12+1 -> 275 | YW13: =YW$12 -> 2168 | YX13: =YX12+1 -> 275 | ZA13: =ZA$12 -> 2169 | ZB13: =ZB12+1 -> 275 | ZE13: =ZE$12 -> 2170 | ZF13: =ZF12+1 -> 275 | ZI13: =ZI$12 -> 2171 | ZJ13: =ZJ12+1 -> 275 | ZM13: =ZM$12 -> 2172 | ZN13: =ZN12+1 -> 275 | ZQ13: =ZQ$12 -> 2173 | ZR13: =ZR12+1 -> 275 | ZU13: =ZU$12 -> 2174 | ZV13: =ZV12+1 -> 275 | ZY13: =ZY$12 -> 2175 | ZZ13: =ZZ12+1 -> 275 | AAC13: =AAC$12 -> 2176 | AAD13: =AAD12+1 -> 275 | AAG13: =AAG$12 -> 2177 | AAH13: =AAH12+1 -> 275 | AAK13: =AAK$12 -> 2178 | AAL13: =AAL12+1 -> 275 | AAO13: =AAO$12 -> 2179 | AAP13: =AAP12+1 -> 275 | AAS13: =AAS$12 -> 2180 | AAT13: =AAT12+1 -> 275 | AAW13: =AAW$12 -> 2181 | AAX13: =AAX12+1 -> 275 | ABA13: =ABA$12 -> 2182 | ABB13: =ABB12+1 -> 275 | ABE13: =ABE$12 -> 2183 | ABF13: =ABF12+1 -> 275 | ABI13: =ABI$12 -> 2184 | ABJ13: =ABJ12+1 -> 275 | ABM13: =ABM$12 -> 2185 | ABN13: =ABN12+1 -> 275 | ABQ13: =ABQ$12 -> 2186 | ABR13: =ABR12+1 -> 275 | ABU13: =ABU$12 -> 2187 | ABV13: =ABV12+1 -> 275 | ABY13: =ABY$12 -> 2188 | ABZ13: =ABZ12+1 -> 275 | ACC13: =ACC$12 -> 2189 | ACD13: =ACD12+1 -> 275 | ACG13: =ACG$12 -> 2190 | ACH13: =ACH12+1 -> 275 | ACK13: =ACK$12 -> 2191 | ACL13: =ACL12+1 -> 275 | ACO13: =ACO$12 -> 2192 | ACP13: =ACP12+1 -> 275 | ACS13: =ACS$12 -> 2193 | ACT13: =ACT12+1 -> 275 | ACW13: =ACW$12 -> 2194 | ACX13: =ACX12+1 -> 275 | ADA13: =ADA$12 -> 2195 | ADB13: =ADB12+1 -> 275 | ADE13: =ADE$12 -> 2196 | ADF13: =ADF12+1 -> 275 | ADI13: =ADI$12 -> 2197 | ADJ13: =ADJ12+1 -> 275 | ADM13: =ADM$12 -> 2198 | ADN13: =ADN12+1 -> 275 | ADQ13: =ADQ$12 -> 2199 | ADR13: =ADR12+1 -> 275 | ADU13: =ADU$12 -> 2200 | ADV13: =ADV12+1 -> 275 | ADY13: =ADY$12 -> 2201 | ADZ13: =ADZ12+1 -> 275 | AEC13: =AEC$12 -> 2202 | AED13: =AED12+1 -> 275 | AEG13: =AEG$12 -> 2203 | AEH13: =AEH12+1 -> 275 | AEK13: =AEK$12 -> 2204 | AEL13: =AEL12+1 -> 275 | AEO13: =AEO$12 -> 2205 | AEP13: =AEP12+1 -> 275 | AES13: =AES$12 -> 2206 | AET13: =AET12+1 -> 275 | AEW13: =AEW$12 -> 2207 | AEX13: =AEX12+1 -> 275 | AFA13: =AFA$12 -> 2208 | AFB13: =AFB12+1 -> 275 | AFE13: =AFE$12 -> 2209 | AFF13: =AFF12+1 -> 275 | AFI13: =AFI$12 -> 2210 | AFJ13: =AFJ12+1 -> 275 | AFM13: =AFM$12 -> 2211 | AFN13: =AFN12+1 -> 275 | AFQ13: =AFQ$12 -> 2212 | AFR13: =AFR12+1 -> 275 | AFU13: =AFU$12 -> 2213 | AFV13: =AFV12+1 -> 275 | AFY13: =AFY$12 -> 2214 | AFZ13: =AFZ12+1 -> 275 | AGC13: =AGC$12 -> 2215 | AGD13: =AGD12+1 -> 275 | AGG13: =AGG$12 -> 2216 | AGH13: =AGH12+1 -> 275 | AGK13: =AGK$12 -> 2217 | AGL13: =AGL12+1 -> 275 | AGO13: =AGO$12 -> 2218 | AGP13: =AGP12+1 -> 275 | AGS13: =AGS$12 -> 2219 | AGT13: =AGT12+1 -> 275 | AGW13: =AGW$12 -> 2220 | AGX13: =AGX12+1 -> 275 | AHA13: =AHA$12 -> 2221 | AHB13: =AHB12+1 -> 275 | AHE13: =AHE$12 -> 2222 | AHF13: =AHF12+1 -> 275 | AHI13: =AHI$12 -> 2223 | AHJ13: =AHJ12+1 -> 275 | AHM13: =AHM$12 -> 2224 | AHN13: =AHN12+1 -> 275 | AHQ13: =AHQ$12 -> 2225 | AHR13: =AHR12+1 -> 275 | AHU13: =AHU$12 -> 2226 | AHV13: =AHV12+1 -> 275 | AHY13: =AHY$12 -> 2227 | AHZ13: =AHZ12+1 -> 275 | AIC13: =AIC$12 -> 2228 | AID13: =AID12+1 -> 275 | AIG13: =AIG$12 -> 2229 | AIH13: =AIH12+1 -> 275 | AIK13: =AIK$12 -> 2230 | AIL13: =AIL12+1 -> 275 | AIO13: =AIO$12 -> 2231 | AIP13: =AIP12+1 -> 275 | AIS13: =AIS$12 -> 2232 | AIT13: =AIT12+1 -> 275 | AIW13: =AIW$12 -> 2233 | AIX13: =AIX12+1 -> 275 | AJA13: =AJA$12 -> 2234 | AJB13: =AJB12+1 -> 275 | AJE13: =AJE$12 -> 2235 | AJF13: =AJF12+1 -> 275 | AJI13: =AJI$12 -> 2236 | AJJ13: =AJJ12+1 -> 275 | AJM13: =AJM$12 -> 2237 | AJN13: =AJN12+1 -> 275 | AJQ13: =AJQ$12 -> 2238 | AJR13: =AJR12+1 -> 275 | AJU13: =AJU$12 -> 2239 | AJV13: =AJV12+1 -> 275 | AJY13: =AJY$12 -> 2240 | AJZ13: =AJZ12+1 -> 275 | AKC13: =AKC$12 -> 2241 | AKD13: =AKD12+1 -> 275 | AKG13: =AKG$12 -> 2242 | AKH13: =AKH12+1 -> 275 | AKK13: =AKK$12 -> 2243 | AKL13: =AKL12+1 -> 275 | AKO13: =AKO$12 -> 2244 | AKP13: =AKP12+1 -> 275 | AKS13: =AKS$12 -> 2245 | AKT13: =AKT12+1 -> 275 | AKW13: =AKW$12 -> 2246 | AKX13: =AKX12+1 -> 275 | ALA13: =ALA$12 -> 2247 | ALB13: =ALB12+1 -> 275 | ALE13: =ALE$12 -> 2248 | ALF13: =ALF12+1 -> 275 | ALI13: =ALI$12 -> 2249 | ALJ13: =ALJ12+1 -> 275 | ALM13: =ALM$12 -> 2250 | ALN13: =ALN12+1 -> 275 | ALQ13: =ALQ$12 -> 2251 | ALR13: =ALR12+1 -> 275 | ALU13: =ALU$12 -> 2252 | ALV13: =ALV12+1 -> 275 | ALY13: =ALY$12 -> 2253 | ALZ13: =ALZ12+1 -> 275 | AMC13: =AMC$12 -> 2254 | AMD13: =AMD12+1 -> 275 | AMG13: =AMG$12 -> 2255 | AMH13: =AMH12+1 -> 275 | AMK13: =AMK$12 -> 2256 | AML13: =AML12+1 -> 275 | AMO13: =AMO$12 -> 2257 | AMP13: =AMP12+1 -> 275 | AMS13: =AMS$12 -> 2258 | AMT13: =AMT12+1 -> 275 | AMW13: =AMW$12 -> 2259 | AMX13: =AMX12+1 -> 275 | ANA13: =ANA$12 -> 2260 | ANB13: =ANB12+1 -> 275 | ANE13: =ANE$12 -> 2261 | ANF13: =ANF12+1 -> 275 | ANI13: =ANI$12 -> 2262 | ANJ13: =ANJ12+1 -> 275 | ANM13: =ANM$12 -> 2263 | ANN13: =ANN12+1 -> 275 | ANQ13: =ANQ$12 -> 2264 | ANR13: =ANR12+1 -> 275 | ANU13: =ANU$12 -> 2265 | ANV13: =ANV12+1 -> 275 | ANY13: =ANY$12 -> 2266 | ANZ13: =ANZ12+1 -> 275 | AOC13: =AOC$12 -> 2267 | AOD13: =AOD12+1 -> 275 | AOG13: =AOG$12 -> 2268 | AOH13: =AOH12+1 -> 275 | AOK13: =AOK$12 -> 2269 | AOL13: =AOL12+1 -> 275 | AOO13: =AOO$12 -> 2270 | AOP13: =AOP12+1 -> 275 | AOS13: =AOS$12 -> 2271 | AOT13: =AOT12+1 -> 275 | AOW13: =AOW$12 -> 2272 | AOX13: =AOX12+1 -> 275 | APA13: =APA$12 -> 2273 | APB13: =APB12+1 -> 275 | APE13: =APE$12 -> 2274 | APF13: =APF12+1 -> 275 | API13: =API$12 -> 2275 | APJ13: =APJ12+1 -> 275 | APM13: =APM$12 -> 2276 | APN13: =APN12+1 -> 275 | APQ13: =APQ$12 -> 2277 | APR13: =APR12+1 -> 275 | APU13: =APU$12 -> 2278 | APV13: =APV12+1 -> 275 | APY13: =APY$12 -> 2279 | APZ13: =APZ12+1 -> 275 | AQC13: =AQC$12 -> 2280 | AQD13: =AQD12+1 -> 275 | AQG13: =AQG$12 -> 2281 | AQH13: =AQH12+1 -> 275 | AQK13: =AQK$12 -> 2282 | AQL13: =AQL12+1 -> 275 | AQO13: =AQO$12 -> 2283 | AQP13: =AQP12+1 -> 275 | AQS13: =AQS$12 -> 2284 | AQT13: =AQT12+1 -> 275 | AQW13: =AQW$12 -> 2285 | AQX13: =AQX12+1 -> 275 | ARA13: =ARA$12 -> 2286 | ARB13: =ARB12+1 -> 275 | ARE13: =ARE$12 -> 2287 | ARF13: =ARF12+1 -> 275 | ARI13: =ARI$12 -> 2288 | ARJ13: =ARJ12+1 -> 275 | ARM13: =ARM$12 -> 2289 | ARN13: =ARN12+1 -> 275 | ARQ13: =ARQ$12 -> 2290 | ARR13: =ARR12+1 -> 275 | ARU13: =ARU$12 -> 2291 | ARV13: =ARV12+1 -> 275 | ARY13: =ARY$12 -> 2292 | ARZ13: =ARZ12+1 -> 275 | ASC13: =ASC$12 -> 2293 | ASD13: =ASD12+1 -> 275 | ASG13: =ASG$12 -> 2294 | ASH13: =ASH12+1 -> 275 | ASK13: =ASK$12 -> 2295 | ASL13: =ASL12+1 -> 275 | ASO13: =ASO$12 -> 2296 | ASP13: =ASP12+1 -> 275 | ASS13: =ASS$12 -> 2297 | AST13: =AST12+1 -> 275 | ASW13: =ASW$12 -> 2298 | ASX13: =ASX12+1 -> 275 | ATA13: =ATA$12 -> 2299 | ATB13: =ATB12+1 -> 275 | ATE13: =ATE$12 -> 2300 | ATF13: =ATF12+1 -> 275 | ATI13: =ATI$12 -> 2301 | ATJ13: =ATJ12+1 -> 275 | ATM13: =ATM$12 -> 2302 | ATN13: =ATN12+1 -> 275 | ATQ13: =ATQ$12 -> 2303 | ATR13: =ATR12+1 -> 275 | ATU13: =ATU$12 -> 2304 | ATV13: =ATV12+1 -> 275 | ATY13: =ATY$12 -> 2305 | ATZ13: =ATZ12+1 -> 275 | AUC13: =AUC$12 -> 2306 | AUD13: =AUD12+1 -> 275 | AUG13: =AUG$12 -> 2307 | AUH13: =AUH12+1 -> 275 | AUK13: =AUK$12 -> 2308 | AUL13: =AUL12+1 -> 275 | AUO13: =AUO$12 -> 2309 | AUP13: =AUP12+1 -> 275 | AUS13: =AUS$12 -> 2310 | AUT13: =AUT12+1 -> 275 | AUW13: =AUW$12 -> 2311 | AUX13: =AUX12+1 -> 275 | AVA13: =AVA$12 -> 2312 | AVB13: =AVB12+1 -> 275 | AVE13: =AVE$12 -> 2313 | AVF13: =AVF12+1 -> 275 | AVI13: =AVI$12 -> 2314 | AVJ13: =AVJ12+1 -> 275 | AVM13: =AVM$12 -> 2315 | AVN13: =AVN12+1 -> 275 | AVQ13: =AVQ$12 -> 2316 | AVR13: =AVR12+1 -> 275 | AVU13: =AVU$12 -> 2317 | AVV13: =AVV12+1 -> 275 | AVY13: =AVY$12 -> 2318 | AVZ13: =AVZ12+1 -> 275 | AWC13: =AWC$12 -> 2319 | AWD13: =AWD12+1 -> 275 | AWG13: =AWG$12 -> 2320 | AWH13: =AWH12+1 -> 275 | AWK13: =AWK$12 -> 2321 | AWL13: =AWL12+1 -> 275 | AWO13: =AWO$12 -> 2322 | AWP13: =AWP12+1 -> 275 | AWS13: =AWS$12 -> 2323 | AWT13: =AWT12+1 -> 275 | AWW13: =AWW$12 -> 2324 | AWX13: =AWX12+1 -> 275 | AXA13: =AXA$12 -> 2325 | AXB13: =AXB12+1 -> 275 | AXE13: =AXE$12 -> 2326 | AXF13: =AXF12+1 -> 275 | AXI13: =AXI$12 -> 2327 | AXJ13: =AXJ12+1 -> 275 | AXM13: =AXM$12 -> 2328 | AXN13: =AXN12+1 -> 275 | AXQ13: =AXQ$12 -> 2329 | AXR13: =AXR12+1 -> 275 | AXU13: =AXU$12 -> 2330 | AXV13: =AXV12+1 -> 275 | AXY13: =AXY$12 -> 2331 | AXZ13: =AXZ12+1 -> 275 | AYC13: =AYC$12 -> 2332 | AYD13: =AYD12+1 -> 275 | AYG13: =AYG$12 -> 2333 | AYH13: =AYH12+1 -> 275 | AYK13: =AYK$12 -> 2334 | AYL13: =AYL12+1 -> 275 | AYO13: =AYO$12 -> 2335 | AYP13: =AYP12+1 -> 275 | AYS13: =AYS$12 -> 2336 | AYT13: =AYT12+1 -> 275 | AYW13: =AYW$12 -> 2337 | AYX13: =AYX12+1 -> 275 | AZA13: =AZA$12 -> 2338 | AZB13: =AZB12+1 -> 275 | AZE13: =AZE$12 -> 2339 | AZF13: =AZF12+1 -> 275 | AZI13: =AZI$12 -> 2340 | AZJ13: =AZJ12+1 -> 275 | AZM13: =AZM$12 -> 2341 | AZN13: =AZN12+1 -> 275 | AZQ13: =AZQ$12 -> 2342 | AZR13: =AZR12+1 -> 275 | AZU13: =AZU$12 -> 2343 | AZV13: =AZV12+1 -> 275 | AZY13: =AZY$12 -> 2344 | AZZ13: =AZZ12+1 -> 275 | BAC13: =BAC$12 -> 2345 | BAD13: =BAD12+1 -> 275 | BAG13: =BAG$12 -> 2346 | BAH13: =BAH12+1 -> 275 | BAK13: =BAK$12 -> 2347 | BAL13: =BAL12+1 -> 275 | BAO13: =BAO$12 -> 2348 | BAP13: =BAP12+1 -> 275 | BAS13: =BAS$12 -> 2349 | BAT13: =BAT12+1 -> 275 | BAW13: =BAW$12 -> 2350 | BAX13: =BAX12+1 -> 275 | BBA13: =BBA$12 -> 2351 | BBB13: =BBB12+1 -> 275 | BBE13: =BBE$12 -> 2352 | BBF13: =BBF12+1 -> 275 | BBI13: =BBI$12 -> 2353 | BBJ13: =BBJ12+1 -> 275 | BBM13: =BBM$12 -> 2354 | BBN13: =BBN12+1 -> 275 | BBQ13: =BBQ$12 -> 2355 | BBR13: =BBR12+1 -> 275 | BBU13: =BBU$12 -> 2356 | BBV13: =BBV12+1 -> 275 | BBY13: =BBY$12 -> 2357 | BBZ13: =BBZ12+1 -> 275 | BCC13: =BCC$12 -> 2358 | BCD13: =BCD12+1 -> 275 | BCG13: =BCG$12 -> 2359 | BCH13: =BCH12+1 -> 275 | BCK13: =BCK$12 -> 2360 | BCL13: =BCL12+1 -> 275 | BCO13: =BCO$12 -> 2361 | BCP13: =BCP12+1 -> 275 | BCS13: =BCS$12 -> 2362 | BCT13: =BCT12+1 -> 275 | BCW13: =BCW$12 -> 2363 | BCX13: =BCX12+1 -> 275 | BDA13: =BDA$12 -> 2364 | BDB13: =BDB12+1 -> 275 | BDE13: =BDE$12 -> 2365 | BDF13: =BDF12+1 -> 275 | BDI13: =BDI$12 -> 2366 | BDJ13: =BDJ12+1 -> 275 | BDM13: =BDM$12 -> 2367 | BDN13: =BDN12+1 -> 275 | BDQ13: =BDQ$12 -> 2368 | BDR13: =BDR12+1 -> 275 | BDU13: =BDU$12 -> 2369 | BDV13: =BDV12+1 -> 275 | BDY13: =BDY$12 -> 2370 | BDZ13: =BDZ12+1 -> 275 | BEC13: =BEC$12 -> 2371 | BED13: =BED12+1 -> 275 | BEG13: =BEG$12 -> 2372 | BEH13: =BEH12+1 -> 275 | BEK13: =BEK$12 -> 2373 | BEL13: =BEL12+1 -> 275 | BEO13: =BEO$12 -> 2374 | BEP13: =BEP12+1 -> 275 | BES13: =BES$12 -> 2375 | BET13: =BET12+1 -> 275 | BEW13: =BEW$12 -> 2376 | BEX13: =BEX12+1 -> 275 | BFA13: =BFA$12 -> 2377 | BFB13: =BFB12+1 -> 275 | BFE13: =BFE$12 -> 2378 | BFF13: =BFF12+1 -> 275 | BFI13: =BFI$12 -> 2379 | BFJ13: =BFJ12+1 -> 275 | BFM13: =BFM$12 -> 2380 | BFN13: =BFN12+1 -> 275 | BFQ13: =BFQ$12 -> 2381 | BFR13: =BFR12+1 -> 275 | BFU13: =BFU$12 -> 2382 | BFV13: =BFV12+1 -> 275 | BFY13: =BFY$12 -> 2383 | BFZ13: =BFZ12+1 -> 275 | BGC13: =BGC$12 -> 2384 | BGD13: =BGD12+1 -> 275 | BGG13: =BGG$12 -> 2385 | BGH13: =BGH12+1 -> 275 | BGK13: =BGK$12 -> 2386 | BGL13: =BGL12+1 -> 275 | BGO13: =BGO$12 -> 2387 | BGP13: =BGP12+1 -> 275 | BGS13: =BGS$12 -> 2388 | BGT13: =BGT12+1 -> 275 | BGW13: =BGW$12 -> 2389 | BGX13: =BGX12+1 -> 275 | BHA13: =BHA$12 -> 2390 | BHB13: =BHB12+1 -> 275 | BHE13: =BHE$12 -> 2391 | BHF13: =BHF12+1 -> 275 | BHI13: =BHI$12 -> 2392 | BHJ13: =BHJ12+1 -> 275 | BHM13: =BHM$12 -> 2393 | BHN13: =BHN12+1 -> 275 | BHQ13: =BHQ$12 -> 2394 | BHR13: =BHR12+1 -> 275 | BHU13: =BHU$12 -> 2395 | BHV13: =BHV12+1 -> 275 | BHY13: =BHY$12 -> 2396 | BHZ13: =BHZ12+1 -> 275 | BIC13: =BIC$12 -> 2397 | BID13: =BID12+1 -> 275 | BIG13: =BIG$12 -> 2398 | BIH13: =BIH12+1 -> 275 | BIK13: =BIK$12 -> 2399 | BIL13: =BIL12+1 -> 275
A14: =A$12 -> 2000 | B14: =B13+1 -> 276 | E14: =E$12 -> 2001 | F14: =F13+1 -> 276 | I14: =I$12 -> 2002 | J14: =J13+1 -> 276 | M14: =M$12 -> 2003 | N14: =N13+1 -> 276 | Q14: =Q$12 -> 2004 | R14: =R13+1 -> 276 | U14: =U$12 -> 2005 | V14: =V13+1 -> 276 | Y14: =Y$12 -> 2006 | Z14: =Z13+1 -> 276 | AC14: =AC$12 -> 2007 | AD14: =AD13+1 -> 276 | AG14: =AG$12 -> 2008 | AH14: =AH13+1 -> 276 | AK14: =AK$12 -> 2009 | AL14: =AL13+1 -> 276 | AO14: =AO$12 -> 2010 | AP14: =AP13+1 -> 276 | AS14: =AS$12 -> 2011 | AT14: =AT13+1 -> 276 | AW14: =AW$12 -> 2012 | AX14: =AX13+1 -> 276 | BA14: =BA$12 -> 2013 | BB14: =BB13+1 -> 276 | BE14: =BE$12 -> 2014 | BF14: =BF13+1 -> 276 | BI14: 2015 | BJ14: =BJ13+1 -> 276 | BM14: 2016 | BN14: =BN13+1 -> 276 | BQ14: 2017 | BR14: =BR13+1 -> 276 | BU14: 2018 | BV14: =BV13+1 -> 276 | BY14: 2019 | BZ14: =BZ13+1 -> 276 | CC14: 2020 | CD14: =CD13+1 -> 276 | CG14: 2021 | CH14: =CH13+1 -> 276 | CK14: 2022 | CL14: =CL13+1 -> 276 | CO14: 2023 | CP14: =CP13+1 -> 276 | CS14: 2024 | CT14: =CT13+1 -> 276 | CW14: 2025 | CX14: =CX13+1 -> 276 | DA14: 2026 | DB14: =DB13+1 -> 276 | DE14: 2027 | DF14: =DF13+1 -> 276 | DI14: 2028 | DJ14: =DJ13+1 -> 276 | DM14: 2029 | DN14: =DN13+1 -> 276 | DQ14: 2030 | DR14: =DR13+1 -> 276 | DU14: 2031 | DV14: =DV13+1 -> 276 | DY14: 2032 | DZ14: =DZ13+1 -> 276 | EC14: 2033 | ED14: =ED13+1 -> 276 | EG14: 2034 | EH14: =EH13+1 -> 276 | EK14: 2035 | EL14: =EL13+1 -> 276 | EO14: 2036 | EP14: =EP13+1 -> 276 | ES14: 2037 | ET14: =ET13+1 -> 276 | EW14: 2038 | EX14: =EX13+1 -> 276 | FA14: 2039 | FB14: =FB13+1 -> 276 | FE14: 2040 | FF14: =FF13+1 -> 276 | FI14: 2041 | FJ14: =FJ13+1 -> 276 | FM14: 2042 | FN14: =FN13+1 -> 276 | FQ14: 2043 | FR14: =FR13+1 -> 276 | FU14: 2044 | FV14: =FV13+1 -> 276 | FY14: 2045 | FZ14: =FZ13+1 -> 276 | GC14: 2046 | GD14: =GD13+1 -> 276 | GG14: 2047 | GH14: =GH13+1 -> 276 | GK14: 2048 | GL14: =GL13+1 -> 276 | GO14: 2049 | GP14: =GP13+1 -> 276 | GS14: =GS$12 -> 2050 | GT14: =GT13+1 -> 276 | GW14: =GW$12 -> 2051 | GX14: =GX13+1 -> 276 | HA14: =HA$12 -> 2052 | HB14: =HB13+1 -> 276 | HE14: =HE$12 -> 2053 | HF14: =HF13+1 -> 276 | HI14: =HI$12 -> 2054 | HJ14: =HJ13+1 -> 276 | HM14: =HM$12 -> 2055 | HN14: =HN13+1 -> 276 | HQ14: =HQ$12 -> 2056 | HR14: =HR13+1 -> 276 | HU14: =HU$12 -> 2057 | HV14: =HV13+1 -> 276 | HY14: =HY$12 -> 2058 | HZ14: =HZ13+1 -> 276 | IC14: =IC$12 -> 2059 | ID14: =ID13+1 -> 276 | IG14: =IG$12 -> 2060 | IH14: =IH13+1 -> 276 | IK14: =IK$12 -> 2061 | IL14: =IL13+1 -> 276 | IO14: =IO$12 -> 2062 | IP14: =IP13+1 -> 276 | IS14: =IS$12 -> 2063 | IT14: =IT13+1 -> 276 | IW14: =IW$12 -> 2064 | IX14: =IX13+1 -> 276 | JA14: 2065 | JB14: =JB13+1 -> 276 | JE14: 2066 | JF14: =JF13+1 -> 276 | JI14: 2067 | JJ14: =JJ13+1 -> 276 | JM14: 2068 | JN14: =JN13+1 -> 276 | JQ14: 2069 | JR14: =JR13+1 -> 276 | JU14: 2070 | JV14: =JV13+1 -> 276 | JY14: 2071 | JZ14: =JZ13+1 -> 276 | KC14: 2072 | KD14: =KD13+1 -> 276 | KG14: 2073 | KH14: =KH13+1 -> 276 | KK14: 2074 | KL14: =KL13+1 -> 276 | KO14: 2075 | KP14: =KP13+1 -> 276 | KS14: 2076 | KT14: =KT13+1 -> 276 | KW14: 2077 | KX14: =KX13+1 -> 276 | LA14: 2078 | LB14: =LB13+1 -> 276 | LE14: 2079 | LF14: =LF13+1 -> 276 | LI14: 2080 | LJ14: =LJ13+1 -> 276 | LM14: 2081 | LN14: =LN13+1 -> 276 | LQ14: 2082 | LR14: =LR13+1 -> 276 | LU14: 2083 | LV14: =LV13+1 -> 276 | LY14: 2084 | LZ14: =LZ13+1 -> 276 | MC14: 2085 | MD14: =MD13+1 -> 276 | MG14: 2086 | MH14: =MH13+1 -> 276 | MK14: 2087 | ML14: =ML13+1 -> 276 | MO14: 2088 | MP14: =MP13+1 -> 276 | MS14: 2089 | MT14: =MT13+1 -> 276 | MW14: 2090 | MX14: =MX13+1 -> 276 | NA14: 2091 | NB14: =NB13+1 -> 276 | NE14: 2092 | NF14: =NF13+1 -> 276 | NI14: 2093 | NJ14: =NJ13+1 -> 276 | NM14: 2094 | NN14: =NN13+1 -> 276 | NQ14: 2095 | NR14: =NR13+1 -> 276 | NU14: 2096 | NV14: =NV13+1 -> 276 | NY14: 2097 | NZ14: =NZ13+1 -> 276 | OC14: 2098 | OD14: =OD13+1 -> 276 | OG14: 2099 | OH14: =OH13+1 -> 276 | OK14: =OK$12 -> 2100 | OL14: =OL13+1 -> 276 | OO14: =OO$12 -> 2101 | OP14: =OP13+1 -> 276 | OS14: =OS$12 -> 2102 | OT14: =OT13+1 -> 276 | OW14: =OW$12 -> 2103 | OX14: =OX13+1 -> 276 | PA14: =PA$12 -> 2104 | PB14: =PB13+1 -> 276 | PE14: =PE$12 -> 2105 | PF14: =PF13+1 -> 276 | PI14: =PI$12 -> 2106 | PJ14: =PJ13+1 -> 276 | PM14: =PM$12 -> 2107 | PN14: =PN13+1 -> 276 | PQ14: =PQ$12 -> 2108 | PR14: =PR13+1 -> 276 | PU14: =PU$12 -> 2109 | PV14: =PV13+1 -> 276 | PY14: =PY$12 -> 2110 | PZ14: =PZ13+1 -> 276 | QC14: =QC$12 -> 2111 | QD14: =QD13+1 -> 276 | QG14: =QG$12 -> 2112 | QH14: =QH13+1 -> 276 | QK14: =QK$12 -> 2113 | QL14: =QL13+1 -> 276 | QO14: =QO$12 -> 2114 | QP14: =QP13+1 -> 276 | QS14: 2115 | QT14: =QT13+1 -> 276 | QW14: 2116 | QX14: =QX13+1 -> 276 | RA14: 2117 | RB14: =RB13+1 -> 276 | RE14: 2118 | RF14: =RF13+1 -> 276 | RI14: 2119 | RJ14: =RJ13+1 -> 276 | RM14: 2120 | RN14: =RN13+1 -> 276 | RQ14: 2121 | RR14: =RR13+1 -> 276 | RU14: 2122 | RV14: =RV13+1 -> 276 | RY14: 2123 | RZ14: =RZ13+1 -> 276 | SC14: 2124 | SD14: =SD13+1 -> 276 | SG14: 2125 | SH14: =SH13+1 -> 276 | SK14: 2126 | SL14: =SL13+1 -> 276 | SO14: 2127 | SP14: =SP13+1 -> 276 | SS14: 2128 | ST14: =ST13+1 -> 276 | SW14: 2129 | SX14: =SX13+1 -> 276 | TA14: 2130 | TB14: =TB13+1 -> 276 | TE14: 2131 | TF14: =TF13+1 -> 276 | TI14: 2132 | TJ14: =TJ13+1 -> 276 | TM14: 2133 | TN14: =TN13+1 -> 276 | TQ14: 2134 | TR14: =TR13+1 -> 276 | TU14: 2135 | TV14: =TV13+1 -> 276 | TY14: 2136 | TZ14: =TZ13+1 -> 276 | UC14: 2137 | UD14: =UD13+1 -> 276 | UG14: 2138 | UH14: =UH13+1 -> 276 | UK14: 2139 | UL14: =UL13+1 -> 276 | UO14: 2140 | UP14: =UP13+1 -> 276 | US14: 2141 | UT14: =UT13+1 -> 276 | UW14: 2142 | UX14: =UX13+1 -> 276 | VA14: 2143 | VB14: =VB13+1 -> 276 | VE14: 2144 | VF14: =VF13+1 -> 276 | VI14: 2145 | VJ14: =VJ13+1 -> 276 | VM14: 2146 | VN14: =VN13+1 -> 276 | VQ14: 2147 | VR14: =VR13+1 -> 276 | VU14: 2148 | VV14: =VV13+1 -> 276 | VY14: 2149 | VZ14: =VZ13+1 -> 276 | WC14: =WC$12 -> 2150 | WD14: =WD13+1 -> 276 | WG14: =WG$12 -> 2151 | WH14: =WH13+1 -> 276 | WK14: =WK$12 -> 2152 | WL14: =WL13+1 -> 276 | WO14: =WO$12 -> 2153 | WP14: =WP13+1 -> 276 | WS14: =WS$12 -> 2154 | WT14: =WT13+1 -> 276 | WW14: =WW$12 -> 2155 | WX14: =WX13+1 -> 276 | XA14: =XA$12 -> 2156 | XB14: =XB13+1 -> 276 | XE14: =XE$12 -> 2157 | XF14: =XF13+1 -> 276 | XI14: =XI$12 -> 2158 | XJ14: =XJ13+1 -> 276 | XM14: =XM$12 -> 2159 | XN14: =XN13+1 -> 276 | XQ14: =XQ$12 -> 2160 | XR14: =XR13+1 -> 276 | XU14: =XU$12 -> 2161 | XV14: =XV13+1 -> 276 | XY14: =XY$12 -> 2162 | XZ14: =XZ13+1 -> 276 | YC14: =YC$12 -> 2163 | YD14: =YD13+1 -> 276 | YG14: =YG$12 -> 2164 | YH14: =YH13+1 -> 276 | YK14: 2165 | YL14: =YL13+1 -> 276 | YO14: 2166 | YP14: =YP13+1 -> 276 | YS14: 2167 | YT14: =YT13+1 -> 276 | YW14: 2168 | YX14: =YX13+1 -> 276 | ZA14: 2169 | ZB14: =ZB13+1 -> 276 | ZE14: 2170 | ZF14: =ZF13+1 -> 276 | ZI14: 2171 | ZJ14: =ZJ13+1 -> 276 | ZM14: 2172 | ZN14: =ZN13+1 -> 276 | ZQ14: 2173 | ZR14: =ZR13+1 -> 276 | ZU14: 2174 | ZV14: =ZV13+1 -> 276 | ZY14: 2175 | ZZ14: =ZZ13+1 -> 276 | AAC14: 2176 | AAD14: =AAD13+1 -> 276 | AAG14: 2177 | AAH14: =AAH13+1 -> 276 | AAK14: 2178 | AAL14: =AAL13+1 -> 276 | AAO14: 2179 | AAP14: =AAP13+1 -> 276 | AAS14: 2180 | AAT14: =AAT13+1 -> 276 | AAW14: 2181 | AAX14: =AAX13+1 -> 276 | ABA14: 2182 | ABB14: =ABB13+1 -> 276 | ABE14: 2183 | ABF14: =ABF13+1 -> 276 | ABI14: 2184 | ABJ14: =ABJ13+1 -> 276 | ABM14: 2185 | ABN14: =ABN13+1 -> 276 | ABQ14: 2186 | ABR14: =ABR13+1 -> 276 | ABU14: 2187 | ABV14: =ABV13+1 -> 276 | ABY14: 2188 | ABZ14: =ABZ13+1 -> 276 | ACC14: 2189 | ACD14: =ACD13+1 -> 276 | ACG14: 2190 | ACH14: =ACH13+1 -> 276 | ACK14: 2191 | ACL14: =ACL13+1 -> 276 | ACO14: 2192 | ACP14: =ACP13+1 -> 276 | ACS14: 2193 | ACT14: =ACT13+1 -> 276 | ACW14: 2194 | ACX14: =ACX13+1 -> 276 | ADA14: 2195 | ADB14: =ADB13+1 -> 276 | ADE14: 2196 | ADF14: =ADF13+1 -> 276 | ADI14: 2197 | ADJ14: =ADJ13+1 -> 276 | ADM14: 2198 | ADN14: =ADN13+1 -> 276 | ADQ14: 2199 | ADR14: =ADR13+1 -> 276 | ADU14: =ADU$12 -> 2200 | ADV14: =ADV13+1 -> 276 | ADY14: =ADY$12 -> 2201 | ADZ14: =ADZ13+1 -> 276 | AEC14: =AEC$12 -> 2202 | AED14: =AED13+1 -> 276 | AEG14: =AEG$12 -> 2203 | AEH14: =AEH13+1 -> 276 | AEK14: =AEK$12 -> 2204 | AEL14: =AEL13+1 -> 276 | AEO14: =AEO$12 -> 2205 | AEP14: =AEP13+1 -> 276 | AES14: =AES$12 -> 2206 | AET14: =AET13+1 -> 276 | AEW14: =AEW$12 -> 2207 | AEX14: =AEX13+1 -> 276 | AFA14: =AFA$12 -> 2208 | AFB14: =AFB13+1 -> 276 | AFE14: =AFE$12 -> 2209 | AFF14: =AFF13+1 -> 276 | AFI14: =AFI$12 -> 2210 | AFJ14: =AFJ13+1 -> 276 | AFM14: =AFM$12 -> 2211 | AFN14: =AFN13+1 -> 276 | AFQ14: =AFQ$12 -> 2212 | AFR14: =AFR13+1 -> 276 | AFU14: =AFU$12 -> 2213 | AFV14: =AFV13+1 -> 276 | AFY14: =AFY$12 -> 2214 | AFZ14: =AFZ13+1 -> 276 | AGC14: 2215 | AGD14: =AGD13+1 -> 276 | AGG14: 2216 | AGH14: =AGH13+1 -> 276 | AGK14: 2217 | AGL14: =AGL13+1 -> 276 | AGO14: 2218 | AGP14: =AGP13+1 -> 276 | AGS14: 2219 | AGT14: =AGT13+1 -> 276 | AGW14: 2220 | AGX14: =AGX13+1 -> 276 | AHA14: 2221 | AHB14: =AHB13+1 -> 276 | AHE14: 2222 | AHF14: =AHF13+1 -> 276 | AHI14: 2223 | AHJ14: =AHJ13+1 -> 276 | AHM14: 2224 | AHN14: =AHN13+1 -> 276 | AHQ14: 2225 | AHR14: =AHR13+1 -> 276 | AHU14: 2226 | AHV14: =AHV13+1 -> 276 | AHY14: 2227 | AHZ14: =AHZ13+1 -> 276 | AIC14: 2228 | AID14: =AID13+1 -> 276 | AIG14: 2229 | AIH14: =AIH13+1 -> 276 | AIK14: 2230 | AIL14: =AIL13+1 -> 276 | AIO14: 2231 | AIP14: =AIP13+1 -> 276 | AIS14: 2232 | AIT14: =AIT13+1 -> 276 | AIW14: 2233 | AIX14: =AIX13+1 -> 276 | AJA14: 2234 | AJB14: =AJB13+1 -> 276 | AJE14: 2235 | AJF14: =AJF13+1 -> 276 | AJI14: 2236 | AJJ14: =AJJ13+1 -> 276 | AJM14: 2237 | AJN14: =AJN13+1 -> 276 | AJQ14: 2238 | AJR14: =AJR13+1 -> 276 | AJU14: 2239 | AJV14: =AJV13+1 -> 276 | AJY14: 2240 | AJZ14: =AJZ13+1 -> 276 | AKC14: 2241 | AKD14: =AKD13+1 -> 276 | AKG14: 2242 | AKH14: =AKH13+1 -> 276 | AKK14: 2243 | AKL14: =AKL13+1 -> 276 | AKO14: 2244 | AKP14: =AKP13+1 -> 276 | AKS14: 2245 | AKT14: =AKT13+1 -> 276 | AKW14: 2246 | AKX14: =AKX13+1 -> 276 | ALA14: 2247 | ALB14: =ALB13+1 -> 276 | ALE14: 2248 | ALF14: =ALF13+1 -> 276 | ALI14: 2249 | ALJ14: =ALJ13+1 -> 276 | ALM14: =ALM$12 -> 2250 | ALN14: =ALN13+1 -> 276 | ALQ14: =ALQ$12 -> 2251 | ALR14: =ALR13+1 -> 276 | ALU14: =ALU$12 -> 2252 | ALV14: =ALV13+1 -> 276 | ALY14: =ALY$12 -> 2253 | ALZ14: =ALZ13+1 -> 276 | AMC14: =AMC$12 -> 2254 | AMD14: =AMD13+1 -> 276 | AMG14: =AMG$12 -> 2255 | AMH14: =AMH13+1 -> 276 | AMK14: =AMK$12 -> 2256 | AML14: =AML13+1 -> 276 | AMO14: =AMO$12 -> 2257 | AMP14: =AMP13+1 -> 276 | AMS14: =AMS$12 -> 2258 | AMT14: =AMT13+1 -> 276 | AMW14: =AMW$12 -> 2259 | AMX14: =AMX13+1 -> 276 | ANA14: =ANA$12 -> 2260 | ANB14: =ANB13+1 -> 276 | ANE14: =ANE$12 -> 2261 | ANF14: =ANF13+1 -> 276 | ANI14: =ANI$12 -> 2262 | ANJ14: =ANJ13+1 -> 276 | ANM14: =ANM$12 -> 2263 | ANN14: =ANN13+1 -> 276 | ANQ14: =ANQ$12 -> 2264 | ANR14: =ANR13+1 -> 276 | ANU14: 2265 | ANV14: =ANV13+1 -> 276 | ANY14: 2266 | ANZ14: =ANZ13+1 -> 276 | AOC14: 2267 | AOD14: =AOD13+1 -> 276 | AOG14: 2268 | AOH14: =AOH13+1 -> 276 | AOK14: 2269 | AOL14: =AOL13+1 -> 276 | AOO14: 2270 | AOP14: =AOP13+1 -> 276 | AOS14: 2271 | AOT14: =AOT13+1 -> 276 | AOW14: 2272 | AOX14: =AOX13+1 -> 276 | APA14: 2273 | APB14: =APB13+1 -> 276 | APE14: 2274 | APF14: =APF13+1 -> 276 | API14: 2275 | APJ14: =APJ13+1 -> 276 | APM14: 2276 | APN14: =APN13+1 -> 276 | APQ14: 2277 | APR14: =APR13+1 -> 276 | APU14: 2278 | APV14: =APV13+1 -> 276 | APY14: 2279 | APZ14: =APZ13+1 -> 276 | AQC14: 2280 | AQD14: =AQD13+1 -> 276 | AQG14: 2281 | AQH14: =AQH13+1 -> 276 | AQK14: 2282 | AQL14: =AQL13+1 -> 276 | AQO14: 2283 | AQP14: =AQP13+1 -> 276 | AQS14: 2284 | AQT14: =AQT13+1 -> 276 | AQW14: 2285 | AQX14: =AQX13+1 -> 276 | ARA14: 2286 | ARB14: =ARB13+1 -> 276 | ARE14: 2287 | ARF14: =ARF13+1 -> 276 | ARI14: 2288 | ARJ14: =ARJ13+1 -> 276 | ARM14: 2289 | ARN14: =ARN13+1 -> 276 | ARQ14: 2290 | ARR14: =ARR13+1 -> 276 | ARU14: 2291 | ARV14: =ARV13+1 -> 276 | ARY14: 2292 | ARZ14: =ARZ13+1 -> 276 | ASC14: 2293 | ASD14: =ASD13+1 -> 276 | ASG14: 2294 | ASH14: =ASH13+1 -> 276 | ASK14: 2295 | ASL14: =ASL13+1 -> 276 | ASO14: 2296 | ASP14: =ASP13+1 -> 276 | ASS14: 2297 | AST14: =AST13+1 -> 276 | ASW14: 2298 | ASX14: =ASX13+1 -> 276 | ATA14: 2299 | ATB14: =ATB13+1 -> 276 | ATE14: =ATE$12 -> 2300 | ATF14: =ATF13+1 -> 276 | ATI14: =ATI$12 -> 2301 | ATJ14: =ATJ13+1 -> 276 | ATM14: =ATM$12 -> 2302 | ATN14: =ATN13+1 -> 276 | ATQ14: =ATQ$12 -> 2303 | ATR14: =ATR13+1 -> 276 | ATU14: =ATU$12 -> 2304 | ATV14: =ATV13+1 -> 276 | ATY14: =ATY$12 -> 2305 | ATZ14: =ATZ13+1 -> 276 | AUC14: =AUC$12 -> 2306 | AUD14: =AUD13+1 -> 276 | AUG14: =AUG$12 -> 2307 | AUH14: =AUH13+1 -> 276 | AUK14: =AUK$12 -> 2308 | AUL14: =AUL13+1 -> 276 | AUO14: =AUO$12 -> 2309 | AUP14: =AUP13+1 -> 276 | AUS14: =AUS$12 -> 2310 | AUT14: =AUT13+1 -> 276 | AUW14: =AUW$12 -> 2311 | AUX14: =AUX13+1 -> 276 | AVA14: =AVA$12 -> 2312 | AVB14: =AVB13+1 -> 276 | AVE14: =AVE$12 -> 2313 | AVF14: =AVF13+1 -> 276 | AVI14: =AVI$12 -> 2314 | AVJ14: =AVJ13+1 -> 276 | AVM14: 2315 | AVN14: =AVN13+1 -> 276 | AVQ14: 2316 | AVR14: =AVR13+1 -> 276 | AVU14: 2317 | AVV14: =AVV13+1 -> 276 | AVY14: 2318 | AVZ14: =AVZ13+1 -> 276 | AWC14: 2319 | AWD14: =AWD13+1 -> 276 | AWG14: 2320 | AWH14: =AWH13+1 -> 276 | AWK14: 2321 | AWL14: =AWL13+1 -> 276 | AWO14: 2322 | AWP14: =AWP13+1 -> 276 | AWS14: 2323 | AWT14: =AWT13+1 -> 276 | AWW14: 2324 | AWX14: =AWX13+1 -> 276 | AXA14: 2325 | AXB14: =AXB13+1 -> 276 | AXE14: 2326 | AXF14: =AXF13+1 -> 276 | AXI14: 2327 | AXJ14: =AXJ13+1 -> 276 | AXM14: 2328 | AXN14: =AXN13+1 -> 276 | AXQ14: 2329 | AXR14: =AXR13+1 -> 276 | AXU14: 2330 | AXV14: =AXV13+1 -> 276 | AXY14: 2331 | AXZ14: =AXZ13+1 -> 276 | AYC14: 2332 | AYD14: =AYD13+1 -> 276 | AYG14: 2333 | AYH14: =AYH13+1 -> 276 | AYK14: 2334 | AYL14: =AYL13+1 -> 276 | AYO14: 2335 | AYP14: =AYP13+1 -> 276 | AYS14: 2336 | AYT14: =AYT13+1 -> 276 | AYW14: 2337 | AYX14: =AYX13+1 -> 276 | AZA14: 2338 | AZB14: =AZB13+1 -> 276 | AZE14: 2339 | AZF14: =AZF13+1 -> 276 | AZI14: 2340 | AZJ14: =AZJ13+1 -> 276 | AZM14: 2341 | AZN14: =AZN13+1 -> 276 | AZQ14: 2342 | AZR14: =AZR13+1 -> 276 | AZU14: 2343 | AZV14: =AZV13+1 -> 276 | AZY14: 2344 | AZZ14: =AZZ13+1 -> 276 | BAC14: 2345 | BAD14: =BAD13+1 -> 276 | BAG14: 2346 | BAH14: =BAH13+1 -> 276 | BAK14: 2347 | BAL14: =BAL13+1 -> 276 | BAO14: 2348 | BAP14: =BAP13+1 -> 276 | BAS14: 2349 | BAT14: =BAT13+1 -> 276 | BAW14: =BAW$12 -> 2350 | BAX14: =BAX13+1 -> 276 | BBA14: =BBA$12 -> 2351 | BBB14: =BBB13+1 -> 276 | BBE14: =BBE$12 -> 2352 | BBF14: =BBF13+1 -> 276 | BBI14: =BBI$12 -> 2353 | BBJ14: =BBJ13+1 -> 276 | BBM14: =BBM$12 -> 2354 | BBN14: =BBN13+1 -> 276 | BBQ14: =BBQ$12 -> 2355 | BBR14: =BBR13+1 -> 276 | BBU14: =BBU$12 -> 2356 | BBV14: =BBV13+1 -> 276 | BBY14: =BBY$12 -> 2357 | BBZ14: =BBZ13+1 -> 276 | BCC14: =BCC$12 -> 2358 | BCD14: =BCD13+1 -> 276 | BCG14: =BCG$12 -> 2359 | BCH14: =BCH13+1 -> 276 | BCK14: =BCK$12 -> 2360 | BCL14: =BCL13+1 -> 276 | BCO14: =BCO$12 -> 2361 | BCP14: =BCP13+1 -> 276 | BCS14: =BCS$12 -> 2362 | BCT14: =BCT13+1 -> 276 | BCW14: =BCW$12 -> 2363 | BCX14: =BCX13+1 -> 276 | BDA14: =BDA$12 -> 2364 | BDB14: =BDB13+1 -> 276 | BDE14: 2365 | BDF14: =BDF13+1 -> 276 | BDI14: 2366 | BDJ14: =BDJ13+1 -> 276 | BDM14: 2367 | BDN14: =BDN13+1 -> 276 | BDQ14: 2368 | BDR14: =BDR13+1 -> 276 | BDU14: 2369 | BDV14: =BDV13+1 -> 276 | BDY14: 2370 | BDZ14: =BDZ13+1 -> 276 | BEC14: 2371 | BED14: =BED13+1 -> 276 | BEG14: 2372 | BEH14: =BEH13+1 -> 276 | BEK14: 2373 | BEL14: =BEL13+1 -> 276 | BEO14: 2374 | BEP14: =BEP13+1 -> 276 | BES14: 2375 | BET14: =BET13+1 -> 276 | BEW14: 2376 | BEX14: =BEX13+1 -> 276 | BFA14: 2377 | BFB14: =BFB13+1 -> 276 | BFE14: 2378 | BFF14: =BFF13+1 -> 276 | BFI14: 2379 | BFJ14: =BFJ13+1 -> 276 | BFM14: 2380 | BFN14: =BFN13+1 -> 276 | BFQ14: 2381 | BFR14: =BFR13+1 -> 276 | BFU14: 2382 | BFV14: =BFV13+1 -> 276 | BFY14: 2383 | BFZ14: =BFZ13+1 -> 276 | BGC14: 2384 | BGD14: =BGD13+1 -> 276 | BGG14: 2385 | BGH14: =BGH13+1 -> 276 | BGK14: 2386 | BGL14: =BGL13+1 -> 276 | BGO14: 2387 | BGP14: =BGP13+1 -> 276 | BGS14: 2388 | BGT14: =BGT13+1 -> 276 | BGW14: 2389 | BGX14: =BGX13+1 -> 276 | BHA14: 2390 | BHB14: =BHB13+1 -> 276 | BHE14: 2391 | BHF14: =BHF13+1 -> 276 | BHI14: 2392 | BHJ14: =BHJ13+1 -> 276 | BHM14: 2393 | BHN14: =BHN13+1 -> 276 | BHQ14: 2394 | BHR14: =BHR13+1 -> 276 | BHU14: 2395 | BHV14: =BHV13+1 -> 276 | BHY14: 2396 | BHZ14: =BHZ13+1 -> 276 | BIC14: 2397 | BID14: =BID13+1 -> 276 | BIG14: 2398 | BIH14: =BIH13+1 -> 276 | BIK14: 2399 | BIL14: =BIL13+1 -> 276
A15: 2000 | B15: 277 | E15: 2001 | F15: 277 | I15: 2002 | J15: 277 | M15: 2003 | N15: 277 | Q15: 2004 | R15: 277 | U15: 2005 | V15: 277 | Y15: 2006 | Z15: 277 | AC15: 2007 | AD15: 277 | AG15: 2008 | AH15: 277 | AK15: 2009 | AL15: 277 | AO15: 2010 | AP15: 277 | AS15: 2011 | AT15: 277 | AW15: 2012 | AX15: 277 | BA15: 2013 | BB15: 277 | BE15: 2014 | BF15: 277 | BI15: 2015 | BJ15: 277 | BM15: 2016 | BN15: 277 | BQ15: 2017 | BR15: 277 | BU15: 2018 | BV15: 277 | BY15: 2019 | BZ15: 277 | CC15: 2020 | CD15: 277 | CG15: 2021 | CH15: 277 | CK15: 2022 | CL15: 277 | CO15: 2023 | CP15: 277 | CS15: 2024 | CT15: 277 | CW15: 2025 | CX15: 277 | DA15: 2026 | DB15: 277 | DE15: 2027 | DF15: 277 | DI15: 2028 | DJ15: 277 | DM15: 2029 | DN15: 277 | DQ15: 2030 | DR15: 277 | DU15: 2031 | DV15: 277 | DY15: 2032 | DZ15: 277 | EC15: 2033 | ED15: 277 | EG15: 2034 | EH15: 277 | EK15: 2035 | EL15: 277 | EO15: 2036 | EP15: 277 | ES15: 2037 | ET15: 277 | EW15: 2038 | EX15: 277 | FA15: 2039 | FB15: 277 | FE15: 2040 | FF15: 277 | FI15: 2041 | FJ15: 277 | FM15: 2042 | FN15: 277 | FQ15: 2043 | FR15: 277 | FU15: 2044 | FV15: 277 | FY15: 2045 | FZ15: 277 | GC15: 2046 | GD15: 277 | GG15: 2047 | GH15: 277 | GK15: 2048 | GL15: 277 | GO15: 2049 | GP15: 277 | GS15: 2050 | GT15: 277 | GW15: 2051 | GX15: 277 | HA15: 2052 | HB15: 277 | HE15: 2053 | HF15: 277 | HI15: 2054 | HJ15: 277 | HM15: 2055 | HN15: 277 | HQ15: 2056 | HR15: 277 | HU15: 2057 | HV15: 277 | HY15: 2058 | HZ15: 277 | IC15: 2059 | ID15: 277 | IG15: 2060 | IH15: 277 | IK15: 2061 | IL15: 277 | IO15: 2062 | IP15: 277 | IS15: 2063 | IT15: 277 | IW15: 2064 | IX15: 277 | JA15: 2065 | JB15: 277 | JE15: 2066 | JF15: 277 | JI15: 2067 | JJ15: 277 | JM15: 2068 | JN15: 277 | JQ15: 2069 | JR15: 277 | JU15: 2070 | JV15: 277 | JY15: 2071 | JZ15: 277 | KC15: 2072 | KD15: 277 | KG15: 2073 | KH15: 277 | KK15: 2074 | KL15: 277 | KO15: 2075 | KP15: 277 | KS15: 2076 | KT15: 277 | KW15: 2077 | KX15: 277 | LA15: 2078 | LB15: 277 | LE15: 2079 | LF15: 277 | LI15: 2080 | LJ15: 277 | LM15: 2081 | LN15: 277 | LQ15: 2082 | LR15: 277 | LU15: 2083 | LV15: 277 | LY15: 2084 | LZ15: 277 | MC15: 2085 | MD15: 277 | MG15: 2086 | MH15: 277 | MK15: 2087 | ML15: 277 | MO15: 2088 | MP15: 277 | MS15: 2089 | MT15: 277 | MW15: 2090 | MX15: 277 | NA15: 2091 | NB15: 277 | NE15: 2092 | NF15: 277 | NI15: 2093 | NJ15: 277 | NM15: 2094 | NN15: 277 | NQ15: 2095 | NR15: 277 | NU15: 2096 | NV15: 277 | NY15: 2097 | NZ15: 277 | OC15: 2098 | OD15: 277 | OG15: 2099 | OH15: 277 | OK15: 2100 | OL15: 277 | OO15: 2101 | OP15: 277 | OS15: 2102 | OT15: 277 | OW15: 2103 | OX15: 277 | PA15: 2104 | PB15: 277 | PE15: 2105 | PF15: 277 | PI15: 2106 | PJ15: 277 | PM15: 2107 | PN15: 277 | PQ15: 2108 | PR15: 277 | PU15: 2109 | PV15: 277 | PY15: 2110 | PZ15: 277 | QC15: 2111 | QD15: 277 | QG15: 2112 | QH15: 277 | QK15: 2113 | QL15: 277 | QO15: 2114 | QP15: 277 | QS15: 2115 | QT15: 277 | QW15: 2116 | QX15: 277 | RA15: 2117 | RB15: 277 | RE15: 2118 | RF15: 277 | RI15: 2119 | RJ15: 277 | RM15: 2120 | RN15: 277 | RQ15: 2121 | RR15: 277 | RU15: 2122 | RV15: 277 | RY15: 2123 | RZ15: 277 | SC15: 2124 | SD15: 277 | SG15: 2125 | SH15: 277 | SK15: 2126 | SL15: 277 | SO15: 2127 | SP15: 277 | SS15: 2128 | ST15: 277 | SW15: 2129 | SX15: 277 | TA15: 2130 | TB15: 277 | TE15: 2131 | TF15: 277 | TI15: 2132 | TJ15: 277 | TM15: 2133 | TN15: 277 | TQ15: 2134 | TR15: 277 | TU15: 2135 | TV15: 277 | TY15: 2136 | TZ15: 277 | UC15: 2137 | UD15: 277 | UG15: 2138 | UH15: 277 | UK15: 2139 | UL15: 277 | UO15: 2140 | UP15: 277 | US15: 2141 | UT15: 277 | UW15: 2142 | UX15: 277 | VA15: 2143 | VB15: 277 | VE15: 2144 | VF15: 277 | VI15: 2145 | VJ15: 277 | VM15: 2146 | VN15: 277 | VQ15: 2147 | VR15: 277 | VU15: 2148 | VV15: 277 | VY15: 2149 | VZ15: 277 | WC15: 2150 | WD15: 277 | WG15: 2151 | WH15: 277 | WK15: 2152 | WL15: 277 | WO15: 2153 | WP15: 277 | WS15: 2154 | WT15: 277 | WW15: 2155 | WX15: 277 | XA15: 2156 | XB15: 277 | XE15: 2157 | XF15: 277 | XI15: 2158 | XJ15: 277 | XM15: 2159 | XN15: 277 | XQ15: 2160 | XR15: 277 | XU15: 2161 | XV15: 277 | XY15: 2162 | XZ15: 277 | YC15: 2163 | YD15: 277 | YG15: 2164 | YH15: 277 | YK15: 2165 | YL15: 277 | YO15: 2166 | YP15: 277 | YS15: 2167 | YT15: 277 | YW15: 2168 | YX15: 277 | ZA15: 2169 | ZB15: 277 | ZE15: 2170 | ZF15: 277 | ZI15: 2171 | ZJ15: 277 | ZM15: 2172 | ZN15: 277 | ZQ15: 2173 | ZR15: 277 | ZU15: 2174 | ZV15: 277 | ZY15: 2175 | ZZ15: 277 | AAC15: 2176 | AAD15: 277 | AAG15: 2177 | AAH15: 277 | AAK15: 2178 | AAL15: 277 | AAO15: 2179 | AAP15: 277 | AAS15: 2180 | AAT15: 277 | AAW15: 2181 | AAX15: 277 | ABA15: 2182 | ABB15: 277 | ABE15: 2183 | ABF15: 277 | ABI15: 2184 | ABJ15: 277 | ABM15: 2185 | ABN15: 277 | ABQ15: 2186 | ABR15: 277 | ABU15: 2187 | ABV15: 277 | ABY15: 2188 | ABZ15: 277 | ACC15: 2189 | ACD15: 277 | ACG15: 2190 | ACH15: 277 | ACK15: 2191 | ACL15: 277 | ACO15: 2192 | ACP15: 277 | ACS15: 2193 | ACT15: 277 | ACW15: 2194 | ACX15: 277 | ADA15: 2195 | ADB15: 277 | ADE15: 2196 | ADF15: 277 | ADI15: 2197 | ADJ15: 277 | ADM15: 2198 | ADN15: 277 | ADQ15: 2199 | ADR15: 277 | ADU15: 2200 | ADV15: 277 | ADY15: 2201 | ADZ15: 277 | AEC15: 2202 | AED15: 277 | AEG15: 2203 | AEH15: 277 | AEK15: 2204 | AEL15: 277 | AEO15: 2205 | AEP15: 277 | AES15: 2206 | AET15: 277 | AEW15: 2207 | AEX15: 277 | AFA15: 2208 | AFB15: 277 | AFE15: 2209 | AFF15: 277 | AFI15: 2210 | AFJ15: 277 | AFM15: 2211 | AFN15: 277 | AFQ15: 2212 | AFR15: 277 | AFU15: 2213 | AFV15: 277 | AFY15: 2214 | AFZ15: 277 | AGC15: 2215 | AGD15: 277 | AGG15: 2216 | AGH15: 277 | AGK15: 2217 | AGL15: 277 | AGO15: 2218 | AGP15: 277 | AGS15: 2219 | AGT15: 277 | AGW15: 2220 | AGX15: 277 | AHA15: 2221 | AHB15: 277 | AHE15: 2222 | AHF15: 277 | AHI15: 2223 | AHJ15: 277 | AHM15: 2224 | AHN15: 277 | AHQ15: 2225 | AHR15: 277 | AHU15: 2226 | AHV15: 277 | AHY15: 2227 | AHZ15: 277 | AIC15: 2228 | AID15: 277 | AIG15: 2229 | AIH15: 277 | AIK15: 2230 | AIL15: 277 | AIO15: 2231 | AIP15: 277 | AIS15: 2232 | AIT15: 277 | AIW15: 2233 | AIX15: 277 | AJA15: 2234 | AJB15: 277 | AJE15: 2235 | AJF15: 277 | AJI15: 2236 | AJJ15: 277 | AJM15: 2237 | AJN15: 277 | AJQ15: 2238 | AJR15: 277 | AJU15: 2239 | AJV15: 277 | AJY15: 2240 | AJZ15: 277 | AKC15: 2241 | AKD15: 277 | AKG15: 2242 | AKH15: 277 | AKK15: 2243 | AKL15: 277 | AKO15: 2244 | AKP15: 277 | AKS15: 2245 | AKT15: 277 | AKW15: 2246 | AKX15: 277 | ALA15: 2247 | ALB15: 277 | ALE15: 2248 | ALF15: 277 | ALI15: 2249 | ALJ15: 277 | ALM15: 2250 | ALN15: 277 | ALQ15: 2251 | ALR15: 277 | ALU15: 2252 | ALV15: 277 | ALY15: 2253 | ALZ15: 277 | AMC15: 2254 | AMD15: 277 | AMG15: 2255 | AMH15: 277 | AMK15: 2256 | AML15: 277 | AMO15: 2257 | AMP15: 277 | AMS15: 2258 | AMT15: 277 | AMW15: 2259 | AMX15: 277 | ANA15: 2260 | ANB15: 277 | ANE15: 2261 | ANF15: 277 | ANI15: 2262 | ANJ15: 277 | ANM15: 2263 | ANN15: 277 | ANQ15: 2264 | ANR15: 277 | ANU15: 2265 | ANV15: 277 | ANY15: 2266 | ANZ15: 277 | AOC15: 2267 | AOD15: 277 | AOG15: 2268 | AOH15: 277 | AOK15: 2269 | AOL15: 277 | AOO15: 2270 | AOP15: 277 | AOS15: 2271 | AOT15: 277 | AOW15: 2272 | AOX15: 277 | APA15: 2273 | APB15: 277 | APE15: 2274 | APF15: 277 | API15: 2275 | APJ15: 277 | APM15: 2276 | APN15: 277 | APQ15: 2277 | APR15: 277 | APU15: 2278 | APV15: 277 | APY15: 2279 | APZ15: 277 | AQC15: 2280 | AQD15: 277 | AQG15: 2281 | AQH15: 277 | AQK15: 2282 | AQL15: 277 | AQO15: 2283 | AQP15: 277 | AQS15: 2284 | AQT15: 277 | AQW15: 2285 | AQX15: 277 | ARA15: 2286 | ARB15: 277 | ARE15: 2287 | ARF15: 277 | ARI15: 2288 | ARJ15: 277 | ARM15: 2289 | ARN15: 277 | ARQ15: 2290 | ARR15: 277 | ARU15: 2291 | ARV15: 277 | ARY15: 2292 | ARZ15: 277 | ASC15: 2293 | ASD15: 277 | ASG15: 2294 | ASH15: 277 | ASK15: 2295 | ASL15: 277 | ASO15: 2296 | ASP15: 277 | ASS15: 2297 | AST15: 277 | ASW15: 2298 | ASX15: 277 | ATA15: 2299 | ATB15: 277 | ATE15: 2300 | ATF15: 277 | ATI15: 2301 | ATJ15: 277 | ATM15: 2302 | ATN15: 277 | ATQ15: 2303 | ATR15: 277 | ATU15: 2304 | ATV15: 277 | ATY15: 2305 | ATZ15: 277 | AUC15: 2306 | AUD15: 277 | AUG15: 2307 | AUH15: 277 | AUK15: 2308 | AUL15: 277 | AUO15: 2309 | AUP15: 277 | AUS15: 2310 | AUT15: 277 | AUW15: 2311 | AUX15: 277 | AVA15: 2312 | AVB15: 277 | AVE15: 2313 | AVF15: 277 | AVI15: 2314 | AVJ15: 277 | AVM15: 2315 | AVN15: 277 | AVQ15: 2316 | AVR15: 277 | AVU15: 2317 | AVV15: 277 | AVY15: 2318 | AVZ15: 277 | AWC15: 2319 | AWD15: 277 | AWG15: 2320 | AWH15: 277 | AWK15: 2321 | AWL15: 277 | AWO15: 2322 | AWP15: 277 | AWS15: 2323 | AWT15: 277 | AWW15: 2324 | AWX15: 277 | AXA15: 2325 | AXB15: 277 | AXE15: 2326 | AXF15: 277 | AXI15: 2327 | AXJ15: 277 | AXM15: 2328 | AXN15: 277 | AXQ15: 2329 | AXR15: 277 | AXU15: 2330 | AXV15: 277 | AXY15: 2331 | AXZ15: 277 | AYC15: 2332 | AYD15: 277 | AYG15: 2333 | AYH15: 277 | AYK15: 2334 | AYL15: 277 | AYO15: 2335 | AYP15: 277 | AYS15: 2336 | AYT15: 277 | AYW15: 2337 | AYX15: 277 | AZA15: 2338 | AZB15: 277 | AZE15: 2339 | AZF15: 277 | AZI15: 2340 | AZJ15: 277 | AZM15: 2341 | AZN15: 277 | AZQ15: 2342 | AZR15: 277 | AZU15: 2343 | AZV15: 277 | AZY15: 2344 | AZZ15: 277 | BAC15: 2345 | BAD15: 277 | BAG15: 2346 | BAH15: 277 | BAK15: 2347 | BAL15: 277 | BAO15: 2348 | BAP15: 277 | BAS15: 2349 | BAT15: 277 | BAW15: 2350 | BAX15: 277 | BBA15: 2351 | BBB15: 277 | BBE15: 2352 | BBF15: 277 | BBI15: 2353 | BBJ15: 277 | BBM15: 2354 | BBN15: 277 | BBQ15: 2355 | BBR15: 277 | BBU15: 2356 | BBV15: 277 | BBY15: 2357 | BBZ15: 277 | BCC15: 2358 | BCD15: 277 | BCG15: 2359 | BCH15: 277 | BCK15: 2360 | BCL15: 277 | BCO15: 2361 | BCP15: 277 | BCS15: 2362 | BCT15: 277 | BCW15: 2363 | BCX15: 277 | BDA15: 2364 | BDB15: 277 | BDE15: 2365 | BDF15: 277 | BDI15: 2366 | BDJ15: 277 | BDM15: 2367 | BDN15: 277 | BDQ15: 2368 | BDR15: 277 | BDU15: 2369 | BDV15: 277 | BDY15: 2370 | BDZ15: 277 | BEC15: 2371 | BED15: 277 | BEG15: 2372 | BEH15: 277 | BEK15: 2373 | BEL15: 277 | BEO15: 2374 | BEP15: 277 | BES15: 2375 | BET15: 277 | BEW15: 2376 | BEX15: 277 | BFA15: 2377 | BFB15: 277 | BFE15: 2378 | BFF15: 277 | BFI15: 2379 | BFJ15: 277 | BFM15: 2380 | BFN15: 277 | BFQ15: 2381 | BFR15: 277 | BFU15: 2382 | BFV15: 277 | BFY15: 2383 | BFZ15: 277 | BGC15: 2384 | BGD15: 277 | BGG15: 2385 | BGH15: 277 | BGK15: 2386 | BGL15: 277 | BGO15: 2387 | BGP15: 277 | BGS15: 2388 | BGT15: 277 | BGW15: 2389 | BGX15: 277 | BHA15: 2390 | BHB15: 277 | BHE15: 2391 | BHF15: 277 | BHI15: 2392 | BHJ15: 277 | BHM15: 2393 | BHN15: 277 | BHQ15: 2394 | BHR15: 277 | BHU15: 2395 | BHV15: 277 | BHY15: 2396 | BHZ15: 277 | BIC15: 2397 | BID15: 277 | BIG15: 2398 | BIH15: 277 | BIK15: 2399 | BIL15: 277
A16: 2000 | B16: 278 | E16: 2001 | F16: 278 | I16: 2002 | J16: 278 | M16: 2003 | N16: 278 | Q16: 2004 | R16: 278 | U16: 2005 | V16: 278 | Y16: 2006 | Z16: 278 | AC16: 2007 | AD16: 278 | AG16: 2008 | AH16: 278 | AK16: 2009 | AL16: 278 | AO16: 2010 | AP16: 278 | AS16: 2011 | AT16: 278 | AW16: 2012 | AX16: 278 | BA16: 2013 | BB16: 278 | BE16: 2014 | BF16: 278 | BI16: 2015 | BJ16: 278 | BM16: 2016 | BN16: 278 | BQ16: 2017 | BR16: 278 | BU16: 2018 | BV16: 278 | BY16: 2019 | BZ16: 278 | CC16: 2020 | CD16: 278 | CG16: 2021 | CH16: 278 | CK16: 2022 | CL16: 278 | CO16: 2023 | CP16: 278 | CS16: 2024 | CT16: 278 | CW16: 2025 | CX16: 278 | DA16: 2026 | DB16: 278 | DE16: 2027 | DF16: 278 | DI16: 2028 | DJ16: 278 | DM16: 2029 | DN16: 278 | DQ16: 2030 | DR16: 278 | DU16: 2031 | DV16: 278 | DY16: 2032 | DZ16: 278 | EC16: 2033 | ED16: 278 | EG16: 2034 | EH16: 278 | EK16: 2035 | EL16: 278 | EO16: 2036 | EP16: 278 | ES16: 2037 | ET16: 278 | EW16: 2038 | EX16: 278 | FA16: 2039 | FB16: 278 | FE16: 2040 | FF16: 278 | FI16: 2041 | FJ16: 278 | FM16: 2042 | FN16: 278 | FQ16: 2043 | FR16: 278 | FU16: 2044 | FV16: 278 | FY16: 2045 | FZ16: 278 | GC16: 2046 | GD16: 278 | GG16: 2047 | GH16: 278 | GK16: 2048 | GL16: 278 | GO16: 2049 | GP16: 278 | GS16: 2050 | GT16: 278 | GW16: 2051 | GX16: 278 | HA16: 2052 | HB16: 278 | HE16: 2053 | HF16: 278 | HI16: 2054 | HJ16: 278 | HM16: 2055 | HN16: 278 | HQ16: 2056 | HR16: 278 | HU16: 2057 | HV16: 278 | HY16: 2058 | HZ16: 278 | IC16: 2059 | ID16: 278 | IG16: 2060 | IH16: 278 | IK16: 2061 | IL16: 278 | IO16: 2062 | IP16: 278 | IS16: 2063 | IT16: 278 | IW16: 2064 | IX16: 278 | JA16: 2065 | JB16: 278 | JE16: 2066 | JF16: 278 | JI16: 2067 | JJ16: 278 | JM16: 2068 | JN16: 278 | JQ16: 2069 | JR16: 278 | JU16: 2070 | JV16: 278 | JY16: 2071 | JZ16: 278 | KC16: 2072 | KD16: 278 | KG16: 2073 | KH16: 278 | KK16: 2074 | KL16: 278 | KO16: 2075 | KP16: 278 | KS16: 2076 | KT16: 278 | KW16: 2077 | KX16: 278 | LA16: 2078 | LB16: 278 | LE16: 2079 | LF16: 278 | LI16: 2080 | LJ16: 278 | LM16: 2081 | LN16: 278 | LQ16: 2082 | LR16: 278 | LU16: 2083 | LV16: 278 | LY16: 2084 | LZ16: 278 | MC16: 2085 | MD16: 278 | MG16: 2086 | MH16: 278 | MK16: 2087 | ML16: 278 | MO16: 2088 | MP16: 278 | MS16: 2089 | MT16: 278 | MW16: 2090 | MX16: 278 | NA16: 2091 | NB16: 278 | NE16: 2092 | NF16: 278 | NI16: 2093 | NJ16: 278 | NM16: 2094 | NN16: 278 | NQ16: 2095 | NR16: 278 | NU16: 2096 | NV16: 278 | NY16: 2097 | NZ16: 278 | OC16: 2098 | OD16: 278 | OG16: 2099 | OH16: 278 | OK16: 2100 | OL16: 278 | OO16: 2101 | OP16: 278 | OS16: 2102 | OT16: 278 | OW16: 2103 | OX16: 278 | PA16: 2104 | PB16: 278 | PE16: 2105 | PF16: 278 | PI16: 2106 | PJ16: 278 | PM16: 2107 | PN16: 278 | PQ16: 2108 | PR16: 278 | PU16: 2109 | PV16: 278 | PY16: 2110 | PZ16: 278 | QC16: 2111 | QD16: 278 | QG16: 2112 | QH16: 278 | QK16: 2113 | QL16: 278 | QO16: 2114 | QP16: 278 | QS16: 2115 | QT16: 278 | QW16: 2116 | QX16: 278 | RA16: 2117 | RB16: 278 | RE16: 2118 | RF16: 278 | RI16: 2119 | RJ16: 278 | RM16: 2120 | RN16: 278 | RQ16: 2121 | RR16: 278 | RU16: 2122 | RV16: 278 | RY16: 2123 | RZ16: 278 | SC16: 2124 | SD16: 278 | SG16: 2125 | SH16: 278 | SK16: 2126 | SL16: 278 | SO16: 2127 | SP16: 278 | SS16: 2128 | ST16: 278 | SW16: 2129 | SX16: 278 | TA16: 2130 | TB16: 278 | TE16: 2131 | TF16: 278 | TI16: 2132 | TJ16: 278 | TM16: 2133 | TN16: 278 | TQ16: 2134 | TR16: 278 | TU16: 2135 | TV16: 278 | TY16: 2136 | TZ16: 278 | UC16: 2137 | UD16: 278 | UG16: 2138 | UH16: 278 | UK16: 2139 | UL16: 278 | UO16: 2140 | UP16: 278 | US16: 2141 | UT16: 278 | UW16: 2142 | UX16: 278 | VA16: 2143 | VB16: 278 | VE16: 2144 | VF16: 278 | VI16: 2145 | VJ16: 278 | VM16: 2146 | VN16: 278 | VQ16: 2147 | VR16: 278 | VU16: 2148 | VV16: 278 | VY16: 2149 | VZ16: 278 | WC16: 2150 | WD16: 278 | WG16: 2151 | WH16: 278 | WK16: 2152 | WL16: 278 | WO16: 2153 | WP16: 278 | WS16: 2154 | WT16: 278 | WW16: 2155 | WX16: 278 | XA16: 2156 | XB16: 278 | XE16: 2157 | XF16: 278 | XI16: 2158 | XJ16: 278 | XM16: 2159 | XN16: 278 | XQ16: 2160 | XR16: 278 | XU16: 2161 | XV16: 278 | XY16: 2162 | XZ16: 278 | YC16: 2163 | YD16: 278 | YG16: 2164 | YH16: 278 | YK16: 2165 | YL16: 278 | YO16: 2166 | YP16: 278 | YS16: 2167 | YT16: 278 | YW16: 2168 | YX16: 278 | ZA16: 2169 | ZB16: 278 | ZE16: 2170 | ZF16: 278 | ZI16: 2171 | ZJ16: 278 | ZM16: 2172 | ZN16: 278 | ZQ16: 2173 | ZR16: 278 | ZU16: 2174 | ZV16: 278 | ZY16: 2175 | ZZ16: 278 | AAC16: 2176 | AAD16: 278 | AAG16: 2177 | AAH16: 278 | AAK16: 2178 | AAL16: 278 | AAO16: 2179 | AAP16: 278 | AAS16: 2180 | AAT16: 278 | AAW16: 2181 | AAX16: 278 | ABA16: 2182 | ABB16: 278 | ABE16: 2183 | ABF16: 278 | ABI16: 2184 | ABJ16: 278 | ABM16: 2185 | ABN16: 278 | ABQ16: 2186 | ABR16: 278 | ABU16: 2187 | ABV16: 278 | ABY16: 2188 | ABZ16: 278 | ACC16: 2189 | ACD16: 278 | ACG16: 2190 | ACH16: 278 | ACK16: 2191 | ACL16: 278 | ACO16: 2192 | ACP16: 278 | ACS16: 2193 | ACT16: 278 | ACW16: 2194 | ACX16: 278 | ADA16: 2195 | ADB16: 278 | ADE16: 2196 | ADF16: 278 | ADI16: 2197 | ADJ16: 278 | ADM16: 2198 | ADN16: 278 | ADQ16: 2199 | ADR16: 278 | ADU16: 2200 | ADV16: 278 | ADY16: 2201 | ADZ16: 278 | AEC16: 2202 | AED16: 278 | AEG16: 2203 | AEH16: 278 | AEK16: 2204 | AEL16: 278 | AEO16: 2205 | AEP16: 278 | AES16: 2206 | AET16: 278 | AEW16: 2207 | AEX16: 278 | AFA16: 2208 | AFB16: 278 | AFE16: 2209 | AFF16: 278 | AFI16: 2210 | AFJ16: 278 | AFM16: 2211 | AFN16: 278 | AFQ16: 2212 | AFR16: 278 | AFU16: 2213 | AFV16: 278 | AFY16: 2214 | AFZ16: 278 | AGC16: 2215 | AGD16: 278 | AGG16: 2216 | AGH16: 278 | AGK16: 2217 | AGL16: 278 | AGO16: 2218 | AGP16: 278 | AGS16: 2219 | AGT16: 278 | AGW16: 2220 | AGX16: 278 | AHA16: 2221 | AHB16: 278 | AHE16: 2222 | AHF16: 278 | AHI16: 2223 | AHJ16: 278 | AHM16: 2224 | AHN16: 278 | AHQ16: 2225 | AHR16: 278 | AHU16: 2226 | AHV16: 278 | AHY16: 2227 | AHZ16: 278 | AIC16: 2228 | AID16: 278 | AIG16: 2229 | AIH16: 278 | AIK16: 2230 | AIL16: 278 | AIO16: 2231 | AIP16: 278 | AIS16: 2232 | AIT16: 278 | AIW16: 2233 | AIX16: 278 | AJA16: 2234 | AJB16: 278 | AJE16: 2235 | AJF16: 278 | AJI16: 2236 | AJJ16: 278 | AJM16: 2237 | AJN16: 278 | AJQ16: 2238 | AJR16: 278 | AJU16: 2239 | AJV16: 278 | AJY16: 2240 | AJZ16: 278 | AKC16: 2241 | AKD16: 278 | AKG16: 2242 | AKH16: 278 | AKK16: 2243 | AKL16: 278 | AKO16: 2244 | AKP16: 278 | AKS16: 2245 | AKT16: 278 | AKW16: 2246 | AKX16: 278 | ALA16: 2247 | ALB16: 278 | ALE16: 2248 | ALF16: 278 | ALI16: 2249 | ALJ16: 278 | ALM16: 2250 | ALN16: 278 | ALQ16: 2251 | ALR16: 278 | ALU16: 2252 | ALV16: 278 | ALY16: 2253 | ALZ16: 278 | AMC16: 2254 | AMD16: 278 | AMG16: 2255 | AMH16: 278 | AMK16: 2256 | AML16: 278 | AMO16: 2257 | AMP16: 278 | AMS16: 2258 | AMT16: 278 | AMW16: 2259 | AMX16: 278 | ANA16: 2260 | ANB16: 278 | ANE16: 2261 | ANF16: 278 | ANI16: 2262 | ANJ16: 278 | ANM16: 2263 | ANN16: 278 | ANQ16: 2264 | ANR16: 278 | ANU16: 2265 | ANV16: 278 | ANY16: 2266 | ANZ16: 278 | AOC16: 2267 | AOD16: 278 | AOG16: 2268 | AOH16: 278 | AOK16: 2269 | AOL16: 278 | AOO16: 2270 | AOP16: 278 | AOS16: 2271 | AOT16: 278 | AOW16: 2272 | AOX16: 278 | APA16: 2273 | APB16: 278 | APE16: 2274 | APF16: 278 | API16: 2275 | APJ16: 278 | APM16: 2276 | APN16: 278 | APQ16: 2277 | APR16: 278 | APU16: 2278 | APV16: 278 | APY16: 2279 | APZ16: 278 | AQC16: 2280 | AQD16: 278 | AQG16: 2281 | AQH16: 278 | AQK16: 2282 | AQL16: 278 | AQO16: 2283 | AQP16: 278 | AQS16: 2284 | AQT16: 278 | AQW16: 2285 | AQX16: 278 | ARA16: 2286 | ARB16: 278 | ARE16: 2287 | ARF16: 278 | ARI16: 2288 | ARJ16: 278 | ARM16: 2289 | ARN16: 278 | ARQ16: 2290 | ARR16: 278 | ARU16: 2291 | ARV16: 278 | ARY16: 2292 | ARZ16: 278 | ASC16: 2293 | ASD16: 278 | ASG16: 2294 | ASH16: 278 | ASK16: 2295 | ASL16: 278 | ASO16: 2296 | ASP16: 278 | ASS16: 2297 | AST16: 278 | ASW16: 2298 | ASX16: 278 | ATA16: 2299 | ATB16: 278 | ATE16: 2300 | ATF16: 278 | ATI16: 2301 | ATJ16: 278 | ATM16: 2302 | ATN16: 278 | ATQ16: 2303 | ATR16: 278 | ATU16: 2304 | ATV16: 278 | ATY16: 2305 | ATZ16: 278 | AUC16: 2306 | AUD16: 278 | AUG16: 2307 | AUH16: 278 | AUK16: 2308 | AUL16: 278 | AUO16: 2309 | AUP16: 278 | AUS16: 2310 | AUT16: 278 | AUW16: 2311 | AUX16: 278 | AVA16: 2312 | AVB16: 278 | AVE16: 2313 | AVF16: 278 | AVI16: 2314 | AVJ16: 278 | AVM16: 2315 | AVN16: 278 | AVQ16: 2316 | AVR16: 278 | AVU16: 2317 | AVV16: 278 | AVY16: 2318 | AVZ16: 278 | AWC16: 2319 | AWD16: 278 | AWG16: 2320 | AWH16: 278 | AWK16: 2321 | AWL16: 278 | AWO16: 2322 | AWP16: 278 | AWS16: 2323 | AWT16: 278 | AWW16: 2324 | AWX16: 278 | AXA16: 2325 | AXB16: 278 | AXE16: 2326 | AXF16: 278 | AXI16: 2327 | AXJ16: 278 | AXM16: 2328 | AXN16: 278 | AXQ16: 2329 | AXR16: 278 | AXU16: 2330 | AXV16: 278 | AXY16: 2331 | AXZ16: 278 | AYC16: 2332 | AYD16: 278 | AYG16: 2333 | AYH16: 278 | AYK16: 2334 | AYL16: 278 | AYO16: 2335 | AYP16: 278 | AYS16: 2336 | AYT16: 278 | AYW16: 2337 | AYX16: 278 | AZA16: 2338 | AZB16: 278 | AZE16: 2339 | AZF16: 278 | AZI16: 2340 | AZJ16: 278 | AZM16: 2341 | AZN16: 278 | AZQ16: 2342 | AZR16: 278 | AZU16: 2343 | AZV16: 278 | AZY16: 2344 | AZZ16: 278 | BAC16: 2345 | BAD16: 278 | BAG16: 2346 | BAH16: 278 | BAK16: 2347 | BAL16: 278 | BAO16: 2348 | BAP16: 278 | BAS16: 2349 | BAT16: 278 | BAW16: 2350 | BAX16: 278 | BBA16: 2351 | BBB16: 278 | BBE16: 2352 | BBF16: 278 | BBI16: 2353 | BBJ16: 278 | BBM16: 2354 | BBN16: 278 | BBQ16: 2355 | BBR16: 278 | BBU16: 2356 | BBV16: 278 | BBY16: 2357 | BBZ16: 278 | BCC16: 2358 | BCD16: 278 | BCG16: 2359 | BCH16: 278 | BCK16: 2360 | BCL16: 278 | BCO16: 2361 | BCP16: 278 | BCS16: 2362 | BCT16: 278 | BCW16: 2363 | BCX16: 278 | BDA16: 2364 | BDB16: 278 | BDE16: 2365 | BDF16: 278 | BDI16: 2366 | BDJ16: 278 | BDM16: 2367 | BDN16: 278 | BDQ16: 2368 | BDR16: 278 | BDU16: 2369 | BDV16: 278 | BDY16: 2370 | BDZ16: 278 | BEC16: 2371 | BED16: 278 | BEG16: 2372 | BEH16: 278 | BEK16: 2373 | BEL16: 278 | BEO16: 2374 | BEP16: 278 | BES16: 2375 | BET16: 278 | BEW16: 2376 | BEX16: 278 | BFA16: 2377 | BFB16: 278 | BFE16: 2378 | BFF16: 278 | BFI16: 2379 | BFJ16: 278 | BFM16: 2380 | BFN16: 278 | BFQ16: 2381 | BFR16: 278 | BFU16: 2382 | BFV16: 278 | BFY16: 2383 | BFZ16: 278 | BGC16: 2384 | BGD16: 278 | BGG16: 2385 | BGH16: 278 | BGK16: 2386 | BGL16: 278 | BGO16: 2387 | BGP16: 278 | BGS16: 2388 | BGT16: 278 | BGW16: 2389 | BGX16: 278 | BHA16: 2390 | BHB16: 278 | BHE16: 2391 | BHF16: 278 | BHI16: 2392 | BHJ16: 278 | BHM16: 2393 | BHN16: 278 | BHQ16: 2394 | BHR16: 278 | BHU16: 2395 | BHV16: 278 | BHY16: 2396 | BHZ16: 278 | BIC16: 2397 | BID16: 278 | BIG16: 2398 | BIH16: 278 | BIK16: 2399 | BIL16: 278
A17: 2000 | B17: 279 | E17: 2001 | F17: 279 | I17: 2002 | J17: 279 | M17: 2003 | N17: 279 | Q17: 2004 | R17: 279 | U17: 2005 | V17: 279 | Y17: 2006 | Z17: 279 | AC17: 2007 | AD17: 279 | AG17: 2008 | AH17: 279 | AK17: 2009 | AL17: 279 | AO17: 2010 | AP17: 279 | AS17: 2011 | AT17: 279 | AW17: 2012 | AX17: 279 | BA17: 2013 | BB17: 279 | BE17: 2014 | BF17: 279 | BI17: 2015 | BJ17: 279 | BM17: 2016 | BN17: 279 | BQ17: 2017 | BR17: 279 | BU17: 2018 | BV17: 279 | BY17: 2019 | BZ17: 279 | CC17: 2020 | CD17: 279 | CG17: 2021 | CH17: 279 | CK17: 2022 | CL17: 279 | CO17: 2023 | CP17: 279 | CS17: 2024 | CT17: 279 | CW17: 2025 | CX17: 279 | DA17: 2026 | DB17: 279 | DE17: 2027 | DF17: 279 | DI17: 2028 | DJ17: 279 | DM17: 2029 | DN17: 279 | DQ17: 2030 | DR17: 279 | DU17: 2031 | DV17: 279 | DY17: 2032 | DZ17: 279 | EC17: 2033 | ED17: 279 | EG17: 2034 | EH17: 279 | EK17: 2035 | EL17: 279 | EO17: 2036 | EP17: 279 | ES17: 2037 | ET17: 279 | EW17: 2038 | EX17: 279 | FA17: 2039 | FB17: 279 | FE17: 2040 | FF17: 279 | FI17: 2041 | FJ17: 279 | FM17: 2042 | FN17: 279 | FQ17: 2043 | FR17: 279 | FU17: 2044 | FV17: 279 | FY17: 2045 | FZ17: 279 | GC17: 2046 | GD17: 279 | GG17: 2047 | GH17: 279 | GK17: 2048 | GL17: 279 | GO17: 2049 | GP17: 279 | GS17: 2050 | GT17: 279 | GW17: 2051 | GX17: 279 | HA17: 2052 | HB17: 279 | HE17: 2053 | HF17: 279 | HI17: 2054 | HJ17: 279 | HM17: 2055 | HN17: 279 | HQ17: 2056 | HR17: 279 | HU17: 2057 | HV17: 279 | HY17: 2058 | HZ17: 279 | IC17: 2059 | ID17: 279 | IG17: 2060 | IH17: 279 | IK17: 2061 | IL17: 279 | IO17: 2062 | IP17: 279 | IS17: 2063 | IT17: 279 | IW17: 2064 | IX17: 279 | JA17: 2065 | JB17: 279 | JE17: 2066 | JF17: 279 | JI17: 2067 | JJ17: 279 | JM17: 2068 | JN17: 279 | JQ17: 2069 | JR17: 279 | JU17: 2070 | JV17: 279 | JY17: 2071 | JZ17: 279 | KC17: 2072 | KD17: 279 | KG17: 2073 | KH17: 279 | KK17: 2074 | KL17: 279 | KO17: 2075 | KP17: 279 | KS17: 2076 | KT17: 279 | KW17: 2077 | KX17: 279 | LA17: 2078 | LB17: 279 | LE17: 2079 | LF17: 279 | LI17: 2080 | LJ17: 279 | LM17: 2081 | LN17: 279 | LQ17: 2082 | LR17: 279 | LU17: 2083 | LV17: 279 | LY17: 2084 | LZ17: 279 | MC17: 2085 | MD17: 279 | MG17: 2086 | MH17: 279 | MK17: 2087 | ML17: 279 | MO17: 2088 | MP17: 279 | MS17: 2089 | MT17: 279 | MW17: 2090 | MX17: 279 | NA17: 2091 | NB17: 279 | NE17: 2092 | NF17: 279 | NI17: 2093 | NJ17: 279 | NM17: 2094 | NN17: 279 | NQ17: 2095 | NR17: 279 | NU17: 2096 | NV17: 279 | NY17: 2097 | NZ17: 279 | OC17: 2098 | OD17: 279 | OG17: 2099 | OH17: 279 | OK17: 2100 | OL17: 279 | OO17: 2101 | OP17: 279 | OS17: 2102 | OT17: 279 | OW17: 2103 | OX17: 279 | PA17: 2104 | PB17: 279 | PE17: 2105 | PF17: 279 | PI17: 2106 | PJ17: 279 | PM17: 2107 | PN17: 279 | PQ17: 2108 | PR17: 279 | PU17: 2109 | PV17: 279 | PY17: 2110 | PZ17: 279 | QC17: 2111 | QD17: 279 | QG17: 2112 | QH17: 279 | QK17: 2113 | QL17: 279 | QO17: 2114 | QP17: 279 | QS17: 2115 | QT17: 279 | QW17: 2116 | QX17: 279 | RA17: 2117 | RB17: 279 | RE17: 2118 | RF17: 279 | RI17: 2119 | RJ17: 279 | RM17: 2120 | RN17: 279 | RQ17: 2121 | RR17: 279 | RU17: 2122 | RV17: 279 | RY17: 2123 | RZ17: 279 | SC17: 2124 | SD17: 279 | SG17: 2125 | SH17: 279 | SK17: 2126 | SL17: 279 | SO17: 2127 | SP17: 279 | SS17: 2128 | ST17: 279 | SW17: 2129 | SX17: 279 | TA17: 2130 | TB17: 279 | TE17: 2131 | TF17: 279 | TI17: 2132 | TJ17: 279 | TM17: 2133 | TN17: 279 | TQ17: 2134 | TR17: 279 | TU17: 2135 | TV17: 279 | TY17: 2136 | TZ17: 279 | UC17: 2137 | UD17: 279 | UG17: 2138 | UH17: 279 | UK17: 2139 | UL17: 279 | UO17: 2140 | UP17: 279 | US17: 2141 | UT17: 279 | UW17: 2142 | UX17: 279 | VA17: 2143 | VB17: 279 | VE17: 2144 | VF17: 279 | VI17: 2145 | VJ17: 279 | VM17: 2146 | VN17: 279 | VQ17: 2147 | VR17: 279 | VU17: 2148 | VV17: 279 | VY17: 2149 | VZ17: 279 | WC17: 2150 | WD17: 279 | WG17: 2151 | WH17: 279 | WK17: 2152 | WL17: 279 | WO17: 2153 | WP17: 279 | WS17: 2154 | WT17: 279 | WW17: 2155 | WX17: 279 | XA17: 2156 | XB17: 279 | XE17: 2157 | XF17: 279 | XI17: 2158 | XJ17: 279 | XM17: 2159 | XN17: 279 | XQ17: 2160 | XR17: 279 | XU17: 2161 | XV17: 279 | XY17: 2162 | XZ17: 279 | YC17: 2163 | YD17: 279 | YG17: 2164 | YH17: 279 | YK17: 2165 | YL17: 279 | YO17: 2166 | YP17: 279 | YS17: 2167 | YT17: 279 | YW17: 2168 | YX17: 279 | ZA17: 2169 | ZB17: 279 | ZE17: 2170 | ZF17: 279 | ZI17: 2171 | ZJ17: 279 | ZM17: 2172 | ZN17: 279 | ZQ17: 2173 | ZR17: 279 | ZU17: 2174 | ZV17: 279 | ZY17: 2175 | ZZ17: 279 | AAC17: 2176 | AAD17: 279 | AAG17: 2177 | AAH17: 279 | AAK17: 2178 | AAL17: 279 | AAO17: 2179 | AAP17: 279 | AAS17: 2180 | AAT17: 279 | AAW17: 2181 | AAX17: 279 | ABA17: 2182 | ABB17: 279 | ABE17: 2183 | ABF17: 279 | ABI17: 2184 | ABJ17: 279 | ABM17: 2185 | ABN17: 279 | ABQ17: 2186 | ABR17: 279 | ABU17: 2187 | ABV17: 279 | ABY17: 2188 | ABZ17: 279 | ACC17: 2189 | ACD17: 279 | ACG17: 2190 | ACH17: 279 | ACK17: 2191 | ACL17: 279 | ACO17: 2192 | ACP17: 279 | ACS17: 2193 | ACT17: 279 | ACW17: 2194 | ACX17: 279 | ADA17: 2195 | ADB17: 279 | ADE17: 2196 | ADF17: 279 | ADI17: 2197 | ADJ17: 279 | ADM17: 2198 | ADN17: 279 | ADQ17: 2199 | ADR17: 279 | ADU17: 2200 | ADV17: 279 | ADY17: 2201 | ADZ17: 279 | AEC17: 2202 | AED17: 279 | AEG17: 2203 | AEH17: 279 | AEK17: 2204 | AEL17: 279 | AEO17: 2205 | AEP17: 279 | AES17: 2206 | AET17: 279 | AEW17: 2207 | AEX17: 279 | AFA17: 2208 | AFB17: 279 | AFE17: 2209 | AFF17: 279 | AFI17: 2210 | AFJ17: 279 | AFM17: 2211 | AFN17: 279 | AFQ17: 2212 | AFR17: 279 | AFU17: 2213 | AFV17: 279 | AFY17: 2214 | AFZ17: 279 | AGC17: 2215 | AGD17: 279 | AGG17: 2216 | AGH17: 279 | AGK17: 2217 | AGL17: 279 | AGO17: 2218 | AGP17: 279 | AGS17: 2219 | AGT17: 279 | AGW17: 2220 | AGX17: 279 | AHA17: 2221 | AHB17: 279 | AHE17: 2222 | AHF17: 279 | AHI17: 2223 | AHJ17: 279 | AHM17: 2224 | AHN17: 279 | AHQ17: 2225 | AHR17: 279 | AHU17: 2226 | AHV17: 279 | AHY17: 2227 | AHZ17: 279 | AIC17: 2228 | AID17: 279 | AIG17: 2229 | AIH17: 279 | AIK17: 2230 | AIL17: 279 | AIO17: 2231 | AIP17: 279 | AIS17: 2232 | AIT17: 279 | AIW17: 2233 | AIX17: 279 | AJA17: 2234 | AJB17: 279 | AJE17: 2235 | AJF17: 279 | AJI17: 2236 | AJJ17: 279 | AJM17: 2237 | AJN17: 279 | AJQ17: 2238 | AJR17: 279 | AJU17: 2239 | AJV17: 279 | AJY17: 2240 | AJZ17: 279 | AKC17: 2241 | AKD17: 279 | AKG17: 2242 | AKH17: 279 | AKK17: 2243 | AKL17: 279 | AKO17: 2244 | AKP17: 279 | AKS17: 2245 | AKT17: 279 | AKW17: 2246 | AKX17: 279 | ALA17: 2247 | ALB17: 279 | ALE17: 2248 | ALF17: 279 | ALI17: 2249 | ALJ17: 279 | ALM17: 2250 | ALN17: 279 | ALQ17: 2251 | ALR17: 279 | ALU17: 2252 | ALV17: 279 | ALY17: 2253 | ALZ17: 279 | AMC17: 2254 | AMD17: 279 | AMG17: 2255 | AMH17: 279 | AMK17: 2256 | AML17: 279 | AMO17: 2257 | AMP17: 279 | AMS17: 2258 | AMT17: 279 | AMW17: 2259 | AMX17: 279 | ANA17: 2260 | ANB17: 279 | ANE17: 2261 | ANF17: 279 | ANI17: 2262 | ANJ17: 279 | ANM17: 2263 | ANN17: 279 | ANQ17: 2264 | ANR17: 279 | ANU17: 2265 | ANV17: 279 | ANY17: 2266 | ANZ17: 279 | AOC17: 2267 | AOD17: 279 | AOG17: 2268 | AOH17: 279 | AOK17: 2269 | AOL17: 279 | AOO17: 2270 | AOP17: 279 | AOS17: 2271 | AOT17: 279 | AOW17: 2272 | AOX17: 279 | APA17: 2273 | APB17: 279 | APE17: 2274 | APF17: 279 | API17: 2275 | APJ17: 279 | APM17: 2276 | APN17: 279 | APQ17: 2277 | APR17: 279 | APU17: 2278 | APV17: 279 | APY17: 2279 | APZ17: 279 | AQC17: 2280 | AQD17: 279 | AQG17: 2281 | AQH17: 279 | AQK17: 2282 | AQL17: 279 | AQO17: 2283 | AQP17: 279 | AQS17: 2284 | AQT17: 279 | AQW17: 2285 | AQX17: 279 | ARA17: 2286 | ARB17: 279 | ARE17: 2287 | ARF17: 279 | ARI17: 2288 | ARJ17: 279 | ARM17: 2289 | ARN17: 279 | ARQ17: 2290 | ARR17: 279 | ARU17: 2291 | ARV17: 279 | ARY17: 2292 | ARZ17: 279 | ASC17: 2293 | ASD17: 279 | ASG17: 2294 | ASH17: 279 | ASK17: 2295 | ASL17: 279 | ASO17: 2296 | ASP17: 279 | ASS17: 2297 | AST17: 279 | ASW17: 2298 | ASX17: 279 | ATA17: 2299 | ATB17: 279 | ATE17: 2300 | ATF17: 279 | ATI17: 2301 | ATJ17: 279 | ATM17: 2302 | ATN17: 279 | ATQ17: 2303 | ATR17: 279 | ATU17: 2304 | ATV17: 279 | ATY17: 2305 | ATZ17: 279 | AUC17: 2306 | AUD17: 279 | AUG17: 2307 | AUH17: 279 | AUK17: 2308 | AUL17: 279 | AUO17: 2309 | AUP17: 279 | AUS17: 2310 | AUT17: 279 | AUW17: 2311 | AUX17: 279 | AVA17: 2312 | AVB17: 279 | AVE17: 2313 | AVF17: 279 | AVI17: 2314 | AVJ17: 279 | AVM17: 2315 | AVN17: 279 | AVQ17: 2316 | AVR17: 279 | AVU17: 2317 | AVV17: 279 | AVY17: 2318 | AVZ17: 279 | AWC17: 2319 | AWD17: 279 | AWG17: 2320 | AWH17: 279 | AWK17: 2321 | AWL17: 279 | AWO17: 2322 | AWP17: 279 | AWS17: 2323 | AWT17: 279 | AWW17: 2324 | AWX17: 279 | AXA17: 2325 | AXB17: 279 | AXE17: 2326 | AXF17: 279 | AXI17: 2327 | AXJ17: 279 | AXM17: 2328 | AXN17: 279 | AXQ17: 2329 | AXR17: 279 | AXU17: 2330 | AXV17: 279 | AXY17: 2331 | AXZ17: 279 | AYC17: 2332 | AYD17: 279 | AYG17: 2333 | AYH17: 279 | AYK17: 2334 | AYL17: 279 | AYO17: 2335 | AYP17: 279 | AYS17: 2336 | AYT17: 279 | AYW17: 2337 | AYX17: 279 | AZA17: 2338 | AZB17: 279 | AZE17: 2339 | AZF17: 279 | AZI17: 2340 | AZJ17: 279 | AZM17: 2341 | AZN17: 279 | AZQ17: 2342 | AZR17: 279 | AZU17: 2343 | AZV17: 279 | AZY17: 2344 | AZZ17: 279 | BAC17: 2345 | BAD17: 279 | BAG17: 2346 | BAH17: 279 | BAK17: 2347 | BAL17: 279 | BAO17: 2348 | BAP17: 279 | BAS17: 2349 | BAT17: 279 | BAW17: 2350 | BAX17: 279 | BBA17: 2351 | BBB17: 279 | BBE17: 2352 | BBF17: 279 | BBI17: 2353 | BBJ17: 279 | BBM17: 2354 | BBN17: 279 | BBQ17: 2355 | BBR17: 279 | BBU17: 2356 | BBV17: 279 | BBY17: 2357 | BBZ17: 279 | BCC17: 2358 | BCD17: 279 | BCG17: 2359 | BCH17: 279 | BCK17: 2360 | BCL17: 279 | BCO17: 2361 | BCP17: 279 | BCS17: 2362 | BCT17: 279 | BCW17: 2363 | BCX17: 279 | BDA17: 2364 | BDB17: 279 | BDE17: 2365 | BDF17: 279 | BDI17: 2366 | BDJ17: 279 | BDM17: 2367 | BDN17: 279 | BDQ17: 2368 | BDR17: 279 | BDU17: 2369 | BDV17: 279 | BDY17: 2370 | BDZ17: 279 | BEC17: 2371 | BED17: 279 | BEG17: 2372 | BEH17: 279 | BEK17: 2373 | BEL17: 279 | BEO17: 2374 | BEP17: 279 | BES17: 2375 | BET17: 279 | BEW17: 2376 | BEX17: 279 | BFA17: 2377 | BFB17: 279 | BFE17: 2378 | BFF17: 279 | BFI17: 2379 | BFJ17: 279 | BFM17: 2380 | BFN17: 279 | BFQ17: 2381 | BFR17: 279 | BFU17: 2382 | BFV17: 279 | BFY17: 2383 | BFZ17: 279 | BGC17: 2384 | BGD17: 279 | BGG17: 2385 | BGH17: 279 | BGK17: 2386 | BGL17: 279 | BGO17: 2387 | BGP17: 279 | BGS17: 2388 | BGT17: 279 | BGW17: 2389 | BGX17: 279 | BHA17: 2390 | BHB17: 279 | BHE17: 2391 | BHF17: 279 | BHI17: 2392 | BHJ17: 279 | BHM17: 2393 | BHN17: 279 | BHQ17: 2394 | BHR17: 279 | BHU17: 2395 | BHV17: 279 | BHY17: 2396 | BHZ17: 279 | BIC17: 2397 | BID17: 279 | BIG17: 2398 | BIH17: 279 | BIK17: 2399 | BIL17: 279
A18: 2000 | B18: 280 | E18: 2001 | F18: 280 | I18: 2002 | J18: 280 | M18: 2003 | N18: 280 | Q18: 2004 | R18: 280 | U18: 2005 | V18: 280 | Y18: 2006 | Z18: 280 | AC18: 2007 | AD18: 280 | AG18: 2008 | AH18: 280 | AK18: 2009 | AL18: 280 | AO18: 2010 | AP18: 280 | AS18: 2011 | AT18: 280 | AW18: 2012 | AX18: 280 | BA18: 2013 | BB18: 280 | BE18: 2014 | BF18: 280 | BI18: 2015 | BJ18: 280 | BM18: 2016 | BN18: 280 | BQ18: 2017 | BR18: 280 | BU18: 2018 | BV18: 280 | BY18: 2019 | BZ18: 280 | CC18: 2020 | CD18: 280 | CG18: 2021 | CH18: 280 | CK18: 2022 | CL18: 280 | CO18: 2023 | CP18: 280 | CS18: 2024 | CT18: 280 | CW18: 2025 | CX18: 280 | DA18: 2026 | DB18: 280 | DE18: 2027 | DF18: 280 | DI18: 2028 | DJ18: 280 | DM18: 2029 | DN18: 280 | DQ18: 2030 | DR18: 280 | DU18: 2031 | DV18: 280 | DY18: 2032 | DZ18: 280 | EC18: 2033 | ED18: 280 | EG18: 2034 | EH18: 280 | EK18: 2035 | EL18: 280 | EO18: 2036 | EP18: 280 | ES18: 2037 | ET18: 280 | EW18: 2038 | EX18: 280 | FA18: 2039 | FB18: 280 | FE18: 2040 | FF18: 280 | FI18: 2041 | FJ18: 280 | FM18: 2042 | FN18: 280 | FQ18: 2043 | FR18: 280 | FU18: 2044 | FV18: 280 | FY18: 2045 | FZ18: 280 | GC18: 2046 | GD18: 280 | GG18: 2047 | GH18: 280 | GK18: 2048 | GL18: 280 | GO18: 2049 | GP18: 280 | GS18: 2050 | GT18: 280 | GW18: 2051 | GX18: 280 | HA18: 2052 | HB18: 280 | HE18: 2053 | HF18: 280 | HI18: 2054 | HJ18: 280 | HM18: 2055 | HN18: 280 | HQ18: 2056 | HR18: 280 | HU18: 2057 | HV18: 280 | HY18: 2058 | HZ18: 280 | IC18: 2059 | ID18: 280 | IG18: 2060 | IH18: 280 | IK18: 2061 | IL18: 280 | IO18: 2062 | IP18: 280 | IS18: 2063 | IT18: 280 | IW18: 2064 | IX18: 280 | JA18: 2065 | JB18: 280 | JE18: 2066 | JF18: 280 | JI18: 2067 | JJ18: 280 | JM18: 2068 | JN18: 280 | JQ18: 2069 | JR18: 280 | JU18: 2070 | JV18: 280 | JY18: 2071 | JZ18: 280 | KC18: 2072 | KD18: 280 | KG18: 2073 | KH18: 280 | KK18: 2074 | KL18: 280 | KO18: 2075 | KP18: 280 | KS18: 2076 | KT18: 280 | KW18: 2077 | KX18: 280 | LA18: 2078 | LB18: 280 | LE18: 2079 | LF18: 280 | LI18: 2080 | LJ18: 280 | LM18: 2081 | LN18: 280 | LQ18: 2082 | LR18: 280 | LU18: 2083 | LV18: 280 | LY18: 2084 | LZ18: 280 | MC18: 2085 | MD18: 280 | MG18: 2086 | MH18: 280 | MK18: 2087 | ML18: 280 | MO18: 2088 | MP18: 280 | MS18: 2089 | MT18: 280 | MW18: 2090 | MX18: 280 | NA18: 2091 | NB18: 280 | NE18: 2092 | NF18: 280 | NI18: 2093 | NJ18: 280 | NM18: 2094 | NN18: 280 | NQ18: 2095 | NR18: 280 | NU18: 2096 | NV18: 280 | NY18: 2097 | NZ18: 280 | OC18: 2098 | OD18: 280 | OG18: 2099 | OH18: 280 | OK18: 2100 | OL18: 280 | OO18: 2101 | OP18: 280 | OS18: 2102 | OT18: 280 | OW18: 2103 | OX18: 280 | PA18: 2104 | PB18: 280 | PE18: 2105 | PF18: 280 | PI18: 2106 | PJ18: 280 | PM18: 2107 | PN18: 280 | PQ18: 2108 | PR18: 280 | PU18: 2109 | PV18: 280 | PY18: 2110 | PZ18: 280 | QC18: 2111 | QD18: 280 | QG18: 2112 | QH18: 280 | QK18: 2113 | QL18: 280 | QO18: 2114 | QP18: 280 | QS18: 2115 | QT18: 280 | QW18: 2116 | QX18: 280 | RA18: 2117 | RB18: 280 | RE18: 2118 | RF18: 280 | RI18: 2119 | RJ18: 280 | RM18: 2120 | RN18: 280 | RQ18: 2121 | RR18: 280 | RU18: 2122 | RV18: 280 | RY18: 2123 | RZ18: 280 | SC18: 2124 | SD18: 280 | SG18: 2125 | SH18: 280 | SK18: 2126 | SL18: 280 | SO18: 2127 | SP18: 280 | SS18: 2128 | ST18: 280 | SW18: 2129 | SX18: 280 | TA18: 2130 | TB18: 280 | TE18: 2131 | TF18: 280 | TI18: 2132 | TJ18: 280 | TM18: 2133 | TN18: 280 | TQ18: 2134 | TR18: 280 | TU18: 2135 | TV18: 280 | TY18: 2136 | TZ18: 280 | UC18: 2137 | UD18: 280 | UG18: 2138 | UH18: 280 | UK18: 2139 | UL18: 280 | UO18: 2140 | UP18: 280 | US18: 2141 | UT18: 280 | UW18: 2142 | UX18: 280 | VA18: 2143 | VB18: 280 | VE18: 2144 | VF18: 280 | VI18: 2145 | VJ18: 280 | VM18: 2146 | VN18: 280 | VQ18: 2147 | VR18: 280 | VU18: 2148 | VV18: 280 | VY18: 2149 | VZ18: 280 | WC18: 2150 | WD18: 280 | WG18: 2151 | WH18: 280 | WK18: 2152 | WL18: 280 | WO18: 2153 | WP18: 280 | WS18: 2154 | WT18: 280 | WW18: 2155 | WX18: 280 | XA18: 2156 | XB18: 280 | XE18: 2157 | XF18: 280 | XI18: 2158 | XJ18: 280 | XM18: 2159 | XN18: 280 | XQ18: 2160 | XR18: 280 | XU18: 2161 | XV18: 280 | XY18: 2162 | XZ18: 280 | YC18: 2163 | YD18: 280 | YG18: 2164 | YH18: 280 | YK18: 2165 | YL18: 280 | YO18: 2166 | YP18: 280 | YS18: 2167 | YT18: 280 | YW18: 2168 | YX18: 280 | ZA18: 2169 | ZB18: 280 | ZE18: 2170 | ZF18: 280 | ZI18: 2171 | ZJ18: 280 | ZM18: 2172 | ZN18: 280 | ZQ18: 2173 | ZR18: 280 | ZU18: 2174 | ZV18: 280 | ZY18: 2175 | ZZ18: 280 | AAC18: 2176 | AAD18: 280 | AAG18: 2177 | AAH18: 280 | AAK18: 2178 | AAL18: 280 | AAO18: 2179 | AAP18: 280 | AAS18: 2180 | AAT18: 280 | AAW18: 2181 | AAX18: 280 | ABA18: 2182 | ABB18: 280 | ABE18: 2183 | ABF18: 280 | ABI18: 2184 | ABJ18: 280 | ABM18: 2185 | ABN18: 280 | ABQ18: 2186 | ABR18: 280 | ABU18: 2187 | ABV18: 280 | ABY18: 2188 | ABZ18: 280 | ACC18: 2189 | ACD18: 280 | ACG18: 2190 | ACH18: 280 | ACK18: 2191 | ACL18: 280 | ACO18: 2192 | ACP18: 280 | ACS18: 2193 | ACT18: 280 | ACW18: 2194 | ACX18: 280 | ADA18: 2195 | ADB18: 280 | ADE18: 2196 | ADF18: 280 | ADI18: 2197 | ADJ18: 280 | ADM18: 2198 | ADN18: 280 | ADQ18: 2199 | ADR18: 280 | ADU18: 2200 | ADV18: 280 | ADY18: 2201 | ADZ18: 280 | AEC18: 2202 | AED18: 280 | AEG18: 2203 | AEH18: 280 | AEK18: 2204 | AEL18: 280 | AEO18: 2205 | AEP18: 280 | AES18: 2206 | AET18: 280 | AEW18: 2207 | AEX18: 280 | AFA18: 2208 | AFB18: 280 | AFE18: 2209 | AFF18: 280 | AFI18: 2210 | AFJ18: 280 | AFM18: 2211 | AFN18: 280 | AFQ18: 2212 | AFR18: 280 | AFU18: 2213 | AFV18: 280 | AFY18: 2214 | AFZ18: 280 | AGC18: 2215 | AGD18: 280 | AGG18: 2216 | AGH18: 280 | AGK18: 2217 | AGL18: 280 | AGO18: 2218 | AGP18: 280 | AGS18: 2219 | AGT18: 280 | AGW18: 2220 | AGX18: 280 | AHA18: 2221 | AHB18: 280 | AHE18: 2222 | AHF18: 280 | AHI18: 2223 | AHJ18: 280 | AHM18: 2224 | AHN18: 280 | AHQ18: 2225 | AHR18: 280 | AHU18: 2226 | AHV18: 280 | AHY18: 2227 | AHZ18: 280 | AIC18: 2228 | AID18: 280 | AIG18: 2229 | AIH18: 280 | AIK18: 2230 | AIL18: 280 | AIO18: 2231 | AIP18: 280 | AIS18: 2232 | AIT18: 280 | AIW18: 2233 | AIX18: 280 | AJA18: 2234 | AJB18: 280 | AJE18: 2235 | AJF18: 280 | AJI18: 2236 | AJJ18: 280 | AJM18: 2237 | AJN18: 280 | AJQ18: 2238 | AJR18: 280 | AJU18: 2239 | AJV18: 280 | AJY18: 2240 | AJZ18: 280 | AKC18: 2241 | AKD18: 280 | AKG18: 2242 | AKH18: 280 | AKK18: 2243 | AKL18: 280 | AKO18: 2244 | AKP18: 280 | AKS18: 2245 | AKT18: 280 | AKW18: 2246 | AKX18: 280 | ALA18: 2247 | ALB18: 280 | ALE18: 2248 | ALF18: 280 | ALI18: 2249 | ALJ18: 280 | ALM18: 2250 | ALN18: 280 | ALQ18: 2251 | ALR18: 280 | ALU18: 2252 | ALV18: 280 | ALY18: 2253 | ALZ18: 280 | AMC18: 2254 | AMD18: 280 | AMG18: 2255 | AMH18: 280 | AMK18: 2256 | AML18: 280 | AMO18: 2257 | AMP18: 280 | AMS18: 2258 | AMT18: 280 | AMW18: 2259 | AMX18: 280 | ANA18: 2260 | ANB18: 280 | ANE18: 2261 | ANF18: 280 | ANI18: 2262 | ANJ18: 280 | ANM18: 2263 | ANN18: 280 | ANQ18: 2264 | ANR18: 280 | ANU18: 2265 | ANV18: 280 | ANY18: 2266 | ANZ18: 280 | AOC18: 2267 | AOD18: 280 | AOG18: 2268 | AOH18: 280 | AOK18: 2269 | AOL18: 280 | AOO18: 2270 | AOP18: 280 | AOS18: 2271 | AOT18: 280 | AOW18: 2272 | AOX18: 280 | APA18: 2273 | APB18: 280 | APE18: 2274 | APF18: 280 | API18: 2275 | APJ18: 280 | APM18: 2276 | APN18: 280 | APQ18: 2277 | APR18: 280 | APU18: 2278 | APV18: 280 | APY18: 2279 | APZ18: 280 | AQC18: 2280 | AQD18: 280 | AQG18: 2281 | AQH18: 280 | AQK18: 2282 | AQL18: 280 | AQO18: 2283 | AQP18: 280 | AQS18: 2284 | AQT18: 280 | AQW18: 2285 | AQX18: 280 | ARA18: 2286 | ARB18: 280 | ARE18: 2287 | ARF18: 280 | ARI18: 2288 | ARJ18: 280 | ARM18: 2289 | ARN18: 280 | ARQ18: 2290 | ARR18: 280 | ARU18: 2291 | ARV18: 280 | ARY18: 2292 | ARZ18: 280 | ASC18: 2293 | ASD18: 280 | ASG18: 2294 | ASH18: 280 | ASK18: 2295 | ASL18: 280 | ASO18: 2296 | ASP18: 280 | ASS18: 2297 | AST18: 280 | ASW18: 2298 | ASX18: 280 | ATA18: 2299 | ATB18: 280 | ATE18: 2300 | ATF18: 280 | ATI18: 2301 | ATJ18: 280 | ATM18: 2302 | ATN18: 280 | ATQ18: 2303 | ATR18: 280 | ATU18: 2304 | ATV18: 280 | ATY18: 2305 | ATZ18: 280 | AUC18: 2306 | AUD18: 280 | AUG18: 2307 | AUH18: 280 | AUK18: 2308 | AUL18: 280 | AUO18: 2309 | AUP18: 280 | AUS18: 2310 | AUT18: 280 | AUW18: 2311 | AUX18: 280 | AVA18: 2312 | AVB18: 280 | AVE18: 2313 | AVF18: 280 | AVI18: 2314 | AVJ18: 280 | AVM18: 2315 | AVN18: 280 | AVQ18: 2316 | AVR18: 280 | AVU18: 2317 | AVV18: 280 | AVY18: 2318 | AVZ18: 280 | AWC18: 2319 | AWD18: 280 | AWG18: 2320 | AWH18: 280 | AWK18: 2321 | AWL18: 280 | AWO18: 2322 | AWP18: 280 | AWS18: 2323 | AWT18: 280 | AWW18: 2324 | AWX18: 280 | AXA18: 2325 | AXB18: 280 | AXE18: 2326 | AXF18: 280 | AXI18: 2327 | AXJ18: 280 | AXM18: 2328 | AXN18: 280 | AXQ18: 2329 | AXR18: 280 | AXU18: 2330 | AXV18: 280 | AXY18: 2331 | AXZ18: 280 | AYC18: 2332 | AYD18: 280 | AYG18: 2333 | AYH18: 280 | AYK18: 2334 | AYL18: 280 | AYO18: 2335 | AYP18: 280 | AYS18: 2336 | AYT18: 280 | AYW18: 2337 | AYX18: 280 | AZA18: 2338 | AZB18: 280 | AZE18: 2339 | AZF18: 280 | AZI18: 2340 | AZJ18: 280 | AZM18: 2341 | AZN18: 280 | AZQ18: 2342 | AZR18: 280 | AZU18: 2343 | AZV18: 280 | AZY18: 2344 | AZZ18: 280 | BAC18: 2345 | BAD18: 280 | BAG18: 2346 | BAH18: 280 | BAK18: 2347 | BAL18: 280 | BAO18: 2348 | BAP18: 280 | BAS18: 2349 | BAT18: 280 | BAW18: 2350 | BAX18: 280 | BBA18: 2351 | BBB18: 280 | BBE18: 2352 | BBF18: 280 | BBI18: 2353 | BBJ18: 280 | BBM18: 2354 | BBN18: 280 | BBQ18: 2355 | BBR18: 280 | BBU18: 2356 | BBV18: 280 | BBY18: 2357 | BBZ18: 280 | BCC18: 2358 | BCD18: 280 | BCG18: 2359 | BCH18: 280 | BCK18: 2360 | BCL18: 280 | BCO18: 2361 | BCP18: 280 | BCS18: 2362 | BCT18: 280 | BCW18: 2363 | BCX18: 280 | BDA18: 2364 | BDB18: 280 | BDE18: 2365 | BDF18: 280 | BDI18: 2366 | BDJ18: 280 | BDM18: 2367 | BDN18: 280 | BDQ18: 2368 | BDR18: 280 | BDU18: 2369 | BDV18: 280 | BDY18: 2370 | BDZ18: 280 | BEC18: 2371 | BED18: 280 | BEG18: 2372 | BEH18: 280 | BEK18: 2373 | BEL18: 280 | BEO18: 2374 | BEP18: 280 | BES18: 2375 | BET18: 280 | BEW18: 2376 | BEX18: 280 | BFA18: 2377 | BFB18: 280 | BFE18: 2378 | BFF18: 280 | BFI18: 2379 | BFJ18: 280 | BFM18: 2380 | BFN18: 280 | BFQ18: 2381 | BFR18: 280 | BFU18: 2382 | BFV18: 280 | BFY18: 2383 | BFZ18: 280 | BGC18: 2384 | BGD18: 280 | BGG18: 2385 | BGH18: 280 | BGK18: 2386 | BGL18: 280 | BGO18: 2387 | BGP18: 280 | BGS18: 2388 | BGT18: 280 | BGW18: 2389 | BGX18: 280 | BHA18: 2390 | BHB18: 280 | BHE18: 2391 | BHF18: 280 | BHI18: 2392 | BHJ18: 280 | BHM18: 2393 | BHN18: 280 | BHQ18: 2394 | BHR18: 280 | BHU18: 2395 | BHV18: 280 | BHY18: 2396 | BHZ18: 280 | BIC18: 2397 | BID18: 280 | BIG18: 2398 | BIH18: 280 | BIK18: 2399 | BIL18: 280
A19: 2000 | B19: 281 | E19: 2001 | F19: 281 | I19: 2002 | J19: 281 | M19: 2003 | N19: 281 | Q19: 2004 | R19: 281 | U19: 2005 | V19: 281 | Y19: 2006 | Z19: 281 | AC19: 2007 | AD19: 281 | AG19: 2008 | AH19: 281 | AK19: 2009 | AL19: 281 | AO19: 2010 | AP19: 281 | AS19: 2011 | AT19: 281 | AW19: 2012 | AX19: 281 | BA19: 2013 | BB19: 281 | BE19: 2014 | BF19: 281 | BI19: 2015 | BJ19: 281 | BM19: 2016 | BN19: 281 | BQ19: 2017 | BR19: 281 | BU19: 2018 | BV19: 281 | BY19: 2019 | BZ19: 281 | CC19: 2020 | CD19: 281 | CG19: 2021 | CH19: 281 | CK19: 2022 | CL19: 281 | CO19: 2023 | CP19: 281 | CS19: 2024 | CT19: 281 | CW19: 2025 | CX19: 281 | DA19: 2026 | DB19: 281 | DE19: 2027 | DF19: 281 | DI19: 2028 | DJ19: 281 | DM19: 2029 | DN19: 281 | DQ19: 2030 | DR19: 281 | DU19: 2031 | DV19: 281 | DY19: 2032 | DZ19: 281 | EC19: 2033 | ED19: 281 | EG19: 2034 | EH19: 281 | EK19: 2035 | EL19: 281 | EO19: 2036 | EP19: 281 | ES19: 2037 | ET19: 281 | EW19: 2038 | EX19: 281 | FA19: 2039 | FB19: 281 | FE19: 2040 | FF19: 281 | FI19: 2041 | FJ19: 281 | FM19: 2042 | FN19: 281 | FQ19: 2043 | FR19: 281 | FU19: 2044 | FV19: 281 | FY19: 2045 | FZ19: 281 | GC19: 2046 | GD19: 281 | GG19: 2047 | GH19: 281 | GK19: 2048 | GL19: 281 | GO19: 2049 | GP19: 281 | GS19: 2050 | GT19: 281 | GW19: 2051 | GX19: 281 | HA19: 2052 | HB19: 281 | HE19: 2053 | HF19: 281 | HI19: 2054 | HJ19: 281 | HM19: 2055 | HN19: 281 | HQ19: 2056 | HR19: 281 | HU19: 2057 | HV19: 281 | HY19: 2058 | HZ19: 281 | IC19: 2059 | ID19: 281 | IG19: 2060 | IH19: 281 | IK19: 2061 | IL19: 281 | IO19: 2062 | IP19: 281 | IS19: 2063 | IT19: 281 | IW19: 2064 | IX19: 281 | JA19: 2065 | JB19: 281 | JE19: 2066 | JF19: 281 | JI19: 2067 | JJ19: 281 | JM19: 2068 | JN19: 281 | JQ19: 2069 | JR19: 281 | JU19: 2070 | JV19: 281 | JY19: 2071 | JZ19: 281 | KC19: 2072 | KD19: 281 | KG19: 2073 | KH19: 281 | KK19: 2074 | KL19: 281 | KO19: 2075 | KP19: 281 | KS19: 2076 | KT19: 281 | KW19: 2077 | KX19: 281 | LA19: 2078 | LB19: 281 | LE19: 2079 | LF19: 281 | LI19: 2080 | LJ19: 281 | LM19: 2081 | LN19: 281 | LQ19: 2082 | LR19: 281 | LU19: 2083 | LV19: 281 | LY19: 2084 | LZ19: 281 | MC19: 2085 | MD19: 281 | MG19: 2086 | MH19: 281 | MK19: 2087 | ML19: 281 | MO19: 2088 | MP19: 281 | MS19: 2089 | MT19: 281 | MW19: 2090 | MX19: 281 | NA19: 2091 | NB19: 281 | NE19: 2092 | NF19: 281 | NI19: 2093 | NJ19: 281 | NM19: 2094 | NN19: 281 | NQ19: 2095 | NR19: 281 | NU19: 2096 | NV19: 281 | NY19: 2097 | NZ19: 281 | OC19: 2098 | OD19: 281 | OG19: 2099 | OH19: 281 | OK19: 2100 | OL19: 281 | OO19: 2101 | OP19: 281 | OS19: 2102 | OT19: 281 | OW19: 2103 | OX19: 281 | PA19: 2104 | PB19: 281 | PE19: 2105 | PF19: 281 | PI19: 2106 | PJ19: 281 | PM19: 2107 | PN19: 281 | PQ19: 2108 | PR19: 281 | PU19: 2109 | PV19: 281 | PY19: 2110 | PZ19: 281 | QC19: 2111 | QD19: 281 | QG19: 2112 | QH19: 281 | QK19: 2113 | QL19: 281 | QO19: 2114 | QP19: 281 | QS19: 2115 | QT19: 281 | QW19: 2116 | QX19: 281 | RA19: 2117 | RB19: 281 | RE19: 2118 | RF19: 281 | RI19: 2119 | RJ19: 281 | RM19: 2120 | RN19: 281 | RQ19: 2121 | RR19: 281 | RU19: 2122 | RV19: 281 | RY19: 2123 | RZ19: 281 | SC19: 2124 | SD19: 281 | SG19: 2125 | SH19: 281 | SK19: 2126 | SL19: 281 | SO19: 2127 | SP19: 281 | SS19: 2128 | ST19: 281 | SW19: 2129 | SX19: 281 | TA19: 2130 | TB19: 281 | TE19: 2131 | TF19: 281 | TI19: 2132 | TJ19: 281 | TM19: 2133 | TN19: 281 | TQ19: 2134 | TR19: 281 | TU19: 2135 | TV19: 281 | TY19: 2136 | TZ19: 281 | UC19: 2137 | UD19: 281 | UG19: 2138 | UH19: 281 | UK19: 2139 | UL19: 281 | UO19: 2140 | UP19: 281 | US19: 2141 | UT19: 281 | UW19: 2142 | UX19: 281 | VA19: 2143 | VB19: 281 | VE19: 2144 | VF19: 281 | VI19: 2145 | VJ19: 281 | VM19: 2146 | VN19: 281 | VQ19: 2147 | VR19: 281 | VU19: 2148 | VV19: 281 | VY19: 2149 | VZ19: 281 | WC19: 2150 | WD19: 281 | WG19: 2151 | WH19: 281 | WK19: 2152 | WL19: 281 | WO19: 2153 | WP19: 281 | WS19: 2154 | WT19: 281 | WW19: 2155 | WX19: 281 | XA19: 2156 | XB19: 281 | XE19: 2157 | XF19: 281 | XI19: 2158 | XJ19: 281 | XM19: 2159 | XN19: 281 | XQ19: 2160 | XR19: 281 | XU19: 2161 | XV19: 281 | XY19: 2162 | XZ19: 281 | YC19: 2163 | YD19: 281 | YG19: 2164 | YH19: 281 | YK19: 2165 | YL19: 281 | YO19: 2166 | YP19: 281 | YS19: 2167 | YT19: 281 | YW19: 2168 | YX19: 281 | ZA19: 2169 | ZB19: 281 | ZE19: 2170 | ZF19: 281 | ZI19: 2171 | ZJ19: 281 | ZM19: 2172 | ZN19: 281 | ZQ19: 2173 | ZR19: 281 | ZU19: 2174 | ZV19: 281 | ZY19: 2175 | ZZ19: 281 | AAC19: 2176 | AAD19: 281 | AAG19: 2177 | AAH19: 281 | AAK19: 2178 | AAL19: 281 | AAO19: 2179 | AAP19: 281 | AAS19: 2180 | AAT19: 281 | AAW19: 2181 | AAX19: 281 | ABA19: 2182 | ABB19: 281 | ABE19: 2183 | ABF19: 281 | ABI19: 2184 | ABJ19: 281 | ABM19: 2185 | ABN19: 281 | ABQ19: 2186 | ABR19: 281 | ABU19: 2187 | ABV19: 281 | ABY19: 2188 | ABZ19: 281 | ACC19: 2189 | ACD19: 281 | ACG19: 2190 | ACH19: 281 | ACK19: 2191 | ACL19: 281 | ACO19: 2192 | ACP19: 281 | ACS19: 2193 | ACT19: 281 | ACW19: 2194 | ACX19: 281 | ADA19: 2195 | ADB19: 281 | ADE19: 2196 | ADF19: 281 | ADI19: 2197 | ADJ19: 281 | ADM19: 2198 | ADN19: 281 | ADQ19: 2199 | ADR19: 281 | ADU19: 2200 | ADV19: 281 | ADY19: 2201 | ADZ19: 281 | AEC19: 2202 | AED19: 281 | AEG19: 2203 | AEH19: 281 | AEK19: 2204 | AEL19: 281 | AEO19: 2205 | AEP19: 281 | AES19: 2206 | AET19: 281 | AEW19: 2207 | AEX19: 281 | AFA19: 2208 | AFB19: 281 | AFE19: 2209 | AFF19: 281 | AFI19: 2210 | AFJ19: 281 | AFM19: 2211 | AFN19: 281 | AFQ19: 2212 | AFR19: 281 | AFU19: 2213 | AFV19: 281 | AFY19: 2214 | AFZ19: 281 | AGC19: 2215 | AGD19: 281 | AGG19: 2216 | AGH19: 281 | AGK19: 2217 | AGL19: 281 | AGO19: 2218 | AGP19: 281 | AGS19: 2219 | AGT19: 281 | AGW19: 2220 | AGX19: 281 | AHA19: 2221 | AHB19: 281 | AHE19: 2222 | AHF19: 281 | AHI19: 2223 | AHJ19: 281 | AHM19: 2224 | AHN19: 281 | AHQ19: 2225 | AHR19: 281 | AHU19: 2226 | AHV19: 281 | AHY19: 2227 | AHZ19: 281 | AIC19: 2228 | AID19: 281 | AIG19: 2229 | AIH19: 281 | AIK19: 2230 | AIL19: 281 | AIO19: 2231 | AIP19: 281 | AIS19: 2232 | AIT19: 281 | AIW19: 2233 | AIX19: 281 | AJA19: 2234 | AJB19: 281 | AJE19: 2235 | AJF19: 281 | AJI19: 2236 | AJJ19: 281 | AJM19: 2237 | AJN19: 281 | AJQ19: 2238 | AJR19: 281 | AJU19: 2239 | AJV19: 281 | AJY19: 2240 | AJZ19: 281 | AKC19: 2241 | AKD19: 281 | AKG19: 2242 | AKH19: 281 | AKK19: 2243 | AKL19: 281 | AKO19: 2244 | AKP19: 281 | AKS19: 2245 | AKT19: 281 | AKW19: 2246 | AKX19: 281 | ALA19: 2247 | ALB19: 281 | ALE19: 2248 | ALF19: 281 | ALI19: 2249 | ALJ19: 281 | ALM19: 2250 | ALN19: 281 | ALQ19: 2251 | ALR19: 281 | ALU19: 2252 | ALV19: 281 | ALY19: 2253 | ALZ19: 281 | AMC19: 2254 | AMD19: 281 | AMG19: 2255 | AMH19: 281 | AMK19: 2256 | AML19: 281 | AMO19: 2257 | AMP19: 281 | AMS19: 2258 | AMT19: 281 | AMW19: 2259 | AMX19: 281 | ANA19: 2260 | ANB19: 281 | ANE19: 2261 | ANF19: 281 | ANI19: 2262 | ANJ19: 281 | ANM19: 2263 | ANN19: 281 | ANQ19: 2264 | ANR19: 281 | ANU19: 2265 | ANV19: 281 | ANY19: 2266 | ANZ19: 281 | AOC19: 2267 | AOD19: 281 | AOG19: 2268 | AOH19: 281 | AOK19: 2269 | AOL19: 281 | AOO19: 2270 | AOP19: 281 | AOS19: 2271 | AOT19: 281 | AOW19: 2272 | AOX19: 281 | APA19: 2273 | APB19: 281 | APE19: 2274 | APF19: 281 | API19: 2275 | APJ19: 281 | APM19: 2276 | APN19: 281 | APQ19: 2277 | APR19: 281 | APU19: 2278 | APV19: 281 | APY19: 2279 | APZ19: 281 | AQC19: 2280 | AQD19: 281 | AQG19: 2281 | AQH19: 281 | AQK19: 2282 | AQL19: 281 | AQO19: 2283 | AQP19: 281 | AQS19: 2284 | AQT19: 281 | AQW19: 2285 | AQX19: 281 | ARA19: 2286 | ARB19: 281 | ARE19: 2287 | ARF19: 281 | ARI19: 2288 | ARJ19: 281 | ARM19: 2289 | ARN19: 281 | ARQ19: 2290 | ARR19: 281 | ARU19: 2291 | ARV19: 281 | ARY19: 2292 | ARZ19: 281 | ASC19: 2293 | ASD19: 281 | ASG19: 2294 | ASH19: 281 | ASK19: 2295 | ASL19: 281 | ASO19: 2296 | ASP19: 281 | ASS19: 2297 | AST19: 281 | ASW19: 2298 | ASX19: 281 | ATA19: 2299 | ATB19: 281 | ATE19: 2300 | ATF19: 281 | ATI19: 2301 | ATJ19: 281 | ATM19: 2302 | ATN19: 281 | ATQ19: 2303 | ATR19: 281 | ATU19: 2304 | ATV19: 281 | ATY19: 2305 | ATZ19: 281 | AUC19: 2306 | AUD19: 281 | AUG19: 2307 | AUH19: 281 | AUK19: 2308 | AUL19: 281 | AUO19: 2309 | AUP19: 281 | AUS19: 2310 | AUT19: 281 | AUW19: 2311 | AUX19: 281 | AVA19: 2312 | AVB19: 281 | AVE19: 2313 | AVF19: 281 | AVI19: 2314 | AVJ19: 281 | AVM19: 2315 | AVN19: 281 | AVQ19: 2316 | AVR19: 281 | AVU19: 2317 | AVV19: 281 | AVY19: 2318 | AVZ19: 281 | AWC19: 2319 | AWD19: 281 | AWG19: 2320 | AWH19: 281 | AWK19: 2321 | AWL19: 281 | AWO19: 2322 | AWP19: 281 | AWS19: 2323 | AWT19: 281 | AWW19: 2324 | AWX19: 281 | AXA19: 2325 | AXB19: 281 | AXE19: 2326 | AXF19: 281 | AXI19: 2327 | AXJ19: 281 | AXM19: 2328 | AXN19: 281 | AXQ19: 2329 | AXR19: 281 | AXU19: 2330 | AXV19: 281 | AXY19: 2331 | AXZ19: 281 | AYC19: 2332 | AYD19: 281 | AYG19: 2333 | AYH19: 281 | AYK19: 2334 | AYL19: 281 | AYO19: 2335 | AYP19: 281 | AYS19: 2336 | AYT19: 281 | AYW19: 2337 | AYX19: 281 | AZA19: 2338 | AZB19: 281 | AZE19: 2339 | AZF19: 281 | AZI19: 2340 | AZJ19: 281 | AZM19: 2341 | AZN19: 281 | AZQ19: 2342 | AZR19: 281 | AZU19: 2343 | AZV19: 281 | AZY19: 2344 | AZZ19: 281 | BAC19: 2345 | BAD19: 281 | BAG19: 2346 | BAH19: 281 | BAK19: 2347 | BAL19: 281 | BAO19: 2348 | BAP19: 281 | BAS19: 2349 | BAT19: 281 | BAW19: 2350 | BAX19: 281 | BBA19: 2351 | BBB19: 281 | BBE19: 2352 | BBF19: 281 | BBI19: 2353 | BBJ19: 281 | BBM19: 2354 | BBN19: 281 | BBQ19: 2355 | BBR19: 281 | BBU19: 2356 | BBV19: 281 | BBY19: 2357 | BBZ19: 281 | BCC19: 2358 | BCD19: 281 | BCG19: 2359 | BCH19: 281 | BCK19: 2360 | BCL19: 281 | BCO19: 2361 | BCP19: 281 | BCS19: 2362 | BCT19: 281 | BCW19: 2363 | BCX19: 281 | BDA19: 2364 | BDB19: 281 | BDE19: 2365 | BDF19: 281 | BDI19: 2366 | BDJ19: 281 | BDM19: 2367 | BDN19: 281 | BDQ19: 2368 | BDR19: 281 | BDU19: 2369 | BDV19: 281 | BDY19: 2370 | BDZ19: 281 | BEC19: 2371 | BED19: 281 | BEG19: 2372 | BEH19: 281 | BEK19: 2373 | BEL19: 281 | BEO19: 2374 | BEP19: 281 | BES19: 2375 | BET19: 281 | BEW19: 2376 | BEX19: 281 | BFA19: 2377 | BFB19: 281 | BFE19: 2378 | BFF19: 281 | BFI19: 2379 | BFJ19: 281 | BFM19: 2380 | BFN19: 281 | BFQ19: 2381 | BFR19: 281 | BFU19: 2382 | BFV19: 281 | BFY19: 2383 | BFZ19: 281 | BGC19: 2384 | BGD19: 281 | BGG19: 2385 | BGH19: 281 | BGK19: 2386 | BGL19: 281 | BGO19: 2387 | BGP19: 281 | BGS19: 2388 | BGT19: 281 | BGW19: 2389 | BGX19: 281 | BHA19: 2390 | BHB19: 281 | BHE19: 2391 | BHF19: 281 | BHI19: 2392 | BHJ19: 281 | BHM19: 2393 | BHN19: 281 | BHQ19: 2394 | BHR19: 281 | BHU19: 2395 | BHV19: 281 | BHY19: 2396 | BHZ19: 281 | BIC19: 2397 | BID19: 281 | BIG19: 2398 | BIH19: 281 | BIK19: 2399 | BIL19: 281
A20: 2000 | B20: 282 | E20: 2001 | F20: 282 | I20: 2002 | J20: 282 | M20: 2003 | N20: 282 | Q20: 2004 | R20: 282 | U20: 2005 | V20: 282 | Y20: 2006 | Z20: 282 | AC20: 2007 | AD20: 282 | AG20: 2008 | AH20: 282 | AK20: 2009 | AL20: 282 | AO20: 2010 | AP20: 282 | AS20: 2011 | AT20: 282 | AW20: 2012 | AX20: 282 | BA20: 2013 | BB20: 282 | BE20: 2014 | BF20: 282 | BI20: 2015 | BJ20: 282 | BM20: 2016 | BN20: 282 | BQ20: 2017 | BR20: 282 | BU20: 2018 | BV20: 282 | BY20: 2019 | BZ20: 282 | CC20: 2020 | CD20: 282 | CG20: 2021 | CH20: 282 | CK20: 2022 | CL20: 282 | CO20: 2023 | CP20: 282 | CS20: 2024 | CT20: 282 | CW20: 2025 | CX20: 282 | DA20: 2026 | DB20: 282 | DE20: 2027 | DF20: 282 | DI20: 2028 | DJ20: 282 | DM20: 2029 | DN20: 282 | DQ20: 2030 | DR20: 282 | DU20: 2031 | DV20: 282 | DY20: 2032 | DZ20: 282 | EC20: 2033 | ED20: 282 | EG20: 2034 | EH20: 282 | EK20: 2035 | EL20: 282 | EO20: 2036 | EP20: 282 | ES20: 2037 | ET20: 282 | EW20: 2038 | EX20: 282 | FA20: 2039 | FB20: 282 | FE20: 2040 | FF20: 282 | FI20: 2041 | FJ20: 282 | FM20: 2042 | FN20: 282 | FQ20: 2043 | FR20: 282 | FU20: 2044 | FV20: 282 | FY20: 2045 | FZ20: 282 | GC20: 2046 | GD20: 282 | GG20: 2047 | GH20: 282 | GK20: 2048 | GL20: 282 | GO20: 2049 | GP20: 282 | GS20: 2050 | GT20: 282 | GW20: 2051 | GX20: 282 | HA20: 2052 | HB20: 282 | HE20: 2053 | HF20: 282 | HI20: 2054 | HJ20: 282 | HM20: 2055 | HN20: 282 | HQ20: 2056 | HR20: 282 | HU20: 2057 | HV20: 282 | HY20: 2058 | HZ20: 282 | IC20: 2059 | ID20: 282 | IG20: 2060 | IH20: 282 | IK20: 2061 | IL20: 282 | IO20: 2062 | IP20: 282 | IS20: 2063 | IT20: 282 | IW20: 2064 | IX20: 282 | JA20: 2065 | JB20: 282 | JE20: 2066 | JF20: 282 | JI20: 2067 | JJ20: 282 | JM20: 2068 | JN20: 282 | JQ20: 2069 | JR20: 282 | JU20: 2070 | JV20: 282 | JY20: 2071 | JZ20: 282 | KC20: 2072 | KD20: 282 | KG20: 2073 | KH20: 282 | KK20: 2074 | KL20: 282 | KO20: 2075 | KP20: 282 | KS20: 2076 | KT20: 282 | KW20: 2077 | KX20: 282 | LA20: 2078 | LB20: 282 | LE20: 2079 | LF20: 282 | LI20: 2080 | LJ20: 282 | LM20: 2081 | LN20: 282 | LQ20: 2082 | LR20: 282 | LU20: 2083 | LV20: 282 | LY20: 2084 | LZ20: 282 | MC20: 2085 | MD20: 282 | MG20: 2086 | MH20: 282 | MK20: 2087 | ML20: 282 | MO20: 2088 | MP20: 282 | MS20: 2089 | MT20: 282 | MW20: 2090 | MX20: 282 | NA20: 2091 | NB20: 282 | NE20: 2092 | NF20: 282 | NI20: 2093 | NJ20: 282 | NM20: 2094 | NN20: 282 | NQ20: 2095 | NR20: 282 | NU20: 2096 | NV20: 282 | NY20: 2097 | NZ20: 282 | OC20: 2098 | OD20: 282 | OG20: 2099 | OH20: 282 | OK20: 2100 | OL20: 282 | OO20: 2101 | OP20: 282 | OS20: 2102 | OT20: 282 | OW20: 2103 | OX20: 282 | PA20: 2104 | PB20: 282 | PE20: 2105 | PF20: 282 | PI20: 2106 | PJ20: 282 | PM20: 2107 | PN20: 282 | PQ20: 2108 | PR20: 282 | PU20: 2109 | PV20: 282 | PY20: 2110 | PZ20: 282 | QC20: 2111 | QD20: 282 | QG20: 2112 | QH20: 282 | QK20: 2113 | QL20: 282 | QO20: 2114 | QP20: 282 | QS20: 2115 | QT20: 282 | QW20: 2116 | QX20: 282 | RA20: 2117 | RB20: 282 | RE20: 2118 | RF20: 282 | RI20: 2119 | RJ20: 282 | RM20: 2120 | RN20: 282 | RQ20: 2121 | RR20: 282 | RU20: 2122 | RV20: 282 | RY20: 2123 | RZ20: 282 | SC20: 2124 | SD20: 282 | SG20: 2125 | SH20: 282 | SK20: 2126 | SL20: 282 | SO20: 2127 | SP20: 282 | SS20: 2128 | ST20: 282 | SW20: 2129 | SX20: 282 | TA20: 2130 | TB20: 282 | TE20: 2131 | TF20: 282 | TI20: 2132 | TJ20: 282 | TM20: 2133 | TN20: 282 | TQ20: 2134 | TR20: 282 | TU20: 2135 | TV20: 282 | TY20: 2136 | TZ20: 282 | UC20: 2137 | UD20: 282 | UG20: 2138 | UH20: 282 | UK20: 2139 | UL20: 282 | UO20: 2140 | UP20: 282 | US20: 2141 | UT20: 282 | UW20: 2142 | UX20: 282 | VA20: 2143 | VB20: 282 | VE20: 2144 | VF20: 282 | VI20: 2145 | VJ20: 282 | VM20: 2146 | VN20: 282 | VQ20: 2147 | VR20: 282 | VU20: 2148 | VV20: 282 | VY20: 2149 | VZ20: 282 | WC20: 2150 | WD20: 282 | WG20: 2151 | WH20: 282 | WK20: 2152 | WL20: 282 | WO20: 2153 | WP20: 282 | WS20: 2154 | WT20: 282 | WW20: 2155 | WX20: 282 | XA20: 2156 | XB20: 282 | XE20: 2157 | XF20: 282 | XI20: 2158 | XJ20: 282 | XM20: 2159 | XN20: 282 | XQ20: 2160 | XR20: 282 | XU20: 2161 | XV20: 282 | XY20: 2162 | XZ20: 282 | YC20: 2163 | YD20: 282 | YG20: 2164 | YH20: 282 | YK20: 2165 | YL20: 282 | YO20: 2166 | YP20: 282 | YS20: 2167 | YT20: 282 | YW20: 2168 | YX20: 282 | ZA20: 2169 | ZB20: 282 | ZE20: 2170 | ZF20: 282 | ZI20: 2171 | ZJ20: 282 | ZM20: 2172 | ZN20: 282 | ZQ20: 2173 | ZR20: 282 | ZU20: 2174 | ZV20: 282 | ZY20: 2175 | ZZ20: 282 | AAC20: 2176 | AAD20: 282 | AAG20: 2177 | AAH20: 282 | AAK20: 2178 | AAL20: 282 | AAO20: 2179 | AAP20: 282 | AAS20: 2180 | AAT20: 282 | AAW20: 2181 | AAX20: 282 | ABA20: 2182 | ABB20: 282 | ABE20: 2183 | ABF20: 282 | ABI20: 2184 | ABJ20: 282 | ABM20: 2185 | ABN20: 282 | ABQ20: 2186 | ABR20: 282 | ABU20: 2187 | ABV20: 282 | ABY20: 2188 | ABZ20: 282 | ACC20: 2189 | ACD20: 282 | ACG20: 2190 | ACH20: 282 | ACK20: 2191 | ACL20: 282 | ACO20: 2192 | ACP20: 282 | ACS20: 2193 | ACT20: 282 | ACW20: 2194 | ACX20: 282 | ADA20: 2195 | ADB20: 282 | ADE20: 2196 | ADF20: 282 | ADI20: 2197 | ADJ20: 282 | ADM20: 2198 | ADN20: 282 | ADQ20: 2199 | ADR20: 282 | ADU20: 2200 | ADV20: 282 | ADY20: 2201 | ADZ20: 282 | AEC20: 2202 | AED20: 282 | AEG20: 2203 | AEH20: 282 | AEK20: 2204 | AEL20: 282 | AEO20: 2205 | AEP20: 282 | AES20: 2206 | AET20: 282 | AEW20: 2207 | AEX20: 282 | AFA20: 2208 | AFB20: 282 | AFE20: 2209 | AFF20: 282 | AFI20: 2210 | AFJ20: 282 | AFM20: 2211 | AFN20: 282 | AFQ20: 2212 | AFR20: 282 | AFU20: 2213 | AFV20: 282 | AFY20: 2214 | AFZ20: 282 | AGC20: 2215 | AGD20: 282 | AGG20: 2216 | AGH20: 282 | AGK20: 2217 | AGL20: 282 | AGO20: 2218 | AGP20: 282 | AGS20: 2219 | AGT20: 282 | AGW20: 2220 | AGX20: 282 | AHA20: 2221 | AHB20: 282 | AHE20: 2222 | AHF20: 282 | AHI20: 2223 | AHJ20: 282 | AHM20: 2224 | AHN20: 282 | AHQ20: 2225 | AHR20: 282 | AHU20: 2226 | AHV20: 282 | AHY20: 2227 | AHZ20: 282 | AIC20: 2228 | AID20: 282 | AIG20: 2229 | AIH20: 282 | AIK20: 2230 | AIL20: 282 | AIO20: 2231 | AIP20: 282 | AIS20: 2232 | AIT20: 282 | AIW20: 2233 | AIX20: 282 | AJA20: 2234 | AJB20: 282 | AJE20: 2235 | AJF20: 282 | AJI20: 2236 | AJJ20: 282 | AJM20: 2237 | AJN20: 282 | AJQ20: 2238 | AJR20: 282 | AJU20: 2239 | AJV20: 282 | AJY20: 2240 | AJZ20: 282 | AKC20: 2241 | AKD20: 282 | AKG20: 2242 | AKH20: 282 | AKK20: 2243 | AKL20: 282 | AKO20: 2244 | AKP20: 282 | AKS20: 2245 | AKT20: 282 | AKW20: 2246 | AKX20: 282 | ALA20: 2247 | ALB20: 282 | ALE20: 2248 | ALF20: 282 | ALI20: 2249 | ALJ20: 282 | ALM20: 2250 | ALN20: 282 | ALQ20: 2251 | ALR20: 282 | ALU20: 2252 | ALV20: 282 | ALY20: 2253 | ALZ20: 282 | AMC20: 2254 | AMD20: 282 | AMG20: 2255 | AMH20: 282 | AMK20: 2256 | AML20: 282 | AMO20: 2257 | AMP20: 282 | AMS20: 2258 | AMT20: 282 | AMW20: 2259 | AMX20: 282 | ANA20: 2260 | ANB20: 282 | ANE20: 2261 | ANF20: 282 | ANI20: 2262 | ANJ20: 282 | ANM20: 2263 | ANN20: 282 | ANQ20: 2264 | ANR20: 282 | ANU20: 2265 | ANV20: 282 | ANY20: 2266 | ANZ20: 282 | AOC20: 2267 | AOD20: 282 | AOG20: 2268 | AOH20: 282 | AOK20: 2269 | AOL20: 282 | AOO20: 2270 | AOP20: 282 | AOS20: 2271 | AOT20: 282 | AOW20: 2272 | AOX20: 282 | APA20: 2273 | APB20: 282 | APE20: 2274 | APF20: 282 | API20: 2275 | APJ20: 282 | APM20: 2276 | APN20: 282 | APQ20: 2277 | APR20: 282 | APU20: 2278 | APV20: 282 | APY20: 2279 | APZ20: 282 | AQC20: 2280 | AQD20: 282 | AQG20: 2281 | AQH20: 282 | AQK20: 2282 | AQL20: 282 | AQO20: 2283 | AQP20: 282 | AQS20: 2284 | AQT20: 282 | AQW20: 2285 | AQX20: 282 | ARA20: 2286 | ARB20: 282 | ARE20: 2287 | ARF20: 282 | ARI20: 2288 | ARJ20: 282 | ARM20: 2289 | ARN20: 282 | ARQ20: 2290 | ARR20: 282 | ARU20: 2291 | ARV20: 282 | ARY20: 2292 | ARZ20: 282 | ASC20: 2293 | ASD20: 282 | ASG20: 2294 | ASH20: 282 | ASK20: 2295 | ASL20: 282 | ASO20: 2296 | ASP20: 282 | ASS20: 2297 | AST20: 282 | ASW20: 2298 | ASX20: 282 | ATA20: 2299 | ATB20: 282 | ATE20: 2300 | ATF20: 282 | ATI20: 2301 | ATJ20: 282 | ATM20: 2302 | ATN20: 282 | ATQ20: 2303 | ATR20: 282 | ATU20: 2304 | ATV20: 282 | ATY20: 2305 | ATZ20: 282 | AUC20: 2306 | AUD20: 282 | AUG20: 2307 | AUH20: 282 | AUK20: 2308 | AUL20: 282 | AUO20: 2309 | AUP20: 282 | AUS20: 2310 | AUT20: 282 | AUW20: 2311 | AUX20: 282 | AVA20: 2312 | AVB20: 282 | AVE20: 2313 | AVF20: 282 | AVI20: 2314 | AVJ20: 282 | AVM20: 2315 | AVN20: 282 | AVQ20: 2316 | AVR20: 282 | AVU20: 2317 | AVV20: 282 | AVY20: 2318 | AVZ20: 282 | AWC20: 2319 | AWD20: 282 | AWG20: 2320 | AWH20: 282 | AWK20: 2321 | AWL20: 282 | AWO20: 2322 | AWP20: 282 | AWS20: 2323 | AWT20: 282 | AWW20: 2324 | AWX20: 282 | AXA20: 2325 | AXB20: 282 | AXE20: 2326 | AXF20: 282 | AXI20: 2327 | AXJ20: 282 | AXM20: 2328 | AXN20: 282 | AXQ20: 2329 | AXR20: 282 | AXU20: 2330 | AXV20: 282 | AXY20: 2331 | AXZ20: 282 | AYC20: 2332 | AYD20: 282 | AYG20: 2333 | AYH20: 282 | AYK20: 2334 | AYL20: 282 | AYO20: 2335 | AYP20: 282 | AYS20: 2336 | AYT20: 282 | AYW20: 2337 | AYX20: 282 | AZA20: 2338 | AZB20: 282 | AZE20: 2339 | AZF20: 282 | AZI20: 2340 | AZJ20: 282 | AZM20: 2341 | AZN20: 282 | AZQ20: 2342 | AZR20: 282 | AZU20: 2343 | AZV20: 282 | AZY20: 2344 | AZZ20: 282 | BAC20: 2345 | BAD20: 282 | BAG20: 2346 | BAH20: 282 | BAK20: 2347 | BAL20: 282 | BAO20: 2348 | BAP20: 282 | BAS20: 2349 | BAT20: 282 | BAW20: 2350 | BAX20: 282 | BBA20: 2351 | BBB20: 282 | BBE20: 2352 | BBF20: 282 | BBI20: 2353 | BBJ20: 282 | BBM20: 2354 | BBN20: 282 | BBQ20: 2355 | BBR20: 282 | BBU20: 2356 | BBV20: 282 | BBY20: 2357 | BBZ20: 282 | BCC20: 2358 | BCD20: 282 | BCG20: 2359 | BCH20: 282 | BCK20: 2360 | BCL20: 282 | BCO20: 2361 | BCP20: 282 | BCS20: 2362 | BCT20: 282 | BCW20: 2363 | BCX20: 282 | BDA20: 2364 | BDB20: 282 | BDE20: 2365 | BDF20: 282 | BDI20: 2366 | BDJ20: 282 | BDM20: 2367 | BDN20: 282 | BDQ20: 2368 | BDR20: 282 | BDU20: 2369 | BDV20: 282 | BDY20: 2370 | BDZ20: 282 | BEC20: 2371 | BED20: 282 | BEG20: 2372 | BEH20: 282 | BEK20: 2373 | BEL20: 282 | BEO20: 2374 | BEP20: 282 | BES20: 2375 | BET20: 282 | BEW20: 2376 | BEX20: 282 | BFA20: 2377 | BFB20: 282 | BFE20: 2378 | BFF20: 282 | BFI20: 2379 | BFJ20: 282 | BFM20: 2380 | BFN20: 282 | BFQ20: 2381 | BFR20: 282 | BFU20: 2382 | BFV20: 282 | BFY20: 2383 | BFZ20: 282 | BGC20: 2384 | BGD20: 282 | BGG20: 2385 | BGH20: 282 | BGK20: 2386 | BGL20: 282 | BGO20: 2387 | BGP20: 282 | BGS20: 2388 | BGT20: 282 | BGW20: 2389 | BGX20: 282 | BHA20: 2390 | BHB20: 282 | BHE20: 2391 | BHF20: 282 | BHI20: 2392 | BHJ20: 282 | BHM20: 2393 | BHN20: 282 | BHQ20: 2394 | BHR20: 282 | BHU20: 2395 | BHV20: 282 | BHY20: 2396 | BHZ20: 282 | BIC20: 2397 | BID20: 282 | BIG20: 2398 | BIH20: 282 | BIK20: 2399 | BIL20: 282
A21: 2000 | B21: 283 | E21: 2001 | F21: 283 | I21: 2002 | J21: 283 | M21: 2003 | N21: 283 | Q21: 2004 | R21: 283 | U21: 2005 | V21: 283 | Y21: 2006 | Z21: 283 | AC21: 2007 | AD21: 283 | AG21: 2008 | AH21: 283 | AK21: 2009 | AL21: 283 | AO21: 2010 | AP21: 283 | AS21: 2011 | AT21: 283 | AW21: 2012 | AX21: 283 | BA21: 2013 | BB21: 283 | BE21: 2014 | BF21: 283 | BI21: 2015 | BJ21: 283 | BM21: 2016 | BN21: 283 | BQ21: 2017 | BR21: 283 | BU21: 2018 | BV21: 283 | BY21: 2019 | BZ21: 283 | CC21: 2020 | CD21: 283 | CG21: 2021 | CH21: 283 | CK21: 2022 | CL21: 283 | CO21: 2023 | CP21: 283 | CS21: 2024 | CT21: 283 | CW21: 2025 | CX21: 283 | DA21: 2026 | DB21: 283 | DE21: 2027 | DF21: 283 | DI21: 2028 | DJ21: 283 | DM21: 2029 | DN21: 283 | DQ21: 2030 | DR21: 283 | DU21: 2031 | DV21: 283 | DY21: 2032 | DZ21: 283 | EC21: 2033 | ED21: 283 | EG21: 2034 | EH21: 283 | EK21: 2035 | EL21: 283 | EO21: 2036 | EP21: 283 | ES21: 2037 | ET21: 283 | EW21: 2038 | EX21: 283 | FA21: 2039 | FB21: 283 | FE21: 2040 | FF21: 283 | FI21: 2041 | FJ21: 283 | FM21: 2042 | FN21: 283 | FQ21: 2043 | FR21: 283 | FU21: 2044 | FV21: 283 | FY21: 2045 | FZ21: 283 | GC21: 2046 | GD21: 283 | GG21: 2047 | GH21: 283 | GK21: 2048 | GL21: 283 | GO21: 2049 | GP21: 283 | GS21: 2050 | GT21: 283 | GW21: 2051 | GX21: 283 | HA21: 2052 | HB21: 283 | HE21: 2053 | HF21: 283 | HI21: 2054 | HJ21: 283 | HM21: 2055 | HN21: 283 | HQ21: 2056 | HR21: 283 | HU21: 2057 | HV21: 283 | HY21: 2058 | HZ21: 283 | IC21: 2059 | ID21: 283 | IG21: 2060 | IH21: 283 | IK21: 2061 | IL21: 283 | IO21: 2062 | IP21: 283 | IS21: 2063 | IT21: 283 | IW21: 2064 | IX21: 283 | JA21: 2065 | JB21: 283 | JE21: 2066 | JF21: 283 | JI21: 2067 | JJ21: 283 | JM21: 2068 | JN21: 283 | JQ21: 2069 | JR21: 283 | JU21: 2070 | JV21: 283 | JY21: 2071 | JZ21: 283 | KC21: 2072 | KD21: 283 | KG21: 2073 | KH21: 283 | KK21: 2074 | KL21: 283 | KO21: 2075 | KP21: 283 | KS21: 2076 | KT21: 283 | KW21: 2077 | KX21: 283 | LA21: 2078 | LB21: 283 | LE21: 2079 | LF21: 283 | LI21: 2080 | LJ21: 283 | LM21: 2081 | LN21: 283 | LQ21: 2082 | LR21: 283 | LU21: 2083 | LV21: 283 | LY21: 2084 | LZ21: 283 | MC21: 2085 | MD21: 283 | MG21: 2086 | MH21: 283 | MK21: 2087 | ML21: 283 | MO21: 2088 | MP21: 283 | MS21: 2089 | MT21: 283 | MW21: 2090 | MX21: 283 | NA21: 2091 | NB21: 283 | NE21: 2092 | NF21: 283 | NI21: 2093 | NJ21: 283 | NM21: 2094 | NN21: 283 | NQ21: 2095 | NR21: 283 | NU21: 2096 | NV21: 283 | NY21: 2097 | NZ21: 283 | OC21: 2098 | OD21: 283 | OG21: 2099 | OH21: 283 | OK21: 2100 | OL21: 283 | OO21: 2101 | OP21: 283 | OS21: 2102 | OT21: 283 | OW21: 2103 | OX21: 283 | PA21: 2104 | PB21: 283 | PE21: 2105 | PF21: 283 | PI21: 2106 | PJ21: 283 | PM21: 2107 | PN21: 283 | PQ21: 2108 | PR21: 283 | PU21: 2109 | PV21: 283 | PY21: 2110 | PZ21: 283 | QC21: 2111 | QD21: 283 | QG21: 2112 | QH21: 283 | QK21: 2113 | QL21: 283 | QO21: 2114 | QP21: 283 | QS21: 2115 | QT21: 283 | QW21: 2116 | QX21: 283 | RA21: 2117 | RB21: 283 | RE21: 2118 | RF21: 283 | RI21: 2119 | RJ21: 283 | RM21: 2120 | RN21: 283 | RQ21: 2121 | RR21: 283 | RU21: 2122 | RV21: 283 | RY21: 2123 | RZ21: 283 | SC21: 2124 | SD21: 283 | SG21: 2125 | SH21: 283 | SK21: 2126 | SL21: 283 | SO21: 2127 | SP21: 283 | SS21: 2128 | ST21: 283 | SW21: 2129 | SX21: 283 | TA21: 2130 | TB21: 283 | TE21: 2131 | TF21: 283 | TI21: 2132 | TJ21: 283 | TM21: 2133 | TN21: 283 | TQ21: 2134 | TR21: 283 | TU21: 2135 | TV21: 283 | TY21: 2136 | TZ21: 283 | UC21: 2137 | UD21: 283 | UG21: 2138 | UH21: 283 | UK21: 2139 | UL21: 283 | UO21: 2140 | UP21: 283 | US21: 2141 | UT21: 283 | UW21: 2142 | UX21: 283 | VA21: 2143 | VB21: 283 | VE21: 2144 | VF21: 283 | VI21: 2145 | VJ21: 283 | VM21: 2146 | VN21: 283 | VQ21: 2147 | VR21: 283 | VU21: 2148 | VV21: 283 | VY21: 2149 | VZ21: 283 | WC21: 2150 | WD21: 283 | WG21: 2151 | WH21: 283 | WK21: 2152 | WL21: 283 | WO21: 2153 | WP21: 283 | WS21: 2154 | WT21: 283 | WW21: 2155 | WX21: 283 | XA21: 2156 | XB21: 283 | XE21: 2157 | XF21: 283 | XI21: 2158 | XJ21: 283 | XM21: 2159 | XN21: 283 | XQ21: 2160 | XR21: 283 | XU21: 2161 | XV21: 283 | XY21: 2162 | XZ21: 283 | YC21: 2163 | YD21: 283 | YG21: 2164 | YH21: 283 | YK21: 2165 | YL21: 283 | YO21: 2166 | YP21: 283 | YS21: 2167 | YT21: 283 | YW21: 2168 | YX21: 283 | ZA21: 2169 | ZB21: 283 | ZE21: 2170 | ZF21: 283 | ZI21: 2171 | ZJ21: 283 | ZM21: 2172 | ZN21: 283 | ZQ21: 2173 | ZR21: 283 | ZU21: 2174 | ZV21: 283 | ZY21: 2175 | ZZ21: 283 | AAC21: 2176 | AAD21: 283 | AAG21: 2177 | AAH21: 283 | AAK21: 2178 | AAL21: 283 | AAO21: 2179 | AAP21: 283 | AAS21: 2180 | AAT21: 283 | AAW21: 2181 | AAX21: 283 | ABA21: 2182 | ABB21: 283 | ABE21: 2183 | ABF21: 283 | ABI21: 2184 | ABJ21: 283 | ABM21: 2185 | ABN21: 283 | ABQ21: 2186 | ABR21: 283 | ABU21: 2187 | ABV21: 283 | ABY21: 2188 | ABZ21: 283 | ACC21: 2189 | ACD21: 283 | ACG21: 2190 | ACH21: 283 | ACK21: 2191 | ACL21: 283 | ACO21: 2192 | ACP21: 283 | ACS21: 2193 | ACT21: 283 | ACW21: 2194 | ACX21: 283 | ADA21: 2195 | ADB21: 283 | ADE21: 2196 | ADF21: 283 | ADI21: 2197 | ADJ21: 283 | ADM21: 2198 | ADN21: 283 | ADQ21: 2199 | ADR21: 283 | ADU21: 2200 | ADV21: 283 | ADY21: 2201 | ADZ21: 283 | AEC21: 2202 | AED21: 283 | AEG21: 2203 | AEH21: 283 | AEK21: 2204 | AEL21: 283 | AEO21: 2205 | AEP21: 283 | AES21: 2206 | AET21: 283 | AEW21: 2207 | AEX21: 283 | AFA21: 2208 | AFB21: 283 | AFE21: 2209 | AFF21: 283 | AFI21: 2210 | AFJ21: 283 | AFM21: 2211 | AFN21: 283 | AFQ21: 2212 | AFR21: 283 | AFU21: 2213 | AFV21: 283 | AFY21: 2214 | AFZ21: 283 | AGC21: 2215 | AGD21: 283 | AGG21: 2216 | AGH21: 283 | AGK21: 2217 | AGL21: 283 | AGO21: 2218 | AGP21: 283 | AGS21: 2219 | AGT21: 283 | AGW21: 2220 | AGX21: 283 | AHA21: 2221 | AHB21: 283 | AHE21: 2222 | AHF21: 283 | AHI21: 2223 | AHJ21: 283 | AHM21: 2224 | AHN21: 283 | AHQ21: 2225 | AHR21: 283 | AHU21: 2226 | AHV21: 283 | AHY21: 2227 | AHZ21: 283 | AIC21: 2228 | AID21: 283 | AIG21: 2229 | AIH21: 283 | AIK21: 2230 | AIL21: 283 | AIO21: 2231 | AIP21: 283 | AIS21: 2232 | AIT21: 283 | AIW21: 2233 | AIX21: 283 | AJA21: 2234 | AJB21: 283 | AJE21: 2235 | AJF21: 283 | AJI21: 2236 | AJJ21: 283 | AJM21: 2237 | AJN21: 283 | AJQ21: 2238 | AJR21: 283 | AJU21: 2239 | AJV21: 283 | AJY21: 2240 | AJZ21: 283 | AKC21: 2241 | AKD21: 283 | AKG21: 2242 | AKH21: 283 | AKK21: 2243 | AKL21: 283 | AKO21: 2244 | AKP21: 283 | AKS21: 2245 | AKT21: 283 | AKW21: 2246 | AKX21: 283 | ALA21: 2247 | ALB21: 283 | ALE21: 2248 | ALF21: 283 | ALI21: 2249 | ALJ21: 283 | ALM21: 2250 | ALN21: 283 | ALQ21: 2251 | ALR21: 283 | ALU21: 2252 | ALV21: 283 | ALY21: 2253 | ALZ21: 283 | AMC21: 2254 | AMD21: 283 | AMG21: 2255 | AMH21: 283 | AMK21: 2256 | AML21: 283 | AMO21: 2257 | AMP21: 283 | AMS21: 2258 | AMT21: 283 | AMW21: 2259 | AMX21: 283 | ANA21: 2260 | ANB21: 283 | ANE21: 2261 | ANF21: 283 | ANI21: 2262 | ANJ21: 283 | ANM21: 2263 | ANN21: 283 | ANQ21: 2264 | ANR21: 283 | ANU21: 2265 | ANV21: 283 | ANY21: 2266 | ANZ21: 283 | AOC21: 2267 | AOD21: 283 | AOG21: 2268 | AOH21: 283 | AOK21: 2269 | AOL21: 283 | AOO21: 2270 | AOP21: 283 | AOS21: 2271 | AOT21: 283 | AOW21: 2272 | AOX21: 283 | APA21: 2273 | APB21: 283 | APE21: 2274 | APF21: 283 | API21: 2275 | APJ21: 283 | APM21: 2276 | APN21: 283 | APQ21: 2277 | APR21: 283 | APU21: 2278 | APV21: 283 | APY21: 2279 | APZ21: 283 | AQC21: 2280 | AQD21: 283 | AQG21: 2281 | AQH21: 283 | AQK21: 2282 | AQL21: 283 | AQO21: 2283 | AQP21: 283 | AQS21: 2284 | AQT21: 283 | AQW21: 2285 | AQX21: 283 | ARA21: 2286 | ARB21: 283 | ARE21: 2287 | ARF21: 283 | ARI21: 2288 | ARJ21: 283 | ARM21: 2289 | ARN21: 283 | ARQ21: 2290 | ARR21: 283 | ARU21: 2291 | ARV21: 283 | ARY21: 2292 | ARZ21: 283 | ASC21: 2293 | ASD21: 283 | ASG21: 2294 | ASH21: 283 | ASK21: 2295 | ASL21: 283 | ASO21: 2296 | ASP21: 283 | ASS21: 2297 | AST21: 283 | ASW21: 2298 | ASX21: 283 | ATA21: 2299 | ATB21: 283 | ATE21: 2300 | ATF21: 283 | ATI21: 2301 | ATJ21: 283 | ATM21: 2302 | ATN21: 283 | ATQ21: 2303 | ATR21: 283 | ATU21: 2304 | ATV21: 283 | ATY21: 2305 | ATZ21: 283 | AUC21: 2306 | AUD21: 283 | AUG21: 2307 | AUH21: 283 | AUK21: 2308 | AUL21: 283 | AUO21: 2309 | AUP21: 283 | AUS21: 2310 | AUT21: 283 | AUW21: 2311 | AUX21: 283 | AVA21: 2312 | AVB21: 283 | AVE21: 2313 | AVF21: 283 | AVI21: 2314 | AVJ21: 283 | AVM21: 2315 | AVN21: 283 | AVQ21: 2316 | AVR21: 283 | AVU21: 2317 | AVV21: 283 | AVY21: 2318 | AVZ21: 283 | AWC21: 2319 | AWD21: 283 | AWG21: 2320 | AWH21: 283 | AWK21: 2321 | AWL21: 283 | AWO21: 2322 | AWP21: 283 | AWS21: 2323 | AWT21: 283 | AWW21: 2324 | AWX21: 283 | AXA21: 2325 | AXB21: 283 | AXE21: 2326 | AXF21: 283 | AXI21: 2327 | AXJ21: 283 | AXM21: 2328 | AXN21: 283 | AXQ21: 2329 | AXR21: 283 | AXU21: 2330 | AXV21: 283 | AXY21: 2331 | AXZ21: 283 | AYC21: 2332 | AYD21: 283 | AYG21: 2333 | AYH21: 283 | AYK21: 2334 | AYL21: 283 | AYO21: 2335 | AYP21: 283 | AYS21: 2336 | AYT21: 283 | AYW21: 2337 | AYX21: 283 | AZA21: 2338 | AZB21: 283 | AZE21: 2339 | AZF21: 283 | AZI21: 2340 | AZJ21: 283 | AZM21: 2341 | AZN21: 283 | AZQ21: 2342 | AZR21: 283 | AZU21: 2343 | AZV21: 283 | AZY21: 2344 | AZZ21: 283 | BAC21: 2345 | BAD21: 283 | BAG21: 2346 | BAH21: 283 | BAK21: 2347 | BAL21: 283 | BAO21: 2348 | BAP21: 283 | BAS21: 2349 | BAT21: 283 | BAW21: 2350 | BAX21: 283 | BBA21: 2351 | BBB21: 283 | BBE21: 2352 | BBF21: 283 | BBI21: 2353 | BBJ21: 283 | BBM21: 2354 | BBN21: 283 | BBQ21: 2355 | BBR21: 283 | BBU21: 2356 | BBV21: 283 | BBY21: 2357 | BBZ21: 283 | BCC21: 2358 | BCD21: 283 | BCG21: 2359 | BCH21: 283 | BCK21: 2360 | BCL21: 283 | BCO21: 2361 | BCP21: 283 | BCS21: 2362 | BCT21: 283 | BCW21: 2363 | BCX21: 283 | BDA21: 2364 | BDB21: 283 | BDE21: 2365 | BDF21: 283 | BDI21: 2366 | BDJ21: 283 | BDM21: 2367 | BDN21: 283 | BDQ21: 2368 | BDR21: 283 | BDU21: 2369 | BDV21: 283 | BDY21: 2370 | BDZ21: 283 | BEC21: 2371 | BED21: 283 | BEG21: 2372 | BEH21: 283 | BEK21: 2373 | BEL21: 283 | BEO21: 2374 | BEP21: 283 | BES21: 2375 | BET21: 283 | BEW21: 2376 | BEX21: 283 | BFA21: 2377 | BFB21: 283 | BFE21: 2378 | BFF21: 283 | BFI21: 2379 | BFJ21: 283 | BFM21: 2380 | BFN21: 283 | BFQ21: 2381 | BFR21: 283 | BFU21: 2382 | BFV21: 283 | BFY21: 2383 | BFZ21: 283 | BGC21: 2384 | BGD21: 283 | BGG21: 2385 | BGH21: 283 | BGK21: 2386 | BGL21: 283 | BGO21: 2387 | BGP21: 283 | BGS21: 2388 | BGT21: 283 | BGW21: 2389 | BGX21: 283 | BHA21: 2390 | BHB21: 283 | BHE21: 2391 | BHF21: 283 | BHI21: 2392 | BHJ21: 283 | BHM21: 2393 | BHN21: 283 | BHQ21: 2394 | BHR21: 283 | BHU21: 2395 | BHV21: 283 | BHY21: 2396 | BHZ21: 283 | BIC21: 2397 | BID21: 283 | BIG21: 2398 | BIH21: 283 | BIK21: 2399 | BIL21: 283
A22: 2000 | B22: 284 | E22: 2001 | F22: 284 | I22: 2002 | J22: 284 | M22: 2003 | N22: 284 | Q22: 2004 | R22: 284 | U22: 2005 | V22: 284 | Y22: 2006 | Z22: 284 | AC22: 2007 | AD22: 284 | AG22: 2008 | AH22: 284 | AK22: 2009 | AL22: 284 | AO22: 2010 | AP22: 284 | AS22: 2011 | AT22: 284 | AW22: 2012 | AX22: 284 | BA22: 2013 | BB22: 284 | BE22: 2014 | BF22: 284 | BI22: 2015 | BJ22: 284 | BM22: 2016 | BN22: 284 | BQ22: 2017 | BR22: 284 | BU22: 2018 | BV22: 284 | BY22: 2019 | BZ22: 284 | CC22: 2020 | CD22: 284 | CG22: 2021 | CH22: 284 | CK22: 2022 | CL22: 284 | CO22: 2023 | CP22: 284 | CS22: 2024 | CT22: 284 | CW22: 2025 | CX22: 284 | DA22: 2026 | DB22: 284 | DE22: 2027 | DF22: 284 | DI22: 2028 | DJ22: 284 | DM22: 2029 | DN22: 284 | DQ22: 2030 | DR22: 284 | DU22: 2031 | DV22: 284 | DY22: 2032 | DZ22: 284 | EC22: 2033 | ED22: 284 | EG22: 2034 | EH22: 284 | EK22: 2035 | EL22: 284 | EO22: 2036 | EP22: 284 | ES22: 2037 | ET22: 284 | EW22: 2038 | EX22: 284 | FA22: 2039 | FB22: 284 | FE22: 2040 | FF22: 284 | FI22: 2041 | FJ22: 284 | FM22: 2042 | FN22: 284 | FQ22: 2043 | FR22: 284 | FU22: 2044 | FV22: 284 | FY22: 2045 | FZ22: 284 | GC22: 2046 | GD22: 284 | GG22: 2047 | GH22: 284 | GK22: 2048 | GL22: 284 | GO22: 2049 | GP22: 284 | GS22: 2050 | GT22: 284 | GW22: 2051 | GX22: 284 | HA22: 2052 | HB22: 284 | HE22: 2053 | HF22: 284 | HI22: 2054 | HJ22: 284 | HM22: 2055 | HN22: 284 | HQ22: 2056 | HR22: 284 | HU22: 2057 | HV22: 284 | HY22: 2058 | HZ22: 284 | IC22: 2059 | ID22: 284 | IG22: 2060 | IH22: 284 | IK22: 2061 | IL22: 284 | IO22: 2062 | IP22: 284 | IS22: 2063 | IT22: 284 | IW22: 2064 | IX22: 284 | JA22: 2065 | JB22: 284 | JE22: 2066 | JF22: 284 | JI22: 2067 | JJ22: 284 | JM22: 2068 | JN22: 284 | JQ22: 2069 | JR22: 284 | JU22: 2070 | JV22: 284 | JY22: 2071 | JZ22: 284 | KC22: 2072 | KD22: 284 | KG22: 2073 | KH22: 284 | KK22: 2074 | KL22: 284 | KO22: 2075 | KP22: 284 | KS22: 2076 | KT22: 284 | KW22: 2077 | KX22: 284 | LA22: 2078 | LB22: 284 | LE22: 2079 | LF22: 284 | LI22: 2080 | LJ22: 284 | LM22: 2081 | LN22: 284 | LQ22: 2082 | LR22: 284 | LU22: 2083 | LV22: 284 | LY22: 2084 | LZ22: 284 | MC22: 2085 | MD22: 284 | MG22: 2086 | MH22: 284 | MK22: 2087 | ML22: 284 | MO22: 2088 | MP22: 284 | MS22: 2089 | MT22: 284 | MW22: 2090 | MX22: 284 | NA22: 2091 | NB22: 284 | NE22: 2092 | NF22: 284 | NI22: 2093 | NJ22: 284 | NM22: 2094 | NN22: 284 | NQ22: 2095 | NR22: 284 | NU22: 2096 | NV22: 284 | NY22: 2097 | NZ22: 284 | OC22: 2098 | OD22: 284 | OG22: 2099 | OH22: 284 | OK22: 2100 | OL22: 284 | OO22: 2101 | OP22: 284 | OS22: 2102 | OT22: 284 | OW22: 2103 | OX22: 284 | PA22: 2104 | PB22: 284 | PE22: 2105 | PF22: 284 | PI22: 2106 | PJ22: 284 | PM22: 2107 | PN22: 284 | PQ22: 2108 | PR22: 284 | PU22: 2109 | PV22: 284 | PY22: 2110 | PZ22: 284 | QC22: 2111 | QD22: 284 | QG22: 2112 | QH22: 284 | QK22: 2113 | QL22: 284 | QO22: 2114 | QP22: 284 | QS22: 2115 | QT22: 284 | QW22: 2116 | QX22: 284 | RA22: 2117 | RB22: 284 | RE22: 2118 | RF22: 284 | RI22: 2119 | RJ22: 284 | RM22: 2120 | RN22: 284 | RQ22: 2121 | RR22: 284 | RU22: 2122 | RV22: 284 | RY22: 2123 | RZ22: 284 | SC22: 2124 | SD22: 284 | SG22: 2125 | SH22: 284 | SK22: 2126 | SL22: 284 | SO22: 2127 | SP22: 284 | SS22: 2128 | ST22: 284 | SW22: 2129 | SX22: 284 | TA22: 2130 | TB22: 284 | TE22: 2131 | TF22: 284 | TI22: 2132 | TJ22: 284 | TM22: 2133 | TN22: 284 | TQ22: 2134 | TR22: 284 | TU22: 2135 | TV22: 284 | TY22: 2136 | TZ22: 284 | UC22: 2137 | UD22: 284 | UG22: 2138 | UH22: 284 | UK22: 2139 | UL22: 284 | UO22: 2140 | UP22: 284 | US22: 2141 | UT22: 284 | UW22: 2142 | UX22: 284 | VA22: 2143 | VB22: 284 | VE22: 2144 | VF22: 284 | VI22: 2145 | VJ22: 284 | VM22: 2146 | VN22: 284 | VQ22: 2147 | VR22: 284 | VU22: 2148 | VV22: 284 | VY22: 2149 | VZ22: 284 | WC22: 2150 | WD22: 284 | WG22: 2151 | WH22: 284 | WK22: 2152 | WL22: 284 | WO22: 2153 | WP22: 284 | WS22: 2154 | WT22: 284 | WW22: 2155 | WX22: 284 | XA22: 2156 | XB22: 284 | XE22: 2157 | XF22: 284 | XI22: 2158 | XJ22: 284 | XM22: 2159 | XN22: 284 | XQ22: 2160 | XR22: 284 | XU22: 2161 | XV22: 284 | XY22: 2162 | XZ22: 284 | YC22: 2163 | YD22: 284 | YG22: 2164 | YH22: 284 | YK22: 2165 | YL22: 284 | YO22: 2166 | YP22: 284 | YS22: 2167 | YT22: 284 | YW22: 2168 | YX22: 284 | ZA22: 2169 | ZB22: 284 | ZE22: 2170 | ZF22: 284 | ZI22: 2171 | ZJ22: 284 | ZM22: 2172 | ZN22: 284 | ZQ22: 2173 | ZR22: 284 | ZU22: 2174 | ZV22: 284 | ZY22: 2175 | ZZ22: 284 | AAC22: 2176 | AAD22: 284 | AAG22: 2177 | AAH22: 284 | AAK22: 2178 | AAL22: 284 | AAO22: 2179 | AAP22: 284 | AAS22: 2180 | AAT22: 284 | AAW22: 2181 | AAX22: 284 | ABA22: 2182 | ABB22: 284 | ABE22: 2183 | ABF22: 284 | ABI22: 2184 | ABJ22: 284 | ABM22: 2185 | ABN22: 284 | ABQ22: 2186 | ABR22: 284 | ABU22: 2187 | ABV22: 284 | ABY22: 2188 | ABZ22: 284 | ACC22: 2189 | ACD22: 284 | ACG22: 2190 | ACH22: 284 | ACK22: 2191 | ACL22: 284 | ACO22: 2192 | ACP22: 284 | ACS22: 2193 | ACT22: 284 | ACW22: 2194 | ACX22: 284 | ADA22: 2195 | ADB22: 284 | ADE22: 2196 | ADF22: 284 | ADI22: 2197 | ADJ22: 284 | ADM22: 2198 | ADN22: 284 | ADQ22: 2199 | ADR22: 284 | ADU22: 2200 | ADV22: 284 | ADY22: 2201 | ADZ22: 284 | AEC22: 2202 | AED22: 284 | AEG22: 2203 | AEH22: 284 | AEK22: 2204 | AEL22: 284 | AEO22: 2205 | AEP22: 284 | AES22: 2206 | AET22: 284 | AEW22: 2207 | AEX22: 284 | AFA22: 2208 | AFB22: 284 | AFE22: 2209 | AFF22: 284 | AFI22: 2210 | AFJ22: 284 | AFM22: 2211 | AFN22: 284 | AFQ22: 2212 | AFR22: 284 | AFU22: 2213 | AFV22: 284 | AFY22: 2214 | AFZ22: 284 | AGC22: 2215 | AGD22: 284 | AGG22: 2216 | AGH22: 284 | AGK22: 2217 | AGL22: 284 | AGO22: 2218 | AGP22: 284 | AGS22: 2219 | AGT22: 284 | AGW22: 2220 | AGX22: 284 | AHA22: 2221 | AHB22: 284 | AHE22: 2222 | AHF22: 284 | AHI22: 2223 | AHJ22: 284 | AHM22: 2224 | AHN22: 284 | AHQ22: 2225 | AHR22: 284 | AHU22: 2226 | AHV22: 284 | AHY22: 2227 | AHZ22: 284 | AIC22: 2228 | AID22: 284 | AIG22: 2229 | AIH22: 284 | AIK22: 2230 | AIL22: 284 | AIO22: 2231 | AIP22: 284 | AIS22: 2232 | AIT22: 284 | AIW22: 2233 | AIX22: 284 | AJA22: 2234 | AJB22: 284 | AJE22: 2235 | AJF22: 284 | AJI22: 2236 | AJJ22: 284 | AJM22: 2237 | AJN22: 284 | AJQ22: 2238 | AJR22: 284 | AJU22: 2239 | AJV22: 284 | AJY22: 2240 | AJZ22: 284 | AKC22: 2241 | AKD22: 284 | AKG22: 2242 | AKH22: 284 | AKK22: 2243 | AKL22: 284 | AKO22: 2244 | AKP22: 284 | AKS22: 2245 | AKT22: 284 | AKW22: 2246 | AKX22: 284 | ALA22: 2247 | ALB22: 284 | ALE22: 2248 | ALF22: 284 | ALI22: 2249 | ALJ22: 284 | ALM22: 2250 | ALN22: 284 | ALQ22: 2251 | ALR22: 284 | ALU22: 2252 | ALV22: 284 | ALY22: 2253 | ALZ22: 284 | AMC22: 2254 | AMD22: 284 | AMG22: 2255 | AMH22: 284 | AMK22: 2256 | AML22: 284 | AMO22: 2257 | AMP22: 284 | AMS22: 2258 | AMT22: 284 | AMW22: 2259 | AMX22: 284 | ANA22: 2260 | ANB22: 284 | ANE22: 2261 | ANF22: 284 | ANI22: 2262 | ANJ22: 284 | ANM22: 2263 | ANN22: 284 | ANQ22: 2264 | ANR22: 284 | ANU22: 2265 | ANV22: 284 | ANY22: 2266 | ANZ22: 284 | AOC22: 2267 | AOD22: 284 | AOG22: 2268 | AOH22: 284 | AOK22: 2269 | AOL22: 284 | AOO22: 2270 | AOP22: 284 | AOS22: 2271 | AOT22: 284 | AOW22: 2272 | AOX22: 284 | APA22: 2273 | APB22: 284 | APE22: 2274 | APF22: 284 | API22: 2275 | APJ22: 284 | APM22: 2276 | APN22: 284 | APQ22: 2277 | APR22: 284 | APU22: 2278 | APV22: 284 | APY22: 2279 | APZ22: 284 | AQC22: 2280 | AQD22: 284 | AQG22: 2281 | AQH22: 284 | AQK22: 2282 | AQL22: 284 | AQO22: 2283 | AQP22: 284 | AQS22: 2284 | AQT22: 284 | AQW22: 2285 | AQX22: 284 | ARA22: 2286 | ARB22: 284 | ARE22: 2287 | ARF22: 284 | ARI22: 2288 | ARJ22: 284 | ARM22: 2289 | ARN22: 284 | ARQ22: 2290 | ARR22: 284 | ARU22: 2291 | ARV22: 284 | ARY22: 2292 | ARZ22: 284 | ASC22: 2293 | ASD22: 284 | ASG22: 2294 | ASH22: 284 | ASK22: 2295 | ASL22: 284 | ASO22: 2296 | ASP22: 284 | ASS22: 2297 | AST22: 284 | ASW22: 2298 | ASX22: 284 | ATA22: 2299 | ATB22: 284 | ATE22: 2300 | ATF22: 284 | ATI22: 2301 | ATJ22: 284 | ATM22: 2302 | ATN22: 284 | ATQ22: 2303 | ATR22: 284 | ATU22: 2304 | ATV22: 284 | ATY22: 2305 | ATZ22: 284 | AUC22: 2306 | AUD22: 284 | AUG22: 2307 | AUH22: 284 | AUK22: 2308 | AUL22: 284 | AUO22: 2309 | AUP22: 284 | AUS22: 2310 | AUT22: 284 | AUW22: 2311 | AUX22: 284 | AVA22: 2312 | AVB22: 284 | AVE22: 2313 | AVF22: 284 | AVI22: 2314 | AVJ22: 284 | AVM22: 2315 | AVN22: 284 | AVQ22: 2316 | AVR22: 284 | AVU22: 2317 | AVV22: 284 | AVY22: 2318 | AVZ22: 284 | AWC22: 2319 | AWD22: 284 | AWG22: 2320 | AWH22: 284 | AWK22: 2321 | AWL22: 284 | AWO22: 2322 | AWP22: 284 | AWS22: 2323 | AWT22: 284 | AWW22: 2324 | AWX22: 284 | AXA22: 2325 | AXB22: 284 | AXE22: 2326 | AXF22: 284 | AXI22: 2327 | AXJ22: 284 | AXM22: 2328 | AXN22: 284 | AXQ22: 2329 | AXR22: 284 | AXU22: 2330 | AXV22: 284 | AXY22: 2331 | AXZ22: 284 | AYC22: 2332 | AYD22: 284 | AYG22: 2333 | AYH22: 284 | AYK22: 2334 | AYL22: 284 | AYO22: 2335 | AYP22: 284 | AYS22: 2336 | AYT22: 284 | AYW22: 2337 | AYX22: 284 | AZA22: 2338 | AZB22: 284 | AZE22: 2339 | AZF22: 284 | AZI22: 2340 | AZJ22: 284 | AZM22: 2341 | AZN22: 284 | AZQ22: 2342 | AZR22: 284 | AZU22: 2343 | AZV22: 284 | AZY22: 2344 | AZZ22: 284 | BAC22: 2345 | BAD22: 284 | BAG22: 2346 | BAH22: 284 | BAK22: 2347 | BAL22: 284 | BAO22: 2348 | BAP22: 284 | BAS22: 2349 | BAT22: 284 | BAW22: 2350 | BAX22: 284 | BBA22: 2351 | BBB22: 284 | BBE22: 2352 | BBF22: 284 | BBI22: 2353 | BBJ22: 284 | BBM22: 2354 | BBN22: 284 | BBQ22: 2355 | BBR22: 284 | BBU22: 2356 | BBV22: 284 | BBY22: 2357 | BBZ22: 284 | BCC22: 2358 | BCD22: 284 | BCG22: 2359 | BCH22: 284 | BCK22: 2360 | BCL22: 284 | BCO22: 2361 | BCP22: 284 | BCS22: 2362 | BCT22: 284 | BCW22: 2363 | BCX22: 284 | BDA22: 2364 | BDB22: 284 | BDE22: 2365 | BDF22: 284 | BDI22: 2366 | BDJ22: 284 | BDM22: 2367 | BDN22: 284 | BDQ22: 2368 | BDR22: 284 | BDU22: 2369 | BDV22: 284 | BDY22: 2370 | BDZ22: 284 | BEC22: 2371 | BED22: 284 | BEG22: 2372 | BEH22: 284 | BEK22: 2373 | BEL22: 284 | BEO22: 2374 | BEP22: 284 | BES22: 2375 | BET22: 284 | BEW22: 2376 | BEX22: 284 | BFA22: 2377 | BFB22: 284 | BFE22: 2378 | BFF22: 284 | BFI22: 2379 | BFJ22: 284 | BFM22: 2380 | BFN22: 284 | BFQ22: 2381 | BFR22: 284 | BFU22: 2382 | BFV22: 284 | BFY22: 2383 | BFZ22: 284 | BGC22: 2384 | BGD22: 284 | BGG22: 2385 | BGH22: 284 | BGK22: 2386 | BGL22: 284 | BGO22: 2387 | BGP22: 284 | BGS22: 2388 | BGT22: 284 | BGW22: 2389 | BGX22: 284 | BHA22: 2390 | BHB22: 284 | BHE22: 2391 | BHF22: 284 | BHI22: 2392 | BHJ22: 284 | BHM22: 2393 | BHN22: 284 | BHQ22: 2394 | BHR22: 284 | BHU22: 2395 | BHV22: 284 | BHY22: 2396 | BHZ22: 284 | BIC22: 2397 | BID22: 284 | BIG22: 2398 | BIH22: 284 | BIK22: 2399 | BIL22: 284
A23: 2000 | B23: 285 | E23: 2001 | F23: 285 | I23: 2002 | J23: 285 | M23: 2003 | N23: 285 | Q23: 2004 | R23: 285 | U23: 2005 | V23: 285 | Y23: 2006 | Z23: 285 | AC23: 2007 | AD23: 285 | AG23: 2008 | AH23: 285 | AK23: 2009 | AL23: 285 | AO23: 2010 | AP23: 285 | AS23: 2011 | AT23: 285 | AW23: 2012 | AX23: 285 | BA23: 2013 | BB23: 285 | BE23: 2014 | BF23: 285 | BI23: 2015 | BJ23: 285 | BM23: 2016 | BN23: 285 | BQ23: 2017 | BR23: 285 | BU23: 2018 | BV23: 285 | BY23: 2019 | BZ23: 285 | CC23: 2020 | CD23: 285 | CG23: 2021 | CH23: 285 | CK23: 2022 | CL23: 285 | CO23: 2023 | CP23: 285 | CS23: 2024 | CT23: 285 | CW23: 2025 | CX23: 285 | DA23: 2026 | DB23: 285 | DE23: 2027 | DF23: 285 | DI23: 2028 | DJ23: 285 | DM23: 2029 | DN23: 285 | DQ23: 2030 | DR23: 285 | DU23: 2031 | DV23: 285 | DY23: 2032 | DZ23: 285 | EC23: 2033 | ED23: 285 | EG23: 2034 | EH23: 285 | EK23: 2035 | EL23: 285 | EO23: 2036 | EP23: 285 | ES23: 2037 | ET23: 285 | EW23: 2038 | EX23: 285 | FA23: 2039 | FB23: 285 | FE23: 2040 | FF23: 285 | FI23: 2041 | FJ23: 285 | FM23: 2042 | FN23: 285 | FQ23: 2043 | FR23: 285 | FU23: 2044 | FV23: 285 | FY23: 2045 | FZ23: 285 | GC23: 2046 | GD23: 285 | GG23: 2047 | GH23: 285 | GK23: 2048 | GL23: 285 | GO23: 2049 | GP23: 285 | GS23: 2050 | GT23: 285 | GW23: 2051 | GX23: 285 | HA23: 2052 | HB23: 285 | HE23: 2053 | HF23: 285 | HI23: 2054 | HJ23: 285 | HM23: 2055 | HN23: 285 | HQ23: 2056 | HR23: 285 | HU23: 2057 | HV23: 285 | HY23: 2058 | HZ23: 285 | IC23: 2059 | ID23: 285 | IG23: 2060 | IH23: 285 | IK23: 2061 | IL23: 285 | IO23: 2062 | IP23: 285 | IS23: 2063 | IT23: 285 | IW23: 2064 | IX23: 285 | JA23: 2065 | JB23: 285 | JE23: 2066 | JF23: 285 | JI23: 2067 | JJ23: 285 | JM23: 2068 | JN23: 285 | JQ23: 2069 | JR23: 285 | JU23: 2070 | JV23: 285 | JY23: 2071 | JZ23: 285 | KC23: 2072 | KD23: 285 | KG23: 2073 | KH23: 285 | KK23: 2074 | KL23: 285 | KO23: 2075 | KP23: 285 | KS23: 2076 | KT23: 285 | KW23: 2077 | KX23: 285 | LA23: 2078 | LB23: 285 | LE23: 2079 | LF23: 285 | LI23: 2080 | LJ23: 285 | LM23: 2081 | LN23: 285 | LQ23: 2082 | LR23: 285 | LU23: 2083 | LV23: 285 | LY23: 2084 | LZ23: 285 | MC23: 2085 | MD23: 285 | MG23: 2086 | MH23: 285 | MK23: 2087 | ML23: 285 | MO23: 2088 | MP23: 285 | MS23: 2089 | MT23: 285 | MW23: 2090 | MX23: 285 | NA23: 2091 | NB23: 285 | NE23: 2092 | NF23: 285 | NI23: 2093 | NJ23: 285 | NM23: 2094 | NN23: 285 | NQ23: 2095 | NR23: 285 | NU23: 2096 | NV23: 285 | NY23: 2097 | NZ23: 285 | OC23: 2098 | OD23: 285 | OG23: 2099 | OH23: 285 | OK23: 2100 | OL23: 285 | OO23: 2101 | OP23: 285 | OS23: 2102 | OT23: 285 | OW23: 2103 | OX23: 285 | PA23: 2104 | PB23: 285 | PE23: 2105 | PF23: 285 | PI23: 2106 | PJ23: 285 | PM23: 2107 | PN23: 285 | PQ23: 2108 | PR23: 285 | PU23: 2109 | PV23: 285 | PY23: 2110 | PZ23: 285 | QC23: 2111 | QD23: 285 | QG23: 2112 | QH23: 285 | QK23: 2113 | QL23: 285 | QO23: 2114 | QP23: 285 | QS23: 2115 | QT23: 285 | QW23: 2116 | QX23: 285 | RA23: 2117 | RB23: 285 | RE23: 2118 | RF23: 285 | RI23: 2119 | RJ23: 285 | RM23: 2120 | RN23: 285 | RQ23: 2121 | RR23: 285 | RU23: 2122 | RV23: 285 | RY23: 2123 | RZ23: 285 | SC23: 2124 | SD23: 285 | SG23: 2125 | SH23: 285 | SK23: 2126 | SL23: 285 | SO23: 2127 | SP23: 285 | SS23: 2128 | ST23: 285 | SW23: 2129 | SX23: 285 | TA23: 2130 | TB23: 285 | TE23: 2131 | TF23: 285 | TI23: 2132 | TJ23: 285 | TM23: 2133 | TN23: 285 | TQ23: 2134 | TR23: 285 | TU23: 2135 | TV23: 285 | TY23: 2136 | TZ23: 285 | UC23: 2137 | UD23: 285 | UG23: 2138 | UH23: 285 | UK23: 2139 | UL23: 285 | UO23: 2140 | UP23: 285 | US23: 2141 | UT23: 285 | UW23: 2142 | UX23: 285 | VA23: 2143 | VB23: 285 | VE23: 2144 | VF23: 285 | VI23: 2145 | VJ23: 285 | VM23: 2146 | VN23: 285 | VQ23: 2147 | VR23: 285 | VU23: 2148 | VV23: 285 | VY23: 2149 | VZ23: 285 | WC23: 2150 | WD23: 285 | WG23: 2151 | WH23: 285 | WK23: 2152 | WL23: 285 | WO23: 2153 | WP23: 285 | WS23: 2154 | WT23: 285 | WW23: 2155 | WX23: 285 | XA23: 2156 | XB23: 285 | XE23: 2157 | XF23: 285 | XI23: 2158 | XJ23: 285 | XM23: 2159 | XN23: 285 | XQ23: 2160 | XR23: 285 | XU23: 2161 | XV23: 285 | XY23: 2162 | XZ23: 285 | YC23: 2163 | YD23: 285 | YG23: 2164 | YH23: 285 | YK23: 2165 | YL23: 285 | YO23: 2166 | YP23: 285 | YS23: 2167 | YT23: 285 | YW23: 2168 | YX23: 285 | ZA23: 2169 | ZB23: 285 | ZE23: 2170 | ZF23: 285 | ZI23: 2171 | ZJ23: 285 | ZM23: 2172 | ZN23: 285 | ZQ23: 2173 | ZR23: 285 | ZU23: 2174 | ZV23: 285 | ZY23: 2175 | ZZ23: 285 | AAC23: 2176 | AAD23: 285 | AAG23: 2177 | AAH23: 285 | AAK23: 2178 | AAL23: 285 | AAO23: 2179 | AAP23: 285 | AAS23: 2180 | AAT23: 285 | AAW23: 2181 | AAX23: 285 | ABA23: 2182 | ABB23: 285 | ABE23: 2183 | ABF23: 285 | ABI23: 2184 | ABJ23: 285 | ABM23: 2185 | ABN23: 285 | ABQ23: 2186 | ABR23: 285 | ABU23: 2187 | ABV23: 285 | ABY23: 2188 | ABZ23: 285 | ACC23: 2189 | ACD23: 285 | ACG23: 2190 | ACH23: 285 | ACK23: 2191 | ACL23: 285 | ACO23: 2192 | ACP23: 285 | ACS23: 2193 | ACT23: 285 | ACW23: 2194 | ACX23: 285 | ADA23: 2195 | ADB23: 285 | ADE23: 2196 | ADF23: 285 | ADI23: 2197 | ADJ23: 285 | ADM23: 2198 | ADN23: 285 | ADQ23: 2199 | ADR23: 285 | ADU23: 2200 | ADV23: 285 | ADY23: 2201 | ADZ23: 285 | AEC23: 2202 | AED23: 285 | AEG23: 2203 | AEH23: 285 | AEK23: 2204 | AEL23: 285 | AEO23: 2205 | AEP23: 285 | AES23: 2206 | AET23: 285 | AEW23: 2207 | AEX23: 285 | AFA23: 2208 | AFB23: 285 | AFE23: 2209 | AFF23: 285 | AFI23: 2210 | AFJ23: 285 | AFM23: 2211 | AFN23: 285 | AFQ23: 2212 | AFR23: 285 | AFU23: 2213 | AFV23: 285 | AFY23: 2214 | AFZ23: 285 | AGC23: 2215 | AGD23: 285 | AGG23: 2216 | AGH23: 285 | AGK23: 2217 | AGL23: 285 | AGO23: 2218 | AGP23: 285 | AGS23: 2219 | AGT23: 285 | AGW23: 2220 | AGX23: 285 | AHA23: 2221 | AHB23: 285 | AHE23: 2222 | AHF23: 285 | AHI23: 2223 | AHJ23: 285 | AHM23: 2224 | AHN23: 285 | AHQ23: 2225 | AHR23: 285 | AHU23: 2226 | AHV23: 285 | AHY23: 2227 | AHZ23: 285 | AIC23: 2228 | AID23: 285 | AIG23: 2229 | AIH23: 285 | AIK23: 2230 | AIL23: 285 | AIO23: 2231 | AIP23: 285 | AIS23: 2232 | AIT23: 285 | AIW23: 2233 | AIX23: 285 | AJA23: 2234 | AJB23: 285 | AJE23: 2235 | AJF23: 285 | AJI23: 2236 | AJJ23: 285 | AJM23: 2237 | AJN23: 285 | AJQ23: 2238 | AJR23: 285 | AJU23: 2239 | AJV23: 285 | AJY23: 2240 | AJZ23: 285 | AKC23: 2241 | AKD23: 285 | AKG23: 2242 | AKH23: 285 | AKK23: 2243 | AKL23: 285 | AKO23: 2244 | AKP23: 285 | AKS23: 2245 | AKT23: 285 | AKW23: 2246 | AKX23: 285 | ALA23: 2247 | ALB23: 285 | ALE23: 2248 | ALF23: 285 | ALI23: 2249 | ALJ23: 285 | ALM23: 2250 | ALN23: 285 | ALQ23: 2251 | ALR23: 285 | ALU23: 2252 | ALV23: 285 | ALY23: 2253 | ALZ23: 285 | AMC23: 2254 | AMD23: 285 | AMG23: 2255 | AMH23: 285 | AMK23: 2256 | AML23: 285 | AMO23: 2257 | AMP23: 285 | AMS23: 2258 | AMT23: 285 | AMW23: 2259 | AMX23: 285 | ANA23: 2260 | ANB23: 285 | ANE23: 2261 | ANF23: 285 | ANI23: 2262 | ANJ23: 285 | ANM23: 2263 | ANN23: 285 | ANQ23: 2264 | ANR23: 285 | ANU23: 2265 | ANV23: 285 | ANY23: 2266 | ANZ23: 285 | AOC23: 2267 | AOD23: 285 | AOG23: 2268 | AOH23: 285 | AOK23: 2269 | AOL23: 285 | AOO23: 2270 | AOP23: 285 | AOS23: 2271 | AOT23: 285 | AOW23: 2272 | AOX23: 285 | APA23: 2273 | APB23: 285 | APE23: 2274 | APF23: 285 | API23: 2275 | APJ23: 285 | APM23: 2276 | APN23: 285 | APQ23: 2277 | APR23: 285 | APU23: 2278 | APV23: 285 | APY23: 2279 | APZ23: 285 | AQC23: 2280 | AQD23: 285 | AQG23: 2281 | AQH23: 285 | AQK23: 2282 | AQL23: 285 | AQO23: 2283 | AQP23: 285 | AQS23: 2284 | AQT23: 285 | AQW23: 2285 | AQX23: 285 | ARA23: 2286 | ARB23: 285 | ARE23: 2287 | ARF23: 285 | ARI23: 2288 | ARJ23: 285 | ARM23: 2289 | ARN23: 285 | ARQ23: 2290 | ARR23: 285 | ARU23: 2291 | ARV23: 285 | ARY23: 2292 | ARZ23: 285 | ASC23: 2293 | ASD23: 285 | ASG23: 2294 | ASH23: 285 | ASK23: 2295 | ASL23: 285 | ASO23: 2296 | ASP23: 285 | ASS23: 2297 | AST23: 285 | ASW23: 2298 | ASX23: 285 | ATA23: 2299 | ATB23: 285 | ATE23: 2300 | ATF23: 285 | ATI23: 2301 | ATJ23: 285 | ATM23: 2302 | ATN23: 285 | ATQ23: 2303 | ATR23: 285 | ATU23: 2304 | ATV23: 285 | ATY23: 2305 | ATZ23: 285 | AUC23: 2306 | AUD23: 285 | AUG23: 2307 | AUH23: 285 | AUK23: 2308 | AUL23: 285 | AUO23: 2309 | AUP23: 285 | AUS23: 2310 | AUT23: 285 | AUW23: 2311 | AUX23: 285 | AVA23: 2312 | AVB23: 285 | AVE23: 2313 | AVF23: 285 | AVI23: 2314 | AVJ23: 285 | AVM23: 2315 | AVN23: 285 | AVQ23: 2316 | AVR23: 285 | AVU23: 2317 | AVV23: 285 | AVY23: 2318 | AVZ23: 285 | AWC23: 2319 | AWD23: 285 | AWG23: 2320 | AWH23: 285 | AWK23: 2321 | AWL23: 285 | AWO23: 2322 | AWP23: 285 | AWS23: 2323 | AWT23: 285 | AWW23: 2324 | AWX23: 285 | AXA23: 2325 | AXB23: 285 | AXE23: 2326 | AXF23: 285 | AXI23: 2327 | AXJ23: 285 | AXM23: 2328 | AXN23: 285 | AXQ23: 2329 | AXR23: 285 | AXU23: 2330 | AXV23: 285 | AXY23: 2331 | AXZ23: 285 | AYC23: 2332 | AYD23: 285 | AYG23: 2333 | AYH23: 285 | AYK23: 2334 | AYL23: 285 | AYO23: 2335 | AYP23: 285 | AYS23: 2336 | AYT23: 285 | AYW23: 2337 | AYX23: 285 | AZA23: 2338 | AZB23: 285 | AZE23: 2339 | AZF23: 285 | AZI23: 2340 | AZJ23: 285 | AZM23: 2341 | AZN23: 285 | AZQ23: 2342 | AZR23: 285 | AZU23: 2343 | AZV23: 285 | AZY23: 2344 | AZZ23: 285 | BAC23: 2345 | BAD23: 285 | BAG23: 2346 | BAH23: 285 | BAK23: 2347 | BAL23: 285 | BAO23: 2348 | BAP23: 285 | BAS23: 2349 | BAT23: 285 | BAW23: 2350 | BAX23: 285 | BBA23: 2351 | BBB23: 285 | BBE23: 2352 | BBF23: 285 | BBI23: 2353 | BBJ23: 285 | BBM23: 2354 | BBN23: 285 | BBQ23: 2355 | BBR23: 285 | BBU23: 2356 | BBV23: 285 | BBY23: 2357 | BBZ23: 285 | BCC23: 2358 | BCD23: 285 | BCG23: 2359 | BCH23: 285 | BCK23: 2360 | BCL23: 285 | BCO23: 2361 | BCP23: 285 | BCS23: 2362 | BCT23: 285 | BCW23: 2363 | BCX23: 285 | BDA23: 2364 | BDB23: 285 | BDE23: 2365 | BDF23: 285 | BDI23: 2366 | BDJ23: 285 | BDM23: 2367 | BDN23: 285 | BDQ23: 2368 | BDR23: 285 | BDU23: 2369 | BDV23: 285 | BDY23: 2370 | BDZ23: 285 | BEC23: 2371 | BED23: 285 | BEG23: 2372 | BEH23: 285 | BEK23: 2373 | BEL23: 285 | BEO23: 2374 | BEP23: 285 | BES23: 2375 | BET23: 285 | BEW23: 2376 | BEX23: 285 | BFA23: 2377 | BFB23: 285 | BFE23: 2378 | BFF23: 285 | BFI23: 2379 | BFJ23: 285 | BFM23: 2380 | BFN23: 285 | BFQ23: 2381 | BFR23: 285 | BFU23: 2382 | BFV23: 285 | BFY23: 2383 | BFZ23: 285 | BGC23: 2384 | BGD23: 285 | BGG23: 2385 | BGH23: 285 | BGK23: 2386 | BGL23: 285 | BGO23: 2387 | BGP23: 285 | BGS23: 2388 | BGT23: 285 | BGW23: 2389 | BGX23: 285 | BHA23: 2390 | BHB23: 285 | BHE23: 2391 | BHF23: 285 | BHI23: 2392 | BHJ23: 285 | BHM23: 2393 | BHN23: 285 | BHQ23: 2394 | BHR23: 285 | BHU23: 2395 | BHV23: 285 | BHY23: 2396 | BHZ23: 285 | BIC23: 2397 | BID23: 285 | BIG23: 2398 | BIH23: 285 | BIK23: 2399 | BIL23: 285
A24: 2000 | B24: 286 | E24: 2001 | F24: 286 | I24: 2002 | J24: 286 | M24: 2003 | N24: 286 | Q24: 2004 | R24: 286 | U24: 2005 | V24: 286 | Y24: 2006 | Z24: 286 | AC24: 2007 | AD24: 286 | AG24: 2008 | AH24: 286 | AK24: 2009 | AL24: 286 | AO24: 2010 | AP24: 286 | AS24: 2011 | AT24: 286 | AW24: 2012 | AX24: 286 | BA24: 2013 | BB24: 286 | BE24: 2014 | BF24: 286 | BI24: 2015 | BJ24: 286 | BM24: 2016 | BN24: 286 | BQ24: 2017 | BR24: 286 | BU24: 2018 | BV24: 286 | BY24: 2019 | BZ24: 286 | CC24: 2020 | CD24: 286 | CG24: 2021 | CH24: 286 | CK24: 2022 | CL24: 286 | CO24: 2023 | CP24: 286 | CS24: 2024 | CT24: 286 | CW24: 2025 | CX24: 286 | DA24: 2026 | DB24: 286 | DE24: 2027 | DF24: 286 | DI24: 2028 | DJ24: 286 | DM24: 2029 | DN24: 286 | DQ24: 2030 | DR24: 286 | DU24: 2031 | DV24: 286 | DY24: 2032 | DZ24: 286 | EC24: 2033 | ED24: 286 | EG24: 2034 | EH24: 286 | EK24: 2035 | EL24: 286 | EO24: 2036 | EP24: 286 | ES24: 2037 | ET24: 286 | EW24: 2038 | EX24: 286 | FA24: 2039 | FB24: 286 | FE24: 2040 | FF24: 286 | FI24: 2041 | FJ24: 286 | FM24: 2042 | FN24: 286 | FQ24: 2043 | FR24: 286 | FU24: 2044 | FV24: 286 | FY24: 2045 | FZ24: 286 | GC24: 2046 | GD24: 286 | GG24: 2047 | GH24: 286 | GK24: 2048 | GL24: 286 | GO24: 2049 | GP24: 286 | GS24: 2050 | GT24: 286 | GW24: 2051 | GX24: 286 | HA24: 2052 | HB24: 286 | HE24: 2053 | HF24: 286 | HI24: 2054 | HJ24: 286 | HM24: 2055 | HN24: 286 | HQ24: 2056 | HR24: 286 | HU24: 2057 | HV24: 286 | HY24: 2058 | HZ24: 286 | IC24: 2059 | ID24: 286 | IG24: 2060 | IH24: 286 | IK24: 2061 | IL24: 286 | IO24: 2062 | IP24: 286 | IS24: 2063 | IT24: 286 | IW24: 2064 | IX24: 286 | JA24: 2065 | JB24: 286 | JE24: 2066 | JF24: 286 | JI24: 2067 | JJ24: 286 | JM24: 2068 | JN24: 286 | JQ24: 2069 | JR24: 286 | JU24: 2070 | JV24: 286 | JY24: 2071 | JZ24: 286 | KC24: 2072 | KD24: 286 | KG24: 2073 | KH24: 286 | KK24: 2074 | KL24: 286 | KO24: 2075 | KP24: 286 | KS24: 2076 | KT24: 286 | KW24: 2077 | KX24: 286 | LA24: 2078 | LB24: 286 | LE24: 2079 | LF24: 286 | LI24: 2080 | LJ24: 286 | LM24: 2081 | LN24: 286 | LQ24: 2082 | LR24: 286 | LU24: 2083 | LV24: 286 | LY24: 2084 | LZ24: 286 | MC24: 2085 | MD24: 286 | MG24: 2086 | MH24: 286 | MK24: 2087 | ML24: 286 | MO24: 2088 | MP24: 286 | MS24: 2089 | MT24: 286 | MW24: 2090 | MX24: 286 | NA24: 2091 | NB24: 286 | NE24: 2092 | NF24: 286 | NI24: 2093 | NJ24: 286 | NM24: 2094 | NN24: 286 | NQ24: 2095 | NR24: 286 | NU24: 2096 | NV24: 286 | NY24: 2097 | NZ24: 286 | OC24: 2098 | OD24: 286 | OG24: 2099 | OH24: 286 | OK24: 2100 | OL24: 286 | OO24: 2101 | OP24: 286 | OS24: 2102 | OT24: 286 | OW24: 2103 | OX24: 286 | PA24: 2104 | PB24: 286 | PE24: 2105 | PF24: 286 | PI24: 2106 | PJ24: 286 | PM24: 2107 | PN24: 286 | PQ24: 2108 | PR24: 286 | PU24: 2109 | PV24: 286 | PY24: 2110 | PZ24: 286 | QC24: 2111 | QD24: 286 | QG24: 2112 | QH24: 286 | QK24: 2113 | QL24: 286 | QO24: 2114 | QP24: 286 | QS24: 2115 | QT24: 286 | QW24: 2116 | QX24: 286 | RA24: 2117 | RB24: 286 | RE24: 2118 | RF24: 286 | RI24: 2119 | RJ24: 286 | RM24: 2120 | RN24: 286 | RQ24: 2121 | RR24: 286 | RU24: 2122 | RV24: 286 | RY24: 2123 | RZ24: 286 | SC24: 2124 | SD24: 286 | SG24: 2125 | SH24: 286 | SK24: 2126 | SL24: 286 | SO24: 2127 | SP24: 286 | SS24: 2128 | ST24: 286 | SW24: 2129 | SX24: 286 | TA24: 2130 | TB24: 286 | TE24: 2131 | TF24: 286 | TI24: 2132 | TJ24: 286 | TM24: 2133 | TN24: 286 | TQ24: 2134 | TR24: 286 | TU24: 2135 | TV24: 286 | TY24: 2136 | TZ24: 286 | UC24: 2137 | UD24: 286 | UG24: 2138 | UH24: 286 | UK24: 2139 | UL24: 286 | UO24: 2140 | UP24: 286 | US24: 2141 | UT24: 286 | UW24: 2142 | UX24: 286 | VA24: 2143 | VB24: 286 | VE24: 2144 | VF24: 286 | VI24: 2145 | VJ24: 286 | VM24: 2146 | VN24: 286 | VQ24: 2147 | VR24: 286 | VU24: 2148 | VV24: 286 | VY24: 2149 | VZ24: 286 | WC24: 2150 | WD24: 286 | WG24: 2151 | WH24: 286 | WK24: 2152 | WL24: 286 | WO24: 2153 | WP24: 286 | WS24: 2154 | WT24: 286 | WW24: 2155 | WX24: 286 | XA24: 2156 | XB24: 286 | XE24: 2157 | XF24: 286 | XI24: 2158 | XJ24: 286 | XM24: 2159 | XN24: 286 | XQ24: 2160 | XR24: 286 | XU24: 2161 | XV24: 286 | XY24: 2162 | XZ24: 286 | YC24: 2163 | YD24: 286 | YG24: 2164 | YH24: 286 | YK24: 2165 | YL24: 286 | YO24: 2166 | YP24: 286 | YS24: 2167 | YT24: 286 | YW24: 2168 | YX24: 286 | ZA24: 2169 | ZB24: 286 | ZE24: 2170 | ZF24: 286 | ZI24: 2171 | ZJ24: 286 | ZM24: 2172 | ZN24: 286 | ZQ24: 2173 | ZR24: 286 | ZU24: 2174 | ZV24: 286 | ZY24: 2175 | ZZ24: 286 | AAC24: 2176 | AAD24: 286 | AAG24: 2177 | AAH24: 286 | AAK24: 2178 | AAL24: 286 | AAO24: 2179 | AAP24: 286 | AAS24: 2180 | AAT24: 286 | AAW24: 2181 | AAX24: 286 | ABA24: 2182 | ABB24: 286 | ABE24: 2183 | ABF24: 286 | ABI24: 2184 | ABJ24: 286 | ABM24: 2185 | ABN24: 286 | ABQ24: 2186 | ABR24: 286 | ABU24: 2187 | ABV24: 286 | ABY24: 2188 | ABZ24: 286 | ACC24: 2189 | ACD24: 286 | ACG24: 2190 | ACH24: 286 | ACK24: 2191 | ACL24: 286 | ACO24: 2192 | ACP24: 286 | ACS24: 2193 | ACT24: 286 | ACW24: 2194 | ACX24: 286 | ADA24: 2195 | ADB24: 286 | ADE24: 2196 | ADF24: 286 | ADI24: 2197 | ADJ24: 286 | ADM24: 2198 | ADN24: 286 | ADQ24: 2199 | ADR24: 286 | ADU24: 2200 | ADV24: 286 | ADY24: 2201 | ADZ24: 286 | AEC24: 2202 | AED24: 286 | AEG24: 2203 | AEH24: 286 | AEK24: 2204 | AEL24: 286 | AEO24: 2205 | AEP24: 286 | AES24: 2206 | AET24: 286 | AEW24: 2207 | AEX24: 286 | AFA24: 2208 | AFB24: 286 | AFE24: 2209 | AFF24: 286 | AFI24: 2210 | AFJ24: 286 | AFM24: 2211 | AFN24: 286 | AFQ24: 2212 | AFR24: 286 | AFU24: 2213 | AFV24: 286 | AFY24: 2214 | AFZ24: 286 | AGC24: 2215 | AGD24: 286 | AGG24: 2216 | AGH24: 286 | AGK24: 2217 | AGL24: 286 | AGO24: 2218 | AGP24: 286 | AGS24: 2219 | AGT24: 286 | AGW24: 2220 | AGX24: 286 | AHA24: 2221 | AHB24: 286 | AHE24: 2222 | AHF24: 286 | AHI24: 2223 | AHJ24: 286 | AHM24: 2224 | AHN24: 286 | AHQ24: 2225 | AHR24: 286 | AHU24: 2226 | AHV24: 286 | AHY24: 2227 | AHZ24: 286 | AIC24: 2228 | AID24: 286 | AIG24: 2229 | AIH24: 286 | AIK24: 2230 | AIL24: 286 | AIO24: 2231 | AIP24: 286 | AIS24: 2232 | AIT24: 286 | AIW24: 2233 | AIX24: 286 | AJA24: 2234 | AJB24: 286 | AJE24: 2235 | AJF24: 286 | AJI24: 2236 | AJJ24: 286 | AJM24: 2237 | AJN24: 286 | AJQ24: 2238 | AJR24: 286 | AJU24: 2239 | AJV24: 286 | AJY24: 2240 | AJZ24: 286 | AKC24: 2241 | AKD24: 286 | AKG24: 2242 | AKH24: 286 | AKK24: 2243 | AKL24: 286 | AKO24: 2244 | AKP24: 286 | AKS24: 2245 | AKT24: 286 | AKW24: 2246 | AKX24: 286 | ALA24: 2247 | ALB24: 286 | ALE24: 2248 | ALF24: 286 | ALI24: 2249 | ALJ24: 286 | ALM24: 2250 | ALN24: 286 | ALQ24: 2251 | ALR24: 286 | ALU24: 2252 | ALV24: 286 | ALY24: 2253 | ALZ24: 286 | AMC24: 2254 | AMD24: 286 | AMG24: 2255 | AMH24: 286 | AMK24: 2256 | AML24: 286 | AMO24: 2257 | AMP24: 286 | AMS24: 2258 | AMT24: 286 | AMW24: 2259 | AMX24: 286 | ANA24: 2260 | ANB24: 286 | ANE24: 2261 | ANF24: 286 | ANI24: 2262 | ANJ24: 286 | ANM24: 2263 | ANN24: 286 | ANQ24: 2264 | ANR24: 286 | ANU24: 2265 | ANV24: 286 | ANY24: 2266 | ANZ24: 286 | AOC24: 2267 | AOD24: 286 | AOG24: 2268 | AOH24: 286 | AOK24: 2269 | AOL24: 286 | AOO24: 2270 | AOP24: 286 | AOS24: 2271 | AOT24: 286 | AOW24: 2272 | AOX24: 286 | APA24: 2273 | APB24: 286 | APE24: 2274 | APF24: 286 | API24: 2275 | APJ24: 286 | APM24: 2276 | APN24: 286 | APQ24: 2277 | APR24: 286 | APU24: 2278 | APV24: 286 | APY24: 2279 | APZ24: 286 | AQC24: 2280 | AQD24: 286 | AQG24: 2281 | AQH24: 286 | AQK24: 2282 | AQL24: 286 | AQO24: 2283 | AQP24: 286 | AQS24: 2284 | AQT24: 286 | AQW24: 2285 | AQX24: 286 | ARA24: 2286 | ARB24: 286 | ARE24: 2287 | ARF24: 286 | ARI24: 2288 | ARJ24: 286 | ARM24: 2289 | ARN24: 286 | ARQ24: 2290 | ARR24: 286 | ARU24: 2291 | ARV24: 286 | ARY24: 2292 | ARZ24: 286 | ASC24: 2293 | ASD24: 286 | ASG24: 2294 | ASH24: 286 | ASK24: 2295 | ASL24: 286 | ASO24: 2296 | ASP24: 286 | ASS24: 2297 | AST24: 286 | ASW24: 2298 | ASX24: 286 | ATA24: 2299 | ATB24: 286 | ATE24: 2300 | ATF24: 286 | ATI24: 2301 | ATJ24: 286 | ATM24: 2302 | ATN24: 286 | ATQ24: 2303 | ATR24: 286 | ATU24: 2304 | ATV24: 286 | ATY24: 2305 | ATZ24: 286 | AUC24: 2306 | AUD24: 286 | AUG24: 2307 | AUH24: 286 | AUK24: 2308 | AUL24: 286 | AUO24: 2309 | AUP24: 286 | AUS24: 2310 | AUT24: 286 | AUW24: 2311 | AUX24: 286 | AVA24: 2312 | AVB24: 286 | AVE24: 2313 | AVF24: 286 | AVI24: 2314 | AVJ24: 286 | AVM24: 2315 | AVN24: 286 | AVQ24: 2316 | AVR24: 286 | AVU24: 2317 | AVV24: 286 | AVY24: 2318 | AVZ24: 286 | AWC24: 2319 | AWD24: 286 | AWG24: 2320 | AWH24: 286 | AWK24: 2321 | AWL24: 286 | AWO24: 2322 | AWP24: 286 | AWS24: 2323 | AWT24: 286 | AWW24: 2324 | AWX24: 286 | AXA24: 2325 | AXB24: 286 | AXE24: 2326 | AXF24: 286 | AXI24: 2327 | AXJ24: 286 | AXM24: 2328 | AXN24: 286 | AXQ24: 2329 | AXR24: 286 | AXU24: 2330 | AXV24: 286 | AXY24: 2331 | AXZ24: 286 | AYC24: 2332 | AYD24: 286 | AYG24: 2333 | AYH24: 286 | AYK24: 2334 | AYL24: 286 | AYO24: 2335 | AYP24: 286 | AYS24: 2336 | AYT24: 286 | AYW24: 2337 | AYX24: 286 | AZA24: 2338 | AZB24: 286 | AZE24: 2339 | AZF24: 286 | AZI24: 2340 | AZJ24: 286 | AZM24: 2341 | AZN24: 286 | AZQ24: 2342 | AZR24: 286 | AZU24: 2343 | AZV24: 286 | AZY24: 2344 | AZZ24: 286 | BAC24: 2345 | BAD24: 286 | BAG24: 2346 | BAH24: 286 | BAK24: 2347 | BAL24: 286 | BAO24: 2348 | BAP24: 286 | BAS24: 2349 | BAT24: 286 | BAW24: 2350 | BAX24: 286 | BBA24: 2351 | BBB24: 286 | BBE24: 2352 | BBF24: 286 | BBI24: 2353 | BBJ24: 286 | BBM24: 2354 | BBN24: 286 | BBQ24: 2355 | BBR24: 286 | BBU24: 2356 | BBV24: 286 | BBY24: 2357 | BBZ24: 286 | BCC24: 2358 | BCD24: 286 | BCG24: 2359 | BCH24: 286 | BCK24: 2360 | BCL24: 286 | BCO24: 2361 | BCP24: 286 | BCS24: 2362 | BCT24: 286 | BCW24: 2363 | BCX24: 286 | BDA24: 2364 | BDB24: 286 | BDE24: 2365 | BDF24: 286 | BDI24: 2366 | BDJ24: 286 | BDM24: 2367 | BDN24: 286 | BDQ24: 2368 | BDR24: 286 | BDU24: 2369 | BDV24: 286 | BDY24: 2370 | BDZ24: 286 | BEC24: 2371 | BED24: 286 | BEG24: 2372 | BEH24: 286 | BEK24: 2373 | BEL24: 286 | BEO24: 2374 | BEP24: 286 | BES24: 2375 | BET24: 286 | BEW24: 2376 | BEX24: 286 | BFA24: 2377 | BFB24: 286 | BFE24: 2378 | BFF24: 286 | BFI24: 2379 | BFJ24: 286 | BFM24: 2380 | BFN24: 286 | BFQ24: 2381 | BFR24: 286 | BFU24: 2382 | BFV24: 286 | BFY24: 2383 | BFZ24: 286 | BGC24: 2384 | BGD24: 286 | BGG24: 2385 | BGH24: 286 | BGK24: 2386 | BGL24: 286 | BGO24: 2387 | BGP24: 286 | BGS24: 2388 | BGT24: 286 | BGW24: 2389 | BGX24: 286 | BHA24: 2390 | BHB24: 286 | BHE24: 2391 | BHF24: 286 | BHI24: 2392 | BHJ24: 286 | BHM24: 2393 | BHN24: 286 | BHQ24: 2394 | BHR24: 286 | BHU24: 2395 | BHV24: 286 | BHY24: 2396 | BHZ24: 286 | BIC24: 2397 | BID24: 286 | BIG24: 2398 | BIH24: 286 | BIK24: 2399 | BIL24: 286
A25: 2000 | B25: 287 | E25: 2001 | F25: 287 | I25: 2002 | J25: 287 | M25: 2003 | N25: 287 | Q25: 2004 | R25: 287 | U25: 2005 | V25: 287 | Y25: 2006 | Z25: 287 | AC25: 2007 | AD25: 287 | AG25: 2008 | AH25: 287 | AK25: 2009 | AL25: 287 | AO25: 2010 | AP25: 287 | AS25: 2011 | AT25: 287 | AW25: 2012 | AX25: 287 | BA25: 2013 | BB25: 287 | BE25: 2014 | BF25: 287 | BI25: 2015 | BJ25: 287 | BM25: 2016 | BN25: 287 | BQ25: 2017 | BR25: 287 | BU25: 2018 | BV25: 287 | BY25: 2019 | BZ25: 287 | CC25: 2020 | CD25: 287 | CG25: 2021 | CH25: 287 | CK25: 2022 | CL25: 287 | CO25: 2023 | CP25: 287 | CS25: 2024 | CT25: 287 | CW25: 2025 | CX25: 287 | DA25: 2026 | DB25: 287 | DE25: 2027 | DF25: 287 | DI25: 2028 | DJ25: 287 | DM25: 2029 | DN25: 287 | DQ25: 2030 | DR25: 287 | DU25: 2031 | DV25: 287 | DY25: 2032 | DZ25: 287 | EC25: 2033 | ED25: 287 | EG25: 2034 | EH25: 287 | EK25: 2035 | EL25: 287 | EO25: 2036 | EP25: 287 | ES25: 2037 | ET25: 287 | EW25: 2038 | EX25: 287 | FA25: 2039 | FB25: 287 | FE25: 2040 | FF25: 287 | FI25: 2041 | FJ25: 287 | FM25: 2042 | FN25: 287 | FQ25: 2043 | FR25: 287 | FU25: 2044 | FV25: 287 | FY25: 2045 | FZ25: 287 | GC25: 2046 | GD25: 287 | GG25: 2047 | GH25: 287 | GK25: 2048 | GL25: 287 | GO25: 2049 | GP25: 287 | GS25: 2050 | GT25: 287 | GW25: 2051 | GX25: 287 | HA25: 2052 | HB25: 287 | HE25: 2053 | HF25: 287 | HI25: 2054 | HJ25: 287 | HM25: 2055 | HN25: 287 | HQ25: 2056 | HR25: 287 | HU25: 2057 | HV25: 287 | HY25: 2058 | HZ25: 287 | IC25: 2059 | ID25: 287 | IG25: 2060 | IH25: 287 | IK25: 2061 | IL25: 287 | IO25: 2062 | IP25: 287 | IS25: 2063 | IT25: 287 | IW25: 2064 | IX25: 287 | JA25: 2065 | JB25: 287 | JE25: 2066 | JF25: 287 | JI25: 2067 | JJ25: 287 | JM25: 2068 | JN25: 287 | JQ25: 2069 | JR25: 287 | JU25: 2070 | JV25: 287 | JY25: 2071 | JZ25: 287 | KC25: 2072 | KD25: 287 | KG25: 2073 | KH25: 287 | KK25: 2074 | KL25: 287 | KO25: 2075 | KP25: 287 | KS25: 2076 | KT25: 287 | KW25: 2077 | KX25: 287 | LA25: 2078 | LB25: 287 | LE25: 2079 | LF25: 287 | LI25: 2080 | LJ25: 287 | LM25: 2081 | LN25: 287 | LQ25: 2082 | LR25: 287 | LU25: 2083 | LV25: 287 | LY25: 2084 | LZ25: 287 | MC25: 2085 | MD25: 287 | MG25: 2086 | MH25: 287 | MK25: 2087 | ML25: 287 | MO25: 2088 | MP25: 287 | MS25: 2089 | MT25: 287 | MW25: 2090 | MX25: 287 | NA25: 2091 | NB25: 287 | NE25: 2092 | NF25: 287 | NI25: 2093 | NJ25: 287 | NM25: 2094 | NN25: 287 | NQ25: 2095 | NR25: 287 | NU25: 2096 | NV25: 287 | NY25: 2097 | NZ25: 287 | OC25: 2098 | OD25: 287 | OG25: 2099 | OH25: 287 | OK25: 2100 | OL25: 287 | OO25: 2101 | OP25: 287 | OS25: 2102 | OT25: 287 | OW25: 2103 | OX25: 287 | PA25: 2104 | PB25: 287 | PE25: 2105 | PF25: 287 | PI25: 2106 | PJ25: 287 | PM25: 2107 | PN25: 287 | PQ25: 2108 | PR25: 287 | PU25: 2109 | PV25: 287 | PY25: 2110 | PZ25: 287 | QC25: 2111 | QD25: 287 | QG25: 2112 | QH25: 287 | QK25: 2113 | QL25: 287 | QO25: 2114 | QP25: 287 | QS25: 2115 | QT25: 287 | QW25: 2116 | QX25: 287 | RA25: 2117 | RB25: 287 | RE25: 2118 | RF25: 287 | RI25: 2119 | RJ25: 287 | RM25: 2120 | RN25: 287 | RQ25: 2121 | RR25: 287 | RU25: 2122 | RV25: 287 | RY25: 2123 | RZ25: 287 | SC25: 2124 | SD25: 287 | SG25: 2125 | SH25: 287 | SK25: 2126 | SL25: 287 | SO25: 2127 | SP25: 287 | SS25: 2128 | ST25: 287 | SW25: 2129 | SX25: 287 | TA25: 2130 | TB25: 287 | TE25: 2131 | TF25: 287 | TI25: 2132 | TJ25: 287 | TM25: 2133 | TN25: 287 | TQ25: 2134 | TR25: 287 | TU25: 2135 | TV25: 287 | TY25: 2136 | TZ25: 287 | UC25: 2137 | UD25: 287 | UG25: 2138 | UH25: 287 | UK25: 2139 | UL25: 287 | UO25: 2140 | UP25: 287 | US25: 2141 | UT25: 287 | UW25: 2142 | UX25: 287 | VA25: 2143 | VB25: 287 | VE25: 2144 | VF25: 287 | VI25: 2145 | VJ25: 287 | VM25: 2146 | VN25: 287 | VQ25: 2147 | VR25: 287 | VU25: 2148 | VV25: 287 | VY25: 2149 | VZ25: 287 | WC25: 2150 | WD25: 287 | WG25: 2151 | WH25: 287 | WK25: 2152 | WL25: 287 | WO25: 2153 | WP25: 287 | WS25: 2154 | WT25: 287 | WW25: 2155 | WX25: 287 | XA25: 2156 | XB25: 287 | XE25: 2157 | XF25: 287 | XI25: 2158 | XJ25: 287 | XM25: 2159 | XN25: 287 | XQ25: 2160 | XR25: 287 | XU25: 2161 | XV25: 287 | XY25: 2162 | XZ25: 287 | YC25: 2163 | YD25: 287 | YG25: 2164 | YH25: 287 | YK25: 2165 | YL25: 287 | YO25: 2166 | YP25: 287 | YS25: 2167 | YT25: 287 | YW25: 2168 | YX25: 287 | ZA25: 2169 | ZB25: 287 | ZE25: 2170 | ZF25: 287 | ZI25: 2171 | ZJ25: 287 | ZM25: 2172 | ZN25: 287 | ZQ25: 2173 | ZR25: 287 | ZU25: 2174 | ZV25: 287 | ZY25: 2175 | ZZ25: 287 | AAC25: 2176 | AAD25: 287 | AAG25: 2177 | AAH25: 287 | AAK25: 2178 | AAL25: 287 | AAO25: 2179 | AAP25: 287 | AAS25: 2180 | AAT25: 287 | AAW25: 2181 | AAX25: 287 | ABA25: 2182 | ABB25: 287 | ABE25: 2183 | ABF25: 287 | ABI25: 2184 | ABJ25: 287 | ABM25: 2185 | ABN25: 287 | ABQ25: 2186 | ABR25: 287 | ABU25: 2187 | ABV25: 287 | ABY25: 2188 | ABZ25: 287 | ACC25: 2189 | ACD25: 287 | ACG25: 2190 | ACH25: 287 | ACK25: 2191 | ACL25: 287 | ACO25: 2192 | ACP25: 287 | ACS25: 2193 | ACT25: 287 | ACW25: 2194 | ACX25: 287 | ADA25: 2195 | ADB25: 287 | ADE25: 2196 | ADF25: 287 | ADI25: 2197 | ADJ25: 287 | ADM25: 2198 | ADN25: 287 | ADQ25: 2199 | ADR25: 287 | ADU25: 2200 | ADV25: 287 | ADY25: 2201 | ADZ25: 287 | AEC25: 2202 | AED25: 287 | AEG25: 2203 | AEH25: 287 | AEK25: 2204 | AEL25: 287 | AEO25: 2205 | AEP25: 287 | AES25: 2206 | AET25: 287 | AEW25: 2207 | AEX25: 287 | AFA25: 2208 | AFB25: 287 | AFE25: 2209 | AFF25: 287 | AFI25: 2210 | AFJ25: 287 | AFM25: 2211 | AFN25: 287 | AFQ25: 2212 | AFR25: 287 | AFU25: 2213 | AFV25: 287 | AFY25: 2214 | AFZ25: 287 | AGC25: 2215 | AGD25: 287 | AGG25: 2216 | AGH25: 287 | AGK25: 2217 | AGL25: 287 | AGO25: 2218 | AGP25: 287 | AGS25: 2219 | AGT25: 287 | AGW25: 2220 | AGX25: 287 | AHA25: 2221 | AHB25: 287 | AHE25: 2222 | AHF25: 287 | AHI25: 2223 | AHJ25: 287 | AHM25: 2224 | AHN25: 287 | AHQ25: 2225 | AHR25: 287 | AHU25: 2226 | AHV25: 287 | AHY25: 2227 | AHZ25: 287 | AIC25: 2228 | AID25: 287 | AIG25: 2229 | AIH25: 287 | AIK25: 2230 | AIL25: 287 | AIO25: 2231 | AIP25: 287 | AIS25: 2232 | AIT25: 287 | AIW25: 2233 | AIX25: 287 | AJA25: 2234 | AJB25: 287 | AJE25: 2235 | AJF25: 287 | AJI25: 2236 | AJJ25: 287 | AJM25: 2237 | AJN25: 287 | AJQ25: 2238 | AJR25: 287 | AJU25: 2239 | AJV25: 287 | AJY25: 2240 | AJZ25: 287 | AKC25: 2241 | AKD25: 287 | AKG25: 2242 | AKH25: 287 | AKK25: 2243 | AKL25: 287 | AKO25: 2244 | AKP25: 287 | AKS25: 2245 | AKT25: 287 | AKW25: 2246 | AKX25: 287 | ALA25: 2247 | ALB25: 287 | ALE25: 2248 | ALF25: 287 | ALI25: 2249 | ALJ25: 287 | ALM25: 2250 | ALN25: 287 | ALQ25: 2251 | ALR25: 287 | ALU25: 2252 | ALV25: 287 | ALY25: 2253 | ALZ25: 287 | AMC25: 2254 | AMD25: 287 | AMG25: 2255 | AMH25: 287 | AMK25: 2256 | AML25: 287 | AMO25: 2257 | AMP25: 287 | AMS25: 2258 | AMT25: 287 | AMW25: 2259 | AMX25: 287 | ANA25: 2260 | ANB25: 287 | ANE25: 2261 | ANF25: 287 | ANI25: 2262 | ANJ25: 287 | ANM25: 2263 | ANN25: 287 | ANQ25: 2264 | ANR25: 287 | ANU25: 2265 | ANV25: 287 | ANY25: 2266 | ANZ25: 287 | AOC25: 2267 | AOD25: 287 | AOG25: 2268 | AOH25: 287 | AOK25: 2269 | AOL25: 287 | AOO25: 2270 | AOP25: 287 | AOS25: 2271 | AOT25: 287 | AOW25: 2272 | AOX25: 287 | APA25: 2273 | APB25: 287 | APE25: 2274 | APF25: 287 | API25: 2275 | APJ25: 287 | APM25: 2276 | APN25: 287 | APQ25: 2277 | APR25: 287 | APU25: 2278 | APV25: 287 | APY25: 2279 | APZ25: 287 | AQC25: 2280 | AQD25: 287 | AQG25: 2281 | AQH25: 287 | AQK25: 2282 | AQL25: 287 | AQO25: 2283 | AQP25: 287 | AQS25: 2284 | AQT25: 287 | AQW25: 2285 | AQX25: 287 | ARA25: 2286 | ARB25: 287 | ARE25: 2287 | ARF25: 287 | ARI25: 2288 | ARJ25: 287 | ARM25: 2289 | ARN25: 287 | ARQ25: 2290 | ARR25: 287 | ARU25: 2291 | ARV25: 287 | ARY25: 2292 | ARZ25: 287 | ASC25: 2293 | ASD25: 287 | ASG25: 2294 | ASH25: 287 | ASK25: 2295 | ASL25: 287 | ASO25: 2296 | ASP25: 287 | ASS25: 2297 | AST25: 287 | ASW25: 2298 | ASX25: 287 | ATA25: 2299 | ATB25: 287 | ATE25: 2300 | ATF25: 287 | ATI25: 2301 | ATJ25: 287 | ATM25: 2302 | ATN25: 287 | ATQ25: 2303 | ATR25: 287 | ATU25: 2304 | ATV25: 287 | ATY25: 2305 | ATZ25: 287 | AUC25: 2306 | AUD25: 287 | AUG25: 2307 | AUH25: 287 | AUK25: 2308 | AUL25: 287 | AUO25: 2309 | AUP25: 287 | AUS25: 2310 | AUT25: 287 | AUW25: 2311 | AUX25: 287 | AVA25: 2312 | AVB25: 287 | AVE25: 2313 | AVF25: 287 | AVI25: 2314 | AVJ25: 287 | AVM25: 2315 | AVN25: 287 | AVQ25: 2316 | AVR25: 287 | AVU25: 2317 | AVV25: 287 | AVY25: 2318 | AVZ25: 287 | AWC25: 2319 | AWD25: 287 | AWG25: 2320 | AWH25: 287 | AWK25: 2321 | AWL25: 287 | AWO25: 2322 | AWP25: 287 | AWS25: 2323 | AWT25: 287 | AWW25: 2324 | AWX25: 287 | AXA25: 2325 | AXB25: 287 | AXE25: 2326 | AXF25: 287 | AXI25: 2327 | AXJ25: 287 | AXM25: 2328 | AXN25: 287 | AXQ25: 2329 | AXR25: 287 | AXU25: 2330 | AXV25: 287 | AXY25: 2331 | AXZ25: 287 | AYC25: 2332 | AYD25: 287 | AYG25: 2333 | AYH25: 287 | AYK25: 2334 | AYL25: 287 | AYO25: 2335 | AYP25: 287 | AYS25: 2336 | AYT25: 287 | AYW25: 2337 | AYX25: 287 | AZA25: 2338 | AZB25: 287 | AZE25: 2339 | AZF25: 287 | AZI25: 2340 | AZJ25: 287 | AZM25: 2341 | AZN25: 287 | AZQ25: 2342 | AZR25: 287 | AZU25: 2343 | AZV25: 287 | AZY25: 2344 | AZZ25: 287 | BAC25: 2345 | BAD25: 287 | BAG25: 2346 | BAH25: 287 | BAK25: 2347 | BAL25: 287 | BAO25: 2348 | BAP25: 287 | BAS25: 2349 | BAT25: 287 | BAW25: 2350 | BAX25: 287 | BBA25: 2351 | BBB25: 287 | BBE25: 2352 | BBF25: 287 | BBI25: 2353 | BBJ25: 287 | BBM25: 2354 | BBN25: 287 | BBQ25: 2355 | BBR25: 287 | BBU25: 2356 | BBV25: 287 | BBY25: 2357 | BBZ25: 287 | BCC25: 2358 | BCD25: 287 | BCG25: 2359 | BCH25: 287 | BCK25: 2360 | BCL25: 287 | BCO25: 2361 | BCP25: 287 | BCS25: 2362 | BCT25: 287 | BCW25: 2363 | BCX25: 287 | BDA25: 2364 | BDB25: 287 | BDE25: 2365 | BDF25: 287 | BDI25: 2366 | BDJ25: 287 | BDM25: 2367 | BDN25: 287 | BDQ25: 2368 | BDR25: 287 | BDU25: 2369 | BDV25: 287 | BDY25: 2370 | BDZ25: 287 | BEC25: 2371 | BED25: 287 | BEG25: 2372 | BEH25: 287 | BEK25: 2373 | BEL25: 287 | BEO25: 2374 | BEP25: 287 | BES25: 2375 | BET25: 287 | BEW25: 2376 | BEX25: 287 | BFA25: 2377 | BFB25: 287 | BFE25: 2378 | BFF25: 287 | BFI25: 2379 | BFJ25: 287 | BFM25: 2380 | BFN25: 287 | BFQ25: 2381 | BFR25: 287 | BFU25: 2382 | BFV25: 287 | BFY25: 2383 | BFZ25: 287 | BGC25: 2384 | BGD25: 287 | BGG25: 2385 | BGH25: 287 | BGK25: 2386 | BGL25: 287 | BGO25: 2387 | BGP25: 287 | BGS25: 2388 | BGT25: 287 | BGW25: 2389 | BGX25: 287 | BHA25: 2390 | BHB25: 287 | BHE25: 2391 | BHF25: 287 | BHI25: 2392 | BHJ25: 287 | BHM25: 2393 | BHN25: 287 | BHQ25: 2394 | BHR25: 287 | BHU25: 2395 | BHV25: 287 | BHY25: 2396 | BHZ25: 287 | BIC25: 2397 | BID25: 287 | BIG25: 2398 | BIH25: 287 | BIK25: 2399 | BIL25: 287
A26: 2000 | B26: 288 | E26: 2001 | F26: 288 | I26: 2002 | J26: 288 | M26: 2003 | N26: 288 | Q26: 2004 | R26: 288 | U26: 2005 | V26: 288 | Y26: 2006 | Z26: 288 | AC26: 2007 | AD26: 288 | AG26: 2008 | AH26: 288 | AK26: 2009 | AL26: 288 | AO26: 2010 | AP26: 288 | AS26: 2011 | AT26: 288 | AW26: 2012 | AX26: 288 | BA26: 2013 | BB26: 288 | BE26: 2014 | BF26: 288 | BI26: 2015 | BJ26: 288 | BM26: 2016 | BN26: 288 | BQ26: 2017 | BR26: 288 | BU26: 2018 | BV26: 288 | BY26: 2019 | BZ26: 288 | CC26: 2020 | CD26: 288 | CG26: 2021 | CH26: 288 | CK26: 2022 | CL26: 288 | CO26: 2023 | CP26: 288 | CS26: 2024 | CT26: 288 | CW26: 2025 | CX26: 288 | DA26: 2026 | DB26: 288 | DE26: 2027 | DF26: 288 | DI26: 2028 | DJ26: 288 | DM26: 2029 | DN26: 288 | DQ26: 2030 | DR26: 288 | DU26: 2031 | DV26: 288 | DY26: 2032 | DZ26: 288 | EC26: 2033 | ED26: 288 | EG26: 2034 | EH26: 288 | EK26: 2035 | EL26: 288 | EO26: 2036 | EP26: 288 | ES26: 2037 | ET26: 288 | EW26: 2038 | EX26: 288 | FA26: 2039 | FB26: 288 | FE26: 2040 | FF26: 288 | FI26: 2041 | FJ26: 288 | FM26: 2042 | FN26: 288 | FQ26: 2043 | FR26: 288 | FU26: 2044 | FV26: 288 | FY26: 2045 | FZ26: 288 | GC26: 2046 | GD26: 288 | GG26: 2047 | GH26: 288 | GK26: 2048 | GL26: 288 | GO26: 2049 | GP26: 288 | GS26: 2050 | GT26: 288 | GW26: 2051 | GX26: 288 | HA26: 2052 | HB26: 288 | HE26: 2053 | HF26: 288 | HI26: 2054 | HJ26: 288 | HM26: 2055 | HN26: 288 | HQ26: 2056 | HR26: 288 | HU26: 2057 | HV26: 288 | HY26: 2058 | HZ26: 288 | IC26: 2059 | ID26: 288 | IG26: 2060 | IH26: 288 | IK26: 2061 | IL26: 288 | IO26: 2062 | IP26: 288 | IS26: 2063 | IT26: 288 | IW26: 2064 | IX26: 288 | JA26: 2065 | JB26: 288 | JE26: 2066 | JF26: 288 | JI26: 2067 | JJ26: 288 | JM26: 2068 | JN26: 288 | JQ26: 2069 | JR26: 288 | JU26: 2070 | JV26: 288 | JY26: 2071 | JZ26: 288 | KC26: 2072 | KD26: 288 | KG26: 2073 | KH26: 288 | KK26: 2074 | KL26: 288 | KO26: 2075 | KP26: 288 | KS26: 2076 | KT26: 288 | KW26: 2077 | KX26: 288 | LA26: 2078 | LB26: 288 | LE26: 2079 | LF26: 288 | LI26: 2080 | LJ26: 288 | LM26: 2081 | LN26: 288 | LQ26: 2082 | LR26: 288 | LU26: 2083 | LV26: 288 | LY26: 2084 | LZ26: 288 | MC26: 2085 | MD26: 288 | MG26: 2086 | MH26: 288 | MK26: 2087 | ML26: 288 | MO26: 2088 | MP26: 288 | MS26: 2089 | MT26: 288 | MW26: 2090 | MX26: 288 | NA26: 2091 | NB26: 288 | NE26: 2092 | NF26: 288 | NI26: 2093 | NJ26: 288 | NM26: 2094 | NN26: 288 | NQ26: 2095 | NR26: 288 | NU26: 2096 | NV26: 288 | NY26: 2097 | NZ26: 288 | OC26: 2098 | OD26: 288 | OG26: 2099 | OH26: 288 | OK26: 2100 | OL26: 288 | OO26: 2101 | OP26: 288 | OS26: 2102 | OT26: 288 | OW26: 2103 | OX26: 288 | PA26: 2104 | PB26: 288 | PE26: 2105 | PF26: 288 | PI26: 2106 | PJ26: 288 | PM26: 2107 | PN26: 288 | PQ26: 2108 | PR26: 288 | PU26: 2109 | PV26: 288 | PY26: 2110 | PZ26: 288 | QC26: 2111 | QD26: 288 | QG26: 2112 | QH26: 288 | QK26: 2113 | QL26: 288 | QO26: 2114 | QP26: 288 | QS26: 2115 | QT26: 288 | QW26: 2116 | QX26: 288 | RA26: 2117 | RB26: 288 | RE26: 2118 | RF26: 288 | RI26: 2119 | RJ26: 288 | RM26: 2120 | RN26: 288 | RQ26: 2121 | RR26: 288 | RU26: 2122 | RV26: 288 | RY26: 2123 | RZ26: 288 | SC26: 2124 | SD26: 288 | SG26: 2125 | SH26: 288 | SK26: 2126 | SL26: 288 | SO26: 2127 | SP26: 288 | SS26: 2128 | ST26: 288 | SW26: 2129 | SX26: 288 | TA26: 2130 | TB26: 288 | TE26: 2131 | TF26: 288 | TI26: 2132 | TJ26: 288 | TM26: 2133 | TN26: 288 | TQ26: 2134 | TR26: 288 | TU26: 2135 | TV26: 288 | TY26: 2136 | TZ26: 288 | UC26: 2137 | UD26: 288 | UG26: 2138 | UH26: 288 | UK26: 2139 | UL26: 288 | UO26: 2140 | UP26: 288 | US26: 2141 | UT26: 288 | UW26: 2142 | UX26: 288 | VA26: 2143 | VB26: 288 | VE26: 2144 | VF26: 288 | VI26: 2145 | VJ26: 288 | VM26: 2146 | VN26: 288 | VQ26: 2147 | VR26: 288 | VU26: 2148 | VV26: 288 | VY26: 2149 | VZ26: 288 | WC26: 2150 | WD26: 288 | WG26: 2151 | WH26: 288 | WK26: 2152 | WL26: 288 | WO26: 2153 | WP26: 288 | WS26: 2154 | WT26: 288 | WW26: 2155 | WX26: 288 | XA26: 2156 | XB26: 288 | XE26: 2157 | XF26: 288 | XI26: 2158 | XJ26: 288 | XM26: 2159 | XN26: 288 | XQ26: 2160 | XR26: 288 | XU26: 2161 | XV26: 288 | XY26: 2162 | XZ26: 288 | YC26: 2163 | YD26: 288 | YG26: 2164 | YH26: 288 | YK26: 2165 | YL26: 288 | YO26: 2166 | YP26: 288 | YS26: 2167 | YT26: 288 | YW26: 2168 | YX26: 288 | ZA26: 2169 | ZB26: 288 | ZE26: 2170 | ZF26: 288 | ZI26: 2171 | ZJ26: 288 | ZM26: 2172 | ZN26: 288 | ZQ26: 2173 | ZR26: 288 | ZU26: 2174 | ZV26: 288 | ZY26: 2175 | ZZ26: 288 | AAC26: 2176 | AAD26: 288 | AAG26: 2177 | AAH26: 288 | AAK26: 2178 | AAL26: 288 | AAO26: 2179 | AAP26: 288 | AAS26: 2180 | AAT26: 288 | AAW26: 2181 | AAX26: 288 | ABA26: 2182 | ABB26: 288 | ABE26: 2183 | ABF26: 288 | ABI26: 2184 | ABJ26: 288 | ABM26: 2185 | ABN26: 288 | ABQ26: 2186 | ABR26: 288 | ABU26: 2187 | ABV26: 288 | ABY26: 2188 | ABZ26: 288 | ACC26: 2189 | ACD26: 288 | ACG26: 2190 | ACH26: 288 | ACK26: 2191 | ACL26: 288 | ACO26: 2192 | ACP26: 288 | ACS26: 2193 | ACT26: 288 | ACW26: 2194 | ACX26: 288 | ADA26: 2195 | ADB26: 288 | ADE26: 2196 | ADF26: 288 | ADI26: 2197 | ADJ26: 288 | ADM26: 2198 | ADN26: 288 | ADQ26: 2199 | ADR26: 288 | ADU26: 2200 | ADV26: 288 | ADY26: 2201 | ADZ26: 288 | AEC26: 2202 | AED26: 288 | AEG26: 2203 | AEH26: 288 | AEK26: 2204 | AEL26: 288 | AEO26: 2205 | AEP26: 288 | AES26: 2206 | AET26: 288 | AEW26: 2207 | AEX26: 288 | AFA26: 2208 | AFB26: 288 | AFE26: 2209 | AFF26: 288 | AFI26: 2210 | AFJ26: 288 | AFM26: 2211 | AFN26: 288 | AFQ26: 2212 | AFR26: 288 | AFU26: 2213 | AFV26: 288 | AFY26: 2214 | AFZ26: 288 | AGC26: 2215 | AGD26: 288 | AGG26: 2216 | AGH26: 288 | AGK26: 2217 | AGL26: 288 | AGO26: 2218 | AGP26: 288 | AGS26: 2219 | AGT26: 288 | AGW26: 2220 | AGX26: 288 | AHA26: 2221 | AHB26: 288 | AHE26: 2222 | AHF26: 288 | AHI26: 2223 | AHJ26: 288 | AHM26: 2224 | AHN26: 288 | AHQ26: 2225 | AHR26: 288 | AHU26: 2226 | AHV26: 288 | AHY26: 2227 | AHZ26: 288 | AIC26: 2228 | AID26: 288 | AIG26: 2229 | AIH26: 288 | AIK26: 2230 | AIL26: 288 | AIO26: 2231 | AIP26: 288 | AIS26: 2232 | AIT26: 288 | AIW26: 2233 | AIX26: 288 | AJA26: 2234 | AJB26: 288 | AJE26: 2235 | AJF26: 288 | AJI26: 2236 | AJJ26: 288 | AJM26: 2237 | AJN26: 288 | AJQ26: 2238 | AJR26: 288 | AJU26: 2239 | AJV26: 288 | AJY26: 2240 | AJZ26: 288 | AKC26: 2241 | AKD26: 288 | AKG26: 2242 | AKH26: 288 | AKK26: 2243 | AKL26: 288 | AKO26: 2244 | AKP26: 288 | AKS26: 2245 | AKT26: 288 | AKW26: 2246 | AKX26: 288 | ALA26: 2247 | ALB26: 288 | ALE26: 2248 | ALF26: 288 | ALI26: 2249 | ALJ26: 288 | ALM26: 2250 | ALN26: 288 | ALQ26: 2251 | ALR26: 288 | ALU26: 2252 | ALV26: 288 | ALY26: 2253 | ALZ26: 288 | AMC26: 2254 | AMD26: 288 | AMG26: 2255 | AMH26: 288 | AMK26: 2256 | AML26: 288 | AMO26: 2257 | AMP26: 288 | AMS26: 2258 | AMT26: 288 | AMW26: 2259 | AMX26: 288 | ANA26: 2260 | ANB26: 288 | ANE26: 2261 | ANF26: 288 | ANI26: 2262 | ANJ26: 288 | ANM26: 2263 | ANN26: 288 | ANQ26: 2264 | ANR26: 288 | ANU26: 2265 | ANV26: 288 | ANY26: 2266 | ANZ26: 288 | AOC26: 2267 | AOD26: 288 | AOG26: 2268 | AOH26: 288 | AOK26: 2269 | AOL26: 288 | AOO26: 2270 | AOP26: 288 | AOS26: 2271 | AOT26: 288 | AOW26: 2272 | AOX26: 288 | APA26: 2273 | APB26: 288 | APE26: 2274 | APF26: 288 | API26: 2275 | APJ26: 288 | APM26: 2276 | APN26: 288 | APQ26: 2277 | APR26: 288 | APU26: 2278 | APV26: 288 | APY26: 2279 | APZ26: 288 | AQC26: 2280 | AQD26: 288 | AQG26: 2281 | AQH26: 288 | AQK26: 2282 | AQL26: 288 | AQO26: 2283 | AQP26: 288 | AQS26: 2284 | AQT26: 288 | AQW26: 2285 | AQX26: 288 | ARA26: 2286 | ARB26: 288 | ARE26: 2287 | ARF26: 288 | ARI26: 2288 | ARJ26: 288 | ARM26: 2289 | ARN26: 288 | ARQ26: 2290 | ARR26: 288 | ARU26: 2291 | ARV26: 288 | ARY26: 2292 | ARZ26: 288 | ASC26: 2293 | ASD26: 288 | ASG26: 2294 | ASH26: 288 | ASK26: 2295 | ASL26: 288 | ASO26: 2296 | ASP26: 288 | ASS26: 2297 | AST26: 288 | ASW26: 2298 | ASX26: 288 | ATA26: 2299 | ATB26: 288 | ATE26: 2300 | ATF26: 288 | ATI26: 2301 | ATJ26: 288 | ATM26: 2302 | ATN26: 288 | ATQ26: 2303 | ATR26: 288 | ATU26: 2304 | ATV26: 288 | ATY26: 2305 | ATZ26: 288 | AUC26: 2306 | AUD26: 288 | AUG26: 2307 | AUH26: 288 | AUK26: 2308 | AUL26: 288 | AUO26: 2309 | AUP26: 288 | AUS26: 2310 | AUT26: 288 | AUW26: 2311 | AUX26: 288 | AVA26: 2312 | AVB26: 288 | AVE26: 2313 | AVF26: 288 | AVI26: 2314 | AVJ26: 288 | AVM26: 2315 | AVN26: 288 | AVQ26: 2316 | AVR26: 288 | AVU26: 2317 | AVV26: 288 | AVY26: 2318 | AVZ26: 288 | AWC26: 2319 | AWD26: 288 | AWG26: 2320 | AWH26: 288 | AWK26: 2321 | AWL26: 288 | AWO26: 2322 | AWP26: 288 | AWS26: 2323 | AWT26: 288 | AWW26: 2324 | AWX26: 288 | AXA26: 2325 | AXB26: 288 | AXE26: 2326 | AXF26: 288 | AXI26: 2327 | AXJ26: 288 | AXM26: 2328 | AXN26: 288 | AXQ26: 2329 | AXR26: 288 | AXU26: 2330 | AXV26: 288 | AXY26: 2331 | AXZ26: 288 | AYC26: 2332 | AYD26: 288 | AYG26: 2333 | AYH26: 288 | AYK26: 2334 | AYL26: 288 | AYO26: 2335 | AYP26: 288 | AYS26: 2336 | AYT26: 288 | AYW26: 2337 | AYX26: 288 | AZA26: 2338 | AZB26: 288 | AZE26: 2339 | AZF26: 288 | AZI26: 2340 | AZJ26: 288 | AZM26: 2341 | AZN26: 288 | AZQ26: 2342 | AZR26: 288 | AZU26: 2343 | AZV26: 288 | AZY26: 2344 | AZZ26: 288 | BAC26: 2345 | BAD26: 288 | BAG26: 2346 | BAH26: 288 | BAK26: 2347 | BAL26: 288 | BAO26: 2348 | BAP26: 288 | BAS26: 2349 | BAT26: 288 | BAW26: 2350 | BAX26: 288 | BBA26: 2351 | BBB26: 288 | BBE26: 2352 | BBF26: 288 | BBI26: 2353 | BBJ26: 288 | BBM26: 2354 | BBN26: 288 | BBQ26: 2355 | BBR26: 288 | BBU26: 2356 | BBV26: 288 | BBY26: 2357 | BBZ26: 288 | BCC26: 2358 | BCD26: 288 | BCG26: 2359 | BCH26: 288 | BCK26: 2360 | BCL26: 288 | BCO26: 2361 | BCP26: 288 | BCS26: 2362 | BCT26: 288 | BCW26: 2363 | BCX26: 288 | BDA26: 2364 | BDB26: 288 | BDE26: 2365 | BDF26: 288 | BDI26: 2366 | BDJ26: 288 | BDM26: 2367 | BDN26: 288 | BDQ26: 2368 | BDR26: 288 | BDU26: 2369 | BDV26: 288 | BDY26: 2370 | BDZ26: 288 | BEC26: 2371 | BED26: 288 | BEG26: 2372 | BEH26: 288 | BEK26: 2373 | BEL26: 288 | BEO26: 2374 | BEP26: 288 | BES26: 2375 | BET26: 288 | BEW26: 2376 | BEX26: 288 | BFA26: 2377 | BFB26: 288 | BFE26: 2378 | BFF26: 288 | BFI26: 2379 | BFJ26: 288 | BFM26: 2380 | BFN26: 288 | BFQ26: 2381 | BFR26: 288 | BFU26: 2382 | BFV26: 288 | BFY26: 2383 | BFZ26: 288 | BGC26: 2384 | BGD26: 288 | BGG26: 2385 | BGH26: 288 | BGK26: 2386 | BGL26: 288 | BGO26: 2387 | BGP26: 288 | BGS26: 2388 | BGT26: 288 | BGW26: 2389 | BGX26: 288 | BHA26: 2390 | BHB26: 288 | BHE26: 2391 | BHF26: 288 | BHI26: 2392 | BHJ26: 288 | BHM26: 2393 | BHN26: 288 | BHQ26: 2394 | BHR26: 288 | BHU26: 2395 | BHV26: 288 | BHY26: 2396 | BHZ26: 288 | BIC26: 2397 | BID26: 288 | BIG26: 2398 | BIH26: 288 | BIK26: 2399 | BIL26: 288
A27: 2000 | B27: 289 | E27: 2001 | F27: 289 | I27: 2002 | J27: 289 | M27: 2003 | N27: 289 | Q27: 2004 | R27: 289 | U27: 2005 | V27: 289 | Y27: 2006 | Z27: 289 | AC27: 2007 | AD27: 289 | AG27: 2008 | AH27: 289 | AK27: 2009 | AL27: 289 | AO27: 2010 | AP27: 289 | AS27: 2011 | AT27: 289 | AW27: 2012 | AX27: 289 | BA27: 2013 | BB27: 289 | BE27: 2014 | BF27: 289 | BI27: 2015 | BJ27: 289 | BM27: 2016 | BN27: 289 | BQ27: 2017 | BR27: 289 | BU27: 2018 | BV27: 289 | BY27: 2019 | BZ27: 289 | CC27: 2020 | CD27: 289 | CG27: 2021 | CH27: 289 | CK27: 2022 | CL27: 289 | CO27: 2023 | CP27: 289 | CS27: 2024 | CT27: 289 | CW27: 2025 | CX27: 289 | DA27: 2026 | DB27: 289 | DE27: 2027 | DF27: 289 | DI27: 2028 | DJ27: 289 | DM27: 2029 | DN27: 289 | DQ27: 2030 | DR27: 289 | DU27: 2031 | DV27: 289 | DY27: 2032 | DZ27: 289 | EC27: 2033 | ED27: 289 | EG27: 2034 | EH27: 289 | EK27: 2035 | EL27: 289 | EO27: 2036 | EP27: 289 | ES27: 2037 | ET27: 289 | EW27: 2038 | EX27: 289 | FA27: 2039 | FB27: 289 | FE27: 2040 | FF27: 289 | FI27: 2041 | FJ27: 289 | FM27: 2042 | FN27: 289 | FQ27: 2043 | FR27: 289 | FU27: 2044 | FV27: 289 | FY27: 2045 | FZ27: 289 | GC27: 2046 | GD27: 289 | GG27: 2047 | GH27: 289 | GK27: 2048 | GL27: 289 | GO27: 2049 | GP27: 289 | GS27: 2050 | GT27: 289 | GW27: 2051 | GX27: 289 | HA27: 2052 | HB27: 289 | HE27: 2053 | HF27: 289 | HI27: 2054 | HJ27: 289 | HM27: 2055 | HN27: 289 | HQ27: 2056 | HR27: 289 | HU27: 2057 | HV27: 289 | HY27: 2058 | HZ27: 289 | IC27: 2059 | ID27: 289 | IG27: 2060 | IH27: 289 | IK27: 2061 | IL27: 289 | IO27: 2062 | IP27: 289 | IS27: 2063 | IT27: 289 | IW27: 2064 | IX27: 289 | JA27: 2065 | JB27: 289 | JE27: 2066 | JF27: 289 | JI27: 2067 | JJ27: 289 | JM27: 2068 | JN27: 289 | JQ27: 2069 | JR27: 289 | JU27: 2070 | JV27: 289 | JY27: 2071 | JZ27: 289 | KC27: 2072 | KD27: 289 | KG27: 2073 | KH27: 289 | KK27: 2074 | KL27: 289 | KO27: 2075 | KP27: 289 | KS27: 2076 | KT27: 289 | KW27: 2077 | KX27: 289 | LA27: 2078 | LB27: 289 | LE27: 2079 | LF27: 289 | LI27: 2080 | LJ27: 289 | LM27: 2081 | LN27: 289 | LQ27: 2082 | LR27: 289 | LU27: 2083 | LV27: 289 | LY27: 2084 | LZ27: 289 | MC27: 2085 | MD27: 289 | MG27: 2086 | MH27: 289 | MK27: 2087 | ML27: 289 | MO27: 2088 | MP27: 289 | MS27: 2089 | MT27: 289 | MW27: 2090 | MX27: 289 | NA27: 2091 | NB27: 289 | NE27: 2092 | NF27: 289 | NI27: 2093 | NJ27: 289 | NM27: 2094 | NN27: 289 | NQ27: 2095 | NR27: 289 | NU27: 2096 | NV27: 289 | NY27: 2097 | NZ27: 289 | OC27: 2098 | OD27: 289 | OG27: 2099 | OH27: 289 | OK27: 2100 | OL27: 289 | OO27: 2101 | OP27: 289 | OS27: 2102 | OT27: 289 | OW27: 2103 | OX27: 289 | PA27: 2104 | PB27: 289 | PE27: 2105 | PF27: 289 | PI27: 2106 | PJ27: 289 | PM27: 2107 | PN27: 289 | PQ27: 2108 | PR27: 289 | PU27: 2109 | PV27: 289 | PY27: 2110 | PZ27: 289 | QC27: 2111 | QD27: 289 | QG27: 2112 | QH27: 289 | QK27: 2113 | QL27: 289 | QO27: 2114 | QP27: 289 | QS27: 2115 | QT27: 289 | QW27: 2116 | QX27: 289 | RA27: 2117 | RB27: 289 | RE27: 2118 | RF27: 289 | RI27: 2119 | RJ27: 289 | RM27: 2120 | RN27: 289 | RQ27: 2121 | RR27: 289 | RU27: 2122 | RV27: 289 | RY27: 2123 | RZ27: 289 | SC27: 2124 | SD27: 289 | SG27: 2125 | SH27: 289 | SK27: 2126 | SL27: 289 | SO27: 2127 | SP27: 289 | SS27: 2128 | ST27: 289 | SW27: 2129 | SX27: 289 | TA27: 2130 | TB27: 289 | TE27: 2131 | TF27: 289 | TI27: 2132 | TJ27: 289 | TM27: 2133 | TN27: 289 | TQ27: 2134 | TR27: 289 | TU27: 2135 | TV27: 289 | TY27: 2136 | TZ27: 289 | UC27: 2137 | UD27: 289 | UG27: 2138 | UH27: 289 | UK27: 2139 | UL27: 289 | UO27: 2140 | UP27: 289 | US27: 2141 | UT27: 289 | UW27: 2142 | UX27: 289 | VA27: 2143 | VB27: 289 | VE27: 2144 | VF27: 289 | VI27: 2145 | VJ27: 289 | VM27: 2146 | VN27: 289 | VQ27: 2147 | VR27: 289 | VU27: 2148 | VV27: 289 | VY27: 2149 | VZ27: 289 | WC27: 2150 | WD27: 289 | WG27: 2151 | WH27: 289 | WK27: 2152 | WL27: 289 | WO27: 2153 | WP27: 289 | WS27: 2154 | WT27: 289 | WW27: 2155 | WX27: 289 | XA27: 2156 | XB27: 289 | XE27: 2157 | XF27: 289 | XI27: 2158 | XJ27: 289 | XM27: 2159 | XN27: 289 | XQ27: 2160 | XR27: 289 | XU27: 2161 | XV27: 289 | XY27: 2162 | XZ27: 289 | YC27: 2163 | YD27: 289 | YG27: 2164 | YH27: 289 | YK27: 2165 | YL27: 289 | YO27: 2166 | YP27: 289 | YS27: 2167 | YT27: 289 | YW27: 2168 | YX27: 289 | ZA27: 2169 | ZB27: 289 | ZE27: 2170 | ZF27: 289 | ZI27: 2171 | ZJ27: 289 | ZM27: 2172 | ZN27: 289 | ZQ27: 2173 | ZR27: 289 | ZU27: 2174 | ZV27: 289 | ZY27: 2175 | ZZ27: 289 | AAC27: 2176 | AAD27: 289 | AAG27: 2177 | AAH27: 289 | AAK27: 2178 | AAL27: 289 | AAO27: 2179 | AAP27: 289 | AAS27: 2180 | AAT27: 289 | AAW27: 2181 | AAX27: 289 | ABA27: 2182 | ABB27: 289 | ABE27: 2183 | ABF27: 289 | ABI27: 2184 | ABJ27: 289 | ABM27: 2185 | ABN27: 289 | ABQ27: 2186 | ABR27: 289 | ABU27: 2187 | ABV27: 289 | ABY27: 2188 | ABZ27: 289 | ACC27: 2189 | ACD27: 289 | ACG27: 2190 | ACH27: 289 | ACK27: 2191 | ACL27: 289 | ACO27: 2192 | ACP27: 289 | ACS27: 2193 | ACT27: 289 | ACW27: 2194 | ACX27: 289 | ADA27: 2195 | ADB27: 289 | ADE27: 2196 | ADF27: 289 | ADI27: 2197 | ADJ27: 289 | ADM27: 2198 | ADN27: 289 | ADQ27: 2199 | ADR27: 289 | ADU27: 2200 | ADV27: 289 | ADY27: 2201 | ADZ27: 289 | AEC27: 2202 | AED27: 289 | AEG27: 2203 | AEH27: 289 | AEK27: 2204 | AEL27: 289 | AEO27: 2205 | AEP27: 289 | AES27: 2206 | AET27: 289 | AEW27: 2207 | AEX27: 289 | AFA27: 2208 | AFB27: 289 | AFE27: 2209 | AFF27: 289 | AFI27: 2210 | AFJ27: 289 | AFM27: 2211 | AFN27: 289 | AFQ27: 2212 | AFR27: 289 | AFU27: 2213 | AFV27: 289 | AFY27: 2214 | AFZ27: 289 | AGC27: 2215 | AGD27: 289 | AGG27: 2216 | AGH27: 289 | AGK27: 2217 | AGL27: 289 | AGO27: 2218 | AGP27: 289 | AGS27: 2219 | AGT27: 289 | AGW27: 2220 | AGX27: 289 | AHA27: 2221 | AHB27: 289 | AHE27: 2222 | AHF27: 289 | AHI27: 2223 | AHJ27: 289 | AHM27: 2224 | AHN27: 289 | AHQ27: 2225 | AHR27: 289 | AHU27: 2226 | AHV27: 289 | AHY27: 2227 | AHZ27: 289 | AIC27: 2228 | AID27: 289 | AIG27: 2229 | AIH27: 289 | AIK27: 2230 | AIL27: 289 | AIO27: 2231 | AIP27: 289 | AIS27: 2232 | AIT27: 289 | AIW27: 2233 | AIX27: 289 | AJA27: 2234 | AJB27: 289 | AJE27: 2235 | AJF27: 289 | AJI27: 2236 | AJJ27: 289 | AJM27: 2237 | AJN27: 289 | AJQ27: 2238 | AJR27: 289 | AJU27: 2239 | AJV27: 289 | AJY27: 2240 | AJZ27: 289 | AKC27: 2241 | AKD27: 289 | AKG27: 2242 | AKH27: 289 | AKK27: 2243 | AKL27: 289 | AKO27: 2244 | AKP27: 289 | AKS27: 2245 | AKT27: 289 | AKW27: 2246 | AKX27: 289 | ALA27: 2247 | ALB27: 289 | ALE27: 2248 | ALF27: 289 | ALI27: 2249 | ALJ27: 289 | ALM27: 2250 | ALN27: 289 | ALQ27: 2251 | ALR27: 289 | ALU27: 2252 | ALV27: 289 | ALY27: 2253 | ALZ27: 289 | AMC27: 2254 | AMD27: 289 | AMG27: 2255 | AMH27: 289 | AMK27: 2256 | AML27: 289 | AMO27: 2257 | AMP27: 289 | AMS27: 2258 | AMT27: 289 | AMW27: 2259 | AMX27: 289 | ANA27: 2260 | ANB27: 289 | ANE27: 2261 | ANF27: 289 | ANI27: 2262 | ANJ27: 289 | ANM27: 2263 | ANN27: 289 | ANQ27: 2264 | ANR27: 289 | ANU27: 2265 | ANV27: 289 | ANY27: 2266 | ANZ27: 289 | AOC27: 2267 | AOD27: 289 | AOG27: 2268 | AOH27: 289 | AOK27: 2269 | AOL27: 289 | AOO27: 2270 | AOP27: 289 | AOS27: 2271 | AOT27: 289 | AOW27: 2272 | AOX27: 289 | APA27: 2273 | APB27: 289 | APE27: 2274 | APF27: 289 | API27: 2275 | APJ27: 289 | APM27: 2276 | APN27: 289 | APQ27: 2277 | APR27: 289 | APU27: 2278 | APV27: 289 | APY27: 2279 | APZ27: 289 | AQC27: 2280 | AQD27: 289 | AQG27: 2281 | AQH27: 289 | AQK27: 2282 | AQL27: 289 | AQO27: 2283 | AQP27: 289 | AQS27: 2284 | AQT27: 289 | AQW27: 2285 | AQX27: 289 | ARA27: 2286 | ARB27: 289 | ARE27: 2287 | ARF27: 289 | ARI27: 2288 | ARJ27: 289 | ARM27: 2289 | ARN27: 289 | ARQ27: 2290 | ARR27: 289 | ARU27: 2291 | ARV27: 289 | ARY27: 2292 | ARZ27: 289 | ASC27: 2293 | ASD27: 289 | ASG27: 2294 | ASH27: 289 | ASK27: 2295 | ASL27: 289 | ASO27: 2296 | ASP27: 289 | ASS27: 2297 | AST27: 289 | ASW27: 2298 | ASX27: 289 | ATA27: 2299 | ATB27: 289 | ATE27: 2300 | ATF27: 289 | ATI27: 2301 | ATJ27: 289 | ATM27: 2302 | ATN27: 289 | ATQ27: 2303 | ATR27: 289 | ATU27: 2304 | ATV27: 289 | ATY27: 2305 | ATZ27: 289 | AUC27: 2306 | AUD27: 289 | AUG27: 2307 | AUH27: 289 | AUK27: 2308 | AUL27: 289 | AUO27: 2309 | AUP27: 289 | AUS27: 2310 | AUT27: 289 | AUW27: 2311 | AUX27: 289 | AVA27: 2312 | AVB27: 289 | AVE27: 2313 | AVF27: 289 | AVI27: 2314 | AVJ27: 289 | AVM27: 2315 | AVN27: 289 | AVQ27: 2316 | AVR27: 289 | AVU27: 2317 | AVV27: 289 | AVY27: 2318 | AVZ27: 289 | AWC27: 2319 | AWD27: 289 | AWG27: 2320 | AWH27: 289 | AWK27: 2321 | AWL27: 289 | AWO27: 2322 | AWP27: 289 | AWS27: 2323 | AWT27: 289 | AWW27: 2324 | AWX27: 289 | AXA27: 2325 | AXB27: 289 | AXE27: 2326 | AXF27: 289 | AXI27: 2327 | AXJ27: 289 | AXM27: 2328 | AXN27: 289 | AXQ27: 2329 | AXR27: 289 | AXU27: 2330 | AXV27: 289 | AXY27: 2331 | AXZ27: 289 | AYC27: 2332 | AYD27: 289 | AYG27: 2333 | AYH27: 289 | AYK27: 2334 | AYL27: 289 | AYO27: 2335 | AYP27: 289 | AYS27: 2336 | AYT27: 289 | AYW27: 2337 | AYX27: 289 | AZA27: 2338 | AZB27: 289 | AZE27: 2339 | AZF27: 289 | AZI27: 2340 | AZJ27: 289 | AZM27: 2341 | AZN27: 289 | AZQ27: 2342 | AZR27: 289 | AZU27: 2343 | AZV27: 289 | AZY27: 2344 | AZZ27: 289 | BAC27: 2345 | BAD27: 289 | BAG27: 2346 | BAH27: 289 | BAK27: 2347 | BAL27: 289 | BAO27: 2348 | BAP27: 289 | BAS27: 2349 | BAT27: 289 | BAW27: 2350 | BAX27: 289 | BBA27: 2351 | BBB27: 289 | BBE27: 2352 | BBF27: 289 | BBI27: 2353 | BBJ27: 289 | BBM27: 2354 | BBN27: 289 | BBQ27: 2355 | BBR27: 289 | BBU27: 2356 | BBV27: 289 | BBY27: 2357 | BBZ27: 289 | BCC27: 2358 | BCD27: 289 | BCG27: 2359 | BCH27: 289 | BCK27: 2360 | BCL27: 289 | BCO27: 2361 | BCP27: 289 | BCS27: 2362 | BCT27: 289 | BCW27: 2363 | BCX27: 289 | BDA27: 2364 | BDB27: 289 | BDE27: 2365 | BDF27: 289 | BDI27: 2366 | BDJ27: 289 | BDM27: 2367 | BDN27: 289 | BDQ27: 2368 | BDR27: 289 | BDU27: 2369 | BDV27: 289 | BDY27: 2370 | BDZ27: 289 | BEC27: 2371 | BED27: 289 | BEG27: 2372 | BEH27: 289 | BEK27: 2373 | BEL27: 289 | BEO27: 2374 | BEP27: 289 | BES27: 2375 | BET27: 289 | BEW27: 2376 | BEX27: 289 | BFA27: 2377 | BFB27: 289 | BFE27: 2378 | BFF27: 289 | BFI27: 2379 | BFJ27: 289 | BFM27: 2380 | BFN27: 289 | BFQ27: 2381 | BFR27: 289 | BFU27: 2382 | BFV27: 289 | BFY27: 2383 | BFZ27: 289 | BGC27: 2384 | BGD27: 289 | BGG27: 2385 | BGH27: 289 | BGK27: 2386 | BGL27: 289 | BGO27: 2387 | BGP27: 289 | BGS27: 2388 | BGT27: 289 | BGW27: 2389 | BGX27: 289 | BHA27: 2390 | BHB27: 289 | BHE27: 2391 | BHF27: 289 | BHI27: 2392 | BHJ27: 289 | BHM27: 2393 | BHN27: 289 | BHQ27: 2394 | BHR27: 289 | BHU27: 2395 | BHV27: 289 | BHY27: 2396 | BHZ27: 289 | BIC27: 2397 | BID27: 289 | BIG27: 2398 | BIH27: 289 | BIK27: 2399 | BIL27: 289
A28: 2000 | B28: 290 | E28: 2001 | F28: 290 | I28: 2002 | J28: 290 | M28: 2003 | N28: 290 | Q28: 2004 | R28: 290 | U28: 2005 | V28: 290 | Y28: 2006 | Z28: 290 | AC28: 2007 | AD28: 290 | AG28: 2008 | AH28: 290 | AK28: 2009 | AL28: 290 | AO28: 2010 | AP28: 290 | AS28: 2011 | AT28: 290 | AW28: 2012 | AX28: 290 | BA28: 2013 | BB28: 290 | BE28: 2014 | BF28: 290 | BI28: 2015 | BJ28: 290 | BM28: 2016 | BN28: 290 | BQ28: 2017 | BR28: 290 | BU28: 2018 | BV28: 290 | BY28: 2019 | BZ28: 290 | CC28: 2020 | CD28: 290 | CG28: 2021 | CH28: 290 | CK28: 2022 | CL28: 290 | CO28: 2023 | CP28: 290 | CS28: 2024 | CT28: 290 | CW28: 2025 | CX28: 290 | DA28: 2026 | DB28: 290 | DE28: 2027 | DF28: 290 | DI28: 2028 | DJ28: 290 | DM28: 2029 | DN28: 290 | DQ28: 2030 | DR28: 290 | DU28: 2031 | DV28: 290 | DY28: 2032 | DZ28: 290 | EC28: 2033 | ED28: 290 | EG28: 2034 | EH28: 290 | EK28: 2035 | EL28: 290 | EO28: 2036 | EP28: 290 | ES28: 2037 | ET28: 290 | EW28: 2038 | EX28: 290 | FA28: 2039 | FB28: 290 | FE28: 2040 | FF28: 290 | FI28: 2041 | FJ28: 290 | FM28: 2042 | FN28: 290 | FQ28: 2043 | FR28: 290 | FU28: 2044 | FV28: 290 | FY28: 2045 | FZ28: 290 | GC28: 2046 | GD28: 290 | GG28: 2047 | GH28: 290 | GK28: 2048 | GL28: 290 | GO28: 2049 | GP28: 290 | GS28: 2050 | GT28: 290 | GW28: 2051 | GX28: 290 | HA28: 2052 | HB28: 290 | HE28: 2053 | HF28: 290 | HI28: 2054 | HJ28: 290 | HM28: 2055 | HN28: 290 | HQ28: 2056 | HR28: 290 | HU28: 2057 | HV28: 290 | HY28: 2058 | HZ28: 290 | IC28: 2059 | ID28: 290 | IG28: 2060 | IH28: 290 | IK28: 2061 | IL28: 290 | IO28: 2062 | IP28: 290 | IS28: 2063 | IT28: 290 | IW28: 2064 | IX28: 290 | JA28: 2065 | JB28: 290 | JE28: 2066 | JF28: 290 | JI28: 2067 | JJ28: 290 | JM28: 2068 | JN28: 290 | JQ28: 2069 | JR28: 290 | JU28: 2070 | JV28: 290 | JY28: 2071 | JZ28: 290 | KC28: 2072 | KD28: 290 | KG28: 2073 | KH28: 290 | KK28: 2074 | KL28: 290 | KO28: 2075 | KP28: 290 | KS28: 2076 | KT28: 290 | KW28: 2077 | KX28: 290 | LA28: 2078 | LB28: 290 | LE28: 2079 | LF28: 290 | LI28: 2080 | LJ28: 290 | LM28: 2081 | LN28: 290 | LQ28: 2082 | LR28: 290 | LU28: 2083 | LV28: 290 | LY28: 2084 | LZ28: 290 | MC28: 2085 | MD28: 290 | MG28: 2086 | MH28: 290 | MK28: 2087 | ML28: 290 | MO28: 2088 | MP28: 290 | MS28: 2089 | MT28: 290 | MW28: 2090 | MX28: 290 | NA28: 2091 | NB28: 290 | NE28: 2092 | NF28: 290 | NI28: 2093 | NJ28: 290 | NM28: 2094 | NN28: 290 | NQ28: 2095 | NR28: 290 | NU28: 2096 | NV28: 290 | NY28: 2097 | NZ28: 290 | OC28: 2098 | OD28: 290 | OG28: 2099 | OH28: 290 | OK28: 2100 | OL28: 290 | OO28: 2101 | OP28: 290 | OS28: 2102 | OT28: 290 | OW28: 2103 | OX28: 290 | PA28: 2104 | PB28: 290 | PE28: 2105 | PF28: 290 | PI28: 2106 | PJ28: 290 | PM28: 2107 | PN28: 290 | PQ28: 2108 | PR28: 290 | PU28: 2109 | PV28: 290 | PY28: 2110 | PZ28: 290 | QC28: 2111 | QD28: 290 | QG28: 2112 | QH28: 290 | QK28: 2113 | QL28: 290 | QO28: 2114 | QP28: 290 | QS28: 2115 | QT28: 290 | QW28: 2116 | QX28: 290 | RA28: 2117 | RB28: 290 | RE28: 2118 | RF28: 290 | RI28: 2119 | RJ28: 290 | RM28: 2120 | RN28: 290 | RQ28: 2121 | RR28: 290 | RU28: 2122 | RV28: 290 | RY28: 2123 | RZ28: 290 | SC28: 2124 | SD28: 290 | SG28: 2125 | SH28: 290 | SK28: 2126 | SL28: 290 | SO28: 2127 | SP28: 290 | SS28: 2128 | ST28: 290 | SW28: 2129 | SX28: 290 | TA28: 2130 | TB28: 290 | TE28: 2131 | TF28: 290 | TI28: 2132 | TJ28: 290 | TM28: 2133 | TN28: 290 | TQ28: 2134 | TR28: 290 | TU28: 2135 | TV28: 290 | TY28: 2136 | TZ28: 290 | UC28: 2137 | UD28: 290 | UG28: 2138 | UH28: 290 | UK28: 2139 | UL28: 290 | UO28: 2140 | UP28: 290 | US28: 2141 | UT28: 290 | UW28: 2142 | UX28: 290 | VA28: 2143 | VB28: 290 | VE28: 2144 | VF28: 290 | VI28: 2145 | VJ28: 290 | VM28: 2146 | VN28: 290 | VQ28: 2147 | VR28: 290 | VU28: 2148 | VV28: 290 | VY28: 2149 | VZ28: 290 | WC28: 2150 | WD28: 290 | WG28: 2151 | WH28: 290 | WK28: 2152 | WL28: 290 | WO28: 2153 | WP28: 290 | WS28: 2154 | WT28: 290 | WW28: 2155 | WX28: 290 | XA28: 2156 | XB28: 290 | XE28: 2157 | XF28: 290 | XI28: 2158 | XJ28: 290 | XM28: 2159 | XN28: 290 | XQ28: 2160 | XR28: 290 | XU28: 2161 | XV28: 290 | XY28: 2162 | XZ28: 290 | YC28: 2163 | YD28: 290 | YG28: 2164 | YH28: 290 | YK28: 2165 | YL28: 290 | YO28: 2166 | YP28: 290 | YS28: 2167 | YT28: 290 | YW28: 2168 | YX28: 290 | ZA28: 2169 | ZB28: 290 | ZE28: 2170 | ZF28: 290 | ZI28: 2171 | ZJ28: 290 | ZM28: 2172 | ZN28: 290 | ZQ28: 2173 | ZR28: 290 | ZU28: 2174 | ZV28: 290 | ZY28: 2175 | ZZ28: 290 | AAC28: 2176 | AAD28: 290 | AAG28: 2177 | AAH28: 290 | AAK28: 2178 | AAL28: 290 | AAO28: 2179 | AAP28: 290 | AAS28: 2180 | AAT28: 290 | AAW28: 2181 | AAX28: 290 | ABA28: 2182 | ABB28: 290 | ABE28: 2183 | ABF28: 290 | ABI28: 2184 | ABJ28: 290 | ABM28: 2185 | ABN28: 290 | ABQ28: 2186 | ABR28: 290 | ABU28: 2187 | ABV28: 290 | ABY28: 2188 | ABZ28: 290 | ACC28: 2189 | ACD28: 290 | ACG28: 2190 | ACH28: 290 | ACK28: 2191 | ACL28: 290 | ACO28: 2192 | ACP28: 290 | ACS28: 2193 | ACT28: 290 | ACW28: 2194 | ACX28: 290 | ADA28: 2195 | ADB28: 290 | ADE28: 2196 | ADF28: 290 | ADI28: 2197 | ADJ28: 290 | ADM28: 2198 | ADN28: 290 | ADQ28: 2199 | ADR28: 290 | ADU28: 2200 | ADV28: 290 | ADY28: 2201 | ADZ28: 290 | AEC28: 2202 | AED28: 290 | AEG28: 2203 | AEH28: 290 | AEK28: 2204 | AEL28: 290 | AEO28: 2205 | AEP28: 290 | AES28: 2206 | AET28: 290 | AEW28: 2207 | AEX28: 290 | AFA28: 2208 | AFB28: 290 | AFE28: 2209 | AFF28: 290 | AFI28: 2210 | AFJ28: 290 | AFM28: 2211 | AFN28: 290 | AFQ28: 2212 | AFR28: 290 | AFU28: 2213 | AFV28: 290 | AFY28: 2214 | AFZ28: 290 | AGC28: 2215 | AGD28: 290 | AGG28: 2216 | AGH28: 290 | AGK28: 2217 | AGL28: 290 | AGO28: 2218 | AGP28: 290 | AGS28: 2219 | AGT28: 290 | AGW28: 2220 | AGX28: 290 | AHA28: 2221 | AHB28: 290 | AHE28: 2222 | AHF28: 290 | AHI28: 2223 | AHJ28: 290 | AHM28: 2224 | AHN28: 290 | AHQ28: 2225 | AHR28: 290 | AHU28: 2226 | AHV28: 290 | AHY28: 2227 | AHZ28: 290 | AIC28: 2228 | AID28: 290 | AIG28: 2229 | AIH28: 290 | AIK28: 2230 | AIL28: 290 | AIO28: 2231 | AIP28: 290 | AIS28: 2232 | AIT28: 290 | AIW28: 2233 | AIX28: 290 | AJA28: 2234 | AJB28: 290 | AJE28: 2235 | AJF28: 290 | AJI28: 2236 | AJJ28: 290 | AJM28: 2237 | AJN28: 290 | AJQ28: 2238 | AJR28: 290 | AJU28: 2239 | AJV28: 290 | AJY28: 2240 | AJZ28: 290 | AKC28: 2241 | AKD28: 290 | AKG28: 2242 | AKH28: 290 | AKK28: 2243 | AKL28: 290 | AKO28: 2244 | AKP28: 290 | AKS28: 2245 | AKT28: 290 | AKW28: 2246 | AKX28: 290 | ALA28: 2247 | ALB28: 290 | ALE28: 2248 | ALF28: 290 | ALI28: 2249 | ALJ28: 290 | ALM28: 2250 | ALN28: 290 | ALQ28: 2251 | ALR28: 290 | ALU28: 2252 | ALV28: 290 | ALY28: 2253 | ALZ28: 290 | AMC28: 2254 | AMD28: 290 | AMG28: 2255 | AMH28: 290 | AMK28: 2256 | AML28: 290 | AMO28: 2257 | AMP28: 290 | AMS28: 2258 | AMT28: 290 | AMW28: 2259 | AMX28: 290 | ANA28: 2260 | ANB28: 290 | ANE28: 2261 | ANF28: 290 | ANI28: 2262 | ANJ28: 290 | ANM28: 2263 | ANN28: 290 | ANQ28: 2264 | ANR28: 290 | ANU28: 2265 | ANV28: 290 | ANY28: 2266 | ANZ28: 290 | AOC28: 2267 | AOD28: 290 | AOG28: 2268 | AOH28: 290 | AOK28: 2269 | AOL28: 290 | AOO28: 2270 | AOP28: 290 | AOS28: 2271 | AOT28: 290 | AOW28: 2272 | AOX28: 290 | APA28: 2273 | APB28: 290 | APE28: 2274 | APF28: 290 | API28: 2275 | APJ28: 290 | APM28: 2276 | APN28: 290 | APQ28: 2277 | APR28: 290 | APU28: 2278 | APV28: 290 | APY28: 2279 | APZ28: 290 | AQC28: 2280 | AQD28: 290 | AQG28: 2281 | AQH28: 290 | AQK28: 2282 | AQL28: 290 | AQO28: 2283 | AQP28: 290 | AQS28: 2284 | AQT28: 290 | AQW28: 2285 | AQX28: 290 | ARA28: 2286 | ARB28: 290 | ARE28: 2287 | ARF28: 290 | ARI28: 2288 | ARJ28: 290 | ARM28: 2289 | ARN28: 290 | ARQ28: 2290 | ARR28: 290 | ARU28: 2291 | ARV28: 290 | ARY28: 2292 | ARZ28: 290 | ASC28: 2293 | ASD28: 290 | ASG28: 2294 | ASH28: 290 | ASK28: 2295 | ASL28: 290 | ASO28: 2296 | ASP28: 290 | ASS28: 2297 | AST28: 290 | ASW28: 2298 | ASX28: 290 | ATA28: 2299 | ATB28: 290 | ATE28: 2300 | ATF28: 290 | ATI28: 2301 | ATJ28: 290 | ATM28: 2302 | ATN28: 290 | ATQ28: 2303 | ATR28: 290 | ATU28: 2304 | ATV28: 290 | ATY28: 2305 | ATZ28: 290 | AUC28: 2306 | AUD28: 290 | AUG28: 2307 | AUH28: 290 | AUK28: 2308 | AUL28: 290 | AUO28: 2309 | AUP28: 290 | AUS28: 2310 | AUT28: 290 | AUW28: 2311 | AUX28: 290 | AVA28: 2312 | AVB28: 290 | AVE28: 2313 | AVF28: 290 | AVI28: 2314 | AVJ28: 290 | AVM28: 2315 | AVN28: 290 | AVQ28: 2316 | AVR28: 290 | AVU28: 2317 | AVV28: 290 | AVY28: 2318 | AVZ28: 290 | AWC28: 2319 | AWD28: 290 | AWG28: 2320 | AWH28: 290 | AWK28: 2321 | AWL28: 290 | AWO28: 2322 | AWP28: 290 | AWS28: 2323 | AWT28: 290 | AWW28: 2324 | AWX28: 290 | AXA28: 2325 | AXB28: 290 | AXE28: 2326 | AXF28: 290 | AXI28: 2327 | AXJ28: 290 | AXM28: 2328 | AXN28: 290 | AXQ28: 2329 | AXR28: 290 | AXU28: 2330 | AXV28: 290 | AXY28: 2331 | AXZ28: 290 | AYC28: 2332 | AYD28: 290 | AYG28: 2333 | AYH28: 290 | AYK28: 2334 | AYL28: 290 | AYO28: 2335 | AYP28: 290 | AYS28: 2336 | AYT28: 290 | AYW28: 2337 | AYX28: 290 | AZA28: 2338 | AZB28: 290 | AZE28: 2339 | AZF28: 290 | AZI28: 2340 | AZJ28: 290 | AZM28: 2341 | AZN28: 290 | AZQ28: 2342 | AZR28: 290 | AZU28: 2343 | AZV28: 290 | AZY28: 2344 | AZZ28: 290 | BAC28: 2345 | BAD28: 290 | BAG28: 2346 | BAH28: 290 | BAK28: 2347 | BAL28: 290 | BAO28: 2348 | BAP28: 290 | BAS28: 2349 | BAT28: 290 | BAW28: 2350 | BAX28: 290 | BBA28: 2351 | BBB28: 290 | BBE28: 2352 | BBF28: 290 | BBI28: 2353 | BBJ28: 290 | BBM28: 2354 | BBN28: 290 | BBQ28: 2355 | BBR28: 290 | BBU28: 2356 | BBV28: 290 | BBY28: 2357 | BBZ28: 290 | BCC28: 2358 | BCD28: 290 | BCG28: 2359 | BCH28: 290 | BCK28: 2360 | BCL28: 290 | BCO28: 2361 | BCP28: 290 | BCS28: 2362 | BCT28: 290 | BCW28: 2363 | BCX28: 290 | BDA28: 2364 | BDB28: 290 | BDE28: 2365 | BDF28: 290 | BDI28: 2366 | BDJ28: 290 | BDM28: 2367 | BDN28: 290 | BDQ28: 2368 | BDR28: 290 | BDU28: 2369 | BDV28: 290 | BDY28: 2370 | BDZ28: 290 | BEC28: 2371 | BED28: 290 | BEG28: 2372 | BEH28: 290 | BEK28: 2373 | BEL28: 290 | BEO28: 2374 | BEP28: 290 | BES28: 2375 | BET28: 290 | BEW28: 2376 | BEX28: 290 | BFA28: 2377 | BFB28: 290 | BFE28: 2378 | BFF28: 290 | BFI28: 2379 | BFJ28: 290 | BFM28: 2380 | BFN28: 290 | BFQ28: 2381 | BFR28: 290 | BFU28: 2382 | BFV28: 290 | BFY28: 2383 | BFZ28: 290 | BGC28: 2384 | BGD28: 290 | BGG28: 2385 | BGH28: 290 | BGK28: 2386 | BGL28: 290 | BGO28: 2387 | BGP28: 290 | BGS28: 2388 | BGT28: 290 | BGW28: 2389 | BGX28: 290 | BHA28: 2390 | BHB28: 290 | BHE28: 2391 | BHF28: 290 | BHI28: 2392 | BHJ28: 290 | BHM28: 2393 | BHN28: 290 | BHQ28: 2394 | BHR28: 290 | BHU28: 2395 | BHV28: 290 | BHY28: 2396 | BHZ28: 290 | BIC28: 2397 | BID28: 290 | BIG28: 2398 | BIH28: 290 | BIK28: 2399 | BIL28: 290
A29: 2000 | B29: 291 | E29: 2001 | F29: 291 | I29: 2002 | J29: 291 | M29: 2003 | N29: 291 | Q29: 2004 | R29: 291 | U29: 2005 | V29: 291 | Y29: 2006 | Z29: 291 | AC29: 2007 | AD29: 291 | AG29: 2008 | AH29: 291 | AK29: 2009 | AL29: 291 | AO29: 2010 | AP29: 291 | AS29: 2011 | AT29: 291 | AW29: 2012 | AX29: 291 | BA29: 2013 | BB29: 291 | BE29: 2014 | BF29: 291 | BI29: 2015 | BJ29: 291 | BM29: 2016 | BN29: 291 | BQ29: 2017 | BR29: 291 | BU29: 2018 | BV29: 291 | BY29: 2019 | BZ29: 291 | CC29: 2020 | CD29: 291 | CG29: 2021 | CH29: 291 | CK29: 2022 | CL29: 291 | CO29: 2023 | CP29: 291 | CS29: 2024 | CT29: 291 | CW29: 2025 | CX29: 291 | DA29: 2026 | DB29: 291 | DE29: 2027 | DF29: 291 | DI29: 2028 | DJ29: 291 | DM29: 2029 | DN29: 291 | DQ29: 2030 | DR29: 291 | DU29: 2031 | DV29: 291 | DY29: 2032 | DZ29: 291 | EC29: 2033 | ED29: 291 | EG29: 2034 | EH29: 291 | EK29: 2035 | EL29: 291 | EO29: 2036 | EP29: 291 | ES29: 2037 | ET29: 291 | EW29: 2038 | EX29: 291 | FA29: 2039 | FB29: 291 | FE29: 2040 | FF29: 291 | FI29: 2041 | FJ29: 291 | FM29: 2042 | FN29: 291 | FQ29: 2043 | FR29: 291 | FU29: 2044 | FV29: 291 | FY29: 2045 | FZ29: 291 | GC29: 2046 | GD29: 291 | GG29: 2047 | GH29: 291 | GK29: 2048 | GL29: 291 | GO29: 2049 | GP29: 291 | GS29: 2050 | GT29: 291 | GW29: 2051 | GX29: 291 | HA29: 2052 | HB29: 291 | HE29: 2053 | HF29: 291 | HI29: 2054 | HJ29: 291 | HM29: 2055 | HN29: 291 | HQ29: 2056 | HR29: 291 | HU29: 2057 | HV29: 291 | HY29: 2058 | HZ29: 291 | IC29: 2059 | ID29: 291 | IG29: 2060 | IH29: 291 | IK29: 2061 | IL29: 291 | IO29: 2062 | IP29: 291 | IS29: 2063 | IT29: 291 | IW29: 2064 | IX29: 291 | JA29: 2065 | JB29: 291 | JE29: 2066 | JF29: 291 | JI29: 2067 | JJ29: 291 | JM29: 2068 | JN29: 291 | JQ29: 2069 | JR29: 291 | JU29: 2070 | JV29: 291 | JY29: 2071 | JZ29: 291 | KC29: 2072 | KD29: 291 | KG29: 2073 | KH29: 291 | KK29: 2074 | KL29: 291 | KO29: 2075 | KP29: 291 | KS29: 2076 | KT29: 291 | KW29: 2077 | KX29: 291 | LA29: 2078 | LB29: 291 | LE29: 2079 | LF29: 291 | LI29: 2080 | LJ29: 291 | LM29: 2081 | LN29: 291 | LQ29: 2082 | LR29: 291 | LU29: 2083 | LV29: 291 | LY29: 2084 | LZ29: 291 | MC29: 2085 | MD29: 291 | MG29: 2086 | MH29: 291 | MK29: 2087 | ML29: 291 | MO29: 2088 | MP29: 291 | MS29: 2089 | MT29: 291 | MW29: 2090 | MX29: 291 | NA29: 2091 | NB29: 291 | NE29: 2092 | NF29: 291 | NI29: 2093 | NJ29: 291 | NM29: 2094 | NN29: 291 | NQ29: 2095 | NR29: 291 | NU29: 2096 | NV29: 291 | NY29: 2097 | NZ29: 291 | OC29: 2098 | OD29: 291 | OG29: 2099 | OH29: 291 | OK29: 2100 | OL29: 291 | OO29: 2101 | OP29: 291 | OS29: 2102 | OT29: 291 | OW29: 2103 | OX29: 291 | PA29: 2104 | PB29: 291 | PE29: 2105 | PF29: 291 | PI29: 2106 | PJ29: 291 | PM29: 2107 | PN29: 291 | PQ29: 2108 | PR29: 291 | PU29: 2109 | PV29: 291 | PY29: 2110 | PZ29: 291 | QC29: 2111 | QD29: 291 | QG29: 2112 | QH29: 291 | QK29: 2113 | QL29: 291 | QO29: 2114 | QP29: 291 | QS29: 2115 | QT29: 291 | QW29: 2116 | QX29: 291 | RA29: 2117 | RB29: 291 | RE29: 2118 | RF29: 291 | RI29: 2119 | RJ29: 291 | RM29: 2120 | RN29: 291 | RQ29: 2121 | RR29: 291 | RU29: 2122 | RV29: 291 | RY29: 2123 | RZ29: 291 | SC29: 2124 | SD29: 291 | SG29: 2125 | SH29: 291 | SK29: 2126 | SL29: 291 | SO29: 2127 | SP29: 291 | SS29: 2128 | ST29: 291 | SW29: 2129 | SX29: 291 | TA29: 2130 | TB29: 291 | TE29: 2131 | TF29: 291 | TI29: 2132 | TJ29: 291 | TM29: 2133 | TN29: 291 | TQ29: 2134 | TR29: 291 | TU29: 2135 | TV29: 291 | TY29: 2136 | TZ29: 291 | UC29: 2137 | UD29: 291 | UG29: 2138 | UH29: 291 | UK29: 2139 | UL29: 291 | UO29: 2140 | UP29: 291 | US29: 2141 | UT29: 291 | UW29: 2142 | UX29: 291 | VA29: 2143 | VB29: 291 | VE29: 2144 | VF29: 291 | VI29: 2145 | VJ29: 291 | VM29: 2146 | VN29: 291 | VQ29: 2147 | VR29: 291 | VU29: 2148 | VV29: 291 | VY29: 2149 | VZ29: 291 | WC29: 2150 | WD29: 291 | WG29: 2151 | WH29: 291 | WK29: 2152 | WL29: 291 | WO29: 2153 | WP29: 291 | WS29: 2154 | WT29: 291 | WW29: 2155 | WX29: 291 | XA29: 2156 | XB29: 291 | XE29: 2157 | XF29: 291 | XI29: 2158 | XJ29: 291 | XM29: 2159 | XN29: 291 | XQ29: 2160 | XR29: 291 | XU29: 2161 | XV29: 291 | XY29: 2162 | XZ29: 291 | YC29: 2163 | YD29: 291 | YG29: 2164 | YH29: 291 | YK29: 2165 | YL29: 291 | YO29: 2166 | YP29: 291 | YS29: 2167 | YT29: 291 | YW29: 2168 | YX29: 291 | ZA29: 2169 | ZB29: 291 | ZE29: 2170 | ZF29: 291 | ZI29: 2171 | ZJ29: 291 | ZM29: 2172 | ZN29: 291 | ZQ29: 2173 | ZR29: 291 | ZU29: 2174 | ZV29: 291 | ZY29: 2175 | ZZ29: 291 | AAC29: 2176 | AAD29: 291 | AAG29: 2177 | AAH29: 291 | AAK29: 2178 | AAL29: 291 | AAO29: 2179 | AAP29: 291 | AAS29: 2180 | AAT29: 291 | AAW29: 2181 | AAX29: 291 | ABA29: 2182 | ABB29: 291 | ABE29: 2183 | ABF29: 291 | ABI29: 2184 | ABJ29: 291 | ABM29: 2185 | ABN29: 291 | ABQ29: 2186 | ABR29: 291 | ABU29: 2187 | ABV29: 291 | ABY29: 2188 | ABZ29: 291 | ACC29: 2189 | ACD29: 291 | ACG29: 2190 | ACH29: 291 | ACK29: 2191 | ACL29: 291 | ACO29: 2192 | ACP29: 291 | ACS29: 2193 | ACT29: 291 | ACW29: 2194 | ACX29: 291 | ADA29: 2195 | ADB29: 291 | ADE29: 2196 | ADF29: 291 | ADI29: 2197 | ADJ29: 291 | ADM29: 2198 | ADN29: 291 | ADQ29: 2199 | ADR29: 291 | ADU29: 2200 | ADV29: 291 | ADY29: 2201 | ADZ29: 291 | AEC29: 2202 | AED29: 291 | AEG29: 2203 | AEH29: 291 | AEK29: 2204 | AEL29: 291 | AEO29: 2205 | AEP29: 291 | AES29: 2206 | AET29: 291 | AEW29: 2207 | AEX29: 291 | AFA29: 2208 | AFB29: 291 | AFE29: 2209 | AFF29: 291 | AFI29: 2210 | AFJ29: 291 | AFM29: 2211 | AFN29: 291 | AFQ29: 2212 | AFR29: 291 | AFU29: 2213 | AFV29: 291 | AFY29: 2214 | AFZ29: 291 | AGC29: 2215 | AGD29: 291 | AGG29: 2216 | AGH29: 291 | AGK29: 2217 | AGL29: 291 | AGO29: 2218 | AGP29: 291 | AGS29: 2219 | AGT29: 291 | AGW29: 2220 | AGX29: 291 | AHA29: 2221 | AHB29: 291 | AHE29: 2222 | AHF29: 291 | AHI29: 2223 | AHJ29: 291 | AHM29: 2224 | AHN29: 291 | AHQ29: 2225 | AHR29: 291 | AHU29: 2226 | AHV29: 291 | AHY29: 2227 | AHZ29: 291 | AIC29: 2228 | AID29: 291 | AIG29: 2229 | AIH29: 291 | AIK29: 2230 | AIL29: 291 | AIO29: 2231 | AIP29: 291 | AIS29: 2232 | AIT29: 291 | AIW29: 2233 | AIX29: 291 | AJA29: 2234 | AJB29: 291 | AJE29: 2235 | AJF29: 291 | AJI29: 2236 | AJJ29: 291 | AJM29: 2237 | AJN29: 291 | AJQ29: 2238 | AJR29: 291 | AJU29: 2239 | AJV29: 291 | AJY29: 2240 | AJZ29: 291 | AKC29: 2241 | AKD29: 291 | AKG29: 2242 | AKH29: 291 | AKK29: 2243 | AKL29: 291 | AKO29: 2244 | AKP29: 291 | AKS29: 2245 | AKT29: 291 | AKW29: 2246 | AKX29: 291 | ALA29: 2247 | ALB29: 291 | ALE29: 2248 | ALF29: 291 | ALI29: 2249 | ALJ29: 291 | ALM29: 2250 | ALN29: 291 | ALQ29: 2251 | ALR29: 291 | ALU29: 2252 | ALV29: 291 | ALY29: 2253 | ALZ29: 291 | AMC29: 2254 | AMD29: 291 | AMG29: 2255 | AMH29: 291 | AMK29: 2256 | AML29: 291 | AMO29: 2257 | AMP29: 291 | AMS29: 2258 | AMT29: 291 | AMW29: 2259 | AMX29: 291 | ANA29: 2260 | ANB29: 291 | ANE29: 2261 | ANF29: 291 | ANI29: 2262 | ANJ29: 291 | ANM29: 2263 | ANN29: 291 | ANQ29: 2264 | ANR29: 291 | ANU29: 2265 | ANV29: 291 | ANY29: 2266 | ANZ29: 291 | AOC29: 2267 | AOD29: 291 | AOG29: 2268 | AOH29: 291 | AOK29: 2269 | AOL29: 291 | AOO29: 2270 | AOP29: 291 | AOS29: 2271 | AOT29: 291 | AOW29: 2272 | AOX29: 291 | APA29: 2273 | APB29: 291 | APE29: 2274 | APF29: 291 | API29: 2275 | APJ29: 291 | APM29: 2276 | APN29: 291 | APQ29: 2277 | APR29: 291 | APU29: 2278 | APV29: 291 | APY29: 2279 | APZ29: 291 | AQC29: 2280 | AQD29: 291 | AQG29: 2281 | AQH29: 291 | AQK29: 2282 | AQL29: 291 | AQO29: 2283 | AQP29: 291 | AQS29: 2284 | AQT29: 291 | AQW29: 2285 | AQX29: 291 | ARA29: 2286 | ARB29: 291 | ARE29: 2287 | ARF29: 291 | ARI29: 2288 | ARJ29: 291 | ARM29: 2289 | ARN29: 291 | ARQ29: 2290 | ARR29: 291 | ARU29: 2291 | ARV29: 291 | ARY29: 2292 | ARZ29: 291 | ASC29: 2293 | ASD29: 291 | ASG29: 2294 | ASH29: 291 | ASK29: 2295 | ASL29: 291 | ASO29: 2296 | ASP29: 291 | ASS29: 2297 | AST29: 291 | ASW29: 2298 | ASX29: 291 | ATA29: 2299 | ATB29: 291 | ATE29: 2300 | ATF29: 291 | ATI29: 2301 | ATJ29: 291 | ATM29: 2302 | ATN29: 291 | ATQ29: 2303 | ATR29: 291 | ATU29: 2304 | ATV29: 291 | ATY29: 2305 | ATZ29: 291 | AUC29: 2306 | AUD29: 291 | AUG29: 2307 | AUH29: 291 | AUK29: 2308 | AUL29: 291 | AUO29: 2309 | AUP29: 291 | AUS29: 2310 | AUT29: 291 | AUW29: 2311 | AUX29: 291 | AVA29: 2312 | AVB29: 291 | AVE29: 2313 | AVF29: 291 | AVI29: 2314 | AVJ29: 291 | AVM29: 2315 | AVN29: 291 | AVQ29: 2316 | AVR29: 291 | AVU29: 2317 | AVV29: 291 | AVY29: 2318 | AVZ29: 291 | AWC29: 2319 | AWD29: 291 | AWG29: 2320 | AWH29: 291 | AWK29: 2321 | AWL29: 291 | AWO29: 2322 | AWP29: 291 | AWS29: 2323 | AWT29: 291 | AWW29: 2324 | AWX29: 291 | AXA29: 2325 | AXB29: 291 | AXE29: 2326 | AXF29: 291 | AXI29: 2327 | AXJ29: 291 | AXM29: 2328 | AXN29: 291 | AXQ29: 2329 | AXR29: 291 | AXU29: 2330 | AXV29: 291 | AXY29: 2331 | AXZ29: 291 | AYC29: 2332 | AYD29: 291 | AYG29: 2333 | AYH29: 291 | AYK29: 2334 | AYL29: 291 | AYO29: 2335 | AYP29: 291 | AYS29: 2336 | AYT29: 291 | AYW29: 2337 | AYX29: 291 | AZA29: 2338 | AZB29: 291 | AZE29: 2339 | AZF29: 291 | AZI29: 2340 | AZJ29: 291 | AZM29: 2341 | AZN29: 291 | AZQ29: 2342 | AZR29: 291 | AZU29: 2343 | AZV29: 291 | AZY29: 2344 | AZZ29: 291 | BAC29: 2345 | BAD29: 291 | BAG29: 2346 | BAH29: 291 | BAK29: 2347 | BAL29: 291 | BAO29: 2348 | BAP29: 291 | BAS29: 2349 | BAT29: 291 | BAW29: 2350 | BAX29: 291 | BBA29: 2351 | BBB29: 291 | BBE29: 2352 | BBF29: 291 | BBI29: 2353 | BBJ29: 291 | BBM29: 2354 | BBN29: 291 | BBQ29: 2355 | BBR29: 291 | BBU29: 2356 | BBV29: 291 | BBY29: 2357 | BBZ29: 291 | BCC29: 2358 | BCD29: 291 | BCG29: 2359 | BCH29: 291 | BCK29: 2360 | BCL29: 291 | BCO29: 2361 | BCP29: 291 | BCS29: 2362 | BCT29: 291 | BCW29: 2363 | BCX29: 291 | BDA29: 2364 | BDB29: 291 | BDE29: 2365 | BDF29: 291 | BDI29: 2366 | BDJ29: 291 | BDM29: 2367 | BDN29: 291 | BDQ29: 2368 | BDR29: 291 | BDU29: 2369 | BDV29: 291 | BDY29: 2370 | BDZ29: 291 | BEC29: 2371 | BED29: 291 | BEG29: 2372 | BEH29: 291 | BEK29: 2373 | BEL29: 291 | BEO29: 2374 | BEP29: 291 | BES29: 2375 | BET29: 291 | BEW29: 2376 | BEX29: 291 | BFA29: 2377 | BFB29: 291 | BFE29: 2378 | BFF29: 291 | BFI29: 2379 | BFJ29: 291 | BFM29: 2380 | BFN29: 291 | BFQ29: 2381 | BFR29: 291 | BFU29: 2382 | BFV29: 291 | BFY29: 2383 | BFZ29: 291 | BGC29: 2384 | BGD29: 291 | BGG29: 2385 | BGH29: 291 | BGK29: 2386 | BGL29: 291 | BGO29: 2387 | BGP29: 291 | BGS29: 2388 | BGT29: 291 | BGW29: 2389 | BGX29: 291 | BHA29: 2390 | BHB29: 291 | BHE29: 2391 | BHF29: 291 | BHI29: 2392 | BHJ29: 291 | BHM29: 2393 | BHN29: 291 | BHQ29: 2394 | BHR29: 291 | BHU29: 2395 | BHV29: 291 | BHY29: 2396 | BHZ29: 291 | BIC29: 2397 | BID29: 291 | BIG29: 2398 | BIH29: 291 | BIK29: 2399 | BIL29: 291
A30: 2000 | B30: 292 | E30: 2001 | F30: 292 | I30: 2002 | J30: 292 | M30: 2003 | N30: 292 | Q30: 2004 | R30: 292 | U30: 2005 | V30: 292 | Y30: 2006 | Z30: 292 | AC30: 2007 | AD30: 292 | AG30: 2008 | AH30: 292 | AK30: 2009 | AL30: 292 | AO30: 2010 | AP30: 292 | AS30: 2011 | AT30: 292 | AW30: 2012 | AX30: 292 | BA30: 2013 | BB30: 292 | BE30: 2014 | BF30: 292 | BI30: 2015 | BJ30: 292 | BM30: 2016 | BN30: 292 | BQ30: 2017 | BR30: 292 | BU30: 2018 | BV30: 292 | BY30: 2019 | BZ30: 292 | CC30: 2020 | CD30: 292 | CG30: 2021 | CH30: 292 | CK30: 2022 | CL30: 292 | CO30: 2023 | CP30: 292 | CS30: 2024 | CT30: 292 | CW30: 2025 | CX30: 292 | DA30: 2026 | DB30: 292 | DE30: 2027 | DF30: 292 | DI30: 2028 | DJ30: 292 | DM30: 2029 | DN30: 292 | DQ30: 2030 | DR30: 292 | DU30: 2031 | DV30: 292 | DY30: 2032 | DZ30: 292 | EC30: 2033 | ED30: 292 | EG30: 2034 | EH30: 292 | EK30: 2035 | EL30: 292 | EO30: 2036 | EP30: 292 | ES30: 2037 | ET30: 292 | EW30: 2038 | EX30: 292 | FA30: 2039 | FB30: 292 | FE30: 2040 | FF30: 292 | FI30: 2041 | FJ30: 292 | FM30: 2042 | FN30: 292 | FQ30: 2043 | FR30: 292 | FU30: 2044 | FV30: 292 | FY30: 2045 | FZ30: 292 | GC30: 2046 | GD30: 292 | GG30: 2047 | GH30: 292 | GK30: 2048 | GL30: 292 | GO30: 2049 | GP30: 292 | GS30: 2050 | GT30: 292 | GW30: 2051 | GX30: 292 | HA30: 2052 | HB30: 292 | HE30: 2053 | HF30: 292 | HI30: 2054 | HJ30: 292 | HM30: 2055 | HN30: 292 | HQ30: 2056 | HR30: 292 | HU30: 2057 | HV30: 292 | HY30: 2058 | HZ30: 292 | IC30: 2059 | ID30: 292 | IG30: 2060 | IH30: 292 | IK30: 2061 | IL30: 292 | IO30: 2062 | IP30: 292 | IS30: 2063 | IT30: 292 | IW30: 2064 | IX30: 292 | JA30: 2065 | JB30: 292 | JE30: 2066 | JF30: 292 | JI30: 2067 | JJ30: 292 | JM30: 2068 | JN30: 292 | JQ30: 2069 | JR30: 292 | JU30: 2070 | JV30: 292 | JY30: 2071 | JZ30: 292 | KC30: 2072 | KD30: 292 | KG30: 2073 | KH30: 292 | KK30: 2074 | KL30: 292 | KO30: 2075 | KP30: 292 | KS30: 2076 | KT30: 292 | KW30: 2077 | KX30: 292 | LA30: 2078 | LB30: 292 | LE30: 2079 | LF30: 292 | LI30: 2080 | LJ30: 292 | LM30: 2081 | LN30: 292 | LQ30: 2082 | LR30: 292 | LU30: 2083 | LV30: 292 | LY30: 2084 | LZ30: 292 | MC30: 2085 | MD30: 292 | MG30: 2086 | MH30: 292 | MK30: 2087 | ML30: 292 | MO30: 2088 | MP30: 292 | MS30: 2089 | MT30: 292 | MW30: 2090 | MX30: 292 | NA30: 2091 | NB30: 292 | NE30: 2092 | NF30: 292 | NI30: 2093 | NJ30: 292 | NM30: 2094 | NN30: 292 | NQ30: 2095 | NR30: 292 | NU30: 2096 | NV30: 292 | NY30: 2097 | NZ30: 292 | OC30: 2098 | OD30: 292 | OG30: 2099 | OH30: 292 | OK30: 2100 | OL30: 292 | OO30: 2101 | OP30: 292 | OS30: 2102 | OT30: 292 | OW30: 2103 | OX30: 292 | PA30: 2104 | PB30: 292 | PE30: 2105 | PF30: 292 | PI30: 2106 | PJ30: 292 | PM30: 2107 | PN30: 292 | PQ30: 2108 | PR30: 292 | PU30: 2109 | PV30: 292 | PY30: 2110 | PZ30: 292 | QC30: 2111 | QD30: 292 | QG30: 2112 | QH30: 292 | QK30: 2113 | QL30: 292 | QO30: 2114 | QP30: 292 | QS30: 2115 | QT30: 292 | QW30: 2116 | QX30: 292 | RA30: 2117 | RB30: 292 | RE30: 2118 | RF30: 292 | RI30: 2119 | RJ30: 292 | RM30: 2120 | RN30: 292 | RQ30: 2121 | RR30: 292 | RU30: 2122 | RV30: 292 | RY30: 2123 | RZ30: 292 | SC30: 2124 | SD30: 292 | SG30: 2125 | SH30: 292 | SK30: 2126 | SL30: 292 | SO30: 2127 | SP30: 292 | SS30: 2128 | ST30: 292 | SW30: 2129 | SX30: 292 | TA30: 2130 | TB30: 292 | TE30: 2131 | TF30: 292 | TI30: 2132 | TJ30: 292 | TM30: 2133 | TN30: 292 | TQ30: 2134 | TR30: 292 | TU30: 2135 | TV30: 292 | TY30: 2136 | TZ30: 292 | UC30: 2137 | UD30: 292 | UG30: 2138 | UH30: 292 | UK30: 2139 | UL30: 292 | UO30: 2140 | UP30: 292 | US30: 2141 | UT30: 292 | UW30: 2142 | UX30: 292 | VA30: 2143 | VB30: 292 | VE30: 2144 | VF30: 292 | VI30: 2145 | VJ30: 292 | VM30: 2146 | VN30: 292 | VQ30: 2147 | VR30: 292 | VU30: 2148 | VV30: 292 | VY30: 2149 | VZ30: 292 | WC30: 2150 | WD30: 292 | WG30: 2151 | WH30: 292 | WK30: 2152 | WL30: 292 | WO30: 2153 | WP30: 292 | WS30: 2154 | WT30: 292 | WW30: 2155 | WX30: 292 | XA30: 2156 | XB30: 292 | XE30: 2157 | XF30: 292 | XI30: 2158 | XJ30: 292 | XM30: 2159 | XN30: 292 | XQ30: 2160 | XR30: 292 | XU30: 2161 | XV30: 292 | XY30: 2162 | XZ30: 292 | YC30: 2163 | YD30: 292 | YG30: 2164 | YH30: 292 | YK30: 2165 | YL30: 292 | YO30: 2166 | YP30: 292 | YS30: 2167 | YT30: 292 | YW30: 2168 | YX30: 292 | ZA30: 2169 | ZB30: 292 | ZE30: 2170 | ZF30: 292 | ZI30: 2171 | ZJ30: 292 | ZM30: 2172 | ZN30: 292 | ZQ30: 2173 | ZR30: 292 | ZU30: 2174 | ZV30: 292 | ZY30: 2175 | ZZ30: 292 | AAC30: 2176 | AAD30: 292 | AAG30: 2177 | AAH30: 292 | AAK30: 2178 | AAL30: 292 | AAO30: 2179 | AAP30: 292 | AAS30: 2180 | AAT30: 292 | AAW30: 2181 | AAX30: 292 | ABA30: 2182 | ABB30: 292 | ABE30: 2183 | ABF30: 292 | ABI30: 2184 | ABJ30: 292 | ABM30: 2185 | ABN30: 292 | ABQ30: 2186 | ABR30: 292 | ABU30: 2187 | ABV30: 292 | ABY30: 2188 | ABZ30: 292 | ACC30: 2189 | ACD30: 292 | ACG30: 2190 | ACH30: 292 | ACK30: 2191 | ACL30: 292 | ACO30: 2192 | ACP30: 292 | ACS30: 2193 | ACT30: 292 | ACW30: 2194 | ACX30: 292 | ADA30: 2195 | ADB30: 292 | ADE30: 2196 | ADF30: 292 | ADI30: 2197 | ADJ30: 292 | ADM30: 2198 | ADN30: 292 | ADQ30: 2199 | ADR30: 292 | ADU30: 2200 | ADV30: 292 | ADY30: 2201 | ADZ30: 292 | AEC30: 2202 | AED30: 292 | AEG30: 2203 | AEH30: 292 | AEK30: 2204 | AEL30: 292 | AEO30: 2205 | AEP30: 292 | AES30: 2206 | AET30: 292 | AEW30: 2207 | AEX30: 292 | AFA30: 2208 | AFB30: 292 | AFE30: 2209 | AFF30: 292 | AFI30: 2210 | AFJ30: 292 | AFM30: 2211 | AFN30: 292 | AFQ30: 2212 | AFR30: 292 | AFU30: 2213 | AFV30: 292 | AFY30: 2214 | AFZ30: 292 | AGC30: 2215 | AGD30: 292 | AGG30: 2216 | AGH30: 292 | AGK30: 2217 | AGL30: 292 | AGO30: 2218 | AGP30: 292 | AGS30: 2219 | AGT30: 292 | AGW30: 2220 | AGX30: 292 | AHA30: 2221 | AHB30: 292 | AHE30: 2222 | AHF30: 292 | AHI30: 2223 | AHJ30: 292 | AHM30: 2224 | AHN30: 292 | AHQ30: 2225 | AHR30: 292 | AHU30: 2226 | AHV30: 292 | AHY30: 2227 | AHZ30: 292 | AIC30: 2228 | AID30: 292 | AIG30: 2229 | AIH30: 292 | AIK30: 2230 | AIL30: 292 | AIO30: 2231 | AIP30: 292 | AIS30: 2232 | AIT30: 292 | AIW30: 2233 | AIX30: 292 | AJA30: 2234 | AJB30: 292 | AJE30: 2235 | AJF30: 292 | AJI30: 2236 | AJJ30: 292 | AJM30: 2237 | AJN30: 292 | AJQ30: 2238 | AJR30: 292 | AJU30: 2239 | AJV30: 292 | AJY30: 2240 | AJZ30: 292 | AKC30: 2241 | AKD30: 292 | AKG30: 2242 | AKH30: 292 | AKK30: 2243 | AKL30: 292 | AKO30: 2244 | AKP30: 292 | AKS30: 2245 | AKT30: 292 | AKW30: 2246 | AKX30: 292 | ALA30: 2247 | ALB30: 292 | ALE30: 2248 | ALF30: 292 | ALI30: 2249 | ALJ30: 292 | ALM30: 2250 | ALN30: 292 | ALQ30: 2251 | ALR30: 292 | ALU30: 2252 | ALV30: 292 | ALY30: 2253 | ALZ30: 292 | AMC30: 2254 | AMD30: 292 | AMG30: 2255 | AMH30: 292 | AMK30: 2256 | AML30: 292 | AMO30: 2257 | AMP30: 292 | AMS30: 2258 | AMT30: 292 | AMW30: 2259 | AMX30: 292 | ANA30: 2260 | ANB30: 292 | ANE30: 2261 | ANF30: 292 | ANI30: 2262 | ANJ30: 292 | ANM30: 2263 | ANN30: 292 | ANQ30: 2264 | ANR30: 292 | ANU30: 2265 | ANV30: 292 | ANY30: 2266 | ANZ30: 292 | AOC30: 2267 | AOD30: 292 | AOG30: 2268 | AOH30: 292 | AOK30: 2269 | AOL30: 292 | AOO30: 2270 | AOP30: 292 | AOS30: 2271 | AOT30: 292 | AOW30: 2272 | AOX30: 292 | APA30: 2273 | APB30: 292 | APE30: 2274 | APF30: 292 | API30: 2275 | APJ30: 292 | APM30: 2276 | APN30: 292 | APQ30: 2277 | APR30: 292 | APU30: 2278 | APV30: 292 | APY30: 2279 | APZ30: 292 | AQC30: 2280 | AQD30: 292 | AQG30: 2281 | AQH30: 292 | AQK30: 2282 | AQL30: 292 | AQO30: 2283 | AQP30: 292 | AQS30: 2284 | AQT30: 292 | AQW30: 2285 | AQX30: 292 | ARA30: 2286 | ARB30: 292 | ARE30: 2287 | ARF30: 292 | ARI30: 2288 | ARJ30: 292 | ARM30: 2289 | ARN30: 292 | ARQ30: 2290 | ARR30: 292 | ARU30: 2291 | ARV30: 292 | ARY30: 2292 | ARZ30: 292 | ASC30: 2293 | ASD30: 292 | ASG30: 2294 | ASH30: 292 | ASK30: 2295 | ASL30: 292 | ASO30: 2296 | ASP30: 292 | ASS30: 2297 | AST30: 292 | ASW30: 2298 | ASX30: 292 | ATA30: 2299 | ATB30: 292 | ATE30: 2300 | ATF30: 292 | ATI30: 2301 | ATJ30: 292 | ATM30: 2302 | ATN30: 292 | ATQ30: 2303 | ATR30: 292 | ATU30: 2304 | ATV30: 292 | ATY30: 2305 | ATZ30: 292 | AUC30: 2306 | AUD30: 292 | AUG30: 2307 | AUH30: 292 | AUK30: 2308 | AUL30: 292 | AUO30: 2309 | AUP30: 292 | AUS30: 2310 | AUT30: 292 | AUW30: 2311 | AUX30: 292 | AVA30: 2312 | AVB30: 292 | AVE30: 2313 | AVF30: 292 | AVI30: 2314 | AVJ30: 292 | AVM30: 2315 | AVN30: 292 | AVQ30: 2316 | AVR30: 292 | AVU30: 2317 | AVV30: 292 | AVY30: 2318 | AVZ30: 292 | AWC30: 2319 | AWD30: 292 | AWG30: 2320 | AWH30: 292 | AWK30: 2321 | AWL30: 292 | AWO30: 2322 | AWP30: 292 | AWS30: 2323 | AWT30: 292 | AWW30: 2324 | AWX30: 292 | AXA30: 2325 | AXB30: 292 | AXE30: 2326 | AXF30: 292 | AXI30: 2327 | AXJ30: 292 | AXM30: 2328 | AXN30: 292 | AXQ30: 2329 | AXR30: 292 | AXU30: 2330 | AXV30: 292 | AXY30: 2331 | AXZ30: 292 | AYC30: 2332 | AYD30: 292 | AYG30: 2333 | AYH30: 292 | AYK30: 2334 | AYL30: 292 | AYO30: 2335 | AYP30: 292 | AYS30: 2336 | AYT30: 292 | AYW30: 2337 | AYX30: 292 | AZA30: 2338 | AZB30: 292 | AZE30: 2339 | AZF30: 292 | AZI30: 2340 | AZJ30: 292 | AZM30: 2341 | AZN30: 292 | AZQ30: 2342 | AZR30: 292 | AZU30: 2343 | AZV30: 292 | AZY30: 2344 | AZZ30: 292 | BAC30: 2345 | BAD30: 292 | BAG30: 2346 | BAH30: 292 | BAK30: 2347 | BAL30: 292 | BAO30: 2348 | BAP30: 292 | BAS30: 2349 | BAT30: 292 | BAW30: 2350 | BAX30: 292 | BBA30: 2351 | BBB30: 292 | BBE30: 2352 | BBF30: 292 | BBI30: 2353 | BBJ30: 292 | BBM30: 2354 | BBN30: 292 | BBQ30: 2355 | BBR30: 292 | BBU30: 2356 | BBV30: 292 | BBY30: 2357 | BBZ30: 292 | BCC30: 2358 | BCD30: 292 | BCG30: 2359 | BCH30: 292 | BCK30: 2360 | BCL30: 292 | BCO30: 2361 | BCP30: 292 | BCS30: 2362 | BCT30: 292 | BCW30: 2363 | BCX30: 292 | BDA30: 2364 | BDB30: 292 | BDE30: 2365 | BDF30: 292 | BDI30: 2366 | BDJ30: 292 | BDM30: 2367 | BDN30: 292 | BDQ30: 2368 | BDR30: 292 | BDU30: 2369 | BDV30: 292 | BDY30: 2370 | BDZ30: 292 | BEC30: 2371 | BED30: 292 | BEG30: 2372 | BEH30: 292 | BEK30: 2373 | BEL30: 292 | BEO30: 2374 | BEP30: 292 | BES30: 2375 | BET30: 292 | BEW30: 2376 | BEX30: 292 | BFA30: 2377 | BFB30: 292 | BFE30: 2378 | BFF30: 292 | BFI30: 2379 | BFJ30: 292 | BFM30: 2380 | BFN30: 292 | BFQ30: 2381 | BFR30: 292 | BFU30: 2382 | BFV30: 292 | BFY30: 2383 | BFZ30: 292 | BGC30: 2384 | BGD30: 292 | BGG30: 2385 | BGH30: 292 | BGK30: 2386 | BGL30: 292 | BGO30: 2387 | BGP30: 292 | BGS30: 2388 | BGT30: 292 | BGW30: 2389 | BGX30: 292 | BHA30: 2390 | BHB30: 292 | BHE30: 2391 | BHF30: 292 | BHI30: 2392 | BHJ30: 292 | BHM30: 2393 | BHN30: 292 | BHQ30: 2394 | BHR30: 292 | BHU30: 2395 | BHV30: 292 | BHY30: 2396 | BHZ30: 292 | BIC30: 2397 | BID30: 292 | BIG30: 2398 | BIH30: 292 | BIK30: 2399 | BIL30: 292
A31: 2000 | B31: 293 | E31: 2001 | F31: 293 | I31: 2002 | J31: 293 | M31: 2003 | N31: 293 | Q31: 2004 | R31: 293 | U31: 2005 | V31: 293 | Y31: 2006 | Z31: 293 | AC31: 2007 | AD31: 293 | AG31: 2008 | AH31: 293 | AK31: 2009 | AL31: 293 | AO31: 2010 | AP31: 293 | AS31: 2011 | AT31: 293 | AW31: 2012 | AX31: 293 | BA31: 2013 | BB31: 293 | BE31: 2014 | BF31: 293 | BI31: 2015 | BJ31: 293 | BM31: 2016 | BN31: 293 | BQ31: 2017 | BR31: 293 | BU31: 2018 | BV31: 293 | BY31: 2019 | BZ31: 293 | CC31: 2020 | CD31: 293 | CG31: 2021 | CH31: 293 | CK31: 2022 | CL31: 293 | CO31: 2023 | CP31: 293 | CS31: 2024 | CT31: 293 | CW31: 2025 | CX31: 293 | DA31: 2026 | DB31: 293 | DE31: 2027 | DF31: 293 | DI31: 2028 | DJ31: 293 | DM31: 2029 | DN31: 293 | DQ31: 2030 | DR31: 293 | DU31: 2031 | DV31: 293 | DY31: 2032 | DZ31: 293 | EC31: 2033 | ED31: 293 | EG31: 2034 | EH31: 293 | EK31: 2035 | EL31: 293 | EO31: 2036 | EP31: 293 | ES31: 2037 | ET31: 293 | EW31: 2038 | EX31: 293 | FA31: 2039 | FB31: 293 | FE31: 2040 | FF31: 293 | FI31: 2041 | FJ31: 293 | FM31: 2042 | FN31: 293 | FQ31: 2043 | FR31: 293 | FU31: 2044 | FV31: 293 | FY31: 2045 | FZ31: 293 | GC31: 2046 | GD31: 293 | GG31: 2047 | GH31: 293 | GK31: 2048 | GL31: 293 | GO31: 2049 | GP31: 293 | GS31: 2050 | GT31: 293 | GW31: 2051 | GX31: 293 | HA31: 2052 | HB31: 293 | HE31: 2053 | HF31: 293 | HI31: 2054 | HJ31: 293 | HM31: 2055 | HN31: 293 | HQ31: 2056 | HR31: 293 | HU31: 2057 | HV31: 293 | HY31: 2058 | HZ31: 293 | IC31: 2059 | ID31: 293 | IG31: 2060 | IH31: 293 | IK31: 2061 | IL31: 293 | IO31: 2062 | IP31: 293 | IS31: 2063 | IT31: 293 | IW31: 2064 | IX31: 293 | JA31: 2065 | JB31: 293 | JE31: 2066 | JF31: 293 | JI31: 2067 | JJ31: 293 | JM31: 2068 | JN31: 293 | JQ31: 2069 | JR31: 293 | JU31: 2070 | JV31: 293 | JY31: 2071 | JZ31: 293 | KC31: 2072 | KD31: 293 | KG31: 2073 | KH31: 293 | KK31: 2074 | KL31: 293 | KO31: 2075 | KP31: 293 | KS31: 2076 | KT31: 293 | KW31: 2077 | KX31: 293 | LA31: 2078 | LB31: 293 | LE31: 2079 | LF31: 293 | LI31: 2080 | LJ31: 293 | LM31: 2081 | LN31: 293 | LQ31: 2082 | LR31: 293 | LU31: 2083 | LV31: 293 | LY31: 2084 | LZ31: 293 | MC31: 2085 | MD31: 293 | MG31: 2086 | MH31: 293 | MK31: 2087 | ML31: 293 | MO31: 2088 | MP31: 293 | MS31: 2089 | MT31: 293 | MW31: 2090 | MX31: 293 | NA31: 2091 | NB31: 293 | NE31: 2092 | NF31: 293 | NI31: 2093 | NJ31: 293 | NM31: 2094 | NN31: 293 | NQ31: 2095 | NR31: 293 | NU31: 2096 | NV31: 293 | NY31: 2097 | NZ31: 293 | OC31: 2098 | OD31: 293 | OG31: 2099 | OH31: 293 | OK31: 2100 | OL31: 293 | OO31: 2101 | OP31: 293 | OS31: 2102 | OT31: 293 | OW31: 2103 | OX31: 293 | PA31: 2104 | PB31: 293 | PE31: 2105 | PF31: 293 | PI31: 2106 | PJ31: 293 | PM31: 2107 | PN31: 293 | PQ31: 2108 | PR31: 293 | PU31: 2109 | PV31: 293 | PY31: 2110 | PZ31: 293 | QC31: 2111 | QD31: 293 | QG31: 2112 | QH31: 293 | QK31: 2113 | QL31: 293 | QO31: 2114 | QP31: 293 | QS31: 2115 | QT31: 293 | QW31: 2116 | QX31: 293 | RA31: 2117 | RB31: 293 | RE31: 2118 | RF31: 293 | RI31: 2119 | RJ31: 293 | RM31: 2120 | RN31: 293 | RQ31: 2121 | RR31: 293 | RU31: 2122 | RV31: 293 | RY31: 2123 | RZ31: 293 | SC31: 2124 | SD31: 293 | SG31: 2125 | SH31: 293 | SK31: 2126 | SL31: 293 | SO31: 2127 | SP31: 293 | SS31: 2128 | ST31: 293 | SW31: 2129 | SX31: 293 | TA31: 2130 | TB31: 293 | TE31: 2131 | TF31: 293 | TI31: 2132 | TJ31: 293 | TM31: 2133 | TN31: 293 | TQ31: 2134 | TR31: 293 | TU31: 2135 | TV31: 293 | TY31: 2136 | TZ31: 293 | UC31: 2137 | UD31: 293 | UG31: 2138 | UH31: 293 | UK31: 2139 | UL31: 293 | UO31: 2140 | UP31: 293 | US31: 2141 | UT31: 293 | UW31: 2142 | UX31: 293 | VA31: 2143 | VB31: 293 | VE31: 2144 | VF31: 293 | VI31: 2145 | VJ31: 293 | VM31: 2146 | VN31: 293 | VQ31: 2147 | VR31: 293 | VU31: 2148 | VV31: 293 | VY31: 2149 | VZ31: 293 | WC31: 2150 | WD31: 293 | WG31: 2151 | WH31: 293 | WK31: 2152 | WL31: 293 | WO31: 2153 | WP31: 293 | WS31: 2154 | WT31: 293 | WW31: 2155 | WX31: 293 | XA31: 2156 | XB31: 293 | XE31: 2157 | XF31: 293 | XI31: 2158 | XJ31: 293 | XM31: 2159 | XN31: 293 | XQ31: 2160 | XR31: 293 | XU31: 2161 | XV31: 293 | XY31: 2162 | XZ31: 293 | YC31: 2163 | YD31: 293 | YG31: 2164 | YH31: 293 | YK31: 2165 | YL31: 293 | YO31: 2166 | YP31: 293 | YS31: 2167 | YT31: 293 | YW31: 2168 | YX31: 293 | ZA31: 2169 | ZB31: 293 | ZE31: 2170 | ZF31: 293 | ZI31: 2171 | ZJ31: 293 | ZM31: 2172 | ZN31: 293 | ZQ31: 2173 | ZR31: 293 | ZU31: 2174 | ZV31: 293 | ZY31: 2175 | ZZ31: 293 | AAC31: 2176 | AAD31: 293 | AAG31: 2177 | AAH31: 293 | AAK31: 2178 | AAL31: 293 | AAO31: 2179 | AAP31: 293 | AAS31: 2180 | AAT31: 293 | AAW31: 2181 | AAX31: 293 | ABA31: 2182 | ABB31: 293 | ABE31: 2183 | ABF31: 293 | ABI31: 2184 | ABJ31: 293 | ABM31: 2185 | ABN31: 293 | ABQ31: 2186 | ABR31: 293 | ABU31: 2187 | ABV31: 293 | ABY31: 2188 | ABZ31: 293 | ACC31: 2189 | ACD31: 293 | ACG31: 2190 | ACH31: 293 | ACK31: 2191 | ACL31: 293 | ACO31: 2192 | ACP31: 293 | ACS31: 2193 | ACT31: 293 | ACW31: 2194 | ACX31: 293 | ADA31: 2195 | ADB31: 293 | ADE31: 2196 | ADF31: 293 | ADI31: 2197 | ADJ31: 293 | ADM31: 2198 | ADN31: 293 | ADQ31: 2199 | ADR31: 293 | ADU31: 2200 | ADV31: 293 | ADY31: 2201 | ADZ31: 293 | AEC31: 2202 | AED31: 293 | AEG31: 2203 | AEH31: 293 | AEK31: 2204 | AEL31: 293 | AEO31: 2205 | AEP31: 293 | AES31: 2206 | AET31: 293 | AEW31: 2207 | AEX31: 293 | AFA31: 2208 | AFB31: 293 | AFE31: 2209 | AFF31: 293 | AFI31: 2210 | AFJ31: 293 | AFM31: 2211 | AFN31: 293 | AFQ31: 2212 | AFR31: 293 | AFU31: 2213 | AFV31: 293 | AFY31: 2214 | AFZ31: 293 | AGC31: 2215 | AGD31: 293 | AGG31: 2216 | AGH31: 293 | AGK31: 2217 | AGL31: 293 | AGO31: 2218 | AGP31: 293 | AGS31: 2219 | AGT31: 293 | AGW31: 2220 | AGX31: 293 | AHA31: 2221 | AHB31: 293 | AHE31: 2222 | AHF31: 293 | AHI31: 2223 | AHJ31: 293 | AHM31: 2224 | AHN31: 293 | AHQ31: 2225 | AHR31: 293 | AHU31: 2226 | AHV31: 293 | AHY31: 2227 | AHZ31: 293 | AIC31: 2228 | AID31: 293 | AIG31: 2229 | AIH31: 293 | AIK31: 2230 | AIL31: 293 | AIO31: 2231 | AIP31: 293 | AIS31: 2232 | AIT31: 293 | AIW31: 2233 | AIX31: 293 | AJA31: 2234 | AJB31: 293 | AJE31: 2235 | AJF31: 293 | AJI31: 2236 | AJJ31: 293 | AJM31: 2237 | AJN31: 293 | AJQ31: 2238 | AJR31: 293 | AJU31: 2239 | AJV31: 293 | AJY31: 2240 | AJZ31: 293 | AKC31: 2241 | AKD31: 293 | AKG31: 2242 | AKH31: 293 | AKK31: 2243 | AKL31: 293 | AKO31: 2244 | AKP31: 293 | AKS31: 2245 | AKT31: 293 | AKW31: 2246 | AKX31: 293 | ALA31: 2247 | ALB31: 293 | ALE31: 2248 | ALF31: 293 | ALI31: 2249 | ALJ31: 293 | ALM31: 2250 | ALN31: 293 | ALQ31: 2251 | ALR31: 293 | ALU31: 2252 | ALV31: 293 | ALY31: 2253 | ALZ31: 293 | AMC31: 2254 | AMD31: 293 | AMG31: 2255 | AMH31: 293 | AMK31: 2256 | AML31: 293 | AMO31: 2257 | AMP31: 293 | AMS31: 2258 | AMT31: 293 | AMW31: 2259 | AMX31: 293 | ANA31: 2260 | ANB31: 293 | ANE31: 2261 | ANF31: 293 | ANI31: 2262 | ANJ31: 293 | ANM31: 2263 | ANN31: 293 | ANQ31: 2264 | ANR31: 293 | ANU31: 2265 | ANV31: 293 | ANY31: 2266 | ANZ31: 293 | AOC31: 2267 | AOD31: 293 | AOG31: 2268 | AOH31: 293 | AOK31: 2269 | AOL31: 293 | AOO31: 2270 | AOP31: 293 | AOS31: 2271 | AOT31: 293 | AOW31: 2272 | AOX31: 293 | APA31: 2273 | APB31: 293 | APE31: 2274 | APF31: 293 | API31: 2275 | APJ31: 293 | APM31: 2276 | APN31: 293 | APQ31: 2277 | APR31: 293 | APU31: 2278 | APV31: 293 | APY31: 2279 | APZ31: 293 | AQC31: 2280 | AQD31: 293 | AQG31: 2281 | AQH31: 293 | AQK31: 2282 | AQL31: 293 | AQO31: 2283 | AQP31: 293 | AQS31: 2284 | AQT31: 293 | AQW31: 2285 | AQX31: 293 | ARA31: 2286 | ARB31: 293 | ARE31: 2287 | ARF31: 293 | ARI31: 2288 | ARJ31: 293 | ARM31: 2289 | ARN31: 293 | ARQ31: 2290 | ARR31: 293 | ARU31: 2291 | ARV31: 293 | ARY31: 2292 | ARZ31: 293 | ASC31: 2293 | ASD31: 293 | ASG31: 2294 | ASH31: 293 | ASK31: 2295 | ASL31: 293 | ASO31: 2296 | ASP31: 293 | ASS31: 2297 | AST31: 293 | ASW31: 2298 | ASX31: 293 | ATA31: 2299 | ATB31: 293 | ATE31: 2300 | ATF31: 293 | ATI31: 2301 | ATJ31: 293 | ATM31: 2302 | ATN31: 293 | ATQ31: 2303 | ATR31: 293 | ATU31: 2304 | ATV31: 293 | ATY31: 2305 | ATZ31: 293 | AUC31: 2306 | AUD31: 293 | AUG31: 2307 | AUH31: 293 | AUK31: 2308 | AUL31: 293 | AUO31: 2309 | AUP31: 293 | AUS31: 2310 | AUT31: 293 | AUW31: 2311 | AUX31: 293 | AVA31: 2312 | AVB31: 293 | AVE31: 2313 | AVF31: 293 | AVI31: 2314 | AVJ31: 293 | AVM31: 2315 | AVN31: 293 | AVQ31: 2316 | AVR31: 293 | AVU31: 2317 | AVV31: 293 | AVY31: 2318 | AVZ31: 293 | AWC31: 2319 | AWD31: 293 | AWG31: 2320 | AWH31: 293 | AWK31: 2321 | AWL31: 293 | AWO31: 2322 | AWP31: 293 | AWS31: 2323 | AWT31: 293 | AWW31: 2324 | AWX31: 293 | AXA31: 2325 | AXB31: 293 | AXE31: 2326 | AXF31: 293 | AXI31: 2327 | AXJ31: 293 | AXM31: 2328 | AXN31: 293 | AXQ31: 2329 | AXR31: 293 | AXU31: 2330 | AXV31: 293 | AXY31: 2331 | AXZ31: 293 | AYC31: 2332 | AYD31: 293 | AYG31: 2333 | AYH31: 293 | AYK31: 2334 | AYL31: 293 | AYO31: 2335 | AYP31: 293 | AYS31: 2336 | AYT31: 293 | AYW31: 2337 | AYX31: 293 | AZA31: 2338 | AZB31: 293 | AZE31: 2339 | AZF31: 293 | AZI31: 2340 | AZJ31: 293 | AZM31: 2341 | AZN31: 293 | AZQ31: 2342 | AZR31: 293 | AZU31: 2343 | AZV31: 293 | AZY31: 2344 | AZZ31: 293 | BAC31: 2345 | BAD31: 293 | BAG31: 2346 | BAH31: 293 | BAK31: 2347 | BAL31: 293 | BAO31: 2348 | BAP31: 293 | BAS31: 2349 | BAT31: 293 | BAW31: 2350 | BAX31: 293 | BBA31: 2351 | BBB31: 293 | BBE31: 2352 | BBF31: 293 | BBI31: 2353 | BBJ31: 293 | BBM31: 2354 | BBN31: 293 | BBQ31: 2355 | BBR31: 293 | BBU31: 2356 | BBV31: 293 | BBY31: 2357 | BBZ31: 293 | BCC31: 2358 | BCD31: 293 | BCG31: 2359 | BCH31: 293 | BCK31: 2360 | BCL31: 293 | BCO31: 2361 | BCP31: 293 | BCS31: 2362 | BCT31: 293 | BCW31: 2363 | BCX31: 293 | BDA31: 2364 | BDB31: 293 | BDE31: 2365 | BDF31: 293 | BDI31: 2366 | BDJ31: 293 | BDM31: 2367 | BDN31: 293 | BDQ31: 2368 | BDR31: 293 | BDU31: 2369 | BDV31: 293 | BDY31: 2370 | BDZ31: 293 | BEC31: 2371 | BED31: 293 | BEG31: 2372 | BEH31: 293 | BEK31: 2373 | BEL31: 293 | BEO31: 2374 | BEP31: 293 | BES31: 2375 | BET31: 293 | BEW31: 2376 | BEX31: 293 | BFA31: 2377 | BFB31: 293 | BFE31: 2378 | BFF31: 293 | BFI31: 2379 | BFJ31: 293 | BFM31: 2380 | BFN31: 293 | BFQ31: 2381 | BFR31: 293 | BFU31: 2382 | BFV31: 293 | BFY31: 2383 | BFZ31: 293 | BGC31: 2384 | BGD31: 293 | BGG31: 2385 | BGH31: 293 | BGK31: 2386 | BGL31: 293 | BGO31: 2387 | BGP31: 293 | BGS31: 2388 | BGT31: 293 | BGW31: 2389 | BGX31: 293 | BHA31: 2390 | BHB31: 293 | BHE31: 2391 | BHF31: 293 | BHI31: 2392 | BHJ31: 293 | BHM31: 2393 | BHN31: 293 | BHQ31: 2394 | BHR31: 293 | BHU31: 2395 | BHV31: 293 | BHY31: 2396 | BHZ31: 293 | BIC31: 2397 | BID31: 293 | BIG31: 2398 | BIH31: 293 | BIK31: 2399 | BIL31: 293
... 38 more rows
